Workbook

Sheet 入力
C2: ExcelでFP
D4: この色のセルを入力していってください。
C6: 西暦 | D6: 2022
AT7: <給料>
C8: 親の情報 | N8: 子供の情報 | V8: 家の情報 | AC8: 現在の支出金額 | AT8: 世帯年収(生涯平均) | AU8: =SUM(F14,K14) -> 750 | AV8: 万円 | AX8: 親1 | AY8: =F14 -> 500 | AZ8: 万円
AX9: 親2 | AY9: =K14 -> 250 | AZ9: 万円
C10: 親1 | D10: 貯金 | E10: 投資 | H10: 親2 | I10: 貯金 | J10: 投資 | P10: 子供1 | Q10: 子供2 | R10: 子供3 | S10: 子供4 | V10: <賃貸の場合> | W10: 歳～ | X10: 歳 | Y10: 住居(万円/月) | AD10: 食費 | AE10: 服費 日用品 | AF10: 電気 | AG10: ガス | AH10: 水道 | AI10: インターネット | AJ10: 携帯 | AK10: 合計 | AL10: 人数 | AT10: <子供>
D11: 0 | E11: 0 | I11: 0 | J11: 0 | O11: 年齢 | P11: -4 | Q11: -7 | V11: 独身 | W11: 0 | X11: =W12-1 -> 23 | Y11: 7 | Z11: =Y11*12 -> 84 | AC11: 親1の変動費 | AD11: 3 | AE11: 1 | AF11: 0.5 | AG11: 0.4 | AH11: 0.25 | AI11: 0.5 | AJ11: 0.2 | AK11: =SUM(AD11:AJ11) -> 5.85 | AL11: 1 | AT11: こども | AU11: =COUNT(P11:S11) -> 2 | AV11: 人 | AX11: 習い事塾
P12: ※↑無しなら空白でお願い致します。 | V12: 夫婦 | W12: =INDEX(親1!C:C,MATCH(入力!V12,親1!AU:AU,0)) -> 24 | X12: =W13-1 -> 27 | Y12: 8 | Z12: =Y12*12 -> 96 | AC12: 親2の変動費 | AD12: =AD11 -> 3 | AE12: =AE11 -> 1 | AF12: =AF11*0.5 -> 0.25 | AG12: =AG11*0.5 -> 0.2 | AH12: =AH11*0.5 -> 0.125 | AI12: 0 | AJ12: =AJ11 -> 0.2 | AK12: =SUM(AD12:AJ12) -> 4.775 | AL12: 1 | AT12: 大学 | AU12: =P28 -> 公立 | AV12: 仕送り無し | AX12: 幼稚園 | AY12: =$P$18 -> 1 | AZ12: 万円
N13: 保 | O13: 幼稚園 | P13: 公立 | Q13: 公立 | R13: 公立 | S13: 公立 | V13: 子1人 | W13: =INDEX(親1!C:C,MATCH(入力!V13,親1!AU:AU,0)) -> 28 | X13: 30 | Y13: 8 | Z13: =Y13*12 -> 96 | AC13: 子の変動費 | AD13: =AD11*0.5 -> 1.5 | AE13: =AE11*0.5 -> 0.5 | AF13: =AF11*0.25 -> 0.125 | AG13: =AG11*0.25 -> 0.1 | AH13: 0.0625 | AI13: 0.125 | AJ13: =AJ11 -> 0.2 | AK13: 2.6125 | AL13: =COUNT(P11:S11) -> 2 | AT13: 大学院 | AU13: =Q31 -> 公立 | AV13: 仕送り有 | AX13: 小学校 | AY13: =$P$24 -> 1 | AZ13: 万円
C14: 生涯平均年収 | F14: 500 | H14: 生涯平均年収 | K14: 250 | N14: 育 | O14: 習い事 | V14: 子2人以上 | W14: =INDEX(親1!C:C,MATCH(入力!V14,親1!AU:AU,0)) -> 31 | X14: 54 | Y14: 10 | Z14: =Y14*12 -> 120 | AC14: 家族合計(使途不明含む) | AD14: =サマリ!M1/12 -> 9.9 | AE14: =サマリ!N1/12 -> 3.3 | AF14: =サマリ!O1/12 -> 1.1 | AG14: =サマリ!P1/12 -> 0.88 | AH14: =サマリ!Q1/12 -> 0.55 | AI14: =サマリ!V1/12 -> 0.5 | AJ14: =サマリ!W1/12 -> 0.8 | AK14: 17.03 | AL14: =SUM(AL11:AL13) -> 4 | AX14: 中学校 | AY14: =$P$24 -> 1 | AZ14: 万円
N15: 0~2 | O15: 塾(万円/月) | P15: 0 | Q15: 0 | R15: 0 | S15: 0 | V15: 子離れ | W15: =INDEX(親1!C:C,MATCH(入力!V15,親1!AU:AU,0)) -> 55 | X15: 64 | Y15: 10 | Z15: 120 | AC15: =COUNTA(P11:S11)+2&"人家族の平均値)" -> 4人家族の平均値) | AD15: =VLOOKUP($AL14,変動費!$C$23:$J$27,2,0) -> 8.1093 | AE15: =VLOOKUP($AL14,変動費!$C$23:$J$27,3,0) -> 2.1204 | AF15: =VLOOKUP($AL14,変動費!$C$23:$J$27,4,0) -> 1.8752 | AG15: =VLOOKUP($AL14,変動費!$C$23:$J$27,5,0) -> ←含む | AH15: =VLOOKUP($AL14,変動費!$C$23:$J$27,6,0) -> ←含む | AX15: 高校 | AY15: =$P$27 -> 2 | AZ15: 万円
C16: 親1 | D16: 年齢 | E16: 年収 | H16: 親2 | I16: 年齢 | J16: 年収 | N16: 保 | O16: 幼稚園 | P16: 公立 | Q16: 公立 | R16: 公立 | S16: 公立 | V16: 退職後 | W16: =$D$22 -> 65 | Y16: 7 | Z16: =Y16*12 -> 84 | AC16: 使途不明金 | AD16: 0.1 | AE16: =SUM(AD14:AH14)-(SUM(AD11:AH11)*AL11+SUM(AD12:AH12)*AL12+SUM(AD13:AH13)*AL13) -> 1.43 | AF16: ※使途不明金は初期設定で10%としております。
C17: 現在 | D17: 24 | E17: =VLOOKUP(D17,賃金カーブ!$R:$Z,3,0) -> 369.7506557 | H17: 現在 | I17: 22 | J17: =VLOOKUP(I17,賃金カーブ!$R:$Z,4,0) -> 173.0905808 | N17: 育 | O17: 習い事 | AD17: ※子供が増えても、食費等は親の半分、電気代等は1/4しか増えない計算にしています。 | AT17: <家>
C18: 主任 | D18: =ROUND(D17+(D$22-D$17)/5,0) -> 32 | E18: =VLOOKUP(D18,賃金カーブ!$R:$Z,3,0) -> 463.7574189 | H18: 主任 | I18: =ROUND(I17+(I$22-I$17)/5,0) -> 31 | J18: =VLOOKUP(I18,賃金カーブ!$R:$Z,4,0) -> 226.3144696 | N18: 3~5 | O18: 塾(万円/月) | P18: 1 | Q18: 1 | R18: 1 | S18: 1 | V18: <購入する場合> | AD18: ※交通費は、お小遣いに含む。 | AT18: 賃貸 | AU18: =$Y$12 -> 8 | AV18: 万円/月 | AX18: ※子供ができるまで
C19: 課長 | D19: =ROUND(D18+(D$22-D$17)/5,0) -> 40 | E19: =VLOOKUP(D19,賃金カーブ!$R:$Z,3,0) -> 546.7804667 | H19: 課長 | I19: =ROUND(I18+(I$22-I$17)/5,0) -> 40 | J19: =VLOOKUP(I19,賃金カーブ!$R:$Z,4,0) -> 273.3902334 | N19: 小 | O19: 小学校 | P19: 公立 | Q19: 公立 | R19: 公立 | S19: 公立 | V19: 何年後 | W19: 10 | X19: ※賃貸に住み続ける人は100を。 | AC19: 車、大物家電、リフォーム等 | AT19: マイホーム | AU19: =W26 -> 4000 | AV19: 万円 | AX19: =$W$20 -> マンション
C20: 部長 | D20: 48 | E20: =VLOOKUP(D20,賃金カーブ!$R:$Z,3,0) -> 622.6438425 | H20: 部長 | I20: 49 | J20: =VLOOKUP(I20,賃金カーブ!$R:$Z,4,0) -> 316.4601744 | N20: 学 | O20: 習い事 | P20: 1 | Q20: 1 | R20: 1 | S20: 1 | V20: 種類 | W20: マンション
C21: 役停 | D21: 56 | E21: =VLOOKUP(D21,賃金カーブ!$R:$Z,3,0) -> 587.6902872 | H21: 役停 | I21: 58 | J21: =VLOOKUP(I21,賃金カーブ!$R:$Z,4,0) -> 253.5479477 | N21: 高 | O21: 塾(万円/月) | V21: 平米 | W21: 75 | Y21: <参考＞標準の管理費修繕費 | AC21: 車 | AD21: 3 | AE21: 年後から | AT21: <車>
C22: 退職 | D22: 65 | E22: =VLOOKUP(D22,賃金カーブ!$R:$Z,3,0) -> 437.554019 | H22: 退職 | I22: 65 | J22: =VLOOKUP(I22,賃金カーブ!$R:$Z,4,0) -> 218.7770095 | N22: 中 | O22: 中学校 | P22: 公立 | Q22: 公立 | R22: 公立 | S22: 公立 | V22: 管理費(万円/月) | W22: 1.2 | X22: ※マンションのみ | Y22: =W21*155/10000 -> 1.1625 | AT22: 車 | AU22: =COUNT(AE24:AF24) -> 1 | AV22: 台 | AX22: 車(金額) | AY22: =SUM(AE24:AF24) -> 300 | AZ22: 万円
N23: 学 | O23: 習い事 | V23: 修繕費(万円/月) | W23: 1.5 | X23: ※マンションのみ | Y23: =W21*200/10000 -> 1.5 | AC23: 歳から | AD23: 歳まで | AE23: 車1 | AF23: 車2 | AG23: 間隔 | AH23: 車検/2年 | AI23: 保険/年 | AJ23: 駐車場/月 | AK23: 中古価格(1年15％減) | AL23: 購入時 | AX23: 駐車場代 | AY23: =$AJ$24 -> 1 | AZ23: 万円
C24: シミュレーション | E24: 50 | F24: 歳から | J24: 50 | K24: 歳から | N24: 高 | O24: 塾(万円/月) | P24: 1 | Q24: 1 | R24: 1 | S24: 1 | V24: 駐車場(万円/月) | W24: 車にINPUT | AC24: =$D$17 -> 24 | AD24: 65 | AE24: 300 | AG24: 7 | AH24: 10 | AI24: =SUM(AE24:AF24)*1.5% -> 4.5 | AJ24: 1 | AK24: =MAX(SUM(AE24:AF24)*(1-$AG$24/7)*80%,0) -> 0 | AL24: =AE24-AK24 -> 300 | AT24: <変動費>
D25: 収入 | E25: 0 | F25: 減 | I25: シミュレーション 収入 | J25: 0 | K25: 減 | N25: 高 | O25: 高校 | P25: 公立 | Q25: 公立 | R25: 公立 | S25: 公立 | AC25: 66 | AD25: 90 | AE25: 250 | AG25: 7 | AH25: 10 | AI25: =SUM(AE25:AF25)*1.5% -> 3.75 | AJ25: 1 | AK25: =MAX(SUM(AE25:AF25)*(1-$AG$24/7)*80%,0) -> 0 | AL25: =AE25-AK25 -> 250 | AT25: 月変動費 | AU25: =SUM(AK14) -> 17.03 | AV25: 万円 | AX25: 食費 | AY25: =SUM($AD$14)/(1+$AD$16) -> 9 | AZ25: 万円
N26: 校 | O26: 習い事 | V26: 費用 | W26: 4000 | AJ26: ※一戸建ては自動的に「0」になります。 | AX26: 服・日用品 | AY26: =SUM($AE$14)/(1+$AD$16) -> 3 | AZ26: 万円
I27: 歳から | J27: 歳まで | K27: 年収 | O27: 塾(万円/月) | P27: 2 | Q27: 2 | R27: 2 | S27: 2 | V27: 頭金 | W27: 0 | AC27: 大物家電 | AG27: リフォーム | AX27: 光熱費 | AY27: =SUM($AF$14:$AH$14)/(1+$AD$16) -> 2.3 | AZ27: 万円
D28: 雑収入 | H28: 育休 | I28: 0 | J28: 0 | K28: 0.3 | N28: 大 | O28: 大学 | P28: 公立 | Q28: 公立 | R28: 公立 | S28: 公立 | V28: ローン | W28: =W26-W27 -> 4000 | AC28: 項目 | AD28: 金額 | AE28: 間隔 | AG28: 項目 | AH28: 金額 | AI28: 間隔 | AX28: インターネット | AY28: =SUM($AI$14:$AJ$14)/(1+$AD$16) -> 1.181818182 | AZ28: 万円
H29: 時短 | I29: =J28+1 -> 1 | J29: 5 | K29: 0.6 | N29: 学 | V29: 返済年数 | W29: 35 | AC29: 洗濯機 | AD29: 10 | AE29: 10 | AG29: 壁紙・内壁 | AH29: 74 | AI29: 20 | AJ29: ※1戸建ての外壁など、 | AX29: 他 | AY29: =AE16 -> 1.43 | AZ29: 万円
O30: 仕送り(/月) | Q30: 6 | R30: 5 | S30: 5 | V30: 金利 | W30: 0.01 | AC30: エアコン | AD30: =10+7+7 -> 24 | AE30: 10 | AG30: キッチン | AH30: 131 | AI30: 30 | AJ30: 最低限行う必要のあるものは、 | AT30: <お小遣い>
D31: 退職金 | E31: =1000/500*F14 -> 1000 | I31: 退職金 | J31: 0 | N31: 大 | O31: 大学院 | Q31: 公立 | R31: 公立 | S31: 公立 | V31: 利息 | W31: =W32-W28 -> 742.3997421 | AC31: 冷蔵庫 | AD31: 20 | AE31: 10 | AG31: 給湯器 | AH31: 49 | AI31: 20 | AJ31: 住居維持費に含めています。 | AT31: お小遣い | AU31: =AY31+AY32+AY33*2 -> 8 | AV31: 万円 | AX31: 親1 | AY31: =$D$38 -> 3 | AZ31: 万円
N32: 学 | V32: 総支払額 | W32: =W34*W29*12 -> 4742.399742 | AC32: 掃除機 | AD32: 3 | AE32: 5 | AG32: お風呂 | AH32: 107 | AI32: 30 | AX32: 親2 | AY32: =$I$38 -> 3 | AZ32: 万円
C33: 保険 | D33: (万円/月) | H33: 保険 | I33: (万円/月) | N33: 院 | O33: 仕送り(/月) | Q33: 6 | R33: 5 | S33: 5 | AC33: 予備 | AG33: トイレ | AH33: 51 | AI33: 20 | AJ33: ※金額は平均値を入力しています。 | AX33: 子供 | AY33: =P35 -> 1 | AZ33: 万円
C34: 子供なし | D34: 1 | H34: 子供なし | I34: 0 | P34: ※↑いかない場合、空白でお願い致します。 | V34: 月額 | W34: =W28*(W30/12)*(1+W30/12)^(W29*12)/((1+W30/12)^(W29*12)-1) -> 11.29142796 | AC34: 予備 | AG34: 洗面所 | AH34: 30 | AI34: 20
C35: 子供有 | D35: 1 | H35: 子供有 | I35: 0 | O35: お小遣い(/月) | P35: 1 | Q35: =P35 -> 1 | R35: =Q35 -> 1 | S35: 1 | V35: 年額 | W35: =W34*12 -> 135.4971355 | AC35: 予備 | AG35: 床 | AH35: 65 | AI35: 20 | AY35: 試算結果↓
O36: 歳まで | P36: 18 | Q36: =P36 -> 18 | R36: =Q36 -> 18 | S36: =R36 -> 18 | AC36: 予備 | AG36: ベランダ | AH36: 47 | AI36: 20 | AX36: 老後(退職金無し) | AY36: =VLOOKUP(D22,サマリ!C:AM,37,0)-E31 -> 1767.493314 | AZ36: 万円
D37: (万円/月) | I37: (万円/月) | AG37: クロス張替え | AX37: 貯蓄最低額
C38: お小遣い | D38: 3 | H38: お小遣い | I38: 3 | O38: 食費などの負担(歳まで) | P38: =IF(P30,18,22) -> 22 | Q38: =IF(Q30,18,22) -> 18 | R38: =IF(R30,18,22) -> 18 | S38: =IF(S30,18,22) -> 18 | AG38: サッシ回り | AX38: =INDEX(サマリ!C:C,MATCH(AY38,サマリ!AM:AM,0))&"歳の時に" -> 34歳の時に | AY38: =MIN(サマリ!AM:AM) -> -221.4990568 | AZ38: 万円
P39: ※大学の仕送りを入れるとストップされます。
C41: 計算結果
M42: 子供にかかる費用 | V42: 住居にかかる費用 | Y42: 車にかかる費用 | AD42: 毎月の収支 | BA42: 投資する場合 | BD42: 親1退職時の収支 | BK42: 80歳時の単年度収支 | BT42: 80歳時の暮らし(年間)
AS43: 計算結果 | AT43: 年収 | AU43: 収入 | AV43: 衣食住 | AW43: 固定+教育 | AX43: お小遣い等 | AY43: 収支 | BA43: 想定利率 | BB43: 0.05 | BD43: 親の計算 | BG43: 親1 | BH43: 親2 | BI43: 合計 | BK43: 親の計算 | BM43: 合計 | BN43: 親1 | BO43: 親2 | BQ43: 親の計算 | BT43: 親1 | BU43: 親2 | BW43: 子供の計算 | BZ43: 子1 | CA43: 子2 | CB43: 子3 | CC43: 子4 | CE43: 住居代の計算 | CJ43: 車の計算 | CO43: 大物家電、リフォーム | CT43: 支出 | CW43: 親1 | CX43: 親2 | CY43: 子1 | CZ43: 子2 | DA43: 子3 | DB43: 子4
AQ44: ↑年齢を入力すると | AS44: 親1 | AT44: =SUM(INDEX(親1!$D$1:$D$70,6):INDEX(親1!$D$1:$D$70,$AQ$48)) -> 21757.6645 | AU44: =SUM(INDEX(親1!$J$1:$J$70,6):INDEX(親1!$J$1:$J$70,$AQ$48)) -> 17654.62132 | AV44: =SUM(INDEX(親1!$T$1:$T$70,6):INDEX(親1!$T$1:$T$70,$AQ$48)) -> 3359.16 | AW44: =SUM(INDEX(親1!$AC$1:$AC$70,6):INDEX(親1!$AC$1:$AC$70,$AQ$48)) -> 352.8 | AX44: =SUM(INDEX(親1!$AK$1:$AK$70,6):INDEX(親1!$AK$1:$AK$70,$AQ$48)) -> 1512 | AY44: =SUM(INDEX(親1!$AL$1:$AL$70,6):INDEX(親1!$AL$1:$AL$70,$AQ$48)) -> 12430.66132 | BA44: 投資割合 | BB44: 0.4 | BD44: 収入 | BG44: =SUM(INDEX(親1!$J$1:$J$70,6):INDEX(親1!$J$1:$J$70,$AQ$48))-$E$31 -> 16654.62132 | BH44: =SUM(INDEX(親2!$J$1:$J$70,6):INDEX(親2!$J$1:$J$70,$AQ$48))-$J$31 -> 7742.968814 | BI44: =SUM(BG44:BH44) -> 24397.59013 | BK44: 収入 | BM44: =SUM(BN44:BO44) -> 323.0470443 | BN44: =BT44 -> 187.4583496 | BO44: =BU44 -> 135.5886947 | BQ44: 収入 | BT44: =SUM(INDEX(親1!$J$1:$J$70,$AQ$49):INDEX(親1!$J$1:$J$70,$AQ$49)) -> 187.4583496 | BU44: =SUM(INDEX(親2!$J$1:$J$70,$AQ$49):INDEX(親2!$J$1:$J$70,$AQ$49)) -> 135.5886947 | BW44: 収入(子供手当) | BZ44: =子1!$J$71 -> 216 | CA44: =子2!$J$71 -> 216 | CB44: =子3!$J$71 -> 0 | CC44: =子4!$J$71 -> 0 | CG44: 住居代 | CH44: =SUM(INDEX(サマリ!$K$1:$K$70,6):INDEX(サマリ!$K$1:$K$70,$AQ$48)) -> 5367.908336 | CL44: 車1 | CM44: =SUM(INDEX(サマリ!$AH$1:$AH$70,6):INDEX(サマリ!$AH$1:$AH$70,$AQ$48)) -> 1800 | CQ44: 大物家電 | CR44: =SUM(INDEX(サマリ!$AG$1:$AG$70,6):INDEX(サマリ!$AG$1:$AG$70,$AQ$48)) -> 243 | CV44: 食費 | CW44: =SUM(INDEX(親1!$M$1:$M$70,6):INDEX(親1!$M$1:$M$70,$AQ$48)) -> 1663.2 | CX44: =SUM(INDEX(親2!$M$1:$M$70,6):INDEX(親2!$M$1:$M$70,$AQ$48)) -> 1663.2 | CY44: =SUM(INDEX(子1!$M$1:$M$70,6):INDEX(子1!$M$1:$M$70,$AQ$48)) -> 455.4 | CZ44: =SUM(INDEX(子2!$M$1:$M$70,6):INDEX(子2!$M$1:$M$70,$AQ$48)) -> 376.2 | DA44: =SUM(INDEX(子3!$M$1:$M$70,6):INDEX(子3!$M$1:$M$70,$AQ$48)) -> 0 | DB44: =SUM(INDEX(子4!$M$1:$M$70,6):INDEX(子4!$M$1:$M$70,$AQ$48)) -> 0
AQ45: その年齢時点の | AS45: 親2 | AT45: =SUM(INDEX(親2!$D$1:$D$70,6):INDEX(親2!$D$1:$D$70,$AQ$48)) -> 10793.25474 | AU45: =SUM(INDEX(親2!$J$1:$J$70,6):INDEX(親2!$J$1:$J$70,$AQ$48)) -> 7742.968814 | AV45: =SUM(INDEX(親2!$T$1:$T$70,6):INDEX(親2!$T$1:$T$70,$AQ$48)) -> 2536.38 | AW45: =SUM(INDEX(親2!$AC$1:$AC$70,6):INDEX(親2!$AC$1:$AC$70,$AQ$48)) -> 100.8 | AX45: =SUM(INDEX(親2!$AK$1:$AK$70,6):INDEX(親2!$AK$1:$AK$70,$AQ$48)) -> 1512 | AY45: =SUM(INDEX(親2!$AL$1:$AL$70,6):INDEX(親2!$AL$1:$AL$70,$AQ$48)) -> 3593.788814 | BF45: 食費 | BG45: =SUM(INDEX(親1!$M$1:$M$70,6):INDEX(親1!$M$1:$M$70,$AQ$48)) -> 1663.2 | BH45: =SUM(INDEX(親2!$M$1:$M$70,6):INDEX(親2!$M$1:$M$70,$AQ$48)) -> 1663.2 | BI45: =SUM(BG45:BH45) -> 3326.4 | BL45: 衣食住 | BM45: 128.37 | BN45: =BT51 -> 67.98 | BO45: =BU51 -> 60.39 | BS45: 食費 | BT45: =SUM(INDEX(親1!$M$1:$M$70,$AQ$49):INDEX(親1!$M$1:$M$70,$AQ$49)) -> 39.6 | BU45: =SUM(INDEX(親2!$M$1:$M$70,$AQ$49):INDEX(親2!$M$1:$M$70,$AQ$49)) -> 39.6 | BY45: 食費 | BZ45: =子1!$M71 -> 455.4 | CA45: =子2!$M71 -> 376.2 | CB45: =子3!$M71 -> 0 | CC45: =子4!$M71 -> 0 | CG45: 住居維持費 | CH45: =SUM(INDEX(サマリ!$L$1:$L$70,6):INDEX(サマリ!$L$1:$L$70,$AQ$48)) -> 1003.327585 | CL45: 車2 | CM45: =SUM(INDEX(サマリ!$AI$1:$AI$70,6):INDEX(サマリ!$AI$1:$AI$70,$AQ$48)) -> 0 | CQ45: リフォーム | CR45: =SUM(INDEX(サマリ!$AF$1:$AF$70,6):INDEX(サマリ!$AF$1:$AF$70,$AQ$48)) -> 554 | CV45: 服費 | CW45: =SUM(INDEX(親1!$N$1:$N$70,6):INDEX(親1!$N$1:$N$70,$AQ$48)) -> 554.4 | CX45: =SUM(INDEX(親2!$N$1:$N$70,6):INDEX(親2!$N$1:$N$70,$AQ$48)) -> 554.4 | CY45: =SUM(INDEX(子1!$N$1:$N$70,6):INDEX(子1!$N$1:$N$70,$AQ$48)) -> 151.8 | CZ45: =SUM(INDEX(子2!$N$1:$N$70,6):INDEX(子2!$N$1:$N$70,$AQ$48)) -> 125.4 | DA45: =SUM(INDEX(子3!$N$1:$N$70,6):INDEX(子3!$N$1:$N$70,$AQ$48)) -> 0 | DB45: =SUM(INDEX(子4!$N$1:$N$70,6):INDEX(子4!$N$1:$N$70,$AQ$48)) -> 0
AQ46: 計算ができます。 | AS46: 子1 | AT46: =INDEX(子1!$C$1:$C$70,$AQ$48)&"歳" -> 37歳 | AU46: =SUM(INDEX(子1!$J$1:$J$70,6):INDEX(子1!$J$1:$J$70,$AQ$48)) -> 216 | AV46: =SUM(INDEX(子1!$T$1:$T$70,6):INDEX(子1!$T$1:$T$70,$AQ$48)) -> 694.485 | AW46: =SUM(INDEX(子1!$AC$1:$AC$70,6):INDEX(子1!$AC$1:$AC$70,$AQ$48)) -> 786.1629 | AX46: =SUM(INDEX(子1!$AK$1:$AK$70,6):INDEX(子1!$AK$1:$AK$70,$AQ$48)) -> 228 | AY46: =SUM(INDEX(子1!$AL$1:$AL$70,6):INDEX(子1!$AL$1:$AL$70,$AQ$48)) -> -1492.6479 | BF46: 服費 | BG46: =SUM(INDEX(親1!$N$1:$N$70,6):INDEX(親1!$N$1:$N$70,$AQ$48)) -> 554.4 | BH46: =SUM(INDEX(親2!$N$1:$N$70,6):INDEX(親2!$N$1:$N$70,$AQ$48)) -> 554.4 | BI46: 1108.8 | BL46: その他 | BM46: =SUM(BN46:BO46) -> 82.8 | BN46: =BT56 -> 44.4 | BO46: =BU56 -> 38.4 | BS46: 服費 | BT46: =SUM(INDEX(親1!$N$1:$N$70,$AQ$49):INDEX(親1!$N$1:$N$70,$AQ$49)) -> 13.2 | BU46: =SUM(INDEX(親2!$N$1:$N$70,$AQ$49):INDEX(親2!$N$1:$N$70,$AQ$49)) -> 13.2 | BY46: 服費 | BZ46: =子1!$N71 -> 151.8 | CA46: =子2!$N71 -> 125.4 | CB46: =子3!$N71 -> 0 | CC46: =子4!$N71 -> 0 | CG46: リフォーム | CH46: =SUM(INDEX(サマリ!$AF$1:$AF$70,6):INDEX(サマリ!$AF$1:$AF$70,$AQ$48)) -> 554 | CL46: 車維持費 | CM46: =SUM(INDEX(サマリ!$AJ$1:$AJ$70,6):INDEX(サマリ!$AJ$1:$AJ$70,$AQ$48)) -> 903 | CV46: 電気 | CW46: =SUM(INDEX(親1!$O$1:$O$70,6):INDEX(親1!$O$1:$O$70,$AQ$48)) -> 277.2 | CX46: =SUM(INDEX(親2!$O$1:$O$70,6):INDEX(親2!$O$1:$O$70,$AQ$48)) -> 138.6 | CY46: =SUM(INDEX(子1!$O$1:$O$70,6):INDEX(子1!$O$1:$O$70,$AQ$48)) -> 37.95 | CZ46: =SUM(INDEX(子2!$O$1:$O$70,6):INDEX(子2!$O$1:$O$70,$AQ$48)) -> 31.35 | DA46: =SUM(INDEX(子3!$O$1:$O$70,6):INDEX(子3!$O$1:$O$70,$AQ$48)) -> 0 | DB46: =SUM(INDEX(子4!$O$1:$O$70,6):INDEX(子4!$O$1:$O$70,$AQ$48)) -> 0
AS47: 子2 | AT47: =INDEX(子2!$C$1:$C$70,$AQ$48)&"歳" -> 34歳 | AU47: =SUM(INDEX(子2!$J$1:$J$70,6):INDEX(子2!$J$1:$J$70,$AQ$48)) -> 216 | AV47: =SUM(INDEX(子2!$T$1:$T$70,6):INDEX(子2!$T$1:$T$70,$AQ$48)) -> 573.705 | AW47: =SUM(INDEX(子2!$AC$1:$AC$70,6):INDEX(子2!$AC$1:$AC$70,$AQ$48)) -> 1307.368 | AX47: =SUM(INDEX(子2!$AK$1:$AK$70,6):INDEX(子2!$AK$1:$AK$70,$AQ$48)) -> 228 | AY47: =SUM(INDEX(子2!$AL$1:$AL$70,6):INDEX(子2!$AL$1:$AL$70,$AQ$48)) -> -1893.073 | BF47: 電気 | BG47: =SUM(INDEX(親1!$O$1:$O$70,6):INDEX(親1!$O$1:$O$70,$AQ$48)) -> 277.2 | BH47: =SUM(INDEX(親2!$O$1:$O$70,6):INDEX(親2!$O$1:$O$70,$AQ$48)) -> 138.6 | BI47: 415.8 | BK47: 合計 | BM47: 211.17 | BN47: =SUM(BN45:BN46) -> 112.38 | BO47: =SUM(BO45:BO46) -> 98.79 | BS47: 電気 | BT47: =SUM(INDEX(親1!$O$1:$O$70,$AQ$49):INDEX(親1!$O$1:$O$70,$AQ$49)) -> 6.6 | BU47: =SUM(INDEX(親2!$O$1:$O$70,$AQ$49):INDEX(親2!$O$1:$O$70,$AQ$49)) -> 3.3 | BY47: 電気 | BZ47: =子1!$O71 -> 37.95 | CA47: =子2!$O71 -> 31.35 | CB47: =子3!$O71 -> 0 | CC47: =子4!$O71 -> 0 | CF47: =IF($AQ$43,$AQ$43&"歳まで",$D$22&"歳まで") -> 65歳まで | CH47: =SUM(CH44:CH46) -> 6925.23592 | CK47: =IF($AQ$43,$AQ$43&"歳まで",$D$22&"歳まで") -> 65歳まで | CM47: =SUM(CM44:CM46) -> 2703 | CP47: =IF($AQ$43,$AQ$43&"歳まで",$D$22&"歳まで") -> 65歳まで | CR47: =SUM(CR44:CR46) -> 797 | CV47: ガス | CW47: =SUM(INDEX(親1!$P$1:$P$70,6):INDEX(親1!$P$1:$P$70,$AQ$48)) -> 221.76 | CX47: =SUM(INDEX(親2!$P$1:$P$70,6):INDEX(親2!$P$1:$P$70,$AQ$48)) -> 110.88 | CY47: =SUM(INDEX(子1!$P$1:$P$70,6):INDEX(子1!$P$1:$P$70,$AQ$48)) -> 30.36 | CZ47: =SUM(INDEX(子2!$P$1:$P$70,6):INDEX(子2!$P$1:$P$70,$AQ$48)) -> 25.08 | DA47: =SUM(INDEX(子3!$P$1:$P$70,6):INDEX(子3!$P$1:$P$70,$AQ$48)) -> 0 | DB47: =SUM(INDEX(子4!$P$1:$P$70,6):INDEX(子4!$P$1:$P$70,$AQ$48)) -> 0
AP48: 計算用 | AQ48: =IF(AQ43,MATCH(AQ43,親1!C:C,0),MATCH($D$22,親1!C:C,0)) -> 47 | AS48: 子3 | AT48: =INDEX(子3!$C$1:$C$70,$AQ$48)&"歳" -> -59歳 | AU48: =SUM(INDEX(子3!$J$1:$J$70,6):INDEX(子3!$J$1:$J$70,$AQ$48)) -> 0 | AV48: =SUM(INDEX(子3!$T$1:$T$70,6):INDEX(子3!$T$1:$T$70,$AQ$48)) -> 0 | AW48: =SUM(INDEX(子3!$AC$1:$AC$70,6):INDEX(子3!$AC$1:$AC$70,$AQ$48)) -> 0 | AX48: =SUM(INDEX(子3!$AK$1:$AK$70,6):INDEX(子3!$AK$1:$AK$70,$AQ$48)) -> 0 | AY48: =SUM(INDEX(子3!$AL$1:$AL$70,6):INDEX(子3!$AL$1:$AL$70,$AQ$48)) -> 0 | BF48: ガス | BG48: =SUM(INDEX(親1!$P$1:$P$70,6):INDEX(親1!$P$1:$P$70,$AQ$48)) -> 221.76 | BH48: =SUM(INDEX(親2!$P$1:$P$70,6):INDEX(親2!$P$1:$P$70,$AQ$48)) -> 110.88 | BI48: 332.64 | BK48: 限界利益 | BM48: 111.8770443 | BN48: =BN44-BN47 -> 75.07834963 | BO48: =BO44-BO47 -> 36.79869471 | BS48: ガス | BT48: =SUM(INDEX(親1!$P$1:$P$70,$AQ$49):INDEX(親1!$P$1:$P$70,$AQ$49)) -> 5.28 | BU48: =SUM(INDEX(親2!$P$1:$P$70,$AQ$49):INDEX(親2!$P$1:$P$70,$AQ$49)) -> 2.64 | BY48: ガス | BZ48: =子1!$P71 -> 30.36 | CA48: =子2!$P71 -> 25.08 | CB48: =子3!$P71 -> 0 | CC48: =子4!$P71 -> 0 | CG48: 残りのローン | CH48: =SUM(INDEX(サマリ!$K$1:$K$70,$AQ$48+1):INDEX(サマリ!$K$1:$K$70,$AQ$49)) -> 406.4914065 | CL48: 車1 | CM48: =SUM(INDEX(サマリ!$AH$1:$AH$70,6):INDEX(サマリ!$AH$1:$AH$70,$AQ$49))-CM44 -> 500 | CQ48: 大物家電 | CR48: =SUM(INDEX(サマリ!$AG$1:$AG$70,6):INDEX(サマリ!$AG$1:$AG$70,$AQ$49))-CR44 -> 117 | CV48: 水道 | CW48: =SUM(INDEX(親1!$Q$1:$Q$70,6):INDEX(親1!$Q$1:$Q$70,$AQ$48)) -> 138.6 | CX48: =SUM(INDEX(親2!$Q$1:$Q$70,6):INDEX(親2!$Q$1:$Q$70,$AQ$48)) -> 69.3 | CY48: =SUM(INDEX(子1!$Q$1:$Q$70,6):INDEX(子1!$Q$1:$Q$70,$AQ$48)) -> 18.975 | CZ48: =SUM(INDEX(子2!$Q$1:$Q$70,6):INDEX(子2!$Q$1:$Q$70,$AQ$48)) -> 15.675 | DA48: =SUM(INDEX(子3!$Q$1:$Q$70,6):INDEX(子3!$Q$1:$Q$70,$AQ$48)) -> 0 | DB48: =SUM(INDEX(子4!$Q$1:$Q$70,6):INDEX(子4!$Q$1:$Q$70,$AQ$48)) -> 0
AQ49: =MATCH(80,親1!C:C,0) -> 62 | AS49: 子4 | AT49: =INDEX(子4!$C$1:$C$70,$AQ$48)&"歳" -> -59歳 | AU49: =SUM(INDEX(子4!$J$1:$J$70,6):INDEX(子4!$J$1:$J$70,$AQ$48)) -> 0 | AV49: =SUM(INDEX(子4!$T$1:$T$70,6):INDEX(子4!$T$1:$T$70,$AQ$48)) -> 0 | AW49: =SUM(INDEX(子4!$AC$1:$AC$70,6):INDEX(子4!$AC$1:$AC$70,$AQ$48)) -> 0 | AX49: =SUM(INDEX(子4!$AK$1:$AK$70,6):INDEX(子4!$AK$1:$AK$70,$AQ$48)) -> 0 | AY49: =SUM(INDEX(子4!$AL$1:$AL$70,6):INDEX(子4!$AL$1:$AL$70,$AQ$48)) -> 0 | BF49: 水道 | BG49: =SUM(INDEX(親1!$Q$1:$Q$70,6):INDEX(親1!$Q$1:$Q$70,$AQ$48)) -> 138.6 | BH49: =SUM(INDEX(親2!$Q$1:$Q$70,6):INDEX(親2!$Q$1:$Q$70,$AQ$48)) -> 69.3 | BI49: 207.9 | BK49: 固定費合計 | BM49: 36.8492 | BN49: =BT63 -> 21.38292344 | BO49: =BU63 -> 15.46627656 | BS49: 水道 | BT49: =SUM(INDEX(親1!$Q$1:$Q$70,$AQ$49):INDEX(親1!$Q$1:$Q$70,$AQ$49)) -> 3.3 | BU49: =SUM(INDEX(親2!$Q$1:$Q$70,$AQ$49):INDEX(親2!$Q$1:$Q$70,$AQ$49)) -> 1.65 | BY49: 水道 | BZ49: =子1!$Q71 -> 18.975 | CA49: =子2!$Q71 -> 15.675 | CB49: =子3!$Q71 -> 0 | CC49: =子4!$Q71 -> 0 | CG49: 住居維持費 | CH49: =SUM(INDEX(サマリ!$L$1:$L$70,$AQ$48+1):INDEX(サマリ!$L$1:$L$70,$AQ$49)) -> 556.4554816 | CL49: 車2 | CM49: =SUM(INDEX(サマリ!$AI$1:$AI$70,6):INDEX(サマリ!$AI$1:$AI$70,$AQ$49))-CM45 -> 0 | CQ49: リフォーム | CR49: =SUM(INDEX(サマリ!$AF$1:$AF$70,6):INDEX(サマリ!$AF$1:$AF$70,$AQ$49))-CR45 -> 316 | CV49: 保険 | CW49: =SUM(INDEX(親1!$R$1:$R$70,6):INDEX(親1!$R$1:$R$70,$AQ$48)) -> 504 | CX49: =SUM(INDEX(親2!$R$1:$R$70,6):INDEX(親2!$R$1:$R$70,$AQ$48)) -> 0 | CY49: =SUM(INDEX(子1!$R$1:$R$70,6):INDEX(子1!$R$1:$R$70,$AQ$48)) -> 0 | CZ49: =SUM(INDEX(子2!$R$1:$R$70,6):INDEX(子2!$R$1:$R$70,$AQ$48)) -> 0 | DA49: =SUM(INDEX(子3!$R$1:$R$70,6):INDEX(子3!$R$1:$R$70,$AQ$48)) -> 0 | DB49: =SUM(INDEX(子4!$R$1:$R$70,6):INDEX(子4!$R$1:$R$70,$AQ$48)) -> 0
AS50: 住居 | AT50: =SUM(INDEX(住居!$D$1:$D$70,6):INDEX(住居!$D$1:$D$70,$AQ$48)) -> 0 | AU50: =SUM(INDEX(住居!$J$1:$J$70,6):INDEX(住居!$J$1:$J$70,$AQ$48)) -> 0 | AV50: =SUM(INDEX(住居!$T$1:$T$70,6):INDEX(住居!$T$1:$T$70,$AQ$48)) -> 6371.23592 | AW50: =SUM(INDEX(住居!$AC$1:$AC$70,6):INDEX(住居!$AC$1:$AC$70,$AQ$48)) -> 0 | AX50: =SUM(INDEX(住居!$AK$1:$AK$70,6):INDEX(住居!$AK$1:$AK$70,$AQ$48)) -> 554 | AY50: =SUM(INDEX(住居!$AL$1:$AL$70,6):INDEX(住居!$AL$1:$AL$70,$AQ$48)) -> -6925.23592 | BF50: 保険 | BG50: =SUM(INDEX(親1!$R$1:$R$70,6):INDEX(親1!$R$1:$R$70,$AQ$48)) -> 504 | BH50: =SUM(INDEX(親2!$R$1:$R$70,6):INDEX(親2!$R$1:$R$70,$AQ$48)) -> 0 | BI50: 504 | BK50: 単年度収支 | BM50: =BM48-BM49 -> 75.02784433 | BN50: =BN48-BN49 -> 53.69542619 | BO50: =BO48-BO49 -> 21.33241815 | BS50: 保険 | BT50: =SUM(INDEX(親1!$R$1:$R$70,$AQ$49):INDEX(親1!$R$1:$R$70,$AQ$49)) -> 0 | BU50: =SUM(INDEX(親2!$R$1:$R$70,$AQ$49):INDEX(親2!$R$1:$R$70,$AQ$49)) -> 0 | BY50: 保険 | CG50: リフォーム | CH50: =SUM(INDEX(サマリ!$AF$1:$AF$70,$AQ$48+1):INDEX(サマリ!$AF$1:$AF$70,$AQ$49)) -> 316 | CL50: 車維持費 | CM50: =SUM(INDEX(サマリ!$AJ$1:$AJ$70,6):INDEX(サマリ!$AJ$1:$AJ$70,$AQ$49))-CM46 -> 311.25
AS51: 車 | AT51: =SUM(INDEX(車_大物家電!$D$1:$D$70,6):INDEX(車_大物家電!$D$1:$D$70,$AQ$48)) -> 0 | AU51: =SUM(INDEX(車_大物家電!$J$1:$J$70,6):INDEX(車_大物家電!$J$1:$J$70,$AQ$48)) -> 0 | AV51: =SUM(INDEX(車_大物家電!$T$1:$T$70,6):INDEX(車_大物家電!$T$1:$T$70,$AQ$48)) -> 0 | AW51: =SUM(INDEX(車_大物家電!$AC$1:$AC$70,6):INDEX(車_大物家電!$AC$1:$AC$70,$AQ$48)) -> 0 | AX51: =SUM(INDEX(車_大物家電!$AK$1:$AK$70,6):INDEX(車_大物家電!$AK$1:$AK$70,$AQ$48)) -> 2946 | AY51: =SUM(INDEX(車_大物家電!$AL$1:$AL$70,6):INDEX(車_大物家電!$AL$1:$AL$70,$AQ$48)) -> -2946 | BE51: 小計 | BG51: =SUM(BG45:BG50) -> 3359.16 | BH51: =SUM(BH45:BH50) -> 2536.38 | BI51: 5895.54 | BK51: 車 | BM51: =CM51/15 -> 54.08333333 | BR51: 小計 | BT51: =SUM(BT45:BT50) -> 67.98 | BU51: =SUM(BU45:BU50) -> 60.39 | BX51: 衣食住 | BZ51: =SUM(BZ45:BZ50) -> 694.485 | CA51: =SUM(CA45:CA50) -> 573.705 | CB51: =SUM(CB45:CB50) -> 0 | CC51: =SUM(CC45:CC50) -> 0 | CF51: 80歳時 | CH51: =SUM(CH48:CH50) -> 1278.946888 | CK51: 65~80歳 | CM51: =SUM(CM48:CM50) -> 811.25 | CP51: 65~80歳 | CR51: =SUM(CR48:CR50) -> 433 | CU51: 位・食・住 合計 | CW51: =SUM(CW44:CW50) -> 3359.16 | CX51: =SUM(CX44:CX50) -> 2536.38 | CY51: 694.485 | CZ51: 573.705 | DA51: 0 | DB51: 0
AS52: 元の資産 | AY52: =サマリ!AM5 -> 0 | BF52: インターネット | BG52: =SUM(INDEX(親1!$V$1:$V$70,6):INDEX(親1!$V$1:$V$70,$AQ$48)) -> 252 | BH52: =SUM(INDEX(親2!$V$1:$V$70,6):INDEX(親2!$V$1:$V$70,$AQ$48)) -> 0 | BI52: 252 | BK52: リフォーム | BM52: =CR51/15 -> 28.86666667 | BS52: インターネット | BT52: =SUM(INDEX(親1!$V$1:$V$70,$AQ$49):INDEX(親1!$V$1:$V$70,$AQ$49)) -> 6 | BU52: =SUM(INDEX(親2!$V$1:$V$70,$AQ$49):INDEX(親2!$V$1:$V$70,$AQ$49)) -> 0 | BY52: 携帯 | BZ52: =子1!$W71 -> 31.2 | CA52: =子2!$W71 -> 21.6 | CB52: =子3!$W71 -> 0 | CC52: =子4!$W71 -> 0 | CE52: 合計 | CH52: =SUM(CH47,CH51) -> 8204.182808 | CJ52: 合計 | CM52: =SUM(CM47,CM51) -> 3514.25 | CO52: 合計 | CR52: =SUM(CR47,CR51) -> 1230 | CV52: インターネット | CW52: =SUM(INDEX(親1!$V$1:$V$70,6):INDEX(親1!$V$1:$V$70,$AQ$48)) -> 252 | CX52: =SUM(INDEX(親2!$V$1:$V$70,6):INDEX(親2!$V$1:$V$70,$AQ$48)) -> 0 | CY52: =SUM(INDEX(子1!$V$1:$V$70,6):INDEX(子1!$V$1:$V$70,$AQ$48)) -> 0 | CZ52: =SUM(INDEX(子2!$V$1:$V$70,6):INDEX(子2!$V$1:$V$70,$AQ$48)) -> 0 | DA52: =SUM(INDEX(子3!$V$1:$V$70,6):INDEX(子3!$V$1:$V$70,$AQ$48)) -> 0 | DB52: =SUM(INDEX(子4!$V$1:$V$70,6):INDEX(子4!$V$1:$V$70,$AQ$48)) -> 0
AS53: 合計 | AT53: =SUM(AT44:AT52) -> 32550.91924 | AU53: 25829.59013 | AV53: 13534.96592 | AW53: 2547.1309 | AX53: 6980 | AY53: 2767.493314 | BF53: 携帯 | BG53: =SUM(INDEX(親1!$W$1:$W$70,6):INDEX(親1!$W$1:$W$70,$AQ$48)) -> 100.8 | BH53: =SUM(INDEX(親2!$W$1:$W$70,6):INDEX(親2!$W$1:$W$70,$AQ$48)) -> 100.8 | BI53: 201.6 | BK53: 収支(含割掛) | BM53: =BM50-SUM(BM51:BM52) -> -7.922155666 | BS53: 携帯 | BT53: =SUM(INDEX(親1!$W$1:$W$70,$AQ$49):INDEX(親1!$W$1:$W$70,$AQ$49)) -> 2.4 | BU53: =SUM(INDEX(親2!$W$1:$W$70,$AQ$49):INDEX(親2!$W$1:$W$70,$AQ$49)) -> 2.4 | BY53: 塾 | BZ53: =子1!$X71 -> 72 | CA53: =子2!$X71 -> 72 | CB53: =子3!$X71 -> 0 | CC53: =子4!$X71 -> 0 | CV53: 携帯 | CW53: =SUM(INDEX(親1!$W$1:$W$70,6):INDEX(親1!$W$1:$W$70,$AQ$48)) -> 100.8 | CX53: =SUM(INDEX(親2!$W$1:$W$70,6):INDEX(親2!$W$1:$W$70,$AQ$48)) -> 100.8 | CY53: =SUM(INDEX(子1!$W$1:$W$70,6):INDEX(子1!$W$1:$W$70,$AQ$48)) -> 31.2 | CZ53: =SUM(INDEX(子2!$W$1:$W$70,6):INDEX(子2!$W$1:$W$70,$AQ$48)) -> 21.6 | DA53: =SUM(INDEX(子3!$W$1:$W$70,6):INDEX(子3!$W$1:$W$70,$AQ$48)) -> 0 | DB53: =SUM(INDEX(子4!$W$1:$W$70,6):INDEX(子4!$W$1:$W$70,$AQ$48)) -> 0
BF54: お小遣い | BG54: =SUM(INDEX(親1!$AE$1:$AE$70,6):INDEX(親1!$AE$1:$AE$70,$AQ$48)) -> 1512 | BH54: =SUM(INDEX(親2!$AE$1:$AE$70,6):INDEX(親2!$AE$1:$AE$70,$AQ$48)) -> 1512 | BI54: 3024 | BK54: ※おこづかいはそのまま入っています。 | BS54: お小遣い | BT54: =SUM(INDEX(親1!$AE$1:$AE$70,$AQ$49):INDEX(親1!$AE$1:$AE$70,$AQ$49)) -> 36 | BU54: =SUM(INDEX(親2!$AE$1:$AE$70,$AQ$49):INDEX(親2!$AE$1:$AE$70,$AQ$49)) -> 36 | BY54: 習い事 | BZ54: =子1!$Y71 -> 144 | CA54: =子2!$Y71 -> 144 | CB54: =子3!$Y71 -> 0 | CC54: =子4!$Y71 -> 0 | CU54: 固定費 合計 | CW54: =SUM(CW52:CW53) -> 352.8 | CX54: 100.8 | CY54: =SUM(CY52:CY53) -> 31.2 | CZ54: =SUM(CZ52:CZ53) -> 21.6 | DA54: 0 | DB54: 0
BI55: 0 | BY55: 学費 | BZ55: =子1!$Z71 -> 538.9629 | CA55: =子2!$Z71 -> 637.768 | CB55: =子3!$Z71 -> 0 | CC55: =子4!$Z71 -> 0 | CT55: 退職までの支出 合計 | CW55: =SUM(CW51,CW54) -> 3711.96 | CX55: =SUM(CX51,CX54) -> 2637.18 | CY55: 725.685 | CZ55: 595.305 | DA55: 0 | DB55: 0
BE56: 小計 | BG56: =SUM(BG52:BG55) -> 1864.8 | BH56: =SUM(BH52:BH55) -> 1612.8 | BI56: 3477.6 | BK56: ↓毎月換算 | BR56: 小計 | BT56: =SUM(BT52:BT55) -> 44.4 | BU56: =SUM(BU52:BU55) -> 38.4 | BY56: 仕送り | BZ56: =子1!$AA71 -> 0 | CA56: =子2!$AA71 -> 432 | CB56: =子3!$AA71 -> 0 | CC56: =子4!$AA71 -> 0 | CV56: お小遣い | CW56: =SUM(INDEX(親1!$AE$1:$AE$70,6):INDEX(親1!$AE$1:$AE$70,$AQ$48)) -> 1512 | CX56: =SUM(INDEX(親2!$AE$1:$AE$70,6):INDEX(親2!$AE$1:$AE$70,$AQ$48)) -> 1512 | CY56: =SUM(INDEX(子1!$AE$1:$AE$70,6):INDEX(子1!$AE$1:$AE$70,$AQ$48)) -> 228 | CZ56: =SUM(INDEX(子2!$AE$1:$AE$70,6):INDEX(子2!$AE$1:$AE$70,$AQ$48)) -> 228 | DA56: =SUM(INDEX(子3!$AE$1:$AE$70,6):INDEX(子3!$AE$1:$AE$70,$AQ$48)) -> 0 | DB56: =SUM(INDEX(子4!$AE$1:$AE$70,6):INDEX(子4!$AE$1:$AE$70,$AQ$48)) -> 0
Y57: 大物家電・リフォーム | BD57: 合計 | BG57: =SUM(BG51,BG56) -> 5223.96 | BH57: =SUM(BH51,BH56) -> 4149.18 | BI57: 9373.14 | BK57: 毎月の計算 | BM57: 合計 | BQ57: 合計 | BT57: =SUM(BT51,BT56) -> 112.38 | BU57: =SUM(BU51,BU56) -> 98.79 | BY57: おこづかい | BZ57: =子1!$AE71 -> 228 | CA57: =子2!$AE71 -> 228 | CB57: =子3!$AE71 -> 0 | CC57: =子4!$AE71 -> 0 | CT57: 退職までの支出(含お小遣い) 合計 | CW57: =SUM(CW55:CW56) -> 5223.96 | CX57: =SUM(CX55:CX56) -> 4149.18 | CY57: 953.685 | CZ57: 823.305 | DA57: 0 | DB57: 0
BD58: 限界利益 | BG58: =BG44-BG57 -> 11430.66132 | BH58: =BH44-BH57 -> 3593.788814 | BI58: 15024.45013 | BK58: 収入 | BM58: =BM44/12*10000 -> 269205.8703 | BQ58: 限界利益 | BT58: =BT44-BT57 -> 75.07834963 | BU58: =BU44-BU57 -> 36.79869471 | BX58: 学費等 | BZ58: =SUM(BZ52:BZ57) -> 1014.1629 | CA58: =SUM(CA52:CA57) -> 1535.368 | CB58: =SUM(CB52:CB57) -> 0 | CC58: =SUM(CC52:CC57) -> 0
BE59: 住居案分 | BG59: =$BI59*BG$44/$BI$44 -> 4349.221419 | BH59: 2022.014501 | BI59: =SUM(INDEX(サマリ!$K$1:$K$70,6):INDEX(サマリ!$K$1:$K$70,$AQ$48))+SUM(INDEX(サマリ!$L$1:$L$70,6):INDEX(サマリ!$L$1:$L$70,$AQ$48)) -> 6371.23592 | BL59: 衣食住 | BM59: 106975 | BR59: 住居案分 | BT59: =(SUM(INDEX(サマリ!$K$1:$K$70,$AQ$49):INDEX(サマリ!$K$1:$K$70,$AQ$49))+SUM(INDEX(サマリ!$L$1:$L$70,$AQ$49):INDEX(サマリ!$L$1:$L$70,$AQ$49)))/SUM(BT44:BU44)*BT44 -> 21.38292344 | BU59: =(SUM(INDEX(サマリ!$K$1:$K$70,$AQ$49):INDEX(サマリ!$K$1:$K$70,$AQ$49))+SUM(INDEX(サマリ!$L$1:$L$70,$AQ$49):INDEX(サマリ!$L$1:$L$70,$AQ$49)))/SUM(BT44:BU44)*BU44 -> 15.46627656 | BW59: 合計 | BZ59: =BZ44-SUM(BZ51,BZ58) -> -1492.6479 | CA59: =CA44-SUM(CA51,CA58) -> -1893.073 | CB59: 0 | CC59: 0
BE60: 子供案分 | BG60: 2311.207754 | BH60: 1074.513146 | BI60: =-(SUM(INDEX(子1!$AL$1:$AL$70,6):INDEX(子1!$AL$1:$AL$70,$AQ$48))+SUM(INDEX(子2!$AL$1:$AL$70,6):INDEX(子2!$AL$1:$AL$70,$AQ$48))+SUM(INDEX(子3!$AL$1:$AL$70,6):INDEX(子3!$AL$1:$AL$70,$AQ$48))+SUM(INDEX(子4!$AL$1:$AL$70,6):INDEX(子4!$AL$1:$AL$70,$AQ$48))) -> 3385.7209 | BL60: その他 | BM60: =BM46/12*10000 -> 69000 | BR60: 子供案分
BE61: 車 | BG61: 1845.159345 | BH61: 857.8406551 | BI61: =SUM(INDEX(サマリ!$AH$1:$AH$70,6):INDEX(サマリ!$AH$1:$AH$70,$AQ$48))+SUM(INDEX(サマリ!$AI$1:$AI$70,6):INDEX(サマリ!$AI$1:$AI$70,$AQ$48))+SUM(INDEX(サマリ!$AJ$1:$AJ$70,6):INDEX(サマリ!$AJ$1:$AJ$70,$AQ$48)) -> 2703 | BK61: 合計 | BM61: 175975 | BR61: 車 | BW61: <内大学関係合計>
BE62: 家電、リフォーム | BG62: 544.0591927 | BH62: 252.9408073 | BI62: =SUM(INDEX(サマリ!$AF$1:$AF$70,6):INDEX(サマリ!$AF$1:$AF$70,$AQ$48))+SUM(INDEX(サマリ!$AG$1:$AG$70,6):INDEX(サマリ!$AG$1:$AG$70,$AQ$48)) -> 797 | BK62: 限界利益 | BM62: 93230.87028 | BR62: 家電、リフォーム | BY62: 大学の学費 | BZ62: =子1!$Z$74 -> 253.9651 | CA62: =子2!$Z$74 -> 400.7702 | CB62: =子3!$Z$74 -> 0 | CC62: =子4!$Z$74 -> 0
BD63: 固定費合計 | BG63: =SUM(BG59:BG62) -> 9049.64771 | BH63: =SUM(BH59:BH62) -> 4207.30911 | BI63: 13256.95682 | BK63: 固定費合計 | BM63: 30707.66667 | BQ63: 固定費合計 | BT63: =SUM(BT59:BT62) -> 21.38292344 | BU63: =SUM(BU59:BU62) -> 15.46627656 | BY63: 仕送り | BZ63: =子1!$AA$74 -> 0 | CA63: =子2!$AA$74 -> 432 | CB63: =子3!$AA$74 -> 0 | CC63: =子4!$AA$74 -> 0
BD64: 収支 | BG64: =BG58-BG63 -> 2381.01361 | BH64: =BH58-BH63 -> -613.5202958 | BI64: 1767.493314 | BK64: 毎月収支 | BM64: 62523.20361 | BQ64: 収支 | BT64: =BT58-BT63 -> 53.69542619 | BU64: =BU58-BU63 -> 21.33241815 | BX64: 大学関係 | BZ64: =SUM(BZ62:BZ63) -> 253.9651 | CA64: =SUM(CA62:CA63) -> 832.7702 | CB64: 0 | CC64: 0
BD65: 退職金 | BG65: =$E$31 -> 1000 | BH65: =$J$31 -> 0 | BI65: =SUM(BG65:BH65) -> 1000 | BK65: 車 | BM65: 45069.44444 | BW65: 大学関係合計 | BZ65: =SUM(BZ64:CC64) -> 1086.7353
BD66: 元の財産 | BG66: =SUM($D$11:$E$11) -> 0 | BH66: =SUM($I$11:$J$11) -> 0 | BI66: =SUM(BG66:BH66) -> 0 | BK66: リフォーム | BM66: 24055.55556
BD67: 住宅ローン | BG67: =$BI67*BG$44/$BI$44 -> -277.4848011 | BH67: =$BI67*BH$44/$BI$44 -> -129.0066054 | BI67: =MIN(SUM(INDEX(サマリ!$K$1:$K$70,6):INDEX(サマリ!$K$1:$K$70,$AQ$48))-住居!$K$71,0) -> -406.4914065 | BK67: 収支(含割掛) | BM67: -6601.796388
BD68: 資産 | BG68: =SUM(BG64:BG67) -> 3103.528809 | BH68: =SUM(BH64:BH67) -> -742.5269012 | BI68: 2361.001907
CW70: 6 | CX70: =CW70+5 -> 11 | CY70: =CX70+5 -> 16 | CZ70: 21 | DA70: 26 | DB70: 31 | DG70: 6 | DH70: =DG70+5 -> 11 | DI70: =DH70+5 -> 16 | DJ70: 21 | DK70: 26 | DL70: 31
C72: グラフ | CT72: 親1退職時の収支
BF73: 食費 | BG73: =SUM(BI45,BZ45:CC45) -> 4158 | CT73: 年齢 | CV73: 親1 | CW73: =SUM(INDEX(サマリ!$C$1:$C$70,CW$70):INDEX(サマリ!$C$1:$C$70,CW$70)) -> 24 | CX73: =SUM(INDEX(サマリ!$C$1:$C$70,CX$70):INDEX(サマリ!$C$1:$C$70,CX$70)) -> 29 | CY73: =SUM(INDEX(サマリ!$C$1:$C$70,CY$70):INDEX(サマリ!$C$1:$C$70,CY$70)) -> 34 | CZ73: =SUM(INDEX(サマリ!$C$1:$C$70,CZ$70):INDEX(サマリ!$C$1:$C$70,CZ$70)) -> 39 | DA73: =SUM(INDEX(サマリ!$C$1:$C$70,DA$70):INDEX(サマリ!$C$1:$C$70,DA$70)) -> 44 | DB73: =SUM(INDEX(サマリ!$C$1:$C$70,DB$70):INDEX(サマリ!$C$1:$C$70,DB$70)) -> 49 | DD73: 年齢 | DF73: 親1 | DG73: =SUM(INDEX(サマリ!$C$1:$C$70,DG$70):INDEX(サマリ!$C$1:$C$70,DG$70)) -> 24 | DH73: =SUM(INDEX(サマリ!$C$1:$C$70,DH$70):INDEX(サマリ!$C$1:$C$70,DH$70)) -> 29 | DI73: =SUM(INDEX(サマリ!$C$1:$C$70,DI$70):INDEX(サマリ!$C$1:$C$70,DI$70)) -> 34 | DJ73: =SUM(INDEX(サマリ!$C$1:$C$70,DJ$70):INDEX(サマリ!$C$1:$C$70,DJ$70)) -> 39 | DK73: =SUM(INDEX(サマリ!$C$1:$C$70,DK$70):INDEX(サマリ!$C$1:$C$70,DK$70)) -> 44 | DL73: =SUM(INDEX(サマリ!$C$1:$C$70,DL$70):INDEX(サマリ!$C$1:$C$70,DL$70)) -> 49
BF74: 服・日用品 | BG74: =SUM(BI46,BZ46:CC46) -> 1386 | CV74: 親2 | CW74: =SUM(INDEX(親2!$C$1:$C$70,CW$70):INDEX(親2!$C$1:$C$70,CW$70)) -> 22 | CX74: =SUM(INDEX(親2!$C$1:$C$70,CX$70):INDEX(親2!$C$1:$C$70,CX$70)) -> 27 | CY74: =SUM(INDEX(親2!$C$1:$C$70,CY$70):INDEX(親2!$C$1:$C$70,CY$70)) -> 32 | CZ74: =SUM(INDEX(親2!$C$1:$C$70,CZ$70):INDEX(親2!$C$1:$C$70,CZ$70)) -> 37 | DA74: =SUM(INDEX(親2!$C$1:$C$70,DA$70):INDEX(親2!$C$1:$C$70,DA$70)) -> 42 | DB74: =SUM(INDEX(親2!$C$1:$C$70,DB$70):INDEX(親2!$C$1:$C$70,DB$70)) -> 47 | DF74: 親2 | DG74: =SUM(INDEX(親2!$C$1:$C$70,DG$70):INDEX(親2!$C$1:$C$70,DG$70)) -> 22 | DH74: =SUM(INDEX(親2!$C$1:$C$70,DH$70):INDEX(親2!$C$1:$C$70,DH$70)) -> 27 | DI74: =SUM(INDEX(親2!$C$1:$C$70,DI$70):INDEX(親2!$C$1:$C$70,DI$70)) -> 32 | DJ74: =SUM(INDEX(親2!$C$1:$C$70,DJ$70):INDEX(親2!$C$1:$C$70,DJ$70)) -> 37 | DK74: =SUM(INDEX(親2!$C$1:$C$70,DK$70):INDEX(親2!$C$1:$C$70,DK$70)) -> 42 | DL74: =SUM(INDEX(親2!$C$1:$C$70,DL$70):INDEX(親2!$C$1:$C$70,DL$70)) -> 47
BF75: 光熱費 | BG75: =SUM(BI47:BI49,BZ47:CC49) -> 1115.73 | CV75: 子1 | CW75: =SUM(INDEX(子1!$C$1:$C$70,CW$70):INDEX(子1!$C$1:$C$70,CW$70)) -> -4 | CX75: =SUM(INDEX(子1!$C$1:$C$70,CX$70):INDEX(子1!$C$1:$C$70,CX$70)) -> 1 | CY75: =SUM(INDEX(子1!$C$1:$C$70,CY$70):INDEX(子1!$C$1:$C$70,CY$70)) -> 6 | CZ75: =SUM(INDEX(子1!$C$1:$C$70,CZ$70):INDEX(子1!$C$1:$C$70,CZ$70)) -> 11 | DA75: =SUM(INDEX(子1!$C$1:$C$70,DA$70):INDEX(子1!$C$1:$C$70,DA$70)) -> 16 | DB75: =SUM(INDEX(子1!$C$1:$C$70,DB$70):INDEX(子1!$C$1:$C$70,DB$70)) -> 21 | DF75: 子1 | DG75: =SUM(INDEX(子1!$C$1:$C$70,DG$70):INDEX(子1!$C$1:$C$70,DG$70)) -> -4 | DH75: =SUM(INDEX(子1!$C$1:$C$70,DH$70):INDEX(子1!$C$1:$C$70,DH$70)) -> 1 | DI75: =SUM(INDEX(子1!$C$1:$C$70,DI$70):INDEX(子1!$C$1:$C$70,DI$70)) -> 6 | DJ75: =SUM(INDEX(子1!$C$1:$C$70,DJ$70):INDEX(子1!$C$1:$C$70,DJ$70)) -> 11 | DK75: =SUM(INDEX(子1!$C$1:$C$70,DK$70):INDEX(子1!$C$1:$C$70,DK$70)) -> 16 | DL75: =SUM(INDEX(子1!$C$1:$C$70,DL$70):INDEX(子1!$C$1:$C$70,DL$70)) -> 21
BF76: 保険 | BG76: =SUM(BI50) -> 504 | CV76: 子2 | CW76: =SUM(INDEX(子2!$C$1:$C$70,CW$70):INDEX(子2!$C$1:$C$70,CW$70)) -> -7 | CX76: =SUM(INDEX(子2!$C$1:$C$70,CX$70):INDEX(子2!$C$1:$C$70,CX$70)) -> -2 | CY76: =SUM(INDEX(子2!$C$1:$C$70,CY$70):INDEX(子2!$C$1:$C$70,CY$70)) -> 3 | CZ76: =SUM(INDEX(子2!$C$1:$C$70,CZ$70):INDEX(子2!$C$1:$C$70,CZ$70)) -> 8 | DA76: =SUM(INDEX(子2!$C$1:$C$70,DA$70):INDEX(子2!$C$1:$C$70,DA$70)) -> 13 | DB76: =SUM(INDEX(子2!$C$1:$C$70,DB$70):INDEX(子2!$C$1:$C$70,DB$70)) -> 18 | DF76: 子2 | DG76: =SUM(INDEX(子2!$C$1:$C$70,DG$70):INDEX(子2!$C$1:$C$70,DG$70)) -> -7 | DH76: =SUM(INDEX(子2!$C$1:$C$70,DH$70):INDEX(子2!$C$1:$C$70,DH$70)) -> -2 | DI76: =SUM(INDEX(子2!$C$1:$C$70,DI$70):INDEX(子2!$C$1:$C$70,DI$70)) -> 3 | DJ76: =SUM(INDEX(子2!$C$1:$C$70,DJ$70):INDEX(子2!$C$1:$C$70,DJ$70)) -> 8 | DK76: =SUM(INDEX(子2!$C$1:$C$70,DK$70):INDEX(子2!$C$1:$C$70,DK$70)) -> 13 | DL76: =SUM(INDEX(子2!$C$1:$C$70,DL$70):INDEX(子2!$C$1:$C$70,DL$70)) -> 18
BF77: 通信 | BG77: =SUM(BI52:BI53,BZ52:CC52) -> 506.4 | CT77: 収入 | CW77: =SUM(INDEX(サマリ!$J$1:$J$70,CW$70):INDEX(サマリ!$J$1:$J$70,CW$70)) -> 420.395082 | CX77: =SUM(INDEX(サマリ!$J$1:$J$70,CX$70):INDEX(サマリ!$J$1:$J$70,CX$70)) -> 443.035082 | CY77: =SUM(INDEX(サマリ!$J$1:$J$70,CY$70):INDEX(サマリ!$J$1:$J$70,CY$70)) -> 513.223734 | CZ77: =SUM(INDEX(サマリ!$J$1:$J$70,CZ$70):INDEX(サマリ!$J$1:$J$70,CZ$70)) -> 635.31852 | DA77: =SUM(INDEX(サマリ!$J$1:$J$70,DA$70):INDEX(サマリ!$J$1:$J$70,DA$70)) -> 681.5928 | DB77: =SUM(INDEX(サマリ!$J$1:$J$70,DB$70):INDEX(サマリ!$J$1:$J$70,DB$70)) -> 717.6407 | DD77: 収入 | DG77: =CW77/12*10000 -> 350329.235 | DH77: =CX77/12*10000 -> 369195.9017 | DI77: =CY77/12*10000 -> 427686.445 | DJ77: =CZ77/12*10000 -> 529432.1 | DK77: =DA77/12*10000 -> 567994 | DL77: =DB77/12*10000 -> 598033.9167
BF78: 住居 | BG78: =SUM(BI59) -> 6371.23592 | CV78: 食費 | CW78: =SUM(INDEX(サマリ!$M$1:$M$70,CW$70):INDEX(サマリ!$M$1:$M$70,CW$70)) -> 79.2 | CX78: =SUM(INDEX(サマリ!$M$1:$M$70,CX$70):INDEX(サマリ!$M$1:$M$70,CX$70)) -> 99 | CY78: =SUM(INDEX(サマリ!$M$1:$M$70,CY$70):INDEX(サマリ!$M$1:$M$70,CY$70)) -> 118.8 | CZ78: =SUM(INDEX(サマリ!$M$1:$M$70,CZ$70):INDEX(サマリ!$M$1:$M$70,CZ$70)) -> 118.8 | DA78: =SUM(INDEX(サマリ!$M$1:$M$70,DA$70):INDEX(サマリ!$M$1:$M$70,DA$70)) -> 118.8 | DB78: =SUM(INDEX(サマリ!$M$1:$M$70,DB$70):INDEX(サマリ!$M$1:$M$70,DB$70)) -> 118.8 | DF78: 食費 | DG78: =CW78/12*10000 -> 66000 | DH78: 82500 | DI78: 99000 | DJ78: 99000 | DK78: 99000 | DL78: 99000
BF79: 車 | BG79: =SUM(BI61) -> 2703 | CV79: 服費 | CW79: =SUM(INDEX(サマリ!$N$1:$N$70,CW$70):INDEX(サマリ!$N$1:$N$70,CW$70)) -> 26.4 | CX79: =SUM(INDEX(サマリ!$N$1:$N$70,CX$70):INDEX(サマリ!$N$1:$N$70,CX$70)) -> 33 | CY79: =SUM(INDEX(サマリ!$N$1:$N$70,CY$70):INDEX(サマリ!$N$1:$N$70,CY$70)) -> 39.6 | CZ79: =SUM(INDEX(サマリ!$N$1:$N$70,CZ$70):INDEX(サマリ!$N$1:$N$70,CZ$70)) -> 39.6 | DA79: =SUM(INDEX(サマリ!$N$1:$N$70,DA$70):INDEX(サマリ!$N$1:$N$70,DA$70)) -> 39.6 | DB79: =SUM(INDEX(サマリ!$N$1:$N$70,DB$70):INDEX(サマリ!$N$1:$N$70,DB$70)) -> 39.6 | DF79: 服費 | DG79: 22000 | DH79: 27500 | DI79: 33000 | DJ79: 33000 | DK79: 33000 | DL79: 33000
BF80: 家電・リフォーム | BG80: =SUM(BI62) -> 797 | CV80: 電気 | CW80: =SUM(INDEX(サマリ!$O$1:$O$70,CW$70):INDEX(サマリ!$O$1:$O$70,CW$70)) -> 9.9 | CX80: =SUM(INDEX(サマリ!$O$1:$O$70,CX$70):INDEX(サマリ!$O$1:$O$70,CX$70)) -> 11.55 | CY80: =SUM(INDEX(サマリ!$O$1:$O$70,CY$70):INDEX(サマリ!$O$1:$O$70,CY$70)) -> 13.2 | CZ80: =SUM(INDEX(サマリ!$O$1:$O$70,CZ$70):INDEX(サマリ!$O$1:$O$70,CZ$70)) -> 13.2 | DA80: =SUM(INDEX(サマリ!$O$1:$O$70,DA$70):INDEX(サマリ!$O$1:$O$70,DA$70)) -> 13.2 | DB80: =SUM(INDEX(サマリ!$O$1:$O$70,DB$70):INDEX(サマリ!$O$1:$O$70,DB$70)) -> 13.2 | DF80: 電気 | DG80: 8250 | DH80: 9625 | DI80: 11000 | DJ80: 11000 | DK80: 11000 | DL80: 11000
BF81: お小遣い | BG81: =SUM(CW56:CZ56) -> 3480 | CV81: ガス | CW81: =SUM(INDEX(サマリ!$P$1:$P$70,CW$70):INDEX(サマリ!$P$1:$P$70,CW$70)) -> 7.92 | CX81: =SUM(INDEX(サマリ!$P$1:$P$70,CX$70):INDEX(サマリ!$P$1:$P$70,CX$70)) -> 9.24 | CY81: =SUM(INDEX(サマリ!$P$1:$P$70,CY$70):INDEX(サマリ!$P$1:$P$70,CY$70)) -> 10.56 | CZ81: =SUM(INDEX(サマリ!$P$1:$P$70,CZ$70):INDEX(サマリ!$P$1:$P$70,CZ$70)) -> 10.56 | DA81: =SUM(INDEX(サマリ!$P$1:$P$70,DA$70):INDEX(サマリ!$P$1:$P$70,DA$70)) -> 10.56 | DB81: =SUM(INDEX(サマリ!$P$1:$P$70,DB$70):INDEX(サマリ!$P$1:$P$70,DB$70)) -> 10.56 | DF81: ガス | DG81: 6600 | DH81: 7700 | DI81: 8800 | DJ81: 8800 | DK81: 8800 | DL81: 8800
BF82: 塾・習い事 | BG82: =SUM(BZ53:CC54) -> 432 | CV82: 水道 | CW82: =SUM(INDEX(サマリ!$Q$1:$Q$70,CW$70):INDEX(サマリ!$Q$1:$Q$70,CW$70)) -> 4.95 | CX82: =SUM(INDEX(サマリ!$Q$1:$Q$70,CX$70):INDEX(サマリ!$Q$1:$Q$70,CX$70)) -> 5.775 | CY82: =SUM(INDEX(サマリ!$Q$1:$Q$70,CY$70):INDEX(サマリ!$Q$1:$Q$70,CY$70)) -> 6.6 | CZ82: =SUM(INDEX(サマリ!$Q$1:$Q$70,CZ$70):INDEX(サマリ!$Q$1:$Q$70,CZ$70)) -> 6.6 | DA82: =SUM(INDEX(サマリ!$Q$1:$Q$70,DA$70):INDEX(サマリ!$Q$1:$Q$70,DA$70)) -> 6.6 | DB82: =SUM(INDEX(サマリ!$Q$1:$Q$70,DB$70):INDEX(サマリ!$Q$1:$Q$70,DB$70)) -> 6.6 | DF82: 水道 | DG82: 4125 | DH82: 4812.5 | DI82: 5500 | DJ82: 5500 | DK82: 5500 | DL82: 5500
BF83: 学費・仕送り | BG83: =SUM(BZ55:CC56) -> 1608.7309 | CV83: 保険 | CW83: =SUM(INDEX(サマリ!$R$1:$R$70,CW$70):INDEX(サマリ!$R$1:$R$70,CW$70)) -> 12 | CX83: =SUM(INDEX(サマリ!$R$1:$R$70,CX$70):INDEX(サマリ!$R$1:$R$70,CX$70)) -> 12 | CY83: =SUM(INDEX(サマリ!$R$1:$R$70,CY$70):INDEX(サマリ!$R$1:$R$70,CY$70)) -> 12 | CZ83: =SUM(INDEX(サマリ!$R$1:$R$70,CZ$70):INDEX(サマリ!$R$1:$R$70,CZ$70)) -> 12 | DA83: =SUM(INDEX(サマリ!$R$1:$R$70,DA$70):INDEX(サマリ!$R$1:$R$70,DA$70)) -> 12 | DB83: =SUM(INDEX(サマリ!$R$1:$R$70,DB$70):INDEX(サマリ!$R$1:$R$70,DB$70)) -> 12 | DF83: 保険 | DG83: 10000 | DH83: 10000 | DI83: 10000 | DJ83: 10000 | DK83: 10000 | DL83: 10000
CU84: 小計 | CW84: =SUM(CW78:CW83) -> 140.37 | CX84: =SUM(CX78:CX83) -> 170.565 | CY84: 200.76 | CZ84: 200.76 | DA84: 200.76 | DB84: 200.76 | DE84: 小計 | DG84: 116975 | DH84: 142137.5 | DI84: 167300 | DJ84: 167300 | DK84: 167300 | DL84: 167300
BG85: =-SUM(BZ44:CA44) -> -432 | CV85: インターネット | CW85: =SUM(INDEX(サマリ!$V$1:$V$70,CW$70):INDEX(サマリ!$V$1:$V$70,CW$70)) -> 6 | CX85: =SUM(INDEX(サマリ!$V$1:$V$70,CX$70):INDEX(サマリ!$V$1:$V$70,CX$70)) -> 6 | CY85: =SUM(INDEX(サマリ!$V$1:$V$70,CY$70):INDEX(サマリ!$V$1:$V$70,CY$70)) -> 6 | CZ85: =SUM(INDEX(サマリ!$V$1:$V$70,CZ$70):INDEX(サマリ!$V$1:$V$70,CZ$70)) -> 6 | DA85: =SUM(INDEX(サマリ!$V$1:$V$70,DA$70):INDEX(サマリ!$V$1:$V$70,DA$70)) -> 6 | DB85: =SUM(INDEX(サマリ!$V$1:$V$70,DB$70):INDEX(サマリ!$V$1:$V$70,DB$70)) -> 6 | DF85: インターネット | DG85: 5000 | DH85: 5000 | DI85: 5000 | DJ85: 5000 | DK85: 5000 | DL85: 5000
BG86: =SUM(BG73:BG85) -> 22630.09682 | CV86: 携帯 | CW86: =SUM(INDEX(サマリ!$W$1:$W$70,CW$70):INDEX(サマリ!$W$1:$W$70,CW$70)) -> 4.8 | CX86: =SUM(INDEX(サマリ!$W$1:$W$70,CX$70):INDEX(サマリ!$W$1:$W$70,CX$70)) -> 4.8 | CY86: =SUM(INDEX(サマリ!$W$1:$W$70,CY$70):INDEX(サマリ!$W$1:$W$70,CY$70)) -> 4.8 | CZ86: =SUM(INDEX(サマリ!$W$1:$W$70,CZ$70):INDEX(サマリ!$W$1:$W$70,CZ$70)) -> 7.2 | DA86: =SUM(INDEX(サマリ!$W$1:$W$70,DA$70):INDEX(サマリ!$W$1:$W$70,DA$70)) -> 9.6 | DB86: =SUM(INDEX(サマリ!$W$1:$W$70,DB$70):INDEX(サマリ!$W$1:$W$70,DB$70)) -> 9.6 | DF86: 携帯 | DG86: 4000 | DH86: 4000 | DI86: 4000 | DJ86: 6000 | DK86: 8000 | DL86: 8000
CV87: お小遣い | CW87: =SUM(INDEX(サマリ!$AE$1:$AE$70,CW$70):INDEX(サマリ!$AE$1:$AE$70,CW$70)) -> 72 | CX87: =SUM(INDEX(サマリ!$AE$1:$AE$70,CX$70):INDEX(サマリ!$AE$1:$AE$70,CX$70)) -> 84 | CY87: =SUM(INDEX(サマリ!$AE$1:$AE$70,CY$70):INDEX(サマリ!$AE$1:$AE$70,CY$70)) -> 96 | CZ87: =SUM(INDEX(サマリ!$AE$1:$AE$70,CZ$70):INDEX(サマリ!$AE$1:$AE$70,CZ$70)) -> 96 | DA87: =SUM(INDEX(サマリ!$AE$1:$AE$70,DA$70):INDEX(サマリ!$AE$1:$AE$70,DA$70)) -> 96 | DB87: =SUM(INDEX(サマリ!$AE$1:$AE$70,DB$70):INDEX(サマリ!$AE$1:$AE$70,DB$70)) -> 84 | DF87: お小遣い | DG87: 60000 | DH87: 70000 | DI87: 80000 | DJ87: 80000 | DK87: 80000 | DL87: 70000
BG88: =SUM(BI57,BI63) -> 22630.09682 | CV88: 塾・習い事・学費 | CW88: =SUM(INDEX(サマリ!$X$1:$X$70,CW$70):INDEX(サマリ!$Y$1:$Y$70,CW$70)) -> 0 | CX88: =SUM(INDEX(サマリ!$X$1:$X$70,CX$70):INDEX(サマリ!$Y$1:$Y$70,CX$70)) -> 0 | CY88: =SUM(INDEX(サマリ!$X$1:$X$70,CY$70):INDEX(サマリ!$Y$1:$Y$70,CY$70)) -> 24 | CZ88: =SUM(INDEX(サマリ!$X$1:$X$70,CZ$70):INDEX(サマリ!$Y$1:$Y$70,CZ$70)) -> 24 | DA88: =SUM(INDEX(サマリ!$X$1:$X$70,DA$70):INDEX(サマリ!$Y$1:$Y$70,DA$70)) -> 36 | DB88: =SUM(INDEX(サマリ!$X$1:$X$70,DB$70):INDEX(サマリ!$Y$1:$Y$70,DB$70)) -> 0 | DF88: 塾・習い事 | DG88: 0 | DH88: 0 | DI88: 20000 | DJ88: 20000 | DK88: 30000 | DL88: 0
CU89: 小計 | CW89: =SUM(CW85:CW88) -> 82.8 | CX89: =SUM(CX85:CX88) -> 94.8 | CY89: 130.8 | CZ89: 133.2 | DA89: 147.6 | DB89: 99.6 | DE89: 小計 | DG89: 69000 | DH89: 79000 | DI89: 109000 | DJ89: 111000 | DK89: 123000 | DL89: 83000
CT90: 合計 | CW90: =SUM(CW84,CW89) -> 223.17 | CX90: =SUM(CX84,CX89) -> 265.365 | CY90: 331.56 | CZ90: 333.96 | DA90: 348.36 | DB90: 300.36 | DD90: 合計 | DG90: 185975 | DH90: 221137.5 | DI90: 276300 | DJ90: 278300 | DK90: 290300 | DL90: 250300
CT91: 限界利益 | CW91: =CW77-CW90 -> 197.225082 | CX91: =CX77-CX90 -> 177.670082 | CY91: 181.663734 | CZ91: 301.35852 | DA91: 333.2328 | DB91: 417.2807 | DD91: 限界利益 | DG91: 164354.235 | DH91: 148058.4017 | DI91: 151386.445 | DJ91: 251132.1 | DK91: 277694 | DL91: 347733.9167
CU92: 住居 | CW92: =SUM(INDEX(サマリ!$K$1:$K$70,CW$70):INDEX(サマリ!$L$1:$L$70,CW$70)) -> 96 | CX92: =SUM(INDEX(サマリ!$K$1:$K$70,CX$70):INDEX(サマリ!$L$1:$L$70,CX$70)) -> 96 | CY92: =SUM(INDEX(サマリ!$K$1:$K$70,CY$70):INDEX(サマリ!$L$1:$L$70,CY$70)) -> 137.9035468 | CZ92: =SUM(INDEX(サマリ!$K$1:$K$70,CZ$70):INDEX(サマリ!$L$1:$L$70,CZ$70)) -> 143.7028836 | DA92: =SUM(INDEX(サマリ!$K$1:$K$70,DA$70):INDEX(サマリ!$L$1:$L$70,DA$70)) -> 180.1504955 | DB92: =SUM(INDEX(サマリ!$K$1:$K$70,DB$70):INDEX(サマリ!$L$1:$L$70,DB$70)) -> 178.3495355 | DE92: 住居 | DG92: 80000 | DH92: 80000 | DI92: 114919.6224 | DJ92: 119752.403 | DK92: 150125.4129 | DL92: 148624.6129
CU93: 車維持費 | CW93: =SUM(INDEX(サマリ!$AJ$1:$AJ$70,CW$70):INDEX(サマリ!$AJ$1:$AJ$70,CW$70)) -> 21.5 | CX93: =SUM(INDEX(サマリ!$AJ$1:$AJ$70,CX$70):INDEX(サマリ!$AJ$1:$AJ$70,CX$70)) -> 21.5 | CY93: =SUM(INDEX(サマリ!$AJ$1:$AJ$70,CY$70):INDEX(サマリ!$AJ$1:$AJ$70,CY$70)) -> 21.5 | CZ93: =SUM(INDEX(サマリ!$AJ$1:$AJ$70,CZ$70):INDEX(サマリ!$AJ$1:$AJ$70,CZ$70)) -> 21.5 | DA93: =SUM(INDEX(サマリ!$AJ$1:$AJ$70,DA$70):INDEX(サマリ!$AJ$1:$AJ$70,DA$70)) -> 21.5 | DB93: =SUM(INDEX(サマリ!$AJ$1:$AJ$70,DB$70):INDEX(サマリ!$AJ$1:$AJ$70,DB$70)) -> 21.5 | DE93: 車維持費 | DG93: 17916.66667 | DH93: 17916.66667 | DI93: 17916.66667 | DJ93: 17916.66667 | DK93: 17916.66667 | DL93: 17916.66667
CT94: 固定費合計 | CW94: =SUM(CW92:CW93) -> 117.5 | CX94: =SUM(CX92:CX93) -> 117.5 | CY94: 159.4035468 | CZ94: 165.2028836 | DA94: 201.6504955 | DB94: 199.8495355 | DD94: 固定費合計 | DG94: 97916.66667 | DH94: 97916.66667 | DI94: 132836.289 | DJ94: 137669.0697 | DK94: 168042.0796 | DL94: 166541.2796
CT95: 収支 | CW95: =CW91-CW94 -> 79.725082 | CX95: =CX91-CX94 -> 60.170082 | CY95: 22.26018716 | CZ95: 136.1556364 | DA95: 131.5823045 | DB95: 217.4311645 | DD95: 収支 | DG95: 66437.56833 | DH95: 50141.735 | DI95: 18550.15596 | DJ95: 113463.0303 | DK95: 109651.9204 | DL95: 181192.6371
CU96: 車積立 | CW96: =SUM(INDEX(サマリ!$AH$1:$AH$70,6):INDEX(サマリ!$AH$1:$AH$70,$AQ$48))/($D$22-$D$17) -> 43.90243902 | CX96: =SUM(INDEX(サマリ!$AH$1:$AH$70,6):INDEX(サマリ!$AH$1:$AH$70,$AQ$48))/($D$22-$D$17) -> 43.90243902 | CY96: =SUM(INDEX(サマリ!$AH$1:$AH$70,6):INDEX(サマリ!$AH$1:$AH$70,$AQ$48))/($D$22-$D$17) -> 43.90243902 | CZ96: =SUM(INDEX(サマリ!$AH$1:$AH$70,6):INDEX(サマリ!$AH$1:$AH$70,$AQ$48))/($D$22-$D$17) -> 43.90243902 | DA96: =SUM(INDEX(サマリ!$AH$1:$AH$70,6):INDEX(サマリ!$AH$1:$AH$70,$AQ$48))/($D$22-$D$17) -> 43.90243902 | DB96: =SUM(INDEX(サマリ!$AH$1:$AH$70,6):INDEX(サマリ!$AH$1:$AH$70,$AQ$48))/($D$22-$D$17) -> 43.90243902 | DE96: 車積立 | DG96: 36585.36585 | DH96: 36585.36585 | DI96: 36585.36585 | DJ96: 36585.36585 | DK96: 36585.36585 | DL96: 36585.36585
CU97: リフォーム・大物家電 | CW97: =SUM(INDEX(サマリ!$AG$1:$AG$70,6):INDEX(サマリ!$AG$1:$AG$70,$AQ$48))/($D$22-$D$17) -> 5.926829268 | CX97: =SUM(INDEX(サマリ!$AG$1:$AG$70,6):INDEX(サマリ!$AG$1:$AG$70,$AQ$48))/($D$22-$D$17) -> 5.926829268 | CY97: =SUM(INDEX(サマリ!$AG$1:$AG$70,6):INDEX(サマリ!$AG$1:$AG$70,$AQ$48))/($D$22-$D$17) -> 5.926829268 | CZ97: =SUM(INDEX(サマリ!$AG$1:$AG$70,6):INDEX(サマリ!$AG$1:$AG$70,$AQ$48))/($D$22-$D$17) -> 5.926829268 | DA97: =SUM(INDEX(サマリ!$AG$1:$AG$70,6):INDEX(サマリ!$AG$1:$AG$70,$AQ$48))/($D$22-$D$17) -> 5.926829268 | DB97: =SUM(INDEX(サマリ!$AG$1:$AG$70,6):INDEX(サマリ!$AG$1:$AG$70,$AQ$48))/($D$22-$D$17) -> 5.926829268 | DE97: リフォーム・大物家電 | DG97: 4939.02439 | DH97: 4939.02439 | DI97: 4939.02439 | DJ97: 4939.02439 | DK97: 4939.02439 | DL97: 4939.02439
CR98: =SUM(子1!Z74:AA74,子2!Z74:AA74,子3!Z74:AA74,子4!Z74:AA74) -> 1086.7353 | CU98: 大学費用(学費・仕送り) | CW98: =SUM($CR$98)/25 -> 43.469412 | CX98: =SUM($CR$98)/25 -> 43.469412 | CY98: 43.469412 | CZ98: 43.469412 | DA98: 43.469412 | DE98: 学費・仕送り積立 | DG98: 36224.51 | DH98: 36224.51 | DI98: 36224.51 | DJ98: 36224.51 | DK98: 36224.51 | DL98: 0
CT99: 積立 | CW99: =SUM(CW96:CW98) -> 93.29868029 | CX99: =SUM(CX96:CX98) -> 93.29868029 | CY99: 93.29868029 | CZ99: 93.29868029 | DA99: 93.29868029 | DB99: 49.82926829 | DD99: 積立 | DG99: 77748.90024 | DH99: 77748.90024 | DI99: 77748.90024 | DJ99: 77748.90024 | DK99: 77748.90024 | DL99: 41524.39024
CT100: 収支 | CW100: =CW95-CW99 -> -13.57359829 | CX100: =CX95-CX99 -> -33.12859829 | CY100: -71.03849314 | CZ100: 42.85695609 | DA100: 38.28362422 | DB100: 167.6018962 | DD100: 収支(積立含む) | DG100: -11311.33191 | DH100: -27607.16524 | DI100: -59198.74428 | DJ100: 35714.13007 | DK100: 31903.02018 | DL100: 139668.2468

Sheet サマリ
M1: =SUM(→:←!M1) -> 118.8 | N1: =SUM(→:←!N1) -> 39.6 | O1: =SUM(→:←!O1) -> 13.2 | P1: =SUM(→:←!P1) -> 10.56 | Q1: =SUM(→:←!Q1) -> 6.6 | V1: =SUM(→:←!V1) -> 6 | W1: =SUM(→:←!W1) -> 9.6
J2: 収入 | U2: 収支 小計 | AD2: 収支 小計 | AL2: 収支 | AM2: 収支累計 | AO2: =入力!BB43 -> 0.05 | AP2: 投資をした場合 | AV2: 支出
T3: 支出1 衣食住 | AC3: 支出2 固定費,教育 | AK3: 支出3 娯楽 | AN3: =1-AO3 -> 0.7 | AO3: 0.3
B4: 西暦 | C4: 親① 年齢 | D4: 年収 | E4: 手取り | F4: 時短等 | G4: 退職金 | H4: 年金 | K4: 住居 | L4: 住居維持費 (含むローン控除) | M4: 食費 | N4: 服費 | O4: 電気 | P4: ガス | Q4: 水道 | R4: 保険 | V4: インターネット | W4: 携帯 | X4: 塾・仕送り | Y4: 習い事 | Z4: 学費 | AE4: お小遣い | AF4: リフォーム | AG4: 家具・大物家電 | AH4: 車1 | AI4: 車2 | AJ4: 車維持費 | AK4: 合計 | AN4: 現金 | AO4: 投資 | AQ4: 投資効果 | AS4: 住宅ローン残 | AT4: 試算
B5: 貯金 | AM5: =SUM(→:←!AM5) -> 0 | AN5: =SUM(→:←!AN5) -> 0 | AO5: =SUM(→:←!AO5) -> 0 | AP5: =SUM(AN5:AO5) -> 0
B6: =入力!$D$6 -> 2022 | C6: =入力!$D$17 -> 24 | D6: =SUM(→:←!D6) -> 542.8412365 | E6: =SUM(→:←!E6) -> 420.395082 | F6: =SUM(→:←!F6) -> 0 | G6: =SUM(→:←!G6) -> 0 | H6: =SUM(→:←!H6) -> 0 | I6: =SUM(→:←!I6) -> 0 | J6: =SUM(→:←!J6) -> 420.395082 | K6: =SUM(→:←!K6) -> 96 | L6: =SUM(→:←!L6) -> 0 | M6: =SUM(→:←!M6) -> 79.2 | N6: =SUM(→:←!N6) -> 26.4 | O6: =SUM(→:←!O6) -> 9.9 | P6: =SUM(→:←!P6) -> 7.92 | Q6: =SUM(→:←!Q6) -> 4.95 | R6: =SUM(→:←!R6) -> 12 | S6: =SUM(→:←!S6) -> 0 | T6: =SUM(→:←!T6) -> 236.37 | U6: =SUM(→:←!U6) -> 184.025082 | V6: =SUM(→:←!V6) -> 6 | W6: =SUM(→:←!W6) -> 4.8 | X6: =SUM(→:←!X6) -> 0 | Y6: =SUM(→:←!Y6) -> 0 | Z6: =SUM(→:←!Z6) -> 0 | AA6: =SUM(→:←!AA6) -> 0 | AB6: =SUM(→:←!AB6) -> 0 | AC6: =SUM(→:←!AC6) -> 10.8 | AD6: =SUM(→:←!AD6) -> 173.225082 | AE6: =SUM(→:←!AE6) -> 72 | AF6: =SUM(→:←!AF6) -> 0 | AG6: =SUM(→:←!AG6) -> 3 | AH6: =SUM(→:←!AH6) -> 0 | AI6: =SUM(→:←!AI6) -> 0 | AJ6: =SUM(→:←!AJ6) -> 21.5 | AK6: =SUM(→:←!AK6) -> 96.5 | AL6: =SUM(→:←!AL6) -> 76.725082 | AM6: =SUM(→:←!AM6) -> 76.725082 | AN6: =AN5+AL6*AN$3 -> 53.7075574 | AO6: =AO5*(1+$AO$2)+AL6*AO$3 -> 23.0175246 | AP6: =SUM(AN6:AO6) -> 76.725082 | AQ6: =(AP6-AM6)*80% -> 0 | AS6: =SUM(K6:$K$70) -> 5774.399742 | AT6: =AM6-AS6 -> -5697.67466 | AV6: =T6+AC6+AK6 -> 343.67 | AX6: =IF(AY6="",AV6+10000,AV6*1.2) -> 10343.67 | AY6: =IF($AH6>0,"車,","")&IF($AF6>0,"リフォーム,","")&IF(子1!C6=18,"大学入学,","")&IF(子2!C6=18,"大学入学,","")&IF(子3!C6=18,"大学入学,","")&IF(子4!C6=18,"大学入学,","") -> 
B7: =B6+1 -> 2023 | C7: =C6+1 -> 25 | D7: =SUM(→:←!D7) -> 561.0164453 | E7: =SUM(→:←!E7) -> 437.995082 | F7: =SUM(→:←!F7) -> 0 | G7: =SUM(→:←!G7) -> 0 | H7: =SUM(→:←!H7) -> 0 | I7: =SUM(→:←!I7) -> 0 | J7: =SUM(→:←!J7) -> 437.995082 | K7: =SUM(→:←!K7) -> 96 | L7: =SUM(→:←!L7) -> 0 | M7: =SUM(→:←!M7) -> 79.2 | N7: =SUM(→:←!N7) -> 26.4 | O7: =SUM(→:←!O7) -> 9.9 | P7: =SUM(→:←!P7) -> 7.92 | Q7: =SUM(→:←!Q7) -> 4.95 | R7: =SUM(→:←!R7) -> 12 | S7: =SUM(→:←!S7) -> 0 | T7: =SUM(→:←!T7) -> 236.37 | U7: =SUM(→:←!U7) -> 201.625082 | V7: =SUM(→:←!V7) -> 6 | W7: =SUM(→:←!W7) -> 4.8 | X7: =SUM(→:←!X7) -> 0 | Y7: =SUM(→:←!Y7) -> 0 | Z7: =SUM(→:←!Z7) -> 0 | AA7: =SUM(→:←!AA7) -> 0 | AB7: =SUM(→:←!AB7) -> 0 | AC7: =SUM(→:←!AC7) -> 10.8 | AD7: =SUM(→:←!AD7) -> 190.825082 | AE7: =SUM(→:←!AE7) -> 72 | AF7: =SUM(→:←!AF7) -> 0 | AG7: =SUM(→:←!AG7) -> 0 | AH7: =SUM(→:←!AH7) -> 0 | AI7: =SUM(→:←!AI7) -> 0 | AJ7: =SUM(→:←!AJ7) -> 21.5 | AK7: =SUM(→:←!AK7) -> 93.5 | AL7: =SUM(→:←!AL7) -> 97.325082 | AM7: =SUM(→:←!AM7) -> 174.050164 | AN7: =AN6+AL7*AN$3 -> 121.8351148 | AO7: =AO6*(1+$AO$2)+AL7*AO$3 -> 53.36592543 | AP7: 175.2010402 | AQ7: =(AP7-AM7)*80% -> 0.920700984 | AS7: =SUM(K7:$K$70) -> 5678.399742 | AT7: =AM7-AS7 -> -5504.349578 | AV7: =T7+AC7+AK7 -> 340.67 | AX7: =IF(AY7="",AV7+10000,AV7*1.2) -> 10340.67 | AY7: =IF($AH7>0,"車,","")&IF($AF7>0,"リフォーム,","")&IF(子1!C7=18,"大学入学,","")&IF(子2!C7=18,"大学入学,","")&IF(子3!C7=18,"大学入学,","")&IF(子4!C7=18,"大学入学,","") -> 
B8: 2024 | C8: 26 | D8: =SUM(→:←!D8) -> 578.2515671 | E8: =SUM(→:←!E8) -> 454.65517 | F8: =SUM(→:←!F8) -> 0 | G8: =SUM(→:←!G8) -> 0 | H8: =SUM(→:←!H8) -> 0 | I8: =SUM(→:←!I8) -> 0 | J8: =SUM(→:←!J8) -> 454.65517 | K8: =SUM(→:←!K8) -> 96 | L8: =SUM(→:←!L8) -> 0 | M8: =SUM(→:←!M8) -> 79.2 | N8: =SUM(→:←!N8) -> 26.4 | O8: =SUM(→:←!O8) -> 9.9 | P8: =SUM(→:←!P8) -> 7.92 | Q8: =SUM(→:←!Q8) -> 4.95 | R8: =SUM(→:←!R8) -> 12 | S8: =SUM(→:←!S8) -> 0 | T8: =SUM(→:←!T8) -> 236.37 | U8: =SUM(→:←!U8) -> 218.28517 | V8: =SUM(→:←!V8) -> 6 | W8: =SUM(→:←!W8) -> 4.8 | X8: =SUM(→:←!X8) -> 0 | Y8: =SUM(→:←!Y8) -> 0 | Z8: =SUM(→:←!Z8) -> 0 | AA8: =SUM(→:←!AA8) -> 0 | AB8: =SUM(→:←!AB8) -> 0 | AC8: =SUM(→:←!AC8) -> 10.8 | AD8: =SUM(→:←!AD8) -> 207.48517 | AE8: =SUM(→:←!AE8) -> 72 | AF8: =SUM(→:←!AF8) -> 0 | AG8: =SUM(→:←!AG8) -> 0 | AH8: =SUM(→:←!AH8) -> 0 | AI8: =SUM(→:←!AI8) -> 0 | AJ8: =SUM(→:←!AJ8) -> 21.5 | AK8: =SUM(→:←!AK8) -> 93.5 | AL8: =SUM(→:←!AL8) -> 113.98517 | AM8: =SUM(→:←!AM8) -> 288.035334 | AN8: 201.6247338 | AO8: =AO7*(1+$AO$2)+AL8*AO$3 -> 90.2297727 | AP8: 291.8545065 | AQ8: 3.055338001 | AS8: =SUM(K8:$K$70) -> 5582.399742 | AT8: -5294.364408 | AV8: 340.67 | AX8: =IF(AY8="",AV8+10000,AV8*1.2) -> 10340.67 | AY8: =IF($AH8>0,"車,","")&IF($AF8>0,"リフォーム,","")&IF(子1!C8=18,"大学入学,","")&IF(子2!C8=18,"大学入学,","")&IF(子3!C8=18,"大学入学,","")&IF(子4!C8=18,"大学入学,","") -> 
B9: 2025 | C9: 27 | D9: =SUM(→:←!D9) -> 596.0181743 | E9: =SUM(→:←!E9) -> 467.7555 | F9: =SUM(→:←!F9) -> 0 | G9: =SUM(→:←!G9) -> 0 | H9: =SUM(→:←!H9) -> 0 | I9: =SUM(→:←!I9) -> 0 | J9: =SUM(→:←!J9) -> 467.7555 | K9: =SUM(→:←!K9) -> 96 | L9: =SUM(→:←!L9) -> 0 | M9: =SUM(→:←!M9) -> 79.2 | N9: =SUM(→:←!N9) -> 26.4 | O9: =SUM(→:←!O9) -> 9.9 | P9: =SUM(→:←!P9) -> 7.92 | Q9: =SUM(→:←!Q9) -> 4.95 | R9: =SUM(→:←!R9) -> 12 | S9: =SUM(→:←!S9) -> 0 | T9: =SUM(→:←!T9) -> 236.37 | U9: =SUM(→:←!U9) -> 231.3855 | V9: =SUM(→:←!V9) -> 6 | W9: =SUM(→:←!W9) -> 4.8 | X9: =SUM(→:←!X9) -> 0 | Y9: =SUM(→:←!Y9) -> 0 | Z9: =SUM(→:←!Z9) -> 0 | AA9: =SUM(→:←!AA9) -> 0 | AB9: =SUM(→:←!AB9) -> 0 | AC9: =SUM(→:←!AC9) -> 10.8 | AD9: =SUM(→:←!AD9) -> 220.5855 | AE9: =SUM(→:←!AE9) -> 72 | AF9: =SUM(→:←!AF9) -> 0 | AG9: =SUM(→:←!AG9) -> 0 | AH9: =SUM(→:←!AH9) -> 300 | AI9: =SUM(→:←!AI9) -> 0 | AJ9: =SUM(→:←!AJ9) -> 21.5 | AK9: =SUM(→:←!AK9) -> 393.5 | AL9: =SUM(→:←!AL9) -> -172.9145 | AM9: =SUM(→:←!AM9) -> 115.120834 | AN9: 80.5845838 | AO9: 42.86691134 | AP9: 123.4514951 | AQ9: 6.664528909 | AS9: =SUM(K9:$K$70) -> 5486.399742 | AT9: -5371.278908 | AV9: 640.67 | AX9: 768.804 | AY9: =IF($AH9>0,"車,","")&IF($AF9>0,"リフォーム,","")&IF(子1!C9=18,"大学入学,","")&IF(子2!C9=18,"大学入学,","")&IF(子3!C9=18,"大学入学,","")&IF(子4!C9=18,"大学入学,","") -> 車,
B10: 2026 | C10: 28 | D10: =SUM(→:←!D10) -> 613.5584095 | E10: =SUM(→:←!E10) -> 494.5555 | F10: =SUM(→:←!F10) -> -107.906232 | G10: =SUM(→:←!G10) -> 0 | H10: =SUM(→:←!H10) -> 0 | I10: =SUM(→:←!I10) -> 0 | J10: =SUM(→:←!J10) -> 386.649268 | K10: =SUM(→:←!K10) -> 96 | L10: =SUM(→:←!L10) -> 0 | M10: =SUM(→:←!M10) -> 99 | N10: =SUM(→:←!N10) -> 33 | O10: =SUM(→:←!O10) -> 11.55 | P10: =SUM(→:←!P10) -> 9.24 | Q10: =SUM(→:←!Q10) -> 5.775 | R10: =SUM(→:←!R10) -> 12 | S10: =SUM(→:←!S10) -> 0 | T10: =SUM(→:←!T10) -> 266.565 | U10: =SUM(→:←!U10) -> 120.084268 | V10: =SUM(→:←!V10) -> 6 | W10: =SUM(→:←!W10) -> 4.8 | X10: =SUM(→:←!X10) -> 0 | Y10: =SUM(→:←!Y10) -> 0 | Z10: =SUM(→:←!Z10) -> 36 | AA10: =SUM(→:←!AA10) -> 0 | AB10: =SUM(→:←!AB10) -> 0 | AC10: =SUM(→:←!AC10) -> 46.8 | AD10: =SUM(→:←!AD10) -> 73.284268 | AE10: =SUM(→:←!AE10) -> 84 | AF10: =SUM(→:←!AF10) -> 0 | AG10: =SUM(→:←!AG10) -> 0 | AH10: =SUM(→:←!AH10) -> 0 | AI10: =SUM(→:←!AI10) -> 0 | AJ10: =SUM(→:←!AJ10) -> 21.5 | AK10: =SUM(→:←!AK10) -> 105.5 | AL10: =SUM(→:←!AL10) -> -32.215732 | AM10: =SUM(→:←!AM10) -> 82.905102 | AN10: 58.0335714 | AO10: 35.3455373 | AP10: 93.3791087 | AQ10: 8.379205363 | AS10: =SUM(K10:$K$70) -> 5390.399742 | AT10: -5307.49464 | AV10: 418.865 | AX10: 10418.865 | AY10: =IF($AH10>0,"車,","")&IF($AF10>0,"リフォーム,","")&IF(子1!C10=18,"大学入学,","")&IF(子2!C10=18,"大学入学,","")&IF(子3!C10=18,"大学入学,","")&IF(子4!C10=18,"大学入学,","") -> 
B11: 2027 | C11: 29 | D11: =SUM(→:←!D11) -> 631.6148368 | E11: =SUM(→:←!E11) -> 507.65583 | F11: =SUM(→:←!F11) -> -64.620748 | G11: =SUM(→:←!G11) -> 0 | H11: =SUM(→:←!H11) -> 0 | I11: =SUM(→:←!I11) -> 0 | J11: =SUM(→:←!J11) -> 443.035082 | K11: =SUM(→:←!K11) -> 96 | L11: =SUM(→:←!L11) -> 0 | M11: =SUM(→:←!M11) -> 99 | N11: =SUM(→:←!N11) -> 33 | O11: =SUM(→:←!O11) -> 11.55 | P11: =SUM(→:←!P11) -> 9.24 | Q11: =SUM(→:←!Q11) -> 5.775 | R11: =SUM(→:←!R11) -> 12 | S11: =SUM(→:←!S11) -> 0 | T11: =SUM(→:←!T11) -> 266.565 | U11: =SUM(→:←!U11) -> 176.470082 | V11: =SUM(→:←!V11) -> 6 | W11: =SUM(→:←!W11) -> 4.8 | X11: =SUM(→:←!X11) -> 0 | Y11: =SUM(→:←!Y11) -> 0 | Z11: =SUM(→:←!Z11) -> 36 | AA11: =SUM(→:←!AA11) -> 0 | AB11: =SUM(→:←!AB11) -> 0 | AC11: =SUM(→:←!AC11) -> 46.8 | AD11: =SUM(→:←!AD11) -> 129.670082 | AE11: =SUM(→:←!AE11) -> 84 | AF11: =SUM(→:←!AF11) -> 0 | AG11: =SUM(→:←!AG11) -> 57 | AH11: =SUM(→:←!AH11) -> 0 | AI11: =SUM(→:←!AI11) -> 0 | AJ11: =SUM(→:←!AJ11) -> 21.5 | AK11: =SUM(→:←!AK11) -> 162.5 | AL11: =SUM(→:←!AL11) -> -32.829918 | AM11: =SUM(→:←!AM11) -> 50.075184 | AN11: 35.0526288 | AO11: 27.26383877 | AP11: 62.31646757 | AQ11: 9.793026855 | AS11: =SUM(K11:$K$70) -> 5294.399742 | AT11: -5244.324558 | AV11: 475.865 | AX11: 10475.865 | AY11: =IF($AH11>0,"車,","")&IF($AF11>0,"リフォーム,","")&IF(子1!C11=18,"大学入学,","")&IF(子2!C11=18,"大学入学,","")&IF(子3!C11=18,"大学入学,","")&IF(子4!C11=18,"大学入学,","") -> 
B12: 2028 | C12: 30 | D12: =SUM(→:←!D12) -> 650.2026471 | E12: =SUM(→:←!E12) -> 525.25583 | F12: =SUM(→:←!F12) -> -64.620748 | G12: =SUM(→:←!G12) -> 0 | H12: =SUM(→:←!H12) -> 0 | I12: =SUM(→:←!I12) -> 0 | J12: =SUM(→:←!J12) -> 460.635082 | K12: =SUM(→:←!K12) -> 96 | L12: =SUM(→:←!L12) -> 0 | M12: =SUM(→:←!M12) -> 99 | N12: =SUM(→:←!N12) -> 33 | O12: =SUM(→:←!O12) -> 11.55 | P12: =SUM(→:←!P12) -> 9.24 | Q12: =SUM(→:←!Q12) -> 5.775 | R12: =SUM(→:←!R12) -> 12 | S12: =SUM(→:←!S12) -> 0 | T12: =SUM(→:←!T12) -> 266.565 | U12: =SUM(→:←!U12) -> 194.070082 | V12: =SUM(→:←!V12) -> 6 | W12: =SUM(→:←!W12) -> 4.8 | X12: =SUM(→:←!X12) -> 0 | Y12: =SUM(→:←!Y12) -> 0 | Z12: =SUM(→:←!Z12) -> 36 | AA12: =SUM(→:←!AA12) -> 0 | AB12: =SUM(→:←!AB12) -> 0 | AC12: =SUM(→:←!AC12) -> 46.8 | AD12: =SUM(→:←!AD12) -> 147.270082 | AE12: =SUM(→:←!AE12) -> 84 | AF12: =SUM(→:←!AF12) -> 0 | AG12: =SUM(→:←!AG12) -> 0 | AH12: =SUM(→:←!AH12) -> 0 | AI12: =SUM(→:←!AI12) -> 0 | AJ12: =SUM(→:←!AJ12) -> 21.5 | AK12: =SUM(→:←!AK12) -> 105.5 | AL12: =SUM(→:←!AL12) -> 41.770082 | AM12: =SUM(→:←!AM12) -> 91.845266 | AN12: 64.2916862 | AO12: 41.15805531 | AP12: 105.4497415 | AQ12: 10.88358041 | AS12: =SUM(K12:$K$70) -> 5198.399742 | AT12: -5106.554476 | AV12: 418.865 | AX12: 10418.865 | AY12: =IF($AH12>0,"車,","")&IF($AF12>0,"リフォーム,","")&IF(子1!C12=18,"大学入学,","")&IF(子2!C12=18,"大学入学,","")&IF(子3!C12=18,"大学入学,","")&IF(子4!C12=18,"大学入学,","") -> 
B13: 2029 | C13: 31 | D13: =SUM(→:←!D13) -> 667.1981277 | E13: =SUM(→:←!E13) -> 556.17062 | F13: =SUM(→:←!F13) -> -118.266386 | G13: =SUM(→:←!G13) -> 0 | H13: =SUM(→:←!H13) -> 0 | I13: =SUM(→:←!I13) -> 0 | J13: =SUM(→:←!J13) -> 437.904234 | K13: =SUM(→:←!K13) -> 120 | L13: =SUM(→:←!L13) -> 0 | M13: =SUM(→:←!M13) -> 118.8 | N13: =SUM(→:←!N13) -> 39.6 | O13: =SUM(→:←!O13) -> 13.2 | P13: =SUM(→:←!P13) -> 10.56 | Q13: =SUM(→:←!Q13) -> 6.6 | R13: =SUM(→:←!R13) -> 12 | S13: =SUM(→:←!S13) -> 0 | T13: =SUM(→:←!T13) -> 320.76 | U13: =SUM(→:←!U13) -> 117.144234 | V13: =SUM(→:←!V13) -> 6 | W13: =SUM(→:←!W13) -> 4.8 | X13: =SUM(→:←!X13) -> 0 | Y13: =SUM(→:←!Y13) -> 12 | Z13: =SUM(→:←!Z13) -> 22.4733 | AA13: =SUM(→:←!AA13) -> 0 | AB13: =SUM(→:←!AB13) -> 0 | AC13: =SUM(→:←!AC13) -> 45.2733 | AD13: =SUM(→:←!AD13) -> 71.870934 | AE13: =SUM(→:←!AE13) -> 96 | AF13: =SUM(→:←!AF13) -> 0 | AG13: =SUM(→:←!AG13) -> 0 | AH13: =SUM(→:←!AH13) -> 0 | AI13: =SUM(→:←!AI13) -> 0 | AJ13: =SUM(→:←!AJ13) -> 21.5 | AK13: =SUM(→:←!AK13) -> 117.5 | AL13: =SUM(→:←!AL13) -> -45.629066 | AM13: =SUM(→:←!AM13) -> 46.2162 | AN13: 32.35134 | AO13: 29.52723827 | AP13: 61.87857827 | AQ13: 12.52990262 | AS13: =SUM(K13:$K$70) -> 5102.399742 | AT13: -5056.183542 | AV13: 483.5333 | AX13: 10483.5333 | AY13: =IF($AH13>0,"車,","")&IF($AF13>0,"リフォーム,","")&IF(子1!C13=18,"大学入学,","")&IF(子2!C13=18,"大学入学,","")&IF(子3!C13=18,"大学入学,","")&IF(子4!C13=18,"大学入学,","") -> 
B14: 2030 | C14: 32 | D14: =SUM(→:←!D14) -> 684.6411699 | E14: =SUM(→:←!E14) -> 567.52062 | F14: =SUM(→:←!F14) -> -71.160792 | G14: =SUM(→:←!G14) -> 0 | H14: =SUM(→:←!H14) -> 0 | I14: =SUM(→:←!I14) -> 0 | J14: =SUM(→:←!J14) -> 496.359828 | K14: =SUM(→:←!K14) -> 120 | L14: =SUM(→:←!L14) -> 0 | M14: =SUM(→:←!M14) -> 118.8 | N14: =SUM(→:←!N14) -> 39.6 | O14: =SUM(→:←!O14) -> 13.2 | P14: =SUM(→:←!P14) -> 10.56 | Q14: =SUM(→:←!Q14) -> 6.6 | R14: =SUM(→:←!R14) -> 12 | S14: =SUM(→:←!S14) -> 0 | T14: =SUM(→:←!T14) -> 320.76 | U14: =SUM(→:←!U14) -> 175.599828 | V14: =SUM(→:←!V14) -> 6 | W14: =SUM(→:←!W14) -> 4.8 | X14: =SUM(→:←!X14) -> 0 | Y14: =SUM(→:←!Y14) -> 12 | Z14: =SUM(→:←!Z14) -> 25.2769 | AA14: =SUM(→:←!AA14) -> 0 | AB14: =SUM(→:←!AB14) -> 0 | AC14: =SUM(→:←!AC14) -> 48.0769 | AD14: =SUM(→:←!AD14) -> 127.522928 | AE14: =SUM(→:←!AE14) -> 96 | AF14: =SUM(→:←!AF14) -> 0 | AG14: =SUM(→:←!AG14) -> 0 | AH14: =SUM(→:←!AH14) -> 0 | AI14: =SUM(→:←!AI14) -> 0 | AJ14: =SUM(→:←!AJ14) -> 21.5 | AK14: =SUM(→:←!AK14) -> 117.5 | AL14: =SUM(→:←!AL14) -> 10.022928 | AM14: =SUM(→:←!AM14) -> 56.239128 | AN14: 39.3673896 | AO14: 34.01047859 | AP14: 73.37786819 | AQ14: 13.71099215 | AS14: =SUM(K14:$K$70) -> 4982.399742 | AT14: -4926.160614 | AV14: 486.3369 | AX14: 10486.3369 | AY14: =IF($AH14>0,"車,","")&IF($AF14>0,"リフォーム,","")&IF(子1!C14=18,"大学入学,","")&IF(子2!C14=18,"大学入学,","")&IF(子3!C14=18,"大学入学,","")&IF(子4!C14=18,"大学入学,","") -> 
B15: 2031 | C15: 33 | D15: =SUM(→:←!D15) -> 701.4739765 | E15: =SUM(→:←!E15) -> 575.92062 | F15: =SUM(→:←!F15) -> -71.160792 | G15: =SUM(→:←!G15) -> 0 | H15: =SUM(→:←!H15) -> 0 | I15: =SUM(→:←!I15) -> 0 | J15: =SUM(→:←!J15) -> 504.759828 | K15: =SUM(→:←!K15) -> 120 | L15: =SUM(→:←!L15) -> 0 | M15: =SUM(→:←!M15) -> 118.8 | N15: =SUM(→:←!N15) -> 39.6 | O15: =SUM(→:←!O15) -> 13.2 | P15: =SUM(→:←!P15) -> 10.56 | Q15: =SUM(→:←!Q15) -> 6.6 | R15: =SUM(→:←!R15) -> 12 | S15: =SUM(→:←!S15) -> 0 | T15: =SUM(→:←!T15) -> 320.76 | U15: =SUM(→:←!U15) -> 183.999828 | V15: =SUM(→:←!V15) -> 6 | W15: =SUM(→:←!W15) -> 4.8 | X15: =SUM(→:←!X15) -> 0 | Y15: =SUM(→:←!Y15) -> 12 | Z15: =SUM(→:←!Z15) -> 25.2496 | AA15: =SUM(→:←!AA15) -> 0 | AB15: =SUM(→:←!AB15) -> 0 | AC15: =SUM(→:←!AC15) -> 48.0496 | AD15: =SUM(→:←!AD15) -> 135.950228 | AE15: =SUM(→:←!AE15) -> 96 | AF15: =SUM(→:←!AF15) -> 0 | AG15: =SUM(→:←!AG15) -> 0 | AH15: =SUM(→:←!AH15) -> 0 | AI15: =SUM(→:←!AI15) -> 0 | AJ15: =SUM(→:←!AJ15) -> 21.5 | AK15: =SUM(→:←!AK15) -> 117.5 | AL15: =SUM(→:←!AL15) -> 18.450228 | AM15: =SUM(→:←!AM15) -> 74.689356 | AN15: 52.2825492 | AO15: 41.24607092 | AP15: 93.52862012 | AQ15: 15.07141129 | AS15: =SUM(K15:$K$70) -> 4862.399742 | AT15: -4787.710386 | AV15: 486.3096 | AX15: 10486.3096 | AY15: =IF($AH15>0,"車,","")&IF($AF15>0,"リフォーム,","")&IF(子1!C15=18,"大学入学,","")&IF(子2!C15=18,"大学入学,","")&IF(子3!C15=18,"大学入学,","")&IF(子4!C15=18,"大学入学,","") -> 
B16: 2032 | C16: 34 | D16: =SUM(→:←!D16) -> 718.7206398 | E16: =SUM(→:←!E16) -> 587.34457 | F16: =SUM(→:←!F16) -> -74.120836 | G16: =SUM(→:←!G16) -> 0 | H16: =SUM(→:←!H16) -> 0 | I16: =SUM(→:←!I16) -> 0 | J16: =SUM(→:←!J16) -> 513.223734 | K16: =SUM(→:←!K16) -> 135.4971355 | L16: =SUM(→:←!L16) -> 2.406411355 | M16: =SUM(→:←!M16) -> 118.8 | N16: =SUM(→:←!N16) -> 39.6 | O16: =SUM(→:←!O16) -> 13.2 | P16: =SUM(→:←!P16) -> 10.56 | Q16: =SUM(→:←!Q16) -> 6.6 | R16: =SUM(→:←!R16) -> 12 | S16: =SUM(→:←!S16) -> 0 | T16: =SUM(→:←!T16) -> 338.6635468 | U16: =SUM(→:←!U16) -> 174.5601872 | V16: =SUM(→:←!V16) -> 6 | W16: =SUM(→:←!W16) -> 4.8 | X16: =SUM(→:←!X16) -> 12 | Y16: =SUM(→:←!Y16) -> 12 | Z16: =SUM(→:←!Z16) -> 15.4486 | AA16: =SUM(→:←!AA16) -> 0 | AB16: =SUM(→:←!AB16) -> 0 | AC16: =SUM(→:←!AC16) -> 50.2486 | AD16: =SUM(→:←!AD16) -> 124.3115872 | AE16: =SUM(→:←!AE16) -> 96 | AF16: =SUM(→:←!AF16) -> 0 | AG16: =SUM(→:←!AG16) -> 3 | AH16: =SUM(→:←!AH16) -> 300 | AI16: =SUM(→:←!AI16) -> 0 | AJ16: =SUM(→:←!AJ16) -> 21.5 | AK16: =SUM(→:←!AK16) -> 420.5 | AL16: =SUM(→:←!AL16) -> -296.1884128 | AM16: =SUM(→:←!AM16) -> -221.4990568 | AN16: -155.0493398 | AO16: -45.54814939 | AP16: -200.5974892 | AQ16: 16.72125413 | AS16: =SUM(K16:$K$70) -> 4742.399742 | AT16: -4963.898799 | AV16: 809.4121468 | AX16: 971.2945762 | AY16: =IF($AH16>0,"車,","")&IF($AF16>0,"リフォーム,","")&IF(子1!C16=18,"大学入学,","")&IF(子2!C16=18,"大学入学,","")&IF(子3!C16=18,"大学入学,","")&IF(子4!C16=18,"大学入学,","") -> 車,
B17: 2033 | C17: 35 | D17: =SUM(→:←!D17) -> 736.3913351 | E17: =SUM(→:←!E17) -> 589.74457 | F17: =SUM(→:←!F17) -> -74.120836 | G17: =SUM(→:←!G17) -> 0 | H17: =SUM(→:←!H17) -> 0 | I17: =SUM(→:←!I17) -> 0 | J17: =SUM(→:←!J17) -> 515.623734 | K17: =SUM(→:←!K17) -> 135.4971355 | L17: =SUM(→:←!L17) -> 3.53626271 | M17: =SUM(→:←!M17) -> 118.8 | N17: =SUM(→:←!N17) -> 39.6 | O17: =SUM(→:←!O17) -> 13.2 | P17: =SUM(→:←!P17) -> 10.56 | Q17: =SUM(→:←!Q17) -> 6.6 | R17: =SUM(→:←!R17) -> 12 | S17: =SUM(→:←!S17) -> 0 | T17: =SUM(→:←!T17) -> 339.7933982 | U17: =SUM(→:←!U17) -> 175.8303358 | V17: =SUM(→:←!V17) -> 6 | W17: =SUM(→:←!W17) -> 4.8 | X17: =SUM(→:←!X17) -> 12 | Y17: =SUM(→:←!Y17) -> 12 | Z17: =SUM(→:←!Z17) -> 7.9246 | AA17: =SUM(→:←!AA17) -> 0 | AB17: =SUM(→:←!AB17) -> 0 | AC17: =SUM(→:←!AC17) -> 42.7246 | AD17: =SUM(→:←!AD17) -> 133.1057358 | AE17: =SUM(→:←!AE17) -> 96 | AF17: =SUM(→:←!AF17) -> 0 | AG17: =SUM(→:←!AG17) -> 0 | AH17: =SUM(→:←!AH17) -> 0 | AI17: =SUM(→:←!AI17) -> 0 | AJ17: =SUM(→:←!AJ17) -> 21.5 | AK17: =SUM(→:←!AK17) -> 117.5 | AL17: =SUM(→:←!AL17) -> 15.6057358 | AM17: =SUM(→:←!AM17) -> -205.893321 | AN17: -144.1253247 | AO17: -43.14383612 | AP17: -187.2691609 | AQ17: 14.89932815 | AS17: =SUM(K17:$K$70) -> 4606.902607 | AT17: -4812.795928 | AV17: 500.0179982 | AX17: 10500.018 | AY17: =IF($AH17>0,"車,","")&IF($AF17>0,"リフォーム,","")&IF(子1!C17=18,"大学入学,","")&IF(子2!C17=18,"大学入学,","")&IF(子3!C17=18,"大学入学,","")&IF(子4!C17=18,"大学入学,","") -> 
B18: 2034 | C18: 36 | D18: =SUM(→:←!D18) -> 751.4772419 | E18: =SUM(→:←!E18) -> 605.54468 | F18: =SUM(→:←!F18) -> -77.08088 | G18: =SUM(→:←!G18) -> 0 | H18: =SUM(→:←!H18) -> 0 | I18: =SUM(→:←!I18) -> 0 | J18: =SUM(→:←!J18) -> 528.4638 | K18: =SUM(→:←!K18) -> 135.4971355 | L18: =SUM(→:←!L18) -> 4.666114065 | M18: =SUM(→:←!M18) -> 118.8 | N18: =SUM(→:←!N18) -> 39.6 | O18: =SUM(→:←!O18) -> 13.2 | P18: =SUM(→:←!P18) -> 10.56 | Q18: =SUM(→:←!Q18) -> 6.6 | R18: =SUM(→:←!R18) -> 12 | S18: =SUM(→:←!S18) -> 0 | T18: =SUM(→:←!T18) -> 340.9232496 | U18: =SUM(→:←!U18) -> 187.5405504 | V18: =SUM(→:←!V18) -> 6 | W18: =SUM(→:←!W18) -> 4.8 | X18: =SUM(→:←!X18) -> 12 | Y18: =SUM(→:←!Y18) -> 12 | Z18: =SUM(→:←!Z18) -> 8.917 | AA18: =SUM(→:←!AA18) -> 0 | AB18: =SUM(→:←!AB18) -> 0 | AC18: =SUM(→:←!AC18) -> 43.717 | AD18: =SUM(→:←!AD18) -> 143.8235504 | AE18: =SUM(→:←!AE18) -> 96 | AF18: =SUM(→:←!AF18) -> 0 | AG18: =SUM(→:←!AG18) -> 0 | AH18: =SUM(→:←!AH18) -> 0 | AI18: =SUM(→:←!AI18) -> 0 | AJ18: =SUM(→:←!AJ18) -> 21.5 | AK18: =SUM(→:←!AK18) -> 117.5 | AL18: =SUM(→:←!AL18) -> 26.32355045 | AM18: =SUM(→:←!AM18) -> -179.5697706 | AN18: -125.6988394 | AO18: -37.40396279 | AP18: -163.1028022 | AQ18: 13.17357471 | AS18: =SUM(K18:$K$70) -> 4471.405471 | AT18: -4650.975242 | AV18: 502.1402496 | AX18: 10502.14025 | AY18: =IF($AH18>0,"車,","")&IF($AF18>0,"リフォーム,","")&IF(子1!C18=18,"大学入学,","")&IF(子2!C18=18,"大学入学,","")&IF(子3!C18=18,"大学入学,","")&IF(子4!C18=18,"大学入学,","") -> 
B19: 2035 | C19: 37 | D19: =SUM(→:←!D19) -> 766.8780986 | E19: =SUM(→:←!E19) -> 609.56852 | F19: =SUM(→:←!F19) -> 0 | G19: =SUM(→:←!G19) -> 0 | H19: =SUM(→:←!H19) -> 0 | I19: =SUM(→:←!I19) -> 0 | J19: =SUM(→:←!J19) -> 609.56852 | K19: =SUM(→:←!K19) -> 135.4971355 | L19: =SUM(→:←!L19) -> 5.87100542 | M19: =SUM(→:←!M19) -> 118.8 | N19: =SUM(→:←!N19) -> 39.6 | O19: =SUM(→:←!O19) -> 13.2 | P19: =SUM(→:←!P19) -> 10.56 | Q19: =SUM(→:←!Q19) -> 6.6 | R19: =SUM(→:←!R19) -> 12 | S19: =SUM(→:←!S19) -> 0 | T19: =SUM(→:←!T19) -> 342.1281409 | U19: =SUM(→:←!U19) -> 267.4403791 | V19: =SUM(→:←!V19) -> 6 | W19: =SUM(→:←!W19) -> 4.8 | X19: =SUM(→:←!X19) -> 24 | Y19: =SUM(→:←!Y19) -> 0 | Z19: =SUM(→:←!Z19) -> 15.5414 | AA19: =SUM(→:←!AA19) -> 0 | AB19: =SUM(→:←!AB19) -> 0 | AC19: =SUM(→:←!AC19) -> 50.3414 | AD19: =SUM(→:←!AD19) -> 217.0989791 | AE19: =SUM(→:←!AE19) -> 96 | AF19: =SUM(→:←!AF19) -> 0 | AG19: =SUM(→:←!AG19) -> 0 | AH19: =SUM(→:←!AH19) -> 0 | AI19: =SUM(→:←!AI19) -> 0 | AJ19: =SUM(→:←!AJ19) -> 21.5 | AK19: =SUM(→:←!AK19) -> 117.5 | AL19: =SUM(→:←!AL19) -> 99.59897909 | AM19: =SUM(→:←!AM19) -> -79.97079151 | AN19: -55.97955406 | AO19: -9.394467207 | AP19: -65.37402126 | AQ19: 11.6774162 | AS19: =SUM(K19:$K$70) -> 4335.908336 | AT19: -4415.879127 | AV19: 509.9695409 | AX19: 10509.96954 | AY19: =IF($AH19>0,"車,","")&IF($AF19>0,"リフォーム,","")&IF(子1!C19=18,"大学入学,","")&IF(子2!C19=18,"大学入学,","")&IF(子3!C19=18,"大学入学,","")&IF(子4!C19=18,"大学入学,","") -> 
B20: 2036 | C20: 38 | D20: =SUM(→:←!D20) -> 781.0909886 | E20: =SUM(→:←!E20) -> 626.91852 | F20: =SUM(→:←!F20) -> 0 | G20: =SUM(→:←!G20) -> 0 | H20: =SUM(→:←!H20) -> 0 | I20: =SUM(→:←!I20) -> 0 | J20: =SUM(→:←!J20) -> 626.91852 | K20: =SUM(→:←!K20) -> 135.4971355 | L20: =SUM(→:←!L20) -> 7.075896774 | M20: =SUM(→:←!M20) -> 118.8 | N20: =SUM(→:←!N20) -> 39.6 | O20: =SUM(→:←!O20) -> 13.2 | P20: =SUM(→:←!P20) -> 10.56 | Q20: =SUM(→:←!Q20) -> 6.6 | R20: =SUM(→:←!R20) -> 12 | S20: =SUM(→:←!S20) -> 0 | T20: =SUM(→:←!T20) -> 343.3330323 | U20: =SUM(→:←!U20) -> 283.5854877 | V20: =SUM(→:←!V20) -> 6 | W20: =SUM(→:←!W20) -> 7.2 | X20: =SUM(→:←!X20) -> 24 | Y20: =SUM(→:←!Y20) -> 0 | Z20: =SUM(→:←!Z20) -> 9.2835 | AA20: =SUM(→:←!AA20) -> 0 | AB20: =SUM(→:←!AB20) -> 0 | AC20: =SUM(→:←!AC20) -> 46.4835 | AD20: =SUM(→:←!AD20) -> 237.1019877 | AE20: =SUM(→:←!AE20) -> 96 | AF20: =SUM(→:←!AF20) -> 0 | AG20: =SUM(→:←!AG20) -> 0 | AH20: =SUM(→:←!AH20) -> 0 | AI20: =SUM(→:←!AI20) -> 0 | AJ20: =SUM(→:←!AJ20) -> 21.5 | AK20: =SUM(→:←!AK20) -> 117.5 | AL20: =SUM(→:←!AL20) -> 119.6019877 | AM20: =SUM(→:←!AM20) -> 39.63119623 | AN20: 27.74183736 | AO20: 26.01640575 | AP20: 53.75824311 | AQ20: 11.30163751 | AS20: =SUM(K20:$K$70) -> 4200.4112 | AT20: -4160.780004 | AV20: 507.3165323 | AX20: 10507.31653 | AY20: =IF($AH20>0,"車,","")&IF($AF20>0,"リフォーム,","")&IF(子1!C20=18,"大学入学,","")&IF(子2!C20=18,"大学入学,","")&IF(子3!C20=18,"大学入学,","")&IF(子4!C20=18,"大学入学,","") -> 
B21: 2037 | C21: 39 | D21: =SUM(→:←!D21) -> 795.5672924 | E21: =SUM(→:←!E21) -> 635.31852 | F21: =SUM(→:←!F21) -> 0 | G21: =SUM(→:←!G21) -> 0 | H21: =SUM(→:←!H21) -> 0 | I21: =SUM(→:←!I21) -> 0 | J21: =SUM(→:←!J21) -> 635.31852 | K21: =SUM(→:←!K21) -> 135.4971355 | L21: =SUM(→:←!L21) -> 8.205748129 | M21: =SUM(→:←!M21) -> 118.8 | N21: =SUM(→:←!N21) -> 39.6 | O21: =SUM(→:←!O21) -> 13.2 | P21: =SUM(→:←!P21) -> 10.56 | Q21: =SUM(→:←!Q21) -> 6.6 | R21: =SUM(→:←!R21) -> 12 | S21: =SUM(→:←!S21) -> 0 | T21: =SUM(→:←!T21) -> 344.4628836 | U21: =SUM(→:←!U21) -> 290.8556364 | V21: =SUM(→:←!V21) -> 6 | W21: =SUM(→:←!W21) -> 7.2 | X21: =SUM(→:←!X21) -> 24 | Y21: =SUM(→:←!Y21) -> 0 | Z21: =SUM(→:←!Z21) -> 13.1185 | AA21: =SUM(→:←!AA21) -> 0 | AB21: =SUM(→:←!AB21) -> 0 | AC21: =SUM(→:←!AC21) -> 50.3185 | AD21: =SUM(→:←!AD21) -> 240.5371364 | AE21: =SUM(→:←!AE21) -> 96 | AF21: =SUM(→:←!AF21) -> 0 | AG21: =SUM(→:←!AG21) -> 57 | AH21: =SUM(→:←!AH21) -> 0 | AI21: =SUM(→:←!AI21) -> 0 | AJ21: =SUM(→:←!AJ21) -> 21.5 | AK21: =SUM(→:←!AK21) -> 174.5 | AL21: =SUM(→:←!AL21) -> 66.03713638 | AM21: =SUM(→:←!AM21) -> 105.6683326 | AN21: 73.96783283 | AO21: 47.12836696 | AP21: 121.0961998 | AQ21: 12.34229374 | AS21: =SUM(K21:$K$70) -> 4064.914065 | AT21: -3959.245732 | AV21: 569.2813836 | AX21: 10569.28138 | AY21: =IF($AH21>0,"車,","")&IF($AF21>0,"リフォーム,","")&IF(子1!C21=18,"大学入学,","")&IF(子2!C21=18,"大学入学,","")&IF(子3!C21=18,"大学入学,","")&IF(子4!C21=18,"大学入学,","") -> 
B22: 2038 | C22: 40 | D22: =SUM(→:←!D22) -> 810.3118918 | E22: =SUM(→:←!E22) -> 649.56874 | F22: =SUM(→:←!F22) -> 0 | G22: =SUM(→:←!G22) -> 0 | H22: =SUM(→:←!H22) -> 0 | I22: =SUM(→:←!I22) -> 0 | J22: =SUM(→:←!J22) -> 649.56874 | K22: =SUM(→:←!K22) -> 135.4971355 | L22: =SUM(→:←!L22) -> 15.48887948 | M22: =SUM(→:←!M22) -> 118.8 | N22: =SUM(→:←!N22) -> 39.6 | O22: =SUM(→:←!O22) -> 13.2 | P22: =SUM(→:←!P22) -> 10.56 | Q22: =SUM(→:←!Q22) -> 6.6 | R22: =SUM(→:←!R22) -> 12 | S22: =SUM(→:←!S22) -> 0 | T22: =SUM(→:←!T22) -> 351.746015 | U22: =SUM(→:←!U22) -> 297.822725 | V22: =SUM(→:←!V22) -> 6 | W22: =SUM(→:←!W22) -> 7.2 | X22: =SUM(→:←!X22) -> 12 | Y22: =SUM(→:←!Y22) -> 12 | Z22: =SUM(→:←!Z22) -> 24.026 | AA22: =SUM(→:←!AA22) -> 0 | AB22: =SUM(→:←!AB22) -> 0 | AC22: =SUM(→:←!AC22) -> 61.226 | AD22: =SUM(→:←!AD22) -> 236.596725 | AE22: =SUM(→:←!AE22) -> 96 | AF22: =SUM(→:←!AF22) -> 0 | AG22: =SUM(→:←!AG22) -> 0 | AH22: =SUM(→:←!AH22) -> 0 | AI22: =SUM(→:←!AI22) -> 0 | AJ22: =SUM(→:←!AJ22) -> 21.5 | AK22: =SUM(→:←!AK22) -> 117.5 | AL22: =SUM(→:←!AL22) -> 119.096725 | AM22: =SUM(→:←!AM22) -> 224.7650576 | AN22: 157.3355403 | AO22: 85.21380281 | AP22: 242.5493432 | AQ22: 14.22742842 | AS22: =SUM(K22:$K$70) -> 3929.416929 | AT22: -3704.651872 | AV22: 530.472015 | AX22: 10530.47201 | AY22: =IF($AH22>0,"車,","")&IF($AF22>0,"リフォーム,","")&IF(子1!C22=18,"大学入学,","")&IF(子2!C22=18,"大学入学,","")&IF(子3!C22=18,"大学入学,","")&IF(子4!C22=18,"大学入学,","") -> 
B23: 2039 | C23: 41 | D23: =SUM(→:←!D23) -> 824.1057413 | E23: =SUM(→:←!E23) -> 653.59258 | F23: =SUM(→:←!F23) -> 0 | G23: =SUM(→:←!G23) -> 0 | H23: =SUM(→:←!H23) -> 0 | I23: =SUM(→:←!I23) -> 0 | J23: =SUM(→:←!J23) -> 653.59258 | K23: =SUM(→:←!K23) -> 135.4971355 | L23: =SUM(→:←!L23) -> 16.54369084 | M23: =SUM(→:←!M23) -> 118.8 | N23: =SUM(→:←!N23) -> 39.6 | O23: =SUM(→:←!O23) -> 13.2 | P23: =SUM(→:←!P23) -> 10.56 | Q23: =SUM(→:←!Q23) -> 6.6 | R23: =SUM(→:←!R23) -> 12 | S23: =SUM(→:←!S23) -> 0 | T23: =SUM(→:←!T23) -> 352.8008263 | U23: =SUM(→:←!U23) -> 300.7917537 | V23: =SUM(→:←!V23) -> 6 | W23: =SUM(→:←!W23) -> 9.6 | X23: =SUM(→:←!X23) -> 12 | Y23: =SUM(→:←!Y23) -> 12 | Z23: =SUM(→:←!Z23) -> 16.1723 | AA23: =SUM(→:←!AA23) -> 0 | AB23: =SUM(→:←!AB23) -> 0 | AC23: =SUM(→:←!AC23) -> 55.7723 | AD23: =SUM(→:←!AD23) -> 245.0194537 | AE23: =SUM(→:←!AE23) -> 96 | AF23: =SUM(→:←!AF23) -> 0 | AG23: =SUM(→:←!AG23) -> 0 | AH23: =SUM(→:←!AH23) -> 300 | AI23: =SUM(→:←!AI23) -> 0 | AJ23: =SUM(→:←!AJ23) -> 21.5 | AK23: =SUM(→:←!AK23) -> 417.5 | AL23: =SUM(→:←!AL23) -> -172.4805463 | AM23: =SUM(→:←!AM23) -> 52.28451131 | AN23: 36.59915791 | AO23: 37.73032905 | AP23: 74.32948697 | AQ23: 17.63598053 | AS23: =SUM(K23:$K$70) -> 3793.919794 | AT23: -3741.635282 | AV23: 826.0731263 | AX23: 991.2877516 | AY23: =IF($AH23>0,"車,","")&IF($AF23>0,"リフォーム,","")&IF(子1!C23=18,"大学入学,","")&IF(子2!C23=18,"大学入学,","")&IF(子3!C23=18,"大学入学,","")&IF(子4!C23=18,"大学入学,","") -> 車,
B24: 2040 | C24: 42 | D24: =SUM(→:←!D24) -> 838.1352931 | E24: =SUM(→:←!E24) -> 670.94258 | F24: =SUM(→:←!F24) -> 0 | G24: =SUM(→:←!G24) -> 0 | H24: =SUM(→:←!H24) -> 0 | I24: =SUM(→:←!I24) -> 0 | J24: =SUM(→:←!J24) -> 670.94258 | K24: =SUM(→:←!K24) -> 135.4971355 | L24: =SUM(→:←!L24) -> 17.44842219 | M24: =SUM(→:←!M24) -> 118.8 | N24: =SUM(→:←!N24) -> 39.6 | O24: =SUM(→:←!O24) -> 13.2 | P24: =SUM(→:←!P24) -> 10.56 | Q24: =SUM(→:←!Q24) -> 6.6 | R24: =SUM(→:←!R24) -> 12 | S24: =SUM(→:←!S24) -> 0 | T24: =SUM(→:←!T24) -> 353.7055577 | U24: =SUM(→:←!U24) -> 317.2370223 | V24: =SUM(→:←!V24) -> 6 | W24: =SUM(→:←!W24) -> 9.6 | X24: =SUM(→:←!X24) -> 12 | Y24: =SUM(→:←!Y24) -> 12 | Z24: =SUM(→:←!Z24) -> 20.3871 | AA24: =SUM(→:←!AA24) -> 0 | AB24: =SUM(→:←!AB24) -> 0 | AC24: =SUM(→:←!AC24) -> 59.9871 | AD24: =SUM(→:←!AD24) -> 257.2499223 | AE24: =SUM(→:←!AE24) -> 96 | AF24: =SUM(→:←!AF24) -> 0 | AG24: =SUM(→:←!AG24) -> 0 | AH24: =SUM(→:←!AH24) -> 0 | AI24: =SUM(→:←!AI24) -> 0 | AJ24: =SUM(→:←!AJ24) -> 21.5 | AK24: =SUM(→:←!AK24) -> 117.5 | AL24: =SUM(→:←!AL24) -> 139.7499223 | AM24: =SUM(→:←!AM24) -> 192.0344336 | AN24: 134.4241035 | AO24: 81.5418222 | AP24: 215.9659257 | AQ24: 19.14519369 | AS24: =SUM(K24:$K$70) -> 3658.422658 | AT24: -3466.388225 | AV24: 531.1926577 | AX24: 10531.19266 | AY24: =IF($AH24>0,"車,","")&IF($AF24>0,"リフォーム,","")&IF(子1!C24=18,"大学入学,","")&IF(子2!C24=18,"大学入学,","")&IF(子3!C24=18,"大学入学,","")&IF(子4!C24=18,"大学入学,","") -> 
B25: 2041 | C25: 43 | D25: =SUM(→:←!D25) -> 851.7925815 | E25: =SUM(→:←!E25) -> 679.34258 | F25: =SUM(→:←!F25) -> 0 | G25: =SUM(→:←!G25) -> 0 | H25: =SUM(→:←!H25) -> 0 | I25: =SUM(→:←!I25) -> 0 | J25: =SUM(→:←!J25) -> 679.34258 | K25: =SUM(→:←!K25) -> 135.4971355 | L25: =SUM(→:←!L25) -> 18.50323355 | M25: =SUM(→:←!M25) -> 118.8 | N25: =SUM(→:←!N25) -> 39.6 | O25: =SUM(→:←!O25) -> 13.2 | P25: =SUM(→:←!P25) -> 10.56 | Q25: =SUM(→:←!Q25) -> 6.6 | R25: =SUM(→:←!R25) -> 12 | S25: =SUM(→:←!S25) -> 0 | T25: =SUM(→:←!T25) -> 354.760369 | U25: =SUM(→:←!U25) -> 324.582211 | V25: =SUM(→:←!V25) -> 6 | W25: =SUM(→:←!W25) -> 9.6 | X25: =SUM(→:←!X25) -> 0 | Y25: =SUM(→:←!Y25) -> 36 | Z25: =SUM(→:←!Z25) -> 56.4973 | AA25: =SUM(→:←!AA25) -> 0 | AB25: =SUM(→:←!AB25) -> 0 | AC25: =SUM(→:←!AC25) -> 108.0973 | AD25: =SUM(→:←!AD25) -> 216.484911 | AE25: =SUM(→:←!AE25) -> 96 | AF25: =SUM(→:←!AF25) -> 0 | AG25: =SUM(→:←!AG25) -> 0 | AH25: =SUM(→:←!AH25) -> 0 | AI25: =SUM(→:←!AI25) -> 0 | AJ25: =SUM(→:←!AJ25) -> 21.5 | AK25: =SUM(→:←!AK25) -> 117.5 | AL25: =SUM(→:←!AL25) -> 98.98491096 | AM25: =SUM(→:←!AM25) -> 291.0193446 | AN25: 203.7135412 | AO25: 115.3143866 | AP25: 319.0279278 | AQ25: 22.40686658 | AS25: =SUM(K25:$K$70) -> 3522.925523 | AT25: -3231.906178 | AV25: 580.357669 | AX25: 10580.35767 | AY25: =IF($AH25>0,"車,","")&IF($AF25>0,"リフォーム,","")&IF(子1!C25=18,"大学入学,","")&IF(子2!C25=18,"大学入学,","")&IF(子3!C25=18,"大学入学,","")&IF(子4!C25=18,"大学入学,","") -> 
B26: 2042 | C26: 44 | D26: =SUM(→:←!D26) -> 865.6724134 | E26: =SUM(→:←!E26) -> 681.5928 | F26: =SUM(→:←!F26) -> 0 | G26: =SUM(→:←!G26) -> 0 | H26: =SUM(→:←!H26) -> 0 | I26: =SUM(→:←!I26) -> 0 | J26: =SUM(→:←!J26) -> 681.5928 | K26: =SUM(→:←!K26) -> 135.4971355 | L26: =SUM(→:←!L26) -> 44.65336 | M26: =SUM(→:←!M26) -> 118.8 | N26: =SUM(→:←!N26) -> 39.6 | O26: =SUM(→:←!O26) -> 13.2 | P26: =SUM(→:←!P26) -> 10.56 | Q26: =SUM(→:←!Q26) -> 6.6 | R26: =SUM(→:←!R26) -> 12 | S26: =SUM(→:←!S26) -> 0 | T26: =SUM(→:←!T26) -> 380.9104955 | U26: =SUM(→:←!U26) -> 300.6823045 | V26: =SUM(→:←!V26) -> 6 | W26: =SUM(→:←!W26) -> 9.6 | X26: =SUM(→:←!X26) -> 0 | Y26: =SUM(→:←!Y26) -> 36 | Z26: =SUM(→:←!Z26) -> 40.5213 | AA26: =SUM(→:←!AA26) -> 0 | AB26: =SUM(→:←!AB26) -> 0 | AC26: =SUM(→:←!AC26) -> 92.1213 | AD26: =SUM(→:←!AD26) -> 208.5610045 | AE26: =SUM(→:←!AE26) -> 96 | AF26: =SUM(→:←!AF26) -> 0 | AG26: =SUM(→:←!AG26) -> 3 | AH26: =SUM(→:←!AH26) -> 0 | AI26: =SUM(→:←!AI26) -> 0 | AJ26: =SUM(→:←!AJ26) -> 21.5 | AK26: =SUM(→:←!AK26) -> 120.5 | AL26: =SUM(→:←!AL26) -> 88.06100451 | AM26: =SUM(→:←!AM26) -> 379.0803491 | AN26: 265.3562444 | AO26: 147.4984073 | AP26: 412.8546516 | AQ26: 27.01944204 | AS26: =SUM(K26:$K$70) -> 3387.428387 | AT26: -3008.348038 | AV26: 593.5317955 | AX26: 10593.5318 | AY26: =IF($AH26>0,"車,","")&IF($AF26>0,"リフォーム,","")&IF(子1!C26=18,"大学入学,","")&IF(子2!C26=18,"大学入学,","")&IF(子3!C26=18,"大学入学,","")&IF(子4!C26=18,"大学入学,","") -> 
B27: 2043 | C27: 45 | D27: =SUM(→:←!D27) -> 879.778415 | E27: =SUM(→:←!E27) -> 685.61664 | F27: =SUM(→:←!F27) -> 0 | G27: =SUM(→:←!G27) -> 0 | H27: =SUM(→:←!H27) -> 0 | I27: =SUM(→:←!I27) -> 0 | J27: =SUM(→:←!J27) -> 685.61664 | K27: =SUM(→:←!K27) -> 135.4971355 | L27: =SUM(→:←!L27) -> 44.20312 | M27: =SUM(→:←!M27) -> 118.8 | N27: =SUM(→:←!N27) -> 39.6 | O27: =SUM(→:←!O27) -> 13.2 | P27: =SUM(→:←!P27) -> 10.56 | Q27: =SUM(→:←!Q27) -> 6.6 | R27: =SUM(→:←!R27) -> 12 | S27: =SUM(→:←!S27) -> 0 | T27: =SUM(→:←!T27) -> 380.4602555 | U27: =SUM(→:←!U27) -> 305.1563845 | V27: =SUM(→:←!V27) -> 6 | W27: =SUM(→:←!W27) -> 9.6 | X27: =SUM(→:←!X27) -> 0 | Y27: =SUM(→:←!Y27) -> 36 | Z27: =SUM(→:←!Z27) -> 29.036 | AA27: =SUM(→:←!AA27) -> 0 | AB27: =SUM(→:←!AB27) -> 0 | AC27: =SUM(→:←!AC27) -> 80.636 | AD27: =SUM(→:←!AD27) -> 224.5203845 | AE27: =SUM(→:←!AE27) -> 96 | AF27: =SUM(→:←!AF27) -> 0 | AG27: =SUM(→:←!AG27) -> 0 | AH27: =SUM(→:←!AH27) -> 0 | AI27: =SUM(→:←!AI27) -> 0 | AJ27: =SUM(→:←!AJ27) -> 21.5 | AK27: =SUM(→:←!AK27) -> 117.5 | AL27: =SUM(→:←!AL27) -> 107.0203845 | AM27: =SUM(→:←!AM27) -> 486.1007336 | AN27: 340.2705135 | AO27: 186.979443 | AP27: 527.2499565 | AQ27: 32.91937833 | AS27: =SUM(K27:$K$70) -> 3251.931252 | AT27: -2765.830518 | AV27: 578.5962555 | AX27: 10578.59626 | AY27: =IF($AH27>0,"車,","")&IF($AF27>0,"リフォーム,","")&IF(子1!C27=18,"大学入学,","")&IF(子2!C27=18,"大学入学,","")&IF(子3!C27=18,"大学入学,","")&IF(子4!C27=18,"大学入学,","") -> 
B28: 2044 | C28: 46 | D28: =SUM(→:←!D28) -> 894.2386307 | E28: =SUM(→:←!E28) -> 702.96664 | F28: =SUM(→:←!F28) -> 0 | G28: =SUM(→:←!G28) -> 0 | H28: =SUM(→:←!H28) -> 0 | I28: =SUM(→:←!I28) -> 0 | J28: =SUM(→:←!J28) -> 702.96664 | K28: =SUM(→:←!K28) -> 135.4971355 | L28: =SUM(→:←!L28) -> 43.90296 | M28: =SUM(→:←!M28) -> 118.8 | N28: =SUM(→:←!N28) -> 39.6 | O28: =SUM(→:←!O28) -> 13.2 | P28: =SUM(→:←!P28) -> 10.56 | Q28: =SUM(→:←!Q28) -> 6.6 | R28: =SUM(→:←!R28) -> 12 | S28: =SUM(→:←!S28) -> 0 | T28: =SUM(→:←!T28) -> 380.1600955 | U28: =SUM(→:←!U28) -> 322.8065445 | V28: =SUM(→:←!V28) -> 6 | W28: =SUM(→:←!W28) -> 9.6 | X28: =SUM(→:←!X28) -> 0 | Y28: =SUM(→:←!Y28) -> 24 | Z28: =SUM(→:←!Z28) -> 130.2625 | AA28: =SUM(→:←!AA28) -> 0 | AB28: =SUM(→:←!AB28) -> 0 | AC28: =SUM(→:←!AC28) -> 169.8625 | AD28: =SUM(→:←!AD28) -> 152.9440445 | AE28: =SUM(→:←!AE28) -> 96 | AF28: =SUM(→:←!AF28) -> 0 | AG28: =SUM(→:←!AG28) -> 0 | AH28: =SUM(→:←!AH28) -> 0 | AI28: =SUM(→:←!AI28) -> 0 | AJ28: =SUM(→:←!AJ28) -> 21.5 | AK28: =SUM(→:←!AK28) -> 117.5 | AL28: =SUM(→:←!AL28) -> 35.44404451 | AM28: =SUM(→:←!AM28) -> 521.5447781 | AN28: 365.0813447 | AO28: 206.9616285 | AP28: 572.0429732 | AQ28: 40.39855605 | AS28: =SUM(K28:$K$70) -> 3116.434116 | AT28: -2594.889338 | AV28: 667.5225955 | AX28: 801.0271146 | AY28: =IF($AH28>0,"車,","")&IF($AF28>0,"リフォーム,","")&IF(子1!C28=18,"大学入学,","")&IF(子2!C28=18,"大学入学,","")&IF(子3!C28=18,"大学入学,","")&IF(子4!C28=18,"大学入学,","") -> 大学入学,
B29: 2045 | C29: 47 | D29: =SUM(→:←!D29) -> 908.9365259 | E29: =SUM(→:←!E29) -> 699.36664 | F29: =SUM(→:←!F29) -> 0 | G29: =SUM(→:←!G29) -> 0 | H29: =SUM(→:←!H29) -> 0 | I29: =SUM(→:←!I29) -> 0 | J29: =SUM(→:←!J29) -> 699.36664 | K29: =SUM(→:←!K29) -> 135.4971355 | L29: =SUM(→:←!L29) -> 43.6028 | M29: =SUM(→:←!M29) -> 118.8 | N29: =SUM(→:←!N29) -> 39.6 | O29: =SUM(→:←!O29) -> 13.2 | P29: =SUM(→:←!P29) -> 10.56 | Q29: =SUM(→:←!Q29) -> 6.6 | R29: =SUM(→:←!R29) -> 12 | S29: =SUM(→:←!S29) -> 0 | T29: =SUM(→:←!T29) -> 379.8599355 | U29: =SUM(→:←!U29) -> 319.5067045 | V29: =SUM(→:←!V29) -> 6 | W29: =SUM(→:←!W29) -> 9.6 | X29: =SUM(→:←!X29) -> 0 | Y29: =SUM(→:←!Y29) -> 24 | Z29: =SUM(→:←!Z29) -> 83.5648 | AA29: =SUM(→:←!AA29) -> 0 | AB29: =SUM(→:←!AB29) -> 0 | AC29: =SUM(→:←!AC29) -> 123.1648 | AD29: =SUM(→:←!AD29) -> 196.3419045 | AE29: =SUM(→:←!AE29) -> 84 | AF29: =SUM(→:←!AF29) -> 0 | AG29: =SUM(→:←!AG29) -> 0 | AH29: =SUM(→:←!AH29) -> 0 | AI29: =SUM(→:←!AI29) -> 0 | AJ29: =SUM(→:←!AJ29) -> 21.5 | AK29: =SUM(→:←!AK29) -> 105.5 | AL29: =SUM(→:←!AL29) -> 90.84190451 | AM29: =SUM(→:←!AM29) -> 612.3866826 | AN29: 428.6706778 | AO29: 244.5622813 | AP29: 673.2329591 | AQ29: 48.67702119 | AS29: =SUM(K29:$K$70) -> 2980.936981 | AT29: -2368.550298 | AV29: 608.5247355 | AX29: 10608.52474 | AY29: =IF($AH29>0,"車,","")&IF($AF29>0,"リフォーム,","")&IF(子1!C29=18,"大学入学,","")&IF(子2!C29=18,"大学入学,","")&IF(子3!C29=18,"大学入学,","")&IF(子4!C29=18,"大学入学,","") -> 
B30: 2046 | C30: 48 | D30: =SUM(→:←!D30) -> 923.938187 | E30: =SUM(→:←!E30) -> 709.2407 | F30: =SUM(→:←!F30) -> 0 | G30: =SUM(→:←!G30) -> 0 | H30: =SUM(→:←!H30) -> 0 | I30: =SUM(→:←!I30) -> 0 | J30: =SUM(→:←!J30) -> 709.2407 | K30: =SUM(→:←!K30) -> 135.4971355 | L30: =SUM(→:←!L30) -> 43.15256 | M30: =SUM(→:←!M30) -> 118.8 | N30: =SUM(→:←!N30) -> 39.6 | O30: =SUM(→:←!O30) -> 13.2 | P30: =SUM(→:←!P30) -> 10.56 | Q30: =SUM(→:←!Q30) -> 6.6 | R30: =SUM(→:←!R30) -> 12 | S30: =SUM(→:←!S30) -> 0 | T30: =SUM(→:←!T30) -> 379.4096955 | U30: =SUM(→:←!U30) -> 329.8310045 | V30: =SUM(→:←!V30) -> 6 | W30: =SUM(→:←!W30) -> 9.6 | X30: =SUM(→:←!X30) -> 0 | Y30: =SUM(→:←!Y30) -> 24 | Z30: =SUM(→:←!Z30) -> 70.68 | AA30: =SUM(→:←!AA30) -> 0 | AB30: =SUM(→:←!AB30) -> 0 | AC30: =SUM(→:←!AC30) -> 110.28 | AD30: =SUM(→:←!AD30) -> 219.5510045 | AE30: =SUM(→:←!AE30) -> 84 | AF30: =SUM(→:←!AF30) -> 0 | AG30: =SUM(→:←!AG30) -> 0 | AH30: =SUM(→:←!AH30) -> 300 | AI30: =SUM(→:←!AI30) -> 0 | AJ30: =SUM(→:←!AJ30) -> 21.5 | AK30: =SUM(→:←!AK30) -> 405.5 | AL30: =SUM(→:←!AL30) -> -185.9489955 | AM30: =SUM(→:←!AM30) -> 426.4376871 | AN30: 298.506381 | AO30: 201.0056967 | AP30: 499.5120777 | AQ30: 58.45951245 | AS30: =SUM(K30:$K$70) -> 2845.439845 | AT30: -2419.002158 | AV30: 895.1896955 | AX30: 1074.227635 | AY30: =IF($AH30>0,"車,","")&IF($AF30>0,"リフォーム,","")&IF(子1!C30=18,"大学入学,","")&IF(子2!C30=18,"大学入学,","")&IF(子3!C30=18,"大学入学,","")&IF(子4!C30=18,"大学入学,","") -> 車,
B31: 2047 | C31: 49 | D31: =SUM(→:←!D31) -> 939.187445 | E31: =SUM(→:←!E31) -> 717.6407 | F31: =SUM(→:←!F31) -> 0 | G31: =SUM(→:←!G31) -> 0 | H31: =SUM(→:←!H31) -> 0 | I31: =SUM(→:←!I31) -> 0 | J31: =SUM(→:←!J31) -> 717.6407 | K31: =SUM(→:←!K31) -> 135.4971355 | L31: =SUM(→:←!L31) -> 42.8524 | M31: =SUM(→:←!M31) -> 118.8 | N31: =SUM(→:←!N31) -> 39.6 | O31: =SUM(→:←!O31) -> 13.2 | P31: =SUM(→:←!P31) -> 10.56 | Q31: =SUM(→:←!Q31) -> 6.6 | R31: =SUM(→:←!R31) -> 12 | S31: =SUM(→:←!S31) -> 0 | T31: =SUM(→:←!T31) -> 379.1095355 | U31: =SUM(→:←!U31) -> 338.5311645 | V31: =SUM(→:←!V31) -> 6 | W31: =SUM(→:←!W31) -> 9.6 | X31: =SUM(→:←!X31) -> 0 | Y31: =SUM(→:←!Y31) -> 0 | Z31: =SUM(→:←!Z31) -> 146.8051 | AA31: =SUM(→:←!AA31) -> 72 | AB31: =SUM(→:←!AB31) -> 0 | AC31: =SUM(→:←!AC31) -> 234.4051 | AD31: =SUM(→:←!AD31) -> 104.1260645 | AE31: =SUM(→:←!AE31) -> 84 | AF31: =SUM(→:←!AF31) -> 0 | AG31: =SUM(→:←!AG31) -> 57 | AH31: =SUM(→:←!AH31) -> 0 | AI31: =SUM(→:←!AI31) -> 0 | AJ31: =SUM(→:←!AJ31) -> 21.5 | AK31: =SUM(→:←!AK31) -> 162.5 | AL31: =SUM(→:←!AL31) -> -58.37393549 | AM31: =SUM(→:←!AM31) -> 368.0637516 | AN31: 257.6446262 | AO31: 193.5438009 | AP31: 451.188427 | AQ31: 66.49974031 | AS31: =SUM(K31:$K$70) -> 2709.94271 | AT31: -2341.878958 | AV31: 776.0146355 | AX31: 931.2175626 | AY31: =IF($AH31>0,"車,","")&IF($AF31>0,"リフォーム,","")&IF(子1!C31=18,"大学入学,","")&IF(子2!C31=18,"大学入学,","")&IF(子3!C31=18,"大学入学,","")&IF(子4!C31=18,"大学入学,","") -> 大学入学,
B32: 2048 | C32: 50 | D32: =SUM(→:←!D32) -> 954.6883863 | E32: =SUM(→:←!E32) -> 734.9907 | F32: =SUM(→:←!F32) -> 0 | G32: =SUM(→:←!G32) -> 0 | H32: =SUM(→:←!H32) -> 0 | I32: =SUM(→:←!I32) -> 0 | J32: =SUM(→:←!J32) -> 734.9907 | K32: =SUM(→:←!K32) -> 135.4971355 | L32: =SUM(→:←!L32) -> 42.55224 | M32: =SUM(→:←!M32) -> 99 | N32: =SUM(→:←!N32) -> 33 | O32: =SUM(→:←!O32) -> 11.55 | P32: =SUM(→:←!P32) -> 9.24 | Q32: =SUM(→:←!Q32) -> 5.775 | R32: =SUM(→:←!R32) -> 12 | S32: =SUM(→:←!S32) -> 0 | T32: =SUM(→:←!T32) -> 348.6143755 | U32: =SUM(→:←!U32) -> 386.3763245 | V32: =SUM(→:←!V32) -> 6 | W32: =SUM(→:←!W32) -> 7.2 | X32: =SUM(→:←!X32) -> 0 | Y32: =SUM(→:←!Y32) -> 0 | Z32: =SUM(→:←!Z32) -> 53.58 | AA32: =SUM(→:←!AA32) -> 72 | AB32: =SUM(→:←!AB32) -> 0 | AC32: =SUM(→:←!AC32) -> 138.78 | AD32: =SUM(→:←!AD32) -> 247.5963245 | AE32: =SUM(→:←!AE32) -> 72 | AF32: =SUM(→:←!AF32) -> 0 | AG32: =SUM(→:←!AG32) -> 0 | AH32: =SUM(→:←!AH32) -> 0 | AI32: =SUM(→:←!AI32) -> 0 | AJ32: =SUM(→:←!AJ32) -> 21.5 | AK32: =SUM(→:←!AK32) -> 93.5 | AL32: =SUM(→:←!AL32) -> 154.0963245 | AM32: =SUM(→:←!AM32) -> 522.1600762 | AN32: 365.5120533 | AO32: 249.4498883 | AP32: 614.9619416 | AQ32: 74.24149235 | AS32: =SUM(K32:$K$70) -> 2574.445574 | AT32: -2052.285498 | AV32: 580.8943755 | AX32: 10580.89438 | AY32: =IF($AH32>0,"車,","")&IF($AF32>0,"リフォーム,","")&IF(子1!C32=18,"大学入学,","")&IF(子2!C32=18,"大学入学,","")&IF(子3!C32=18,"大学入学,","")&IF(子4!C32=18,"大学入学,","") -> 
B33: 2049 | C33: 51 | D33: =SUM(→:←!D33) -> 957.6731178 | E33: =SUM(→:←!E33) -> 734.9907 | F33: =SUM(→:←!F33) -> 0 | G33: =SUM(→:←!G33) -> 0 | H33: =SUM(→:←!H33) -> 0 | I33: =SUM(→:←!I33) -> 0 | J33: =SUM(→:←!J33) -> 734.9907 | K33: =SUM(→:←!K33) -> 135.4971355 | L33: =SUM(→:←!L33) -> 42.102 | M33: =SUM(→:←!M33) -> 79.2 | N33: =SUM(→:←!N33) -> 26.4 | O33: =SUM(→:←!O33) -> 9.9 | P33: =SUM(→:←!P33) -> 7.92 | Q33: =SUM(→:←!Q33) -> 4.95 | R33: =SUM(→:←!R33) -> 12 | S33: =SUM(→:←!S33) -> 0 | T33: =SUM(→:←!T33) -> 317.9691355 | U33: =SUM(→:←!U33) -> 417.0215645 | V33: =SUM(→:←!V33) -> 6 | W33: =SUM(→:←!W33) -> 4.8 | X33: =SUM(→:←!X33) -> 0 | Y33: =SUM(→:←!Y33) -> 0 | Z33: =SUM(→:←!Z33) -> 53.58 | AA33: =SUM(→:←!AA33) -> 72 | AB33: =SUM(→:←!AB33) -> 0 | AC33: =SUM(→:←!AC33) -> 136.38 | AD33: =SUM(→:←!AD33) -> 280.6415645 | AE33: =SUM(→:←!AE33) -> 72 | AF33: =SUM(→:←!AF33) -> 0 | AG33: =SUM(→:←!AG33) -> 0 | AH33: =SUM(→:←!AH33) -> 0 | AI33: =SUM(→:←!AI33) -> 0 | AJ33: =SUM(→:←!AJ33) -> 21.5 | AK33: =SUM(→:←!AK33) -> 93.5 | AL33: =SUM(→:←!AL33) -> 187.1415645 | AM33: =SUM(→:←!AM33) -> 709.3016407 | AN33: 496.5111485 | AO33: 318.0648521 | AP33: 814.5760005 | AQ33: 84.21948788 | AS33: =SUM(K33:$K$70) -> 2438.948439 | AT33: -1729.646798 | AV33: 547.8491355 | AX33: 10547.84914 | AY33: =IF($AH33>0,"車,","")&IF($AF33>0,"リフォーム,","")&IF(子1!C33=18,"大学入学,","")&IF(子2!C33=18,"大学入学,","")&IF(子3!C33=18,"大学入学,","")&IF(子4!C33=18,"大学入学,","") -> 
B34: 2050 | C34: 52 | D34: =SUM(→:←!D34) -> 960.7498626 | E34: =SUM(→:←!E34) -> 735.5407 | F34: =SUM(→:←!F34) -> 0 | G34: =SUM(→:←!G34) -> 0 | H34: =SUM(→:←!H34) -> 0 | I34: =SUM(→:←!I34) -> 0 | J34: =SUM(→:←!J34) -> 735.5407 | K34: =SUM(→:←!K34) -> 135.4971355 | L34: =SUM(→:←!L34) -> 41.80184 | M34: =SUM(→:←!M34) -> 79.2 | N34: =SUM(→:←!N34) -> 26.4 | O34: =SUM(→:←!O34) -> 9.9 | P34: =SUM(→:←!P34) -> 7.92 | Q34: =SUM(→:←!Q34) -> 4.95 | R34: =SUM(→:←!R34) -> 12 | S34: =SUM(→:←!S34) -> 0 | T34: =SUM(→:←!T34) -> 317.6689755 | U34: =SUM(→:←!U34) -> 417.8717245 | V34: =SUM(→:←!V34) -> 6 | W34: =SUM(→:←!W34) -> 4.8 | X34: =SUM(→:←!X34) -> 0 | Y34: =SUM(→:←!Y34) -> 0 | Z34: =SUM(→:←!Z34) -> 53.58 | AA34: =SUM(→:←!AA34) -> 72 | AB34: =SUM(→:←!AB34) -> 0 | AC34: =SUM(→:←!AC34) -> 136.38 | AD34: =SUM(→:←!AD34) -> 281.4917245 | AE34: =SUM(→:←!AE34) -> 72 | AF34: =SUM(→:←!AF34) -> 0 | AG34: =SUM(→:←!AG34) -> 0 | AH34: =SUM(→:←!AH34) -> 0 | AI34: =SUM(→:←!AI34) -> 0 | AJ34: =SUM(→:←!AJ34) -> 21.5 | AK34: =SUM(→:←!AK34) -> 93.5 | AL34: =SUM(→:←!AL34) -> 187.9917245 | AM34: =SUM(→:←!AM34) -> 897.2933652 | AN34: 628.1053556 | AO34: 390.365612 | AP34: 1018.470968 | AQ34: 96.94208196 | AS34: =SUM(K34:$K$70) -> 2303.451303 | AT34: -1406.157938 | AV34: 547.5489755 | AX34: 10547.54898 | AY34: =IF($AH34>0,"車,","")&IF($AF34>0,"リフォーム,","")&IF(子1!C34=18,"大学入学,","")&IF(子2!C34=18,"大学入学,","")&IF(子3!C34=18,"大学入学,","")&IF(子4!C34=18,"大学入学,","") -> 
B35: 2051 | C35: 53 | D35: =SUM(→:←!D35) -> 957.5339729 | E35: =SUM(→:←!E35) -> 735.5407 | F35: =SUM(→:←!F35) -> 0 | G35: =SUM(→:←!G35) -> 0 | H35: =SUM(→:←!H35) -> 0 | I35: =SUM(→:←!I35) -> 0 | J35: =SUM(→:←!J35) -> 735.5407 | K35: =SUM(→:←!K35) -> 135.4971355 | L35: =SUM(→:←!L35) -> 41.3516 | M35: =SUM(→:←!M35) -> 79.2 | N35: =SUM(→:←!N35) -> 26.4 | O35: =SUM(→:←!O35) -> 9.9 | P35: =SUM(→:←!P35) -> 7.92 | Q35: =SUM(→:←!Q35) -> 4.95 | R35: =SUM(→:←!R35) -> 12 | S35: =SUM(→:←!S35) -> 0 | T35: =SUM(→:←!T35) -> 317.2187355 | U35: =SUM(→:←!U35) -> 418.3219645 | V35: =SUM(→:←!V35) -> 6 | W35: =SUM(→:←!W35) -> 4.8 | X35: =SUM(→:←!X35) -> 0 | Y35: =SUM(→:←!Y35) -> 0 | Z35: =SUM(→:←!Z35) -> 93.2251 | AA35: =SUM(→:←!AA35) -> 72 | AB35: =SUM(→:←!AB35) -> 0 | AC35: =SUM(→:←!AC35) -> 176.0251 | AD35: =SUM(→:←!AD35) -> 242.2968645 | AE35: =SUM(→:←!AE35) -> 72 | AF35: =SUM(→:←!AF35) -> 316 | AG35: =SUM(→:←!AG35) -> 0 | AH35: =SUM(→:←!AH35) -> 0 | AI35: =SUM(→:←!AI35) -> 0 | AJ35: =SUM(→:←!AJ35) -> 21.5 | AK35: =SUM(→:←!AK35) -> 409.5 | AL35: =SUM(→:←!AL35) -> -167.2031355 | AM35: =SUM(→:←!AM35) -> 730.0902297 | AN35: 511.0631608 | AO35: 359.722952 | AP35: 870.7861127 | AQ35: 112.5567064 | AS35: =SUM(K35:$K$70) -> 2167.954168 | AT35: -1437.863938 | AV35: 902.7438355 | AX35: 1083.292603 | AY35: =IF($AH35>0,"車,","")&IF($AF35>0,"リフォーム,","")&IF(子1!C35=18,"大学入学,","")&IF(子2!C35=18,"大学入学,","")&IF(子3!C35=18,"大学入学,","")&IF(子4!C35=18,"大学入学,","") -> リフォーム,
B36: 2052 | C36: 54 | D36: =SUM(→:←!D36) -> 954.3288476 | E36: =SUM(→:←!E36) -> 726.5907 | F36: =SUM(→:←!F36) -> 0 | G36: =SUM(→:←!G36) -> 0 | H36: =SUM(→:←!H36) -> 0 | I36: =SUM(→:←!I36) -> 0 | J36: =SUM(→:←!J36) -> 726.5907 | K36: =SUM(→:←!K36) -> 135.4971355 | L36: =SUM(→:←!L36) -> 41.05144 | M36: =SUM(→:←!M36) -> 79.2 | N36: =SUM(→:←!N36) -> 26.4 | O36: =SUM(→:←!O36) -> 9.9 | P36: =SUM(→:←!P36) -> 7.92 | Q36: =SUM(→:←!Q36) -> 4.95 | R36: =SUM(→:←!R36) -> 12 | S36: =SUM(→:←!S36) -> 0 | T36: =SUM(→:←!T36) -> 316.9185755 | U36: =SUM(→:←!U36) -> 409.6721245 | V36: =SUM(→:←!V36) -> 6 | W36: =SUM(→:←!W36) -> 4.8 | X36: =SUM(→:←!X36) -> 0 | Y36: =SUM(→:←!Y36) -> 0 | Z36: =SUM(→:←!Z36) -> 53.58 | AA36: =SUM(→:←!AA36) -> 72 | AB36: =SUM(→:←!AB36) -> 0 | AC36: =SUM(→:←!AC36) -> 136.38 | AD36: =SUM(→:←!AD36) -> 273.2921245 | AE36: =SUM(→:←!AE36) -> 72 | AF36: =SUM(→:←!AF36) -> 0 | AG36: =SUM(→:←!AG36) -> 3 | AH36: =SUM(→:←!AH36) -> 0 | AI36: =SUM(→:←!AI36) -> 0 | AJ36: =SUM(→:←!AJ36) -> 21.5 | AK36: =SUM(→:←!AK36) -> 96.5 | AL36: =SUM(→:←!AL36) -> 176.7921245 | AM36: =SUM(→:←!AM36) -> 906.8823542 | AN36: 634.8176479 | AO36: 430.7467369 | AP36: 1065.564385 | AQ36: 126.9456245 | AS36: =SUM(K36:$K$70) -> 2032.457032 | AT36: -1125.574678 | AV36: 549.7985755 | AX36: 10549.79858 | AY36: =IF($AH36>0,"車,","")&IF($AF36>0,"リフォーム,","")&IF(子1!C36=18,"大学入学,","")&IF(子2!C36=18,"大学入学,","")&IF(子3!C36=18,"大学入学,","")&IF(子4!C36=18,"大学入学,","") -> 
B37: 2053 | C37: 55 | D37: =SUM(→:←!D37) -> 951.1344507 | E37: =SUM(→:←!E37) -> 726.5907 | F37: =SUM(→:←!F37) -> 0 | G37: =SUM(→:←!G37) -> 0 | H37: =SUM(→:←!H37) -> 0 | I37: =SUM(→:←!I37) -> 0 | J37: =SUM(→:←!J37) -> 726.5907 | K37: =SUM(→:←!K37) -> 135.4971355 | L37: =SUM(→:←!L37) -> 40.75128 | M37: =SUM(→:←!M37) -> 79.2 | N37: =SUM(→:←!N37) -> 26.4 | O37: =SUM(→:←!O37) -> 9.9 | P37: =SUM(→:←!P37) -> 7.92 | Q37: =SUM(→:←!Q37) -> 4.95 | R37: =SUM(→:←!R37) -> 12 | S37: =SUM(→:←!S37) -> 0 | T37: =SUM(→:←!T37) -> 316.6184155 | U37: =SUM(→:←!U37) -> 409.9722845 | V37: =SUM(→:←!V37) -> 6 | W37: =SUM(→:←!W37) -> 4.8 | X37: =SUM(→:←!X37) -> 0 | Y37: =SUM(→:←!Y37) -> 0 | Z37: =SUM(→:←!Z37) -> 0 | AA37: =SUM(→:←!AA37) -> 0 | AB37: =SUM(→:←!AB37) -> 0 | AC37: =SUM(→:←!AC37) -> 10.8 | AD37: =SUM(→:←!AD37) -> 399.1722845 | AE37: =SUM(→:←!AE37) -> 72 | AF37: =SUM(→:←!AF37) -> 0 | AG37: =SUM(→:←!AG37) -> 0 | AH37: =SUM(→:←!AH37) -> 300 | AI37: =SUM(→:←!AI37) -> 0 | AJ37: =SUM(→:←!AJ37) -> 21.5 | AK37: =SUM(→:←!AK37) -> 393.5 | AL37: =SUM(→:←!AL37) -> 5.67228451 | AM37: =SUM(→:←!AM37) -> 912.5546387 | AN37: 638.7882471 | AO37: 453.9857591 | AP37: =SUM(AN37:AO37) -> 1092.774006 | AQ37: 144.175494 | AS37: =SUM(K37:$K$70) -> 1896.959897 | AT37: -984.4052581 | AV37: 720.9184155 | AX37: 865.1020986 | AY37: =IF($AH37>0,"車,","")&IF($AF37>0,"リフォーム,","")&IF(子1!C37=18,"大学入学,","")&IF(子2!C37=18,"大学入学,","")&IF(子3!C37=18,"大学入学,","")&IF(子4!C37=18,"大学入学,","") -> 車,
B38: 2054 | C38: 56 | D38: =SUM(→:←!D38) -> 905.0880534 | E38: =SUM(→:←!E38) -> 693.34302 | F38: =SUM(→:←!F38) -> 0 | G38: =SUM(→:←!G38) -> 0 | H38: =SUM(→:←!H38) -> 0 | I38: =SUM(→:←!I38) -> 0 | J38: =SUM(→:←!J38) -> 693.34302 | K38: =SUM(→:←!K38) -> 135.4971355 | L38: =SUM(→:←!L38) -> 40.45112 | M38: =SUM(→:←!M38) -> 79.2 | N38: =SUM(→:←!N38) -> 26.4 | O38: =SUM(→:←!O38) -> 9.9 | P38: =SUM(→:←!P38) -> 7.92 | Q38: =SUM(→:←!Q38) -> 4.95 | R38: =SUM(→:←!R38) -> 12 | S38: =SUM(→:←!S38) -> 0 | T38: =SUM(→:←!T38) -> 316.3182555 | U38: =SUM(→:←!U38) -> 377.0247645 | V38: =SUM(→:←!V38) -> 6 | W38: =SUM(→:←!W38) -> 4.8 | X38: =SUM(→:←!X38) -> 0 | Y38: =SUM(→:←!Y38) -> 0 | Z38: =SUM(→:←!Z38) -> 0 | AA38: =SUM(→:←!AA38) -> 0 | AB38: =SUM(→:←!AB38) -> 0 | AC38: =SUM(→:←!AC38) -> 10.8 | AD38: =SUM(→:←!AD38) -> 366.2247645 | AE38: =SUM(→:←!AE38) -> 72 | AF38: =SUM(→:←!AF38) -> 0 | AG38: =SUM(→:←!AG38) -> 0 | AH38: =SUM(→:←!AH38) -> 0 | AI38: =SUM(→:←!AI38) -> 0 | AJ38: =SUM(→:←!AJ38) -> 21.5 | AK38: =SUM(→:←!AK38) -> 93.5 | AL38: =SUM(→:←!AL38) -> 272.7247645 | AM38: =SUM(→:←!AM38) -> 1185.279403 | AN38: 829.6955823 | AO38: 558.5024764 | AP38: 1388.198059 | AQ38: 162.3349244 | AS38: =SUM(K38:$K$70) -> 1761.462761 | AT38: -576.1833581 | AV38: 420.6182555 | AX38: 10420.61826 | AY38: =IF($AH38>0,"車,","")&IF($AF38>0,"リフォーム,","")&IF(子1!C38=18,"大学入学,","")&IF(子2!C38=18,"大学入学,","")&IF(子3!C38=18,"大学入学,","")&IF(子4!C38=18,"大学入学,","") -> 
B39: =B38+1 -> 2055 | C39: =C38+1 -> 57 | D39: =SUM(→:←!D39) -> 862.2431558 | E39: =SUM(→:←!E39) -> 664.11918 | F39: =SUM(→:←!F39) -> 0 | G39: =SUM(→:←!G39) -> 0 | H39: =SUM(→:←!H39) -> 0 | I39: =SUM(→:←!I39) -> 0 | J39: =SUM(→:←!J39) -> 664.11918 | K39: =SUM(→:←!K39) -> 135.4971355 | L39: =SUM(→:←!L39) -> 40.15096 | M39: =SUM(→:←!M39) -> 79.2 | N39: =SUM(→:←!N39) -> 26.4 | O39: =SUM(→:←!O39) -> 9.9 | P39: =SUM(→:←!P39) -> 7.92 | Q39: =SUM(→:←!Q39) -> 4.95 | R39: =SUM(→:←!R39) -> 12 | S39: =SUM(→:←!S39) -> 0 | T39: =SUM(→:←!T39) -> 316.0180955 | U39: =SUM(→:←!U39) -> 348.1010845 | V39: =SUM(→:←!V39) -> 6 | W39: =SUM(→:←!W39) -> 4.8 | X39: =SUM(→:←!X39) -> 0 | Y39: =SUM(→:←!Y39) -> 0 | Z39: =SUM(→:←!Z39) -> 0 | AA39: =SUM(→:←!AA39) -> 0 | AB39: =SUM(→:←!AB39) -> 0 | AC39: =SUM(→:←!AC39) -> 10.8 | AD39: =SUM(→:←!AD39) -> 337.3010845 | AE39: =SUM(→:←!AE39) -> 72 | AF39: =SUM(→:←!AF39) -> 0 | AG39: =SUM(→:←!AG39) -> 0 | AH39: =SUM(→:←!AH39) -> 0 | AI39: =SUM(→:←!AI39) -> 0 | AJ39: =SUM(→:←!AJ39) -> 21.5 | AK39: =SUM(→:←!AK39) -> 93.5 | AL39: =SUM(→:←!AL39) -> 243.8010845 | AM39: =SUM(→:←!AM39) -> 1429.080488 | AN39: 1000.356341 | AO39: 659.5679256 | AP39: 1659.924267 | AQ39: 184.6750234 | AS39: =SUM(K39:$K$70) -> 1625.965626 | AT39: -196.8851381 | AV39: 420.3180955 | AX39: 10420.3181 | AY39: =IF($AH39>0,"車,","")&IF($AF39>0,"リフォーム,","")&IF(子1!C39=18,"大学入学,","")&IF(子2!C39=18,"大学入学,","")&IF(子3!C39=18,"大学入学,","")&IF(子4!C39=18,"大学入学,","") -> 
B40: 2056 | C40: 58 | D40: =SUM(→:←!D40) -> 800.9410389 | E40: =SUM(→:←!E40) -> 620.09512 | F40: =SUM(→:←!F40) -> 0 | G40: =SUM(→:←!G40) -> 0 | H40: =SUM(→:←!H40) -> 0 | I40: =SUM(→:←!I40) -> 0 | J40: =SUM(→:←!J40) -> 620.09512 | K40: =SUM(→:←!K40) -> 135.4971355 | L40: =SUM(→:←!L40) -> 39.8508 | M40: =SUM(→:←!M40) -> 79.2 | N40: =SUM(→:←!N40) -> 26.4 | O40: =SUM(→:←!O40) -> 9.9 | P40: =SUM(→:←!P40) -> 7.92 | Q40: =SUM(→:←!Q40) -> 4.95 | R40: =SUM(→:←!R40) -> 12 | S40: =SUM(→:←!S40) -> 0 | T40: =SUM(→:←!T40) -> 315.7179355 | U40: =SUM(→:←!U40) -> 304.3771845 | V40: =SUM(→:←!V40) -> 6 | W40: =SUM(→:←!W40) -> 4.8 | X40: =SUM(→:←!X40) -> 0 | Y40: =SUM(→:←!Y40) -> 0 | Z40: =SUM(→:←!Z40) -> 0 | AA40: =SUM(→:←!AA40) -> 0 | AB40: =SUM(→:←!AB40) -> 0 | AC40: =SUM(→:←!AC40) -> 10.8 | AD40: =SUM(→:←!AD40) -> 293.5771845 | AE40: =SUM(→:←!AE40) -> 72 | AF40: =SUM(→:←!AF40) -> 0 | AG40: =SUM(→:←!AG40) -> 0 | AH40: =SUM(→:←!AH40) -> 0 | AI40: =SUM(→:←!AI40) -> 0 | AJ40: =SUM(→:←!AJ40) -> 21.5 | AK40: =SUM(→:←!AK40) -> 93.5 | AL40: =SUM(→:←!AL40) -> 200.0771845 | AM40: =SUM(→:←!AM40) -> 1629.157672 | AN40: 1140.410371 | AO40: 752.5694772 | AP40: 1892.979848 | AQ40: 211.0577404 | AS40: =SUM(K40:$K$70) -> 1490.46849 | AT40: 138.6891819 | AV40: 420.0179355 | AX40: 10420.01794 | AY40: =IF($AH40>0,"車,","")&IF($AF40>0,"リフォーム,","")&IF(子1!C40=18,"大学入学,","")&IF(子2!C40=18,"大学入学,","")&IF(子3!C40=18,"大学入学,","")&IF(子4!C40=18,"大学入学,","") -> 
B41: 2057 | C41: 59 | D41: =SUM(→:←!D41) -> 743.9972629 | E41: =SUM(→:←!E41) -> 584.47106 | F41: =SUM(→:←!F41) -> 0 | G41: =SUM(→:←!G41) -> 0 | H41: =SUM(→:←!H41) -> 0 | I41: =SUM(→:←!I41) -> 0 | J41: =SUM(→:←!J41) -> 584.47106 | K41: =SUM(→:←!K41) -> 135.4971355 | L41: =SUM(→:←!L41) -> 39.55064 | M41: =SUM(→:←!M41) -> 79.2 | N41: =SUM(→:←!N41) -> 26.4 | O41: =SUM(→:←!O41) -> 9.9 | P41: =SUM(→:←!P41) -> 7.92 | Q41: =SUM(→:←!Q41) -> 4.95 | R41: =SUM(→:←!R41) -> 12 | S41: =SUM(→:←!S41) -> 0 | T41: =SUM(→:←!T41) -> 315.4177755 | U41: =SUM(→:←!U41) -> 269.0532845 | V41: =SUM(→:←!V41) -> 6 | W41: =SUM(→:←!W41) -> 4.8 | X41: =SUM(→:←!X41) -> 0 | Y41: =SUM(→:←!Y41) -> 0 | Z41: =SUM(→:←!Z41) -> 0 | AA41: =SUM(→:←!AA41) -> 0 | AB41: =SUM(→:←!AB41) -> 0 | AC41: =SUM(→:←!AC41) -> 10.8 | AD41: =SUM(→:←!AD41) -> 258.2532845 | AE41: =SUM(→:←!AE41) -> 72 | AF41: =SUM(→:←!AF41) -> 0 | AG41: =SUM(→:←!AG41) -> 57 | AH41: =SUM(→:←!AH41) -> 0 | AI41: =SUM(→:←!AI41) -> 0 | AJ41: =SUM(→:←!AJ41) -> 21.5 | AK41: =SUM(→:←!AK41) -> 150.5 | AL41: =SUM(→:←!AL41) -> 107.7532845 | AM41: =SUM(→:←!AM41) -> 1736.910957 | AN41: 1215.83767 | AO41: 822.5239364 | AP41: 2038.361606 | AQ41: 241.1605195 | AS41: =SUM(K41:$K$70) -> 1354.971355 | AT41: 381.9396019 | AV41: 476.7177755 | AX41: 10476.71778 | AY41: =IF($AH41>0,"車,","")&IF($AF41>0,"リフォーム,","")&IF(子1!C41=18,"大学入学,","")&IF(子2!C41=18,"大学入学,","")&IF(子3!C41=18,"大学入学,","")&IF(子4!C41=18,"大学入学,","") -> 
B42: 2058 | C42: 60 | D42: =SUM(→:←!D42) -> 691.1019667 | E42: =SUM(→:←!E42) -> 538.55616 | F42: =SUM(→:←!F42) -> 0 | G42: =SUM(→:←!G42) -> 0 | H42: =SUM(→:←!H42) -> 0 | I42: =SUM(→:←!I42) -> 0 | J42: =SUM(→:←!J42) -> 538.55616 | K42: =SUM(→:←!K42) -> 135.4971355 | L42: =SUM(→:←!L42) -> 39.25048 | M42: =SUM(→:←!M42) -> 79.2 | N42: =SUM(→:←!N42) -> 26.4 | O42: =SUM(→:←!O42) -> 9.9 | P42: =SUM(→:←!P42) -> 7.92 | Q42: =SUM(→:←!Q42) -> 4.95 | R42: =SUM(→:←!R42) -> 12 | S42: =SUM(→:←!S42) -> 0 | T42: =SUM(→:←!T42) -> 315.1176155 | U42: =SUM(→:←!U42) -> 223.4385445 | V42: =SUM(→:←!V42) -> 6 | W42: =SUM(→:←!W42) -> 4.8 | X42: =SUM(→:←!X42) -> 0 | Y42: =SUM(→:←!Y42) -> 0 | Z42: =SUM(→:←!Z42) -> 0 | AA42: =SUM(→:←!AA42) -> 0 | AB42: =SUM(→:←!AB42) -> 0 | AC42: =SUM(→:←!AC42) -> 10.8 | AD42: =SUM(→:←!AD42) -> 212.6385445 | AE42: =SUM(→:←!AE42) -> 72 | AF42: =SUM(→:←!AF42) -> 0 | AG42: =SUM(→:←!AG42) -> 0 | AH42: =SUM(→:←!AH42) -> 0 | AI42: =SUM(→:←!AI42) -> 0 | AJ42: =SUM(→:←!AJ42) -> 21.5 | AK42: =SUM(→:←!AK42) -> 93.5 | AL42: =SUM(→:←!AL42) -> 119.1385445 | AM42: =SUM(→:←!AM42) -> 1856.049501 | AN42: 1299.234651 | AO42: 899.3916966 | AP42: 2198.626347 | AQ42: 274.061477 | AS42: =SUM(K42:$K$70) -> 1219.474219 | AT42: 636.5752819 | AV42: 419.4176155 | AX42: 10419.41762 | AY42: =IF($AH42>0,"車,","")&IF($AF42>0,"リフォーム,","")&IF(子1!C42=18,"大学入学,","")&IF(子2!C42=18,"大学入学,","")&IF(子3!C42=18,"大学入学,","")&IF(子4!C42=18,"大学入学,","") -> 
B43: 2059 | C43: 61 | D43: =SUM(→:←!D43) -> 673.075699 | E43: =SUM(→:←!E43) -> 522.20605 | F43: =SUM(→:←!F43) -> 0 | G43: =SUM(→:←!G43) -> 0 | H43: =SUM(→:←!H43) -> 0 | I43: =SUM(→:←!I43) -> 0 | J43: =SUM(→:←!J43) -> 522.20605 | K43: =SUM(→:←!K43) -> 135.4971355 | L43: =SUM(→:←!L43) -> 38.95032 | M43: =SUM(→:←!M43) -> 79.2 | N43: =SUM(→:←!N43) -> 26.4 | O43: =SUM(→:←!O43) -> 9.9 | P43: =SUM(→:←!P43) -> 7.92 | Q43: =SUM(→:←!Q43) -> 4.95 | R43: =SUM(→:←!R43) -> 12 | S43: =SUM(→:←!S43) -> 0 | T43: =SUM(→:←!T43) -> 314.8174555 | U43: =SUM(→:←!U43) -> 207.3885945 | V43: =SUM(→:←!V43) -> 6 | W43: =SUM(→:←!W43) -> 4.8 | X43: =SUM(→:←!X43) -> 0 | Y43: =SUM(→:←!Y43) -> 0 | Z43: =SUM(→:←!Z43) -> 0 | AA43: =SUM(→:←!AA43) -> 0 | AB43: =SUM(→:←!AB43) -> 0 | AC43: =SUM(→:←!AC43) -> 10.8 | AD43: =SUM(→:←!AD43) -> 196.5885945 | AE43: =SUM(→:←!AE43) -> 72 | AF43: =SUM(→:←!AF43) -> 0 | AG43: =SUM(→:←!AG43) -> 0 | AH43: =SUM(→:←!AH43) -> 0 | AI43: =SUM(→:←!AI43) -> 0 | AJ43: =SUM(→:←!AJ43) -> 21.5 | AK43: =SUM(→:←!AK43) -> 93.5 | AL43: =SUM(→:←!AL43) -> 103.0885945 | AM43: =SUM(→:←!AM43) -> 1959.138096 | AN43: 1371.396667 | AO43: 975.2878598 | AP43: 2346.684527 | AQ43: 310.0371449 | AS43: =SUM(K43:$K$70) -> 1083.977084 | AT43: 875.1610119 | AV43: 419.1174555 | AX43: 10419.11746 | AY43: =IF($AH43>0,"車,","")&IF($AF43>0,"リフォーム,","")&IF(子1!C43=18,"大学入学,","")&IF(子2!C43=18,"大学入学,","")&IF(子3!C43=18,"大学入学,","")&IF(子4!C43=18,"大学入学,","") -> 
B44: 2060 | C44: 62 | D44: =SUM(→:←!D44) -> 656.3310285 | E44: =SUM(→:←!E44) -> 505.85594 | F44: =SUM(→:←!F44) -> 0 | G44: =SUM(→:←!G44) -> 0 | H44: =SUM(→:←!H44) -> 0 | I44: =SUM(→:←!I44) -> 0 | J44: =SUM(→:←!J44) -> 505.85594 | K44: =SUM(→:←!K44) -> 135.4971355 | L44: =SUM(→:←!L44) -> 38.65016 | M44: =SUM(→:←!M44) -> 79.2 | N44: =SUM(→:←!N44) -> 26.4 | O44: =SUM(→:←!O44) -> 9.9 | P44: =SUM(→:←!P44) -> 7.92 | Q44: =SUM(→:←!Q44) -> 4.95 | R44: =SUM(→:←!R44) -> 12 | S44: =SUM(→:←!S44) -> 0 | T44: =SUM(→:←!T44) -> 314.5172955 | U44: =SUM(→:←!U44) -> 191.3386445 | V44: =SUM(→:←!V44) -> 6 | W44: =SUM(→:←!W44) -> 4.8 | X44: =SUM(→:←!X44) -> 0 | Y44: =SUM(→:←!Y44) -> 0 | Z44: =SUM(→:←!Z44) -> 0 | AA44: =SUM(→:←!AA44) -> 0 | AB44: =SUM(→:←!AB44) -> 0 | AC44: =SUM(→:←!AC44) -> 10.8 | AD44: =SUM(→:←!AD44) -> 180.5386445 | AE44: =SUM(→:←!AE44) -> 72 | AF44: =SUM(→:←!AF44) -> 0 | AG44: =SUM(→:←!AG44) -> 0 | AH44: =SUM(→:←!AH44) -> 300 | AI44: =SUM(→:←!AI44) -> 0 | AJ44: =SUM(→:←!AJ44) -> 21.5 | AK44: =SUM(→:←!AK44) -> 393.5 | AL44: =SUM(→:←!AL44) -> -212.9613555 | AM44: =SUM(→:←!AM44) -> 1746.17674 | AN44: 1222.323718 | AO44: 960.1638461 | AP44: 2182.487564 | AQ44: 349.0486592 | AS44: =SUM(K44:$K$70) -> 948.4799484 | AT44: 797.6967919 | AV44: 718.8172955 | AX44: 862.5807546 | AY44: =IF($AH44>0,"車,","")&IF($AF44>0,"リフォーム,","")&IF(子1!C44=18,"大学入学,","")&IF(子2!C44=18,"大学入学,","")&IF(子3!C44=18,"大学入学,","")&IF(子4!C44=18,"大学入学,","") -> 車,
B45: 2061 | C45: 63 | D45: =SUM(→:←!D45) -> 656.3310285 | E45: =SUM(→:←!E45) -> 505.85594 | F45: =SUM(→:←!F45) -> 0 | G45: =SUM(→:←!G45) -> 0 | H45: =SUM(→:←!H45) -> 0 | I45: =SUM(→:←!I45) -> 0 | J45: =SUM(→:←!J45) -> 505.85594 | K45: =SUM(→:←!K45) -> 135.4971355 | L45: =SUM(→:←!L45) -> 38.50008 | M45: =SUM(→:←!M45) -> 79.2 | N45: =SUM(→:←!N45) -> 26.4 | O45: =SUM(→:←!O45) -> 9.9 | P45: =SUM(→:←!P45) -> 7.92 | Q45: =SUM(→:←!Q45) -> 4.95 | R45: =SUM(→:←!R45) -> 12 | S45: =SUM(→:←!S45) -> 0 | T45: =SUM(→:←!T45) -> 314.3672155 | U45: =SUM(→:←!U45) -> 191.4887245 | V45: =SUM(→:←!V45) -> 6 | W45: =SUM(→:←!W45) -> 4.8 | X45: =SUM(→:←!X45) -> 0 | Y45: =SUM(→:←!Y45) -> 0 | Z45: =SUM(→:←!Z45) -> 0 | AA45: =SUM(→:←!AA45) -> 0 | AB45: =SUM(→:←!AB45) -> 0 | AC45: =SUM(→:←!AC45) -> 10.8 | AD45: =SUM(→:←!AD45) -> 180.6887245 | AE45: =SUM(→:←!AE45) -> 72 | AF45: =SUM(→:←!AF45) -> 238 | AG45: =SUM(→:←!AG45) -> 0 | AH45: =SUM(→:←!AH45) -> 0 | AI45: =SUM(→:←!AI45) -> 0 | AJ45: =SUM(→:←!AJ45) -> 21.5 | AK45: =SUM(→:←!AK45) -> 331.5 | AL45: =SUM(→:←!AL45) -> -150.8112755 | AM45: =SUM(→:←!AM45) -> 1595.365465 | AN45: 1116.755825 | AO45: 962.9286558 | AP45: 2079.684481 | AQ45: 387.4552131 | AS45: =SUM(K45:$K$70) -> 812.9828129 | AT45: 782.3826519 | AV45: 656.6672155 | AX45: 788.0006586 | AY45: =IF($AH45>0,"車,","")&IF($AF45>0,"リフォーム,","")&IF(子1!C45=18,"大学入学,","")&IF(子2!C45=18,"大学入学,","")&IF(子3!C45=18,"大学入学,","")&IF(子4!C45=18,"大学入学,","") -> リフォーム,
B46: 2062 | C46: 64 | D46: =SUM(→:←!D46) -> 656.3310285 | E46: =SUM(→:←!E46) -> 505.85594 | F46: =SUM(→:←!F46) -> 0 | G46: =SUM(→:←!G46) -> 0 | H46: =SUM(→:←!H46) -> 0 | I46: =SUM(→:←!I46) -> 0 | J46: =SUM(→:←!J46) -> 505.85594 | K46: =SUM(→:←!K46) -> 135.4971355 | L46: =SUM(→:←!L46) -> 38.19992 | M46: =SUM(→:←!M46) -> 79.2 | N46: =SUM(→:←!N46) -> 26.4 | O46: =SUM(→:←!O46) -> 9.9 | P46: =SUM(→:←!P46) -> 7.92 | Q46: =SUM(→:←!Q46) -> 4.95 | R46: =SUM(→:←!R46) -> 12 | S46: =SUM(→:←!S46) -> 0 | T46: =SUM(→:←!T46) -> 314.0670555 | U46: =SUM(→:←!U46) -> 191.7888845 | V46: =SUM(→:←!V46) -> 6 | W46: =SUM(→:←!W46) -> 4.8 | X46: =SUM(→:←!X46) -> 0 | Y46: =SUM(→:←!Y46) -> 0 | Z46: =SUM(→:←!Z46) -> 0 | AA46: =SUM(→:←!AA46) -> 0 | AB46: =SUM(→:←!AB46) -> 0 | AC46: =SUM(→:←!AC46) -> 10.8 | AD46: =SUM(→:←!AD46) -> 180.9888845 | AE46: =SUM(→:←!AE46) -> 72 | AF46: =SUM(→:←!AF46) -> 0 | AG46: =SUM(→:←!AG46) -> 3 | AH46: =SUM(→:←!AH46) -> 0 | AI46: =SUM(→:←!AI46) -> 0 | AJ46: =SUM(→:←!AJ46) -> 21.5 | AK46: =SUM(→:←!AK46) -> 96.5 | AL46: =SUM(→:←!AL46) -> 84.48888451 | AM46: =SUM(→:←!AM46) -> 1679.854349 | AN46: 1175.898045 | AO46: 1036.421754 | AP46: 2212.319798 | AQ46: 425.9723593 | AS46: =SUM(K46:$K$70) -> 677.4856774 | AT46: 1002.368672 | AV46: 421.3670555 | AX46: 10421.36706 | AY46: =IF($AH46>0,"車,","")&IF($AF46>0,"リフォーム,","")&IF(子1!C46=18,"大学入学,","")&IF(子2!C46=18,"大学入学,","")&IF(子3!C46=18,"大学入学,","")&IF(子4!C46=18,"大学入学,","") -> 
B47: 2063 | C47: 65 | D47: =SUM(→:←!D47) -> 656.3310285 | E47: =SUM(→:←!E47) -> 505.85594 | F47: =SUM(→:←!F47) -> 0 | G47: =SUM(→:←!G47) -> 1000 | H47: =SUM(→:←!H47) -> 0 | I47: =SUM(→:←!I47) -> 0 | J47: =SUM(→:←!J47) -> 1505.85594 | K47: =SUM(→:←!K47) -> 135.4971355 | L47: =SUM(→:←!L47) -> 38.04984 | M47: =SUM(→:←!M47) -> 79.2 | N47: =SUM(→:←!N47) -> 26.4 | O47: =SUM(→:←!O47) -> 9.9 | P47: =SUM(→:←!P47) -> 7.92 | Q47: =SUM(→:←!Q47) -> 4.95 | R47: =SUM(→:←!R47) -> 12 | S47: =SUM(→:←!S47) -> 0 | T47: =SUM(→:←!T47) -> 313.9169755 | U47: =SUM(→:←!U47) -> 1191.938965 | V47: =SUM(→:←!V47) -> 6 | W47: =SUM(→:←!W47) -> 4.8 | X47: =SUM(→:←!X47) -> 0 | Y47: =SUM(→:←!Y47) -> 0 | Z47: =SUM(→:←!Z47) -> 0 | AA47: =SUM(→:←!AA47) -> 0 | AB47: =SUM(→:←!AB47) -> 0 | AC47: =SUM(→:←!AC47) -> 10.8 | AD47: =SUM(→:←!AD47) -> 1181.138965 | AE47: =SUM(→:←!AE47) -> 72 | AF47: =SUM(→:←!AF47) -> 0 | AG47: =SUM(→:←!AG47) -> 0 | AH47: =SUM(→:←!AH47) -> 0 | AI47: =SUM(→:←!AI47) -> 0 | AJ47: =SUM(→:←!AJ47) -> 21.5 | AK47: =SUM(→:←!AK47) -> 93.5 | AL47: =SUM(→:←!AL47) -> 1087.638965 | AM47: =SUM(→:←!AM47) -> 2767.493314 | AN47: 1937.24532 | AO47: 1414.534531 | AP47: 3351.779851 | AQ47: 467.4292295 | AS47: =SUM(K47:$K$70) -> 541.988542 | AT47: 2225.504772 | AV47: 418.2169755 | AX47: 10418.21698 | AY47: =IF($AH47>0,"車,","")&IF($AF47>0,"リフォーム,","")&IF(子1!C47=18,"大学入学,","")&IF(子2!C47=18,"大学入学,","")&IF(子3!C47=18,"大学入学,","")&IF(子4!C47=18,"大学入学,","") -> 
B48: 2064 | C48: 66 | D48: =SUM(→:←!D48) -> 218.7770095 | E48: =SUM(→:←!E48) -> 168.95198 | F48: =SUM(→:←!F48) -> 0 | G48: =SUM(→:←!G48) -> 0 | H48: =SUM(→:←!H48) -> 199.6633832 | I48: =SUM(→:←!I48) -> -12.2050336 | J48: =SUM(→:←!J48) -> 356.4103296 | K48: =SUM(→:←!K48) -> 135.4971355 | L48: =SUM(→:←!L48) -> 37.74968 | M48: =SUM(→:←!M48) -> 79.2 | N48: =SUM(→:←!N48) -> 26.4 | O48: =SUM(→:←!O48) -> 9.9 | P48: =SUM(→:←!P48) -> 7.92 | Q48: =SUM(→:←!Q48) -> 4.95 | R48: =SUM(→:←!R48) -> 0 | S48: =SUM(→:←!S48) -> 0 | T48: =SUM(→:←!T48) -> 301.6168155 | U48: =SUM(→:←!U48) -> 54.79351414 | V48: =SUM(→:←!V48) -> 6 | W48: =SUM(→:←!W48) -> 4.8 | X48: =SUM(→:←!X48) -> 0 | Y48: =SUM(→:←!Y48) -> 0 | Z48: =SUM(→:←!Z48) -> 0 | AA48: =SUM(→:←!AA48) -> 0 | AB48: =SUM(→:←!AB48) -> 0 | AC48: =SUM(→:←!AC48) -> 10.8 | AD48: =SUM(→:←!AD48) -> 43.99351414 | AE48: =SUM(→:←!AE48) -> 72 | AF48: =SUM(→:←!AF48) -> 0 | AG48: =SUM(→:←!AG48) -> 0 | AH48: =SUM(→:←!AH48) -> 0 | AI48: =SUM(→:←!AI48) -> 0 | AJ48: =SUM(→:←!AJ48) -> 20.75 | AK48: =SUM(→:←!AK48) -> 92.75 | AL48: =SUM(→:←!AL48) -> -48.75648586 | AM48: =SUM(→:←!AM48) -> 2718.736828 | AN48: 1903.11578 | AO48: 1470.634312 | AP48: 3373.750091 | AQ48: 524.0106107 | AS48: =SUM(K48:$K$70) -> 406.4914065 | AT48: 2312.245421 | AV48: 405.1668155 | AX48: 10405.16682 | AY48: =IF($AH48>0,"車,","")&IF($AF48>0,"リフォーム,","")&IF(子1!C48=18,"大学入学,","")&IF(子2!C48=18,"大学入学,","")&IF(子3!C48=18,"大学入学,","")&IF(子4!C48=18,"大学入学,","") -> 
B49: 2065 | C49: 67 | D49: =SUM(→:←!D49) -> 218.7770095 | E49: =SUM(→:←!E49) -> 168.95198 | F49: =SUM(→:←!F49) -> 0 | G49: =SUM(→:←!G49) -> 0 | H49: =SUM(→:←!H49) -> 199.6633832 | I49: =SUM(→:←!I49) -> -12.2050336 | J49: =SUM(→:←!J49) -> 356.4103296 | K49: =SUM(→:←!K49) -> 135.4971355 | L49: =SUM(→:←!L49) -> 37.5996 | M49: =SUM(→:←!M49) -> 79.2 | N49: =SUM(→:←!N49) -> 26.4 | O49: =SUM(→:←!O49) -> 9.9 | P49: =SUM(→:←!P49) -> 7.92 | Q49: =SUM(→:←!Q49) -> 4.95 | R49: =SUM(→:←!R49) -> 0 | S49: =SUM(→:←!S49) -> 0 | T49: =SUM(→:←!T49) -> 301.4667355 | U49: =SUM(→:←!U49) -> 54.94359414 | V49: =SUM(→:←!V49) -> 6 | W49: =SUM(→:←!W49) -> 4.8 | X49: =SUM(→:←!X49) -> 0 | Y49: =SUM(→:←!Y49) -> 0 | Z49: =SUM(→:←!Z49) -> 0 | AA49: =SUM(→:←!AA49) -> 0 | AB49: =SUM(→:←!AB49) -> 0 | AC49: =SUM(→:←!AC49) -> 10.8 | AD49: =SUM(→:←!AD49) -> 44.14359414 | AE49: =SUM(→:←!AE49) -> 72 | AF49: =SUM(→:←!AF49) -> 0 | AG49: =SUM(→:←!AG49) -> 0 | AH49: =SUM(→:←!AH49) -> 0 | AI49: =SUM(→:←!AI49) -> 0 | AJ49: =SUM(→:←!AJ49) -> 20.75 | AK49: =SUM(→:←!AK49) -> 92.75 | AL49: =SUM(→:←!AL49) -> -48.60640586 | AM49: =SUM(→:←!AM49) -> 2670.130422 | AN49: 1869.091295 | AO49: 1529.584106 | AP49: 3398.675401 | AQ49: 582.8359832 | AS49: =SUM(K49:$K$70) -> 270.994271 | AT49: 2399.136151 | AV49: 405.0167355 | AX49: 10405.01674 | AY49: =IF($AH49>0,"車,","")&IF($AF49>0,"リフォーム,","")&IF(子1!C49=18,"大学入学,","")&IF(子2!C49=18,"大学入学,","")&IF(子3!C49=18,"大学入学,","")&IF(子4!C49=18,"大学入学,","") -> 
B50: 2066 | C50: 68 | D50: =SUM(→:←!D50) -> 0 | E50: =SUM(→:←!E50) -> 0 | F50: =SUM(→:←!F50) -> 0 | G50: =SUM(→:←!G50) -> 0 | H50: =SUM(→:←!H50) -> 338.4002837 | I50: =SUM(→:←!I50) -> -15.35323933 | J50: =SUM(→:←!J50) -> 323.0470443 | K50: =SUM(→:←!K50) -> 135.4971355 | L50: =SUM(→:←!L50) -> 37.29944 | M50: =SUM(→:←!M50) -> 79.2 | N50: =SUM(→:←!N50) -> 26.4 | O50: =SUM(→:←!O50) -> 9.9 | P50: =SUM(→:←!P50) -> 7.92 | Q50: =SUM(→:←!Q50) -> 4.95 | R50: =SUM(→:←!R50) -> 0 | S50: =SUM(→:←!S50) -> 0 | T50: =SUM(→:←!T50) -> 301.1665755 | U50: =SUM(→:←!U50) -> 21.88046884 | V50: =SUM(→:←!V50) -> 6 | W50: =SUM(→:←!W50) -> 4.8 | X50: =SUM(→:←!X50) -> 0 | Y50: =SUM(→:←!Y50) -> 0 | Z50: =SUM(→:←!Z50) -> 0 | AA50: =SUM(→:←!AA50) -> 0 | AB50: =SUM(→:←!AB50) -> 0 | AC50: =SUM(→:←!AC50) -> 10.8 | AD50: =SUM(→:←!AD50) -> 11.08046884 | AE50: =SUM(→:←!AE50) -> 72 | AF50: =SUM(→:←!AF50) -> 0 | AG50: =SUM(→:←!AG50) -> 0 | AH50: =SUM(→:←!AH50) -> 0 | AI50: =SUM(→:←!AI50) -> 0 | AJ50: =SUM(→:←!AJ50) -> 20.75 | AK50: =SUM(→:←!AK50) -> 92.75 | AL50: =SUM(→:←!AL50) -> -81.66953116 | AM50: =SUM(→:←!AM50) -> 2588.460891 | AN50: 1811.922624 | AO50: 1581.562452 | AP50: 3393.485075 | AQ50: 644.0193474 | AS50: =SUM(K50:$K$70) -> 135.4971355 | AT50: 2452.963755 | AV50: 404.7165755 | AX50: 10404.71658 | AY50: =IF($AH50>0,"車,","")&IF($AF50>0,"リフォーム,","")&IF(子1!C50=18,"大学入学,","")&IF(子2!C50=18,"大学入学,","")&IF(子3!C50=18,"大学入学,","")&IF(子4!C50=18,"大学入学,","") -> 
B51: 2067 | C51: 69 | D51: =SUM(→:←!D51) -> 0 | E51: =SUM(→:←!E51) -> 0 | F51: =SUM(→:←!F51) -> 0 | G51: =SUM(→:←!G51) -> 0 | H51: =SUM(→:←!H51) -> 338.4002837 | I51: =SUM(→:←!I51) -> -15.35323933 | J51: =SUM(→:←!J51) -> 323.0470443 | K51: =SUM(→:←!K51) -> 0 | L51: =SUM(→:←!L51) -> 37.29944 | M51: =SUM(→:←!M51) -> 79.2 | N51: =SUM(→:←!N51) -> 26.4 | O51: =SUM(→:←!O51) -> 9.9 | P51: =SUM(→:←!P51) -> 7.92 | Q51: =SUM(→:←!Q51) -> 4.95 | R51: =SUM(→:←!R51) -> 0 | S51: =SUM(→:←!S51) -> 0 | T51: =SUM(→:←!T51) -> 165.66944 | U51: =SUM(→:←!U51) -> 157.3776043 | V51: =SUM(→:←!V51) -> 6 | W51: =SUM(→:←!W51) -> 4.8 | X51: =SUM(→:←!X51) -> 0 | Y51: =SUM(→:←!Y51) -> 0 | Z51: =SUM(→:←!Z51) -> 0 | AA51: =SUM(→:←!AA51) -> 0 | AB51: =SUM(→:←!AB51) -> 0 | AC51: =SUM(→:←!AC51) -> 10.8 | AD51: =SUM(→:←!AD51) -> 146.5776043 | AE51: =SUM(→:←!AE51) -> 72 | AF51: =SUM(→:←!AF51) -> 0 | AG51: =SUM(→:←!AG51) -> 57 | AH51: =SUM(→:←!AH51) -> 250 | AI51: =SUM(→:←!AI51) -> 0 | AJ51: =SUM(→:←!AJ51) -> 20.75 | AK51: =SUM(→:←!AK51) -> 399.75 | AL51: =SUM(→:←!AL51) -> -253.1723957 | AM51: =SUM(→:←!AM51) -> 2335.288495 | AN51: 1634.701947 | AO51: 1584.688855 | AP51: 3219.390802 | AQ51: 707.2818455 | AS51: =SUM(K51:$K$70) -> 0 | AT51: 2335.288495 | AV51: 576.21944 | AX51: 691.463328 | AY51: =IF($AH51>0,"車,","")&IF($AF51>0,"リフォーム,","")&IF(子1!C51=18,"大学入学,","")&IF(子2!C51=18,"大学入学,","")&IF(子3!C51=18,"大学入学,","")&IF(子4!C51=18,"大学入学,","") -> 車,
B52: 2068 | C52: 70 | D52: =SUM(→:←!D52) -> 0 | E52: =SUM(→:←!E52) -> 0 | F52: =SUM(→:←!F52) -> 0 | G52: =SUM(→:←!G52) -> 0 | H52: =SUM(→:←!H52) -> 338.4002837 | I52: =SUM(→:←!I52) -> -15.35323933 | J52: =SUM(→:←!J52) -> 323.0470443 | K52: =SUM(→:←!K52) -> 0 | L52: =SUM(→:←!L52) -> 37.14936 | M52: =SUM(→:←!M52) -> 79.2 | N52: =SUM(→:←!N52) -> 26.4 | O52: =SUM(→:←!O52) -> 9.9 | P52: =SUM(→:←!P52) -> 7.92 | Q52: =SUM(→:←!Q52) -> 4.95 | R52: =SUM(→:←!R52) -> 0 | S52: =SUM(→:←!S52) -> 0 | T52: =SUM(→:←!T52) -> 165.51936 | U52: =SUM(→:←!U52) -> 157.5276843 | V52: =SUM(→:←!V52) -> 6 | W52: =SUM(→:←!W52) -> 4.8 | X52: =SUM(→:←!X52) -> 0 | Y52: =SUM(→:←!Y52) -> 0 | Z52: =SUM(→:←!Z52) -> 0 | AA52: =SUM(→:←!AA52) -> 0 | AB52: =SUM(→:←!AB52) -> 0 | AC52: =SUM(→:←!AC52) -> 10.8 | AD52: =SUM(→:←!AD52) -> 146.7276843 | AE52: =SUM(→:←!AE52) -> 72 | AF52: =SUM(→:←!AF52) -> 0 | AG52: =SUM(→:←!AG52) -> 0 | AH52: =SUM(→:←!AH52) -> 0 | AI52: =SUM(→:←!AI52) -> 0 | AJ52: =SUM(→:←!AJ52) -> 20.75 | AK52: =SUM(→:←!AK52) -> 92.75 | AL52: =SUM(→:←!AL52) -> 53.97768433 | AM52: =SUM(→:←!AM52) -> 2389.26618 | AN52: 1672.486326 | AO52: 1680.116604 | AP52: 3352.602929 | AQ52: 770.6693997 | AS52: =SUM(K52:$K$70) -> 0 | AT52: 2389.26618 | AV52: 269.06936 | AX52: 10269.06936 | AY52: =IF($AH52>0,"車,","")&IF($AF52>0,"リフォーム,","")&IF(子1!C52=18,"大学入学,","")&IF(子2!C52=18,"大学入学,","")&IF(子3!C52=18,"大学入学,","")&IF(子4!C52=18,"大学入学,","") -> 
B53: 2069 | C53: 71 | D53: =SUM(→:←!D53) -> 0 | E53: =SUM(→:←!E53) -> 0 | F53: =SUM(→:←!F53) -> 0 | G53: =SUM(→:←!G53) -> 0 | H53: =SUM(→:←!H53) -> 338.4002837 | I53: =SUM(→:←!I53) -> -15.35323933 | J53: =SUM(→:←!J53) -> 323.0470443 | K53: =SUM(→:←!K53) -> 0 | L53: =SUM(→:←!L53) -> 37.14936 | M53: =SUM(→:←!M53) -> 79.2 | N53: =SUM(→:←!N53) -> 26.4 | O53: =SUM(→:←!O53) -> 9.9 | P53: =SUM(→:←!P53) -> 7.92 | Q53: =SUM(→:←!Q53) -> 4.95 | R53: =SUM(→:←!R53) -> 0 | S53: =SUM(→:←!S53) -> 0 | T53: =SUM(→:←!T53) -> 165.51936 | U53: =SUM(→:←!U53) -> 157.5276843 | V53: =SUM(→:←!V53) -> 6 | W53: =SUM(→:←!W53) -> 4.8 | X53: =SUM(→:←!X53) -> 0 | Y53: =SUM(→:←!Y53) -> 0 | Z53: =SUM(→:←!Z53) -> 0 | AA53: =SUM(→:←!AA53) -> 0 | AB53: =SUM(→:←!AB53) -> 0 | AC53: =SUM(→:←!AC53) -> 10.8 | AD53: =SUM(→:←!AD53) -> 146.7276843 | AE53: =SUM(→:←!AE53) -> 72 | AF53: =SUM(→:←!AF53) -> 0 | AG53: =SUM(→:←!AG53) -> 0 | AH53: =SUM(→:←!AH53) -> 0 | AI53: =SUM(→:←!AI53) -> 0 | AJ53: =SUM(→:←!AJ53) -> 20.75 | AK53: =SUM(→:←!AK53) -> 92.75 | AL53: =SUM(→:←!AL53) -> 53.97768433 | AM53: =SUM(→:←!AM53) -> 2443.243864 | AN53: 1710.270705 | AO53: 1780.315739 | AP53: 3490.586444 | AQ53: 837.8740638 | AS53: =SUM(K53:$K$70) -> 0 | AT53: 2443.243864 | AV53: 269.06936 | AX53: 10269.06936 | AY53: =IF($AH53>0,"車,","")&IF($AF53>0,"リフォーム,","")&IF(子1!C53=18,"大学入学,","")&IF(子2!C53=18,"大学入学,","")&IF(子3!C53=18,"大学入学,","")&IF(子4!C53=18,"大学入学,","") -> 
B54: 2070 | C54: 72 | D54: =SUM(→:←!D54) -> 0 | E54: =SUM(→:←!E54) -> 0 | F54: =SUM(→:←!F54) -> 0 | G54: =SUM(→:←!G54) -> 0 | H54: =SUM(→:←!H54) -> 338.4002837 | I54: =SUM(→:←!I54) -> -15.35323933 | J54: =SUM(→:←!J54) -> 323.0470443 | K54: =SUM(→:←!K54) -> 0 | L54: =SUM(→:←!L54) -> 36.99928 | M54: =SUM(→:←!M54) -> 79.2 | N54: =SUM(→:←!N54) -> 26.4 | O54: =SUM(→:←!O54) -> 9.9 | P54: =SUM(→:←!P54) -> 7.92 | Q54: =SUM(→:←!Q54) -> 4.95 | R54: =SUM(→:←!R54) -> 0 | S54: =SUM(→:←!S54) -> 0 | T54: =SUM(→:←!T54) -> 165.36928 | U54: =SUM(→:←!U54) -> 157.6777643 | V54: =SUM(→:←!V54) -> 6 | W54: =SUM(→:←!W54) -> 4.8 | X54: =SUM(→:←!X54) -> 0 | Y54: =SUM(→:←!Y54) -> 0 | Z54: =SUM(→:←!Z54) -> 0 | AA54: =SUM(→:←!AA54) -> 0 | AB54: =SUM(→:←!AB54) -> 0 | AC54: =SUM(→:←!AC54) -> 10.8 | AD54: =SUM(→:←!AD54) -> 146.8777643 | AE54: =SUM(→:←!AE54) -> 72 | AF54: =SUM(→:←!AF54) -> 0 | AG54: =SUM(→:←!AG54) -> 0 | AH54: =SUM(→:←!AH54) -> 0 | AI54: =SUM(→:←!AI54) -> 0 | AJ54: =SUM(→:←!AJ54) -> 20.75 | AK54: =SUM(→:←!AK54) -> 92.75 | AL54: =SUM(→:←!AL54) -> 54.12776433 | AM54: =SUM(→:←!AM54) -> 2497.371628 | AN54: 1748.16014 | AO54: 1885.569855 | AP54: 3633.729995 | AQ54: 909.0866934 | AS54: =SUM(K54:$K$70) -> 0 | AT54: 2497.371628 | AV54: 268.91928 | AX54: 10268.91928 | AY54: =IF($AH54>0,"車,","")&IF($AF54>0,"リフォーム,","")&IF(子1!C54=18,"大学入学,","")&IF(子2!C54=18,"大学入学,","")&IF(子3!C54=18,"大学入学,","")&IF(子4!C54=18,"大学入学,","") -> 
B55: 2071 | C55: 73 | D55: =SUM(→:←!D55) -> 0 | E55: =SUM(→:←!E55) -> 0 | F55: =SUM(→:←!F55) -> 0 | G55: =SUM(→:←!G55) -> 0 | H55: =SUM(→:←!H55) -> 338.4002837 | I55: =SUM(→:←!I55) -> -15.35323933 | J55: =SUM(→:←!J55) -> 323.0470443 | K55: =SUM(→:←!K55) -> 0 | L55: =SUM(→:←!L55) -> 36.99928 | M55: =SUM(→:←!M55) -> 79.2 | N55: =SUM(→:←!N55) -> 26.4 | O55: =SUM(→:←!O55) -> 9.9 | P55: =SUM(→:←!P55) -> 7.92 | Q55: =SUM(→:←!Q55) -> 4.95 | R55: =SUM(→:←!R55) -> 0 | S55: =SUM(→:←!S55) -> 0 | T55: =SUM(→:←!T55) -> 165.36928 | U55: =SUM(→:←!U55) -> 157.6777643 | V55: =SUM(→:←!V55) -> 6 | W55: =SUM(→:←!W55) -> 4.8 | X55: =SUM(→:←!X55) -> 0 | Y55: =SUM(→:←!Y55) -> 0 | Z55: =SUM(→:←!Z55) -> 0 | AA55: =SUM(→:←!AA55) -> 0 | AB55: =SUM(→:←!AB55) -> 0 | AC55: =SUM(→:←!AC55) -> 10.8 | AD55: =SUM(→:←!AD55) -> 146.8777643 | AE55: =SUM(→:←!AE55) -> 72 | AF55: =SUM(→:←!AF55) -> 316 | AG55: =SUM(→:←!AG55) -> 0 | AH55: =SUM(→:←!AH55) -> 0 | AI55: =SUM(→:←!AI55) -> 0 | AJ55: =SUM(→:←!AJ55) -> 20.75 | AK55: =SUM(→:←!AK55) -> 408.75 | AL55: =SUM(→:←!AL55) -> -261.8722357 | AM55: =SUM(→:←!AM55) -> 2235.499393 | AN55: 1564.849575 | AO55: 1901.286677 | AP55: 3466.136252 | AQ55: 984.5094876 | AS55: =SUM(K55:$K$70) -> 0 | AT55: 2235.499393 | AV55: 584.91928 | AX55: 701.903136 | AY55: =IF($AH55>0,"車,","")&IF($AF55>0,"リフォーム,","")&IF(子1!C55=18,"大学入学,","")&IF(子2!C55=18,"大学入学,","")&IF(子3!C55=18,"大学入学,","")&IF(子4!C55=18,"大学入学,","") -> リフォーム,
B56: 2072 | C56: 74 | D56: =SUM(→:←!D56) -> 0 | E56: =SUM(→:←!E56) -> 0 | F56: =SUM(→:←!F56) -> 0 | G56: =SUM(→:←!G56) -> 0 | H56: =SUM(→:←!H56) -> 338.4002837 | I56: =SUM(→:←!I56) -> -15.35323933 | J56: =SUM(→:←!J56) -> 323.0470443 | K56: =SUM(→:←!K56) -> 0 | L56: =SUM(→:←!L56) -> 36.954256 | M56: =SUM(→:←!M56) -> 79.2 | N56: =SUM(→:←!N56) -> 26.4 | O56: =SUM(→:←!O56) -> 9.9 | P56: =SUM(→:←!P56) -> 7.92 | Q56: =SUM(→:←!Q56) -> 4.95 | R56: =SUM(→:←!R56) -> 0 | S56: =SUM(→:←!S56) -> 0 | T56: =SUM(→:←!T56) -> 165.324256 | U56: =SUM(→:←!U56) -> 157.7227883 | V56: =SUM(→:←!V56) -> 6 | W56: =SUM(→:←!W56) -> 4.8 | X56: =SUM(→:←!X56) -> 0 | Y56: =SUM(→:←!Y56) -> 0 | Z56: =SUM(→:←!Z56) -> 0 | AA56: =SUM(→:←!AA56) -> 0 | AB56: =SUM(→:←!AB56) -> 0 | AC56: =SUM(→:←!AC56) -> 10.8 | AD56: =SUM(→:←!AD56) -> 146.9227883 | AE56: =SUM(→:←!AE56) -> 72 | AF56: =SUM(→:←!AF56) -> 0 | AG56: =SUM(→:←!AG56) -> 3 | AH56: =SUM(→:←!AH56) -> 0 | AI56: =SUM(→:←!AI56) -> 0 | AJ56: =SUM(→:←!AJ56) -> 20.75 | AK56: =SUM(→:←!AK56) -> 95.75 | AL56: =SUM(→:←!AL56) -> 51.17278833 | AM56: =SUM(→:←!AM56) -> 2286.672181 | AN56: 1600.670527 | AO56: 2011.702848 | AP56: 3612.373374 | AQ56: 1060.560955 | AS56: =SUM(K56:$K$70) -> 0 | AT56: 2286.672181 | AV56: 271.874256 | AX56: 10271.87426 | AY56: =IF($AH56>0,"車,","")&IF($AF56>0,"リフォーム,","")&IF(子1!C56=18,"大学入学,","")&IF(子2!C56=18,"大学入学,","")&IF(子3!C56=18,"大学入学,","")&IF(子4!C56=18,"大学入学,","") -> 
B57: 2073 | C57: 75 | D57: =SUM(→:←!D57) -> 0 | E57: =SUM(→:←!E57) -> 0 | F57: =SUM(→:←!F57) -> 0 | G57: =SUM(→:←!G57) -> 0 | H57: =SUM(→:←!H57) -> 338.4002837 | I57: =SUM(→:←!I57) -> -15.35323933 | J57: =SUM(→:←!J57) -> 323.0470443 | K57: =SUM(→:←!K57) -> 0 | L57: =SUM(→:←!L57) -> 36.9287424 | M57: =SUM(→:←!M57) -> 79.2 | N57: =SUM(→:←!N57) -> 26.4 | O57: =SUM(→:←!O57) -> 9.9 | P57: =SUM(→:←!P57) -> 7.92 | Q57: =SUM(→:←!Q57) -> 4.95 | R57: =SUM(→:←!R57) -> 0 | S57: =SUM(→:←!S57) -> 0 | T57: =SUM(→:←!T57) -> 165.2987424 | U57: =SUM(→:←!U57) -> 157.7483019 | V57: =SUM(→:←!V57) -> 6 | W57: =SUM(→:←!W57) -> 4.8 | X57: =SUM(→:←!X57) -> 0 | Y57: =SUM(→:←!Y57) -> 0 | Z57: =SUM(→:←!Z57) -> 0 | AA57: =SUM(→:←!AA57) -> 0 | AB57: =SUM(→:←!AB57) -> 0 | AC57: =SUM(→:←!AC57) -> 10.8 | AD57: =SUM(→:←!AD57) -> 146.9483019 | AE57: =SUM(→:←!AE57) -> 72 | AF57: =SUM(→:←!AF57) -> 0 | AG57: =SUM(→:←!AG57) -> 0 | AH57: =SUM(→:←!AH57) -> 0 | AI57: =SUM(→:←!AI57) -> 0 | AJ57: =SUM(→:←!AJ57) -> 20.75 | AK57: =SUM(→:←!AK57) -> 92.75 | AL57: =SUM(→:←!AL57) -> 54.19830193 | AM57: =SUM(→:←!AM57) -> 2340.870483 | AN57: 1638.609338 | AO57: 2128.547481 | AP57: 3767.156819 | AQ57: 1141.029069 | AS57: =SUM(K57:$K$70) -> 0 | AT57: 2340.870483 | AV57: 268.8487424 | AX57: 10268.84874 | AY57: =IF($AH57>0,"車,","")&IF($AF57>0,"リフォーム,","")&IF(子1!C57=18,"大学入学,","")&IF(子2!C57=18,"大学入学,","")&IF(子3!C57=18,"大学入学,","")&IF(子4!C57=18,"大学入学,","") -> 
B58: 2074 | C58: 76 | D58: =SUM(→:←!D58) -> 0 | E58: =SUM(→:←!E58) -> 0 | F58: =SUM(→:←!F58) -> 0 | G58: =SUM(→:←!G58) -> 0 | H58: =SUM(→:←!H58) -> 338.4002837 | I58: =SUM(→:←!I58) -> -15.35323933 | J58: =SUM(→:←!J58) -> 323.0470443 | K58: =SUM(→:←!K58) -> 0 | L58: =SUM(→:←!L58) -> 36.9032288 | M58: =SUM(→:←!M58) -> 79.2 | N58: =SUM(→:←!N58) -> 26.4 | O58: =SUM(→:←!O58) -> 9.9 | P58: =SUM(→:←!P58) -> 7.92 | Q58: =SUM(→:←!Q58) -> 4.95 | R58: =SUM(→:←!R58) -> 0 | S58: =SUM(→:←!S58) -> 0 | T58: =SUM(→:←!T58) -> 165.2732288 | U58: =SUM(→:←!U58) -> 157.7738155 | V58: =SUM(→:←!V58) -> 6 | W58: =SUM(→:←!W58) -> 4.8 | X58: =SUM(→:←!X58) -> 0 | Y58: =SUM(→:←!Y58) -> 0 | Z58: =SUM(→:←!Z58) -> 0 | AA58: =SUM(→:←!AA58) -> 0 | AB58: =SUM(→:←!AB58) -> 0 | AC58: =SUM(→:←!AC58) -> 10.8 | AD58: =SUM(→:←!AD58) -> 146.9738155 | AE58: =SUM(→:←!AE58) -> 72 | AF58: =SUM(→:←!AF58) -> 0 | AG58: =SUM(→:←!AG58) -> 0 | AH58: =SUM(→:←!AH58) -> 250 | AI58: =SUM(→:←!AI58) -> 0 | AJ58: =SUM(→:←!AJ58) -> 20.75 | AK58: =SUM(→:←!AK58) -> 342.75 | AL58: =SUM(→:←!AL58) -> -195.7761845 | AM58: =SUM(→:←!AM58) -> 2145.094298 | AN58: 1501.566009 | AO58: 2176.241999 | AP58: 3677.808008 | AQ58: 1226.170968 | AS58: =SUM(K58:$K$70) -> 0 | AT58: 2145.094298 | AV58: 518.8232288 | AX58: 622.5878746 | AY58: =IF($AH58>0,"車,","")&IF($AF58>0,"リフォーム,","")&IF(子1!C58=18,"大学入学,","")&IF(子2!C58=18,"大学入学,","")&IF(子3!C58=18,"大学入学,","")&IF(子4!C58=18,"大学入学,","") -> 車,
B59: 2075 | C59: 77 | D59: =SUM(→:←!D59) -> 0 | E59: =SUM(→:←!E59) -> 0 | F59: =SUM(→:←!F59) -> 0 | G59: =SUM(→:←!G59) -> 0 | H59: =SUM(→:←!H59) -> 338.4002837 | I59: =SUM(→:←!I59) -> -15.35323933 | J59: =SUM(→:←!J59) -> 323.0470443 | K59: =SUM(→:←!K59) -> 0 | L59: =SUM(→:←!L59) -> 36.8762144 | M59: =SUM(→:←!M59) -> 79.2 | N59: =SUM(→:←!N59) -> 26.4 | O59: =SUM(→:←!O59) -> 9.9 | P59: =SUM(→:←!P59) -> 7.92 | Q59: =SUM(→:←!Q59) -> 4.95 | R59: =SUM(→:←!R59) -> 0 | S59: =SUM(→:←!S59) -> 0 | T59: =SUM(→:←!T59) -> 165.2462144 | U59: =SUM(→:←!U59) -> 157.8008299 | V59: =SUM(→:←!V59) -> 6 | W59: =SUM(→:←!W59) -> 4.8 | X59: =SUM(→:←!X59) -> 0 | Y59: =SUM(→:←!Y59) -> 0 | Z59: =SUM(→:←!Z59) -> 0 | AA59: =SUM(→:←!AA59) -> 0 | AB59: =SUM(→:←!AB59) -> 0 | AC59: =SUM(→:←!AC59) -> 10.8 | AD59: =SUM(→:←!AD59) -> 147.0008299 | AE59: =SUM(→:←!AE59) -> 72 | AF59: =SUM(→:←!AF59) -> 0 | AG59: =SUM(→:←!AG59) -> 0 | AH59: =SUM(→:←!AH59) -> 0 | AI59: =SUM(→:←!AI59) -> 0 | AJ59: =SUM(→:←!AJ59) -> 20.75 | AK59: =SUM(→:←!AK59) -> 92.75 | AL59: =SUM(→:←!AL59) -> 54.25082993 | AM59: =SUM(→:←!AM59) -> 2199.345128 | AN59: 1539.54159 | AO59: 2301.329348 | AP59: 3840.870938 | AQ59: 1313.220648 | AS59: =SUM(K59:$K$70) -> 0 | AT59: 2199.345128 | AV59: 268.7962144 | AX59: 10268.79621 | AY59: =IF($AH59>0,"車,","")&IF($AF59>0,"リフォーム,","")&IF(子1!C59=18,"大学入学,","")&IF(子2!C59=18,"大学入学,","")&IF(子3!C59=18,"大学入学,","")&IF(子4!C59=18,"大学入学,","") -> 
B60: 2076 | C60: 78 | D60: =SUM(→:←!D60) -> 0 | E60: =SUM(→:←!E60) -> 0 | F60: =SUM(→:←!F60) -> 0 | G60: =SUM(→:←!G60) -> 0 | H60: =SUM(→:←!H60) -> 338.4002837 | I60: =SUM(→:←!I60) -> -15.35323933 | J60: =SUM(→:←!J60) -> 323.0470443 | K60: =SUM(→:←!K60) -> 0 | L60: =SUM(→:←!L60) -> 36.8492 | M60: =SUM(→:←!M60) -> 79.2 | N60: =SUM(→:←!N60) -> 26.4 | O60: =SUM(→:←!O60) -> 9.9 | P60: =SUM(→:←!P60) -> 7.92 | Q60: =SUM(→:←!Q60) -> 4.95 | R60: =SUM(→:←!R60) -> 0 | S60: =SUM(→:←!S60) -> 0 | T60: =SUM(→:←!T60) -> 165.2192 | U60: =SUM(→:←!U60) -> 157.8278443 | V60: =SUM(→:←!V60) -> 6 | W60: =SUM(→:←!W60) -> 4.8 | X60: =SUM(→:←!X60) -> 0 | Y60: =SUM(→:←!Y60) -> 0 | Z60: =SUM(→:←!Z60) -> 0 | AA60: =SUM(→:←!AA60) -> 0 | AB60: =SUM(→:←!AB60) -> 0 | AC60: =SUM(→:←!AC60) -> 10.8 | AD60: =SUM(→:←!AD60) -> 147.0278443 | AE60: =SUM(→:←!AE60) -> 72 | AF60: =SUM(→:←!AF60) -> 0 | AG60: =SUM(→:←!AG60) -> 0 | AH60: =SUM(→:←!AH60) -> 0 | AI60: =SUM(→:←!AI60) -> 0 | AJ60: =SUM(→:←!AJ60) -> 20.75 | AK60: =SUM(→:←!AK60) -> 92.75 | AL60: =SUM(→:←!AL60) -> 54.27784433 | AM60: =SUM(→:←!AM60) -> 2253.622973 | AN60: 1577.536081 | AO60: 2432.679169 | AP60: 4010.21525 | AQ60: 1405.273822 | AS60: =SUM(K60:$K$70) -> 0 | AT60: 2253.622973 | AV60: 268.7692 | AX60: 10268.7692 | AY60: =IF($AH60>0,"車,","")&IF($AF60>0,"リフォーム,","")&IF(子1!C60=18,"大学入学,","")&IF(子2!C60=18,"大学入学,","")&IF(子3!C60=18,"大学入学,","")&IF(子4!C60=18,"大学入学,","") -> 
B61: 2077 | C61: 79 | D61: =SUM(→:←!D61) -> 0 | E61: =SUM(→:←!E61) -> 0 | F61: =SUM(→:←!F61) -> 0 | G61: =SUM(→:←!G61) -> 0 | H61: =SUM(→:←!H61) -> 338.4002837 | I61: =SUM(→:←!I61) -> -15.35323933 | J61: =SUM(→:←!J61) -> 323.0470443 | K61: =SUM(→:←!K61) -> 0 | L61: =SUM(→:←!L61) -> 36.8492 | M61: =SUM(→:←!M61) -> 79.2 | N61: =SUM(→:←!N61) -> 26.4 | O61: =SUM(→:←!O61) -> 9.9 | P61: =SUM(→:←!P61) -> 7.92 | Q61: =SUM(→:←!Q61) -> 4.95 | R61: =SUM(→:←!R61) -> 0 | S61: =SUM(→:←!S61) -> 0 | T61: =SUM(→:←!T61) -> 165.2192 | U61: =SUM(→:←!U61) -> 157.8278443 | V61: =SUM(→:←!V61) -> 6 | W61: =SUM(→:←!W61) -> 4.8 | X61: =SUM(→:←!X61) -> 0 | Y61: =SUM(→:←!Y61) -> 0 | Z61: =SUM(→:←!Z61) -> 0 | AA61: =SUM(→:←!AA61) -> 0 | AB61: =SUM(→:←!AB61) -> 0 | AC61: =SUM(→:←!AC61) -> 10.8 | AD61: =SUM(→:←!AD61) -> 147.0278443 | AE61: =SUM(→:←!AE61) -> 72 | AF61: =SUM(→:←!AF61) -> 0 | AG61: =SUM(→:←!AG61) -> 57 | AH61: =SUM(→:←!AH61) -> 0 | AI61: =SUM(→:←!AI61) -> 0 | AJ61: =SUM(→:←!AJ61) -> 20.75 | AK61: =SUM(→:←!AK61) -> 149.75 | AL61: =SUM(→:←!AL61) -> -2.722155666 | AM61: =SUM(→:←!AM61) -> 2250.900817 | AN61: 1575.630572 | AO61: 2553.496481 | AP61: 4129.127053 | AQ61: 1502.580988 | AS61: =SUM(K61:$K$70) -> 0 | AT61: 2250.900817 | AV61: 325.7692 | AX61: 10325.7692 | AY61: =IF($AH61>0,"車,","")&IF($AF61>0,"リフォーム,","")&IF(子1!C61=18,"大学入学,","")&IF(子2!C61=18,"大学入学,","")&IF(子3!C61=18,"大学入学,","")&IF(子4!C61=18,"大学入学,","") -> 
B62: 2078 | C62: 80 | D62: =SUM(→:←!D62) -> 0 | E62: =SUM(→:←!E62) -> 0 | F62: =SUM(→:←!F62) -> 0 | G62: =SUM(→:←!G62) -> 0 | H62: =SUM(→:←!H62) -> 338.4002837 | I62: =SUM(→:←!I62) -> -15.35323933 | J62: =SUM(→:←!J62) -> 323.0470443 | K62: =SUM(→:←!K62) -> 0 | L62: =SUM(→:←!L62) -> 36.8492 | M62: =SUM(→:←!M62) -> 79.2 | N62: =SUM(→:←!N62) -> 26.4 | O62: =SUM(→:←!O62) -> 9.9 | P62: =SUM(→:←!P62) -> 7.92 | Q62: =SUM(→:←!Q62) -> 4.95 | R62: =SUM(→:←!R62) -> 0 | S62: =SUM(→:←!S62) -> 0 | T62: =SUM(→:←!T62) -> 165.2192 | U62: =SUM(→:←!U62) -> 157.8278443 | V62: =SUM(→:←!V62) -> 6 | W62: =SUM(→:←!W62) -> 4.8 | X62: =SUM(→:←!X62) -> 0 | Y62: =SUM(→:←!Y62) -> 0 | Z62: =SUM(→:←!Z62) -> 0 | AA62: =SUM(→:←!AA62) -> 0 | AB62: =SUM(→:←!AB62) -> 0 | AC62: =SUM(→:←!AC62) -> 10.8 | AD62: =SUM(→:←!AD62) -> 147.0278443 | AE62: =SUM(→:←!AE62) -> 72 | AF62: =SUM(→:←!AF62) -> 0 | AG62: =SUM(→:←!AG62) -> 0 | AH62: =SUM(→:←!AH62) -> 0 | AI62: =SUM(→:←!AI62) -> 0 | AJ62: =SUM(→:←!AJ62) -> 20.75 | AK62: =SUM(→:←!AK62) -> 92.75 | AL62: =SUM(→:←!AL62) -> 54.27784433 | AM62: =SUM(→:←!AM62) -> 2305.178661 | AN62: 1613.625063 | AO62: 2697.454658 | AP62: 4311.079721 | AQ62: 1604.720848 | AS62: =SUM(K62:$K$70) -> 0 | AT62: 2305.178661 | AV62: 268.7692 | AX62: 10268.7692 | AY62: =IF($AH62>0,"車,","")&IF($AF62>0,"リフォーム,","")&IF(子1!C62=18,"大学入学,","")&IF(子2!C62=18,"大学入学,","")&IF(子3!C62=18,"大学入学,","")&IF(子4!C62=18,"大学入学,","") -> 
B63: 2079 | C63: 81 | D63: =SUM(→:←!D63) -> 0 | E63: =SUM(→:←!E63) -> 0 | F63: =SUM(→:←!F63) -> 0 | G63: =SUM(→:←!G63) -> 0 | H63: =SUM(→:←!H63) -> 338.4002837 | I63: =SUM(→:←!I63) -> -15.35323933 | J63: =SUM(→:←!J63) -> 323.0470443 | K63: =SUM(→:←!K63) -> 0 | L63: =SUM(→:←!L63) -> 36.8492 | M63: =SUM(→:←!M63) -> 79.2 | N63: =SUM(→:←!N63) -> 26.4 | O63: =SUM(→:←!O63) -> 9.9 | P63: =SUM(→:←!P63) -> 7.92 | Q63: =SUM(→:←!Q63) -> 4.95 | R63: =SUM(→:←!R63) -> 0 | S63: =SUM(→:←!S63) -> 0 | T63: =SUM(→:←!T63) -> 165.2192 | U63: =SUM(→:←!U63) -> 157.8278443 | V63: =SUM(→:←!V63) -> 6 | W63: =SUM(→:←!W63) -> 4.8 | X63: =SUM(→:←!X63) -> 0 | Y63: =SUM(→:←!Y63) -> 0 | Z63: =SUM(→:←!Z63) -> 0 | AA63: =SUM(→:←!AA63) -> 0 | AB63: =SUM(→:←!AB63) -> 0 | AC63: =SUM(→:←!AC63) -> 10.8 | AD63: =SUM(→:←!AD63) -> 147.0278443 | AE63: =SUM(→:←!AE63) -> 72 | AF63: =SUM(→:←!AF63) -> 0 | AG63: =SUM(→:←!AG63) -> 0 | AH63: =SUM(→:←!AH63) -> 0 | AI63: =SUM(→:←!AI63) -> 0 | AJ63: =SUM(→:←!AJ63) -> 20.75 | AK63: =SUM(→:←!AK63) -> 92.75 | AL63: =SUM(→:←!AL63) -> 54.27784433 | AM63: =SUM(→:←!AM63) -> 2359.456506 | AN63: 1651.619554 | AO63: 2848.610744 | AP63: 4500.230298 | AQ63: 1712.619034 | AS63: =SUM(K63:$K$70) -> 0 | AT63: 2359.456506 | AV63: 268.7692 | AX63: 10268.7692 | AY63: =IF($AH63>0,"車,","")&IF($AF63>0,"リフォーム,","")&IF(子1!C63=18,"大学入学,","")&IF(子2!C63=18,"大学入学,","")&IF(子3!C63=18,"大学入学,","")&IF(子4!C63=18,"大学入学,","") -> 
B64: 2080 | C64: 82 | D64: =SUM(→:←!D64) -> 0 | E64: =SUM(→:←!E64) -> 0 | F64: =SUM(→:←!F64) -> 0 | G64: =SUM(→:←!G64) -> 0 | H64: =SUM(→:←!H64) -> 338.4002837 | I64: =SUM(→:←!I64) -> -15.35323933 | J64: =SUM(→:←!J64) -> 323.0470443 | K64: =SUM(→:←!K64) -> 0 | L64: =SUM(→:←!L64) -> 36.8492 | M64: =SUM(→:←!M64) -> 79.2 | N64: =SUM(→:←!N64) -> 26.4 | O64: =SUM(→:←!O64) -> 9.9 | P64: =SUM(→:←!P64) -> 7.92 | Q64: =SUM(→:←!Q64) -> 4.95 | R64: =SUM(→:←!R64) -> 0 | S64: =SUM(→:←!S64) -> 0 | T64: =SUM(→:←!T64) -> 165.2192 | U64: =SUM(→:←!U64) -> 157.8278443 | V64: =SUM(→:←!V64) -> 6 | W64: =SUM(→:←!W64) -> 4.8 | X64: =SUM(→:←!X64) -> 0 | Y64: =SUM(→:←!Y64) -> 0 | Z64: =SUM(→:←!Z64) -> 0 | AA64: =SUM(→:←!AA64) -> 0 | AB64: =SUM(→:←!AB64) -> 0 | AC64: =SUM(→:←!AC64) -> 10.8 | AD64: =SUM(→:←!AD64) -> 147.0278443 | AE64: =SUM(→:←!AE64) -> 72 | AF64: =SUM(→:←!AF64) -> 0 | AG64: =SUM(→:←!AG64) -> 0 | AH64: =SUM(→:←!AH64) -> 0 | AI64: =SUM(→:←!AI64) -> 0 | AJ64: =SUM(→:←!AJ64) -> 20.75 | AK64: =SUM(→:←!AK64) -> 92.75 | AL64: =SUM(→:←!AL64) -> 54.27784433 | AM64: =SUM(→:←!AM64) -> 2413.73435 | AN64: 1689.614045 | AO64: 3007.324635 | AP64: 4696.93868 | AQ64: 1826.563464 | AS64: =SUM(K64:$K$70) -> 0 | AT64: 2413.73435 | AV64: 268.7692 | AX64: 10268.7692 | AY64: =IF($AH64>0,"車,","")&IF($AF64>0,"リフォーム,","")&IF(子1!C64=18,"大学入学,","")&IF(子2!C64=18,"大学入学,","")&IF(子3!C64=18,"大学入学,","")&IF(子4!C64=18,"大学入学,","") -> 
B65: 2081 | C65: 83 | D65: =SUM(→:←!D65) -> 0 | E65: =SUM(→:←!E65) -> 0 | F65: =SUM(→:←!F65) -> 0 | G65: =SUM(→:←!G65) -> 0 | H65: =SUM(→:←!H65) -> 338.4002837 | I65: =SUM(→:←!I65) -> -15.35323933 | J65: =SUM(→:←!J65) -> 323.0470443 | K65: =SUM(→:←!K65) -> 0 | L65: =SUM(→:←!L65) -> 36.8492 | M65: =SUM(→:←!M65) -> 79.2 | N65: =SUM(→:←!N65) -> 26.4 | O65: =SUM(→:←!O65) -> 9.9 | P65: =SUM(→:←!P65) -> 7.92 | Q65: =SUM(→:←!Q65) -> 4.95 | R65: =SUM(→:←!R65) -> 0 | S65: =SUM(→:←!S65) -> 0 | T65: =SUM(→:←!T65) -> 165.2192 | U65: =SUM(→:←!U65) -> 157.8278443 | V65: =SUM(→:←!V65) -> 6 | W65: =SUM(→:←!W65) -> 4.8 | X65: =SUM(→:←!X65) -> 0 | Y65: =SUM(→:←!Y65) -> 0 | Z65: =SUM(→:←!Z65) -> 0 | AA65: =SUM(→:←!AA65) -> 0 | AB65: =SUM(→:←!AB65) -> 0 | AC65: =SUM(→:←!AC65) -> 10.8 | AD65: =SUM(→:←!AD65) -> 147.0278443 | AE65: =SUM(→:←!AE65) -> 72 | AF65: =SUM(→:←!AF65) -> 0 | AG65: =SUM(→:←!AG65) -> 0 | AH65: =SUM(→:←!AH65) -> 250 | AI65: =SUM(→:←!AI65) -> 0 | AJ65: =SUM(→:←!AJ65) -> 20.75 | AK65: =SUM(→:←!AK65) -> 342.75 | AL65: =SUM(→:←!AL65) -> -195.7221557 | AM65: =SUM(→:←!AM65) -> 2218.012194 | AN65: 1552.608536 | AO65: 3098.97422 | AP65: 4651.582756 | AQ65: 1946.856449 | AS65: =SUM(K65:$K$70) -> 0 | AT65: 2218.012194 | AV65: 518.7692 | AX65: 622.52304 | AY65: =IF($AH65>0,"車,","")&IF($AF65>0,"リフォーム,","")&IF(子1!C65=18,"大学入学,","")&IF(子2!C65=18,"大学入学,","")&IF(子3!C65=18,"大学入学,","")&IF(子4!C65=18,"大学入学,","") -> 車,
B66: 2082 | C66: 84 | D66: =SUM(→:←!D66) -> 0 | E66: =SUM(→:←!E66) -> 0 | F66: =SUM(→:←!F66) -> 0 | G66: =SUM(→:←!G66) -> 0 | H66: =SUM(→:←!H66) -> 338.4002837 | I66: =SUM(→:←!I66) -> -15.35323933 | J66: =SUM(→:←!J66) -> 323.0470443 | K66: =SUM(→:←!K66) -> 0 | L66: =SUM(→:←!L66) -> 36.8492 | M66: =SUM(→:←!M66) -> 79.2 | N66: =SUM(→:←!N66) -> 26.4 | O66: =SUM(→:←!O66) -> 9.9 | P66: =SUM(→:←!P66) -> 7.92 | Q66: =SUM(→:←!Q66) -> 4.95 | R66: =SUM(→:←!R66) -> 0 | S66: =SUM(→:←!S66) -> 0 | T66: =SUM(→:←!T66) -> 165.2192 | U66: =SUM(→:←!U66) -> 157.8278443 | V66: =SUM(→:←!V66) -> 6 | W66: =SUM(→:←!W66) -> 4.8 | X66: =SUM(→:←!X66) -> 0 | Y66: =SUM(→:←!Y66) -> 0 | Z66: =SUM(→:←!Z66) -> 0 | AA66: =SUM(→:←!AA66) -> 0 | AB66: =SUM(→:←!AB66) -> 0 | AC66: =SUM(→:←!AC66) -> 10.8 | AD66: =SUM(→:←!AD66) -> 147.0278443 | AE66: =SUM(→:←!AE66) -> 72 | AF66: =SUM(→:←!AF66) -> 0 | AG66: =SUM(→:←!AG66) -> 3 | AH66: =SUM(→:←!AH66) -> 0 | AI66: =SUM(→:←!AI66) -> 0 | AJ66: =SUM(→:←!AJ66) -> 20.75 | AK66: =SUM(→:←!AK66) -> 95.75 | AL66: =SUM(→:←!AL66) -> 51.27784433 | AM66: =SUM(→:←!AM66) -> 2269.290039 | AN66: 1588.503027 | AO66: 3269.306284 | AP66: 4857.809311 | AQ66: 2070.815418 | AS66: =SUM(K66:$K$70) -> 0 | AT66: 2269.290039 | AV66: 271.7692 | AX66: 10271.7692 | AY66: =IF($AH66>0,"車,","")&IF($AF66>0,"リフォーム,","")&IF(子1!C66=18,"大学入学,","")&IF(子2!C66=18,"大学入学,","")&IF(子3!C66=18,"大学入学,","")&IF(子4!C66=18,"大学入学,","") -> 
B67: 2083 | C67: 85 | D67: =SUM(→:←!D67) -> 0 | E67: =SUM(→:←!E67) -> 0 | F67: =SUM(→:←!F67) -> 0 | G67: =SUM(→:←!G67) -> 0 | H67: =SUM(→:←!H67) -> 338.4002837 | I67: =SUM(→:←!I67) -> -15.35323933 | J67: =SUM(→:←!J67) -> 323.0470443 | K67: =SUM(→:←!K67) -> 0 | L67: =SUM(→:←!L67) -> 36.8492 | M67: =SUM(→:←!M67) -> 79.2 | N67: =SUM(→:←!N67) -> 26.4 | O67: =SUM(→:←!O67) -> 9.9 | P67: =SUM(→:←!P67) -> 7.92 | Q67: =SUM(→:←!Q67) -> 4.95 | R67: =SUM(→:←!R67) -> 0 | S67: =SUM(→:←!S67) -> 0 | T67: =SUM(→:←!T67) -> 165.2192 | U67: =SUM(→:←!U67) -> 157.8278443 | V67: =SUM(→:←!V67) -> 6 | W67: =SUM(→:←!W67) -> 4.8 | X67: =SUM(→:←!X67) -> 0 | Y67: =SUM(→:←!Y67) -> 0 | Z67: =SUM(→:←!Z67) -> 0 | AA67: =SUM(→:←!AA67) -> 0 | AB67: =SUM(→:←!AB67) -> 0 | AC67: =SUM(→:←!AC67) -> 10.8 | AD67: =SUM(→:←!AD67) -> 147.0278443 | AE67: =SUM(→:←!AE67) -> 72 | AF67: =SUM(→:←!AF67) -> 0 | AG67: =SUM(→:←!AG67) -> 0 | AH67: =SUM(→:←!AH67) -> 0 | AI67: =SUM(→:←!AI67) -> 0 | AJ67: =SUM(→:←!AJ67) -> 20.75 | AK67: =SUM(→:←!AK67) -> 92.75 | AL67: =SUM(→:←!AL67) -> 54.27784433 | AM67: =SUM(→:←!AM67) -> 2323.567883 | AN67: 1626.497518 | AO67: 3449.054952 | AP67: 5075.55247 | AQ67: 2201.587669 | AS67: =SUM(K67:$K$70) -> 0 | AT67: 2323.567883 | AV67: 268.7692 | AX67: 10268.7692 | AY67: =IF($AH67>0,"車,","")&IF($AF67>0,"リフォーム,","")&IF(子1!C67=18,"大学入学,","")&IF(子2!C67=18,"大学入学,","")&IF(子3!C67=18,"大学入学,","")&IF(子4!C67=18,"大学入学,","") -> 
B68: 2084 | C68: 86 | D68: =SUM(→:←!D68) -> 0 | E68: =SUM(→:←!E68) -> 0 | F68: =SUM(→:←!F68) -> 0 | G68: =SUM(→:←!G68) -> 0 | H68: =SUM(→:←!H68) -> 338.4002837 | I68: =SUM(→:←!I68) -> -15.35323933 | J68: =SUM(→:←!J68) -> 323.0470443 | K68: =SUM(→:←!K68) -> 0 | L68: =SUM(→:←!L68) -> 36.8492 | M68: =SUM(→:←!M68) -> 79.2 | N68: =SUM(→:←!N68) -> 26.4 | O68: =SUM(→:←!O68) -> 9.9 | P68: =SUM(→:←!P68) -> 7.92 | Q68: =SUM(→:←!Q68) -> 4.95 | R68: =SUM(→:←!R68) -> 0 | S68: =SUM(→:←!S68) -> 0 | T68: =SUM(→:←!T68) -> 165.2192 | U68: =SUM(→:←!U68) -> 157.8278443 | V68: =SUM(→:←!V68) -> 6 | W68: =SUM(→:←!W68) -> 4.8 | X68: =SUM(→:←!X68) -> 0 | Y68: =SUM(→:←!Y68) -> 0 | Z68: =SUM(→:←!Z68) -> 0 | AA68: =SUM(→:←!AA68) -> 0 | AB68: =SUM(→:←!AB68) -> 0 | AC68: =SUM(→:←!AC68) -> 10.8 | AD68: =SUM(→:←!AD68) -> 147.0278443 | AE68: =SUM(→:←!AE68) -> 72 | AF68: =SUM(→:←!AF68) -> 0 | AG68: =SUM(→:←!AG68) -> 0 | AH68: =SUM(→:←!AH68) -> 0 | AI68: =SUM(→:←!AI68) -> 0 | AJ68: =SUM(→:←!AJ68) -> 20.75 | AK68: =SUM(→:←!AK68) -> 92.75 | AL68: =SUM(→:←!AL68) -> 54.27784433 | AM68: =SUM(→:←!AM68) -> 2377.845727 | AN68: 1664.492009 | AO68: 3637.791052 | AP68: 5302.283062 | AQ68: 2339.549867 | AS68: =SUM(K68:$K$70) -> 0 | AT68: 2377.845727 | AV68: 268.7692 | AX68: 10268.7692 | AY68: =IF($AH68>0,"車,","")&IF($AF68>0,"リフォーム,","")&IF(子1!C68=18,"大学入学,","")&IF(子2!C68=18,"大学入学,","")&IF(子3!C68=18,"大学入学,","")&IF(子4!C68=18,"大学入学,","") -> 
B69: 2085 | C69: 87 | D69: =SUM(→:←!D69) -> 0 | E69: =SUM(→:←!E69) -> 0 | F69: =SUM(→:←!F69) -> 0 | G69: =SUM(→:←!G69) -> 0 | H69: =SUM(→:←!H69) -> 338.4002837 | I69: =SUM(→:←!I69) -> -15.35323933 | J69: =SUM(→:←!J69) -> 323.0470443 | K69: =SUM(→:←!K69) -> 0 | L69: =SUM(→:←!L69) -> 36.8492 | M69: =SUM(→:←!M69) -> 79.2 | N69: =SUM(→:←!N69) -> 26.4 | O69: =SUM(→:←!O69) -> 9.9 | P69: =SUM(→:←!P69) -> 7.92 | Q69: =SUM(→:←!Q69) -> 4.95 | R69: =SUM(→:←!R69) -> 0 | S69: =SUM(→:←!S69) -> 0 | T69: =SUM(→:←!T69) -> 165.2192 | U69: =SUM(→:←!U69) -> 157.8278443 | V69: =SUM(→:←!V69) -> 6 | W69: =SUM(→:←!W69) -> 4.8 | X69: =SUM(→:←!X69) -> 0 | Y69: =SUM(→:←!Y69) -> 0 | Z69: =SUM(→:←!Z69) -> 0 | AA69: =SUM(→:←!AA69) -> 0 | AB69: =SUM(→:←!AB69) -> 0 | AC69: =SUM(→:←!AC69) -> 10.8 | AD69: =SUM(→:←!AD69) -> 147.0278443 | AE69: =SUM(→:←!AE69) -> 72 | AF69: =SUM(→:←!AF69) -> 0 | AG69: =SUM(→:←!AG69) -> 0 | AH69: =SUM(→:←!AH69) -> 0 | AI69: =SUM(→:←!AI69) -> 0 | AJ69: =SUM(→:←!AJ69) -> 20.75 | AK69: =SUM(→:←!AK69) -> 92.75 | AL69: =SUM(→:←!AL69) -> 54.27784433 | AM69: =SUM(→:←!AM69) -> 2432.123572 | AN69: 1702.4865 | AO69: 3835.963958 | AP69: =SUM(AN69:AO69) -> 5538.450459 | AQ69: 2485.06151 | AS69: =SUM(K69:$K$70) -> 0 | AT69: 2432.123572 | AV69: 268.7692 | AX69: 10268.7692 | AY69: =IF($AH69>0,"車,","")&IF($AF69>0,"リフォーム,","")&IF(子1!C69=18,"大学入学,","")&IF(子2!C69=18,"大学入学,","")&IF(子3!C69=18,"大学入学,","")&IF(子4!C69=18,"大学入学,","") -> 
B70: 2086 | C70: 88 | D70: =SUM(→:←!D70) -> 0 | E70: =SUM(→:←!E70) -> 0 | F70: =SUM(→:←!F70) -> 0 | G70: =SUM(→:←!G70) -> 0 | H70: =SUM(→:←!H70) -> 338.4002837 | I70: =SUM(→:←!I70) -> -15.35323933 | J70: =SUM(→:←!J70) -> 323.0470443 | K70: =SUM(→:←!K70) -> 0 | L70: =SUM(→:←!L70) -> 36.8492 | M70: =SUM(→:←!M70) -> 79.2 | N70: =SUM(→:←!N70) -> 26.4 | O70: =SUM(→:←!O70) -> 9.9 | P70: =SUM(→:←!P70) -> 7.92 | Q70: =SUM(→:←!Q70) -> 4.95 | R70: =SUM(→:←!R70) -> 0 | S70: =SUM(→:←!S70) -> 0 | T70: =SUM(→:←!T70) -> 165.2192 | U70: =SUM(→:←!U70) -> 157.8278443 | V70: =SUM(→:←!V70) -> 6 | W70: =SUM(→:←!W70) -> 4.8 | X70: =SUM(→:←!X70) -> 0 | Y70: =SUM(→:←!Y70) -> 0 | Z70: =SUM(→:←!Z70) -> 0 | AA70: =SUM(→:←!AA70) -> 0 | AB70: =SUM(→:←!AB70) -> 0 | AC70: =SUM(→:←!AC70) -> 10.8 | AD70: =SUM(→:←!AD70) -> 147.0278443 | AE70: =SUM(→:←!AE70) -> 72 | AF70: =SUM(→:←!AF70) -> 0 | AG70: =SUM(→:←!AG70) -> 0 | AH70: =SUM(→:←!AH70) -> 0 | AI70: =SUM(→:←!AI70) -> 0 | AJ70: =SUM(→:←!AJ70) -> 20.75 | AK70: =SUM(→:←!AK70) -> 92.75 | AL70: =SUM(→:←!AL70) -> 54.27784433 | AM70: =SUM(→:←!AM70) -> 2486.401416 | AN70: 1740.480991 | AO70: 4044.04551 | AP70: 5784.526501 | AQ70: 2638.500068 | AS70: =SUM(K70:$K$70) -> 0 | AT70: 2486.401416 | AV70: 268.7692 | AX70: 10268.7692 | AY70: =IF($AH70>0,"車,","")&IF($AF70>0,"リフォーム,","")&IF(子1!C70=18,"大学入学,","")&IF(子2!C70=18,"大学入学,","")&IF(子3!C70=18,"大学入学,","")&IF(子4!C70=18,"大学入学,","") -> 
D71: =SUM(D6:D70) -> 32988.47326 | E71: 25890.55234 | F71: -723.05825 | H71: 7505.732723 | I71: -346.8280931 | J71: 33326.39872 | K71: 5774.399742 | L71: 1854.576666 | M71: 5979.6 | N71: 1993.2 | O71: 712.8 | P71: 570.24 | Q71: 356.4 | S71: =SUM(S6:S70) -> 0 | T71: 17745.21641 | U71: 15581.18232 | V71: 390 | W71: 364.8 | X71: 144 | Y71: 288 | Z71: 1176.7309 | AA71: 432 | AB71: 0 | AC71: 2795.5309 | AD71: 12785.65142 | AE71: 5136 | AF71: 870 | AG71: 363 | AH71: 2550 | AI71: 0 | AJ71: 1380.25 | AK71: 10299.25 | AL71: 2486.401416 | AV71: =T71+AC71+AK71 -> 30839.99731

Sheet →
I2: 収入 | T2: 収支 小計 | AC2: 収支 小計 | AK2: 収支 | AL2: 収支累計 | AO2: 投資をしたら | AP2: 投資額 | AQ2: 貯金 | AS2: 投資計算 | AT2: 累積投資額 | AU2: 投資収入
S3: 支出1 衣食住 | AB3: 支出2 固定費 | AK3: 支出3 衣食住勉
B4: 西暦 | C4: 年齢 | D4: 年収 | E4: 手取り | F4: 雑収入 | J4: 住居 | K4: 住居維持費 | L4: 食費 | M4: 服費 | N4: 電気 | O4: ガス | P4: 水道 | U4: インターネット | V4: 携帯 | W4: 塾 | X4: 学校 | AE4: 雑費 | AF4: 家具 | AG4: 車1 | AJ4: 合計 | AO4: 毎月
B5: 貯金

Sheet 親1
M1: =入力!$AD$11*12*(1+入力!$AD$16) -> 39.6 | N1: =入力!$AE$11*12*(1+入力!$AD$16) -> 13.2 | O1: =入力!$AF$11*12*(1+入力!$AD$16) -> 6.6 | P1: =入力!$AG$11*12*(1+入力!$AD$16) -> 5.28 | Q1: =入力!$AH$11*12*(1+入力!$AD$16) -> 3.3 | V1: =入力!$AI$11*12 -> 6 | W1: =入力!$AJ$11*12 -> 2.4 | AE1: =入力!$D$38*12 -> 36
J2: 収入 | U2: 収支 小計 | AD2: 収支 小計 | AL2: 収支 | AM2: 収支累計
T3: 支出1 衣食住 | AC3: 支出2 固定費 | AK3: 支出3 衣食住勉
B4: 西暦 | C4: 年齢 | D4: 年収 | E4: 手取り | F4: 時短等 | G4: 退職金 | H4: 年金 | K4: 住居 | L4: 住居維持費 (含むローン控除) | M4: 食費 | N4: 服費 | O4: 電気 | P4: ガス | Q4: 水道 | R4: 保険 | V4: インターネット | W4: 携帯 | X4: 塾・仕送り | Y4: 習い事 | Z4: 学費 | AE4: お小遣い | AF4: 雑費 | AG4: 家具 | AH4: 車1 | AI4: 車2 | AJ4: 車維持費 | AK4: 合計 | AS4: 子供手当の 扶養人数 | AT4: 子供の人数 | AV4: 年金の計算
B5: 貯金 | AM5: =SUM(AN5:AO5) -> 0 | AN5: =入力!$D$11 -> 0 | AO5: =入力!$E$11 -> 0
B6: 19 | C6: =入力!$D$17 -> 24 | D6: =IF(C6>入力!$D$22,0,VLOOKUP(C6,賃金カーブ!R:T,3,0)) -> 369.7506557 | E6: =VLOOKUP(D6,年収と手取り!X:Y,2,1) -> 281.50352 | F6: =入力!$E$28 -> 0 | G6: =IF(C6=入力!D$22,入力!E$31,0) -> 0 | H6: =IF(C6>65,6.5+$E$71/COUNTIF($E$6:$E$70,">0")*1.8%,0)*12 -> 0 | I6: =IF(H6>0,-年金の税金!$G$24/10000,0) -> 0 | J6: =SUM(E6:I6) -> 281.50352 | M6: =M$1 -> 39.6 | N6: =N$1 -> 13.2 | O6: 6.6 | P6: 5.28 | Q6: 3.3 | R6: =IF(C6>65,0,IF(OR(AND(子1!C6>=0,子1!C6<=18),AND(子2!C6>=0,子2!C6<=18),AND(子3!C6>=0,子3!C6<=18),AND(子4!C6>=0,子4!C6<=18)),入力!$D$35,入力!$D$34)*12) -> 12 | T6: =SUM(K6:S6) -> 79.98 | U6: =J6-T6 -> 201.52352 | V6: =V$1 -> 6 | W6: 2.4 | AC6: =SUM(V6:AB6) -> 8.4 | AD6: =U6-AC6 -> 193.12352 | AE6: =AE$1 -> 36 | AK6: =SUM(AE6:AJ6) -> 36 | AL6: =AD6-AK6 -> 157.12352 | AM6: =AL6+AM5 -> 157.12352 | AS6: =(親2!E6<103)*1+AND(子1!C6>=0,子1!C6<15)*1+AND(子2!C6>=0,子2!C6<15)*1+AND(子3!C6>=0,子3!C6<15)*1+AND(子4!C6>=0,子4!C6<15)*1 -> 0 | AT6: =AND(子1!AC6>0)*1+AND(子2!AC6>0)*1+AND(子3!AC6>0)*1+AND(子4!AC6>0)*1 -> 0 | AU6: =IF(AND(AT6=0,AT5=0),"夫婦",IF(AT6=1,"子1人",IF(AT6>=2,"子2人以上","子離れ"))) -> 夫婦 | AV6: =IF(D6,VLOOKUP(D6,年収と手取り!C:I,7,1),0)/9.1% -> 386.1098901
B7: =B6+1 -> 20 | C7: =C6+1 -> 25 | D7: =IF(C7>入力!$D$22,0,VLOOKUP(C7,賃金カーブ!R:T,3,0)) -> 382.1305099 | E7: =VLOOKUP(D7,年収と手取り!X:Y,2,1) -> 299.10352 | F7: =入力!$E$28 -> 0 | G7: =IF(C7=入力!D$22,入力!E$31,0) -> 0 | H7: 0 | I7: =IF(H7>0,-年金の税金!$G$24/10000,0) -> 0 | J7: 299.10352 | M7: =M$1 -> 39.6 | N7: 13.2 | O7: 6.6 | P7: 5.28 | Q7: 3.3 | R7: =IF(C7>65,0,IF(OR(AND(子1!C7>=0,子1!C7<=18),AND(子2!C7>=0,子2!C7<=18),AND(子3!C7>=0,子3!C7<=18),AND(子4!C7>=0,子4!C7<=18)),入力!$D$35,入力!$D$34)*12) -> 12 | T7: 79.98 | U7: 219.12352 | V7: 6 | W7: 2.4 | AC7: 8.4 | AD7: 210.72352 | AE7: =AE$1 -> 36 | AK7: =SUM(AE7:AJ7) -> 36 | AL7: 174.72352 | AM7: 331.84704 | AS7: =(親2!E7<103)*1+AND(子1!C7>=0,子1!C7<15)*1+AND(子2!C7>=0,子2!C7<15)*1+AND(子3!C7>=0,子3!C7<15)*1+AND(子4!C7>=0,子4!C7<15)*1 -> 0 | AT7: =AND(子1!AC7>0)*1+AND(子2!AC7>0)*1+AND(子3!AC7>0)*1+AND(子4!AC7>0)*1 -> 0 | AU7: =IF(AND(AT7=0,AT6=0),"夫婦",IF(AT7=1,"子1人",IF(AT7>=2,"子2人以上","子離れ"))) -> 夫婦 | AV7: =IF(D7,VLOOKUP(D7,年収と手取り!C:I,7,1),0)/9.1% -> 386.1098901
B8: =B7+1 -> 21 | C8: =C7+1 -> 26 | D8: =IF(C8>入力!$D$22,0,VLOOKUP(C8,賃金カーブ!R:T,3,0)) -> 393.3762392 | E8: =VLOOKUP(D8,年収と手取り!X:Y,2,1) -> 307.90352 | F8: =入力!$E$28 -> 0 | G8: =IF(C8=入力!D$22,入力!E$31,0) -> 0 | H8: 0 | I8: =IF(H8>0,-年金の税金!$G$24/10000,0) -> 0 | J8: 307.90352 | M8: 39.6 | N8: 13.2 | O8: 6.6 | P8: 5.28 | Q8: 3.3 | R8: =IF(C8>65,0,IF(OR(AND(子1!C8>=0,子1!C8<=18),AND(子2!C8>=0,子2!C8<=18),AND(子3!C8>=0,子3!C8<=18),AND(子4!C8>=0,子4!C8<=18)),入力!$D$35,入力!$D$34)*12) -> 12 | T8: 79.98 | U8: 227.92352 | V8: 6 | W8: 2.4 | AC8: 8.4 | AD8: 219.52352 | AE8: 36 | AK8: 36 | AL8: 183.52352 | AM8: 515.37056 | AS8: =(親2!E8<103)*1+AND(子1!C8>=0,子1!C8<15)*1+AND(子2!C8>=0,子2!C8<15)*1+AND(子3!C8>=0,子3!C8<15)*1+AND(子4!C8>=0,子4!C8<15)*1 -> 0 | AT8: =AND(子1!AC8>0)*1+AND(子2!AC8>0)*1+AND(子3!AC8>0)*1+AND(子4!AC8>0)*1 -> 0 | AU8: 夫婦 | AV8: =IF(D8,VLOOKUP(D8,年収と手取り!C:I,7,1),0)/9.1% -> 386.1098901
B9: 22 | C9: 27 | D9: =IF(C9>入力!$D$22,0,VLOOKUP(C9,賃金カーブ!R:T,3,0)) -> 404.9529193 | E9: =VLOOKUP(D9,年収と手取り!X:Y,2,1) -> 313.60374 | F9: =入力!$E$28 -> 0 | G9: =IF(C9=入力!D$22,入力!E$31,0) -> 0 | H9: 0 | I9: =IF(H9>0,-年金の税金!$G$24/10000,0) -> 0 | J9: 313.60374 | M9: 39.6 | N9: 13.2 | O9: 6.6 | P9: 5.28 | Q9: 3.3 | R9: =IF(C9>65,0,IF(OR(AND(子1!C9>=0,子1!C9<=18),AND(子2!C9>=0,子2!C9<=18),AND(子3!C9>=0,子3!C9<=18),AND(子4!C9>=0,子4!C9<=18)),入力!$D$35,入力!$D$34)*12) -> 12 | T9: 79.98 | U9: 233.62374 | V9: 6 | W9: 2.4 | AC9: 8.4 | AD9: 225.22374 | AE9: 36 | AK9: 36 | AL9: 189.22374 | AM9: 704.5943 | AS9: =(親2!E9<103)*1+AND(子1!C9>=0,子1!C9<15)*1+AND(子2!C9>=0,子2!C9<15)*1+AND(子3!C9>=0,子3!C9<15)*1+AND(子4!C9>=0,子4!C9<15)*1 -> 0 | AT9: =AND(子1!AC9>0)*1+AND(子2!AC9>0)*1+AND(子3!AC9>0)*1+AND(子4!AC9>0)*1 -> 0 | AU9: 夫婦 | AV9: =IF(D9,VLOOKUP(D9,年収と手取り!C:I,7,1),0)/9.1% -> 410.2417582
B10: 23 | C10: 28 | D10: =IF(C10>入力!$D$22,0,VLOOKUP(C10,賃金カーブ!R:T,3,0)) -> 416.8702899 | E10: =VLOOKUP(D10,年収と手取り!X:Y,2,1) -> 322.40374 | F10: =入力!$E$28 -> 0 | G10: =IF(C10=入力!D$22,入力!E$31,0) -> 0 | H10: 0 | I10: =IF(H10>0,-年金の税金!$G$24/10000,0) -> 0 | J10: 322.40374 | M10: 39.6 | N10: 13.2 | O10: 6.6 | P10: 5.28 | Q10: 3.3 | R10: =IF(C10>65,0,IF(OR(AND(子1!C10>=0,子1!C10<=18),AND(子2!C10>=0,子2!C10<=18),AND(子3!C10>=0,子3!C10<=18),AND(子4!C10>=0,子4!C10<=18)),入力!$D$35,入力!$D$34)*12) -> 12 | T10: 79.98 | U10: 242.42374 | V10: 6 | W10: 2.4 | AC10: 8.4 | AD10: 234.02374 | AE10: 36 | AK10: 36 | AL10: 198.02374 | AM10: 902.61804 | AS10: =(親2!E10<103)*1+AND(子1!C10>=0,子1!C10<15)*1+AND(子2!C10>=0,子2!C10<15)*1+AND(子3!C10>=0,子3!C10<15)*1+AND(子4!C10>=0,子4!C10<15)*1 -> 1 | AT10: =AND(子1!AC10>0)*1+AND(子2!AC10>0)*1+AND(子3!AC10>0)*1+AND(子4!AC10>0)*1 -> 1 | AU10: 子1人 | AV10: =IF(D10,VLOOKUP(D10,年収と手取り!C:I,7,1),0)/9.1% -> 410.2417582
B11: 24 | C11: 29 | D11: =IF(C11>入力!$D$22,0,VLOOKUP(C11,賃金カーブ!R:T,3,0)) -> 429.1383771 | E11: =VLOOKUP(D11,年収と手取り!X:Y,2,1) -> 328.10396 | F11: =入力!$E$28 -> 0 | G11: =IF(C11=入力!D$22,入力!E$31,0) -> 0 | H11: 0 | I11: =IF(H11>0,-年金の税金!$G$24/10000,0) -> 0 | J11: 328.10396 | M11: 39.6 | N11: 13.2 | O11: 6.6 | P11: 5.28 | Q11: 3.3 | R11: =IF(C11>65,0,IF(OR(AND(子1!C11>=0,子1!C11<=18),AND(子2!C11>=0,子2!C11<=18),AND(子3!C11>=0,子3!C11<=18),AND(子4!C11>=0,子4!C11<=18)),入力!$D$35,入力!$D$34)*12) -> 12 | T11: 79.98 | U11: 248.12396 | V11: 6 | W11: 2.4 | AC11: 8.4 | AD11: 239.72396 | AE11: 36 | AK11: 36 | AL11: 203.72396 | AM11: 1106.342 | AS11: =(親2!E11<103)*1+AND(子1!C11>=0,子1!C11<15)*1+AND(子2!C11>=0,子2!C11<15)*1+AND(子3!C11>=0,子3!C11<15)*1+AND(子4!C11>=0,子4!C11<15)*1 -> 1 | AT11: =AND(子1!AC11>0)*1+AND(子2!AC11>0)*1+AND(子3!AC11>0)*1+AND(子4!AC11>0)*1 -> 1 | AU11: 子1人 | AV11: =IF(D11,VLOOKUP(D11,年収と手取り!C:I,7,1),0)/9.1% -> 434.3736264
B12: 25 | C12: 30 | D12: =IF(C12>入力!$D$22,0,VLOOKUP(C12,賃金カーブ!R:T,3,0)) -> 441.7675022 | E12: =VLOOKUP(D12,年収と手取り!X:Y,2,1) -> 345.70396 | F12: =入力!$E$28 -> 0 | G12: =IF(C12=入力!D$22,入力!E$31,0) -> 0 | H12: 0 | I12: =IF(H12>0,-年金の税金!$G$24/10000,0) -> 0 | J12: 345.70396 | M12: 39.6 | N12: 13.2 | O12: 6.6 | P12: 5.28 | Q12: 3.3 | R12: =IF(C12>65,0,IF(OR(AND(子1!C12>=0,子1!C12<=18),AND(子2!C12>=0,子2!C12<=18),AND(子3!C12>=0,子3!C12<=18),AND(子4!C12>=0,子4!C12<=18)),入力!$D$35,入力!$D$34)*12) -> 12 | T12: 79.98 | U12: 265.72396 | V12: 6 | W12: 2.4 | AC12: 8.4 | AD12: 257.32396 | AE12: 36 | AK12: 36 | AL12: 221.32396 | AM12: 1327.66596 | AS12: =(親2!E12<103)*1+AND(子1!C12>=0,子1!C12<15)*1+AND(子2!C12>=0,子2!C12<15)*1+AND(子3!C12>=0,子3!C12<15)*1+AND(子4!C12>=0,子4!C12<15)*1 -> 1 | AT12: =AND(子1!AC12>0)*1+AND(子2!AC12>0)*1+AND(子3!AC12>0)*1+AND(子4!AC12>0)*1 -> 1 | AU12: 子1人 | AV12: =IF(D12,VLOOKUP(D12,年収と手取り!C:I,7,1),0)/9.1% -> 434.3736264
B13: 26 | C13: 31 | D13: =IF(C13>入力!$D$22,0,VLOOKUP(C13,賃金カーブ!R:T,3,0)) -> 452.6289391 | E13: =VLOOKUP(D13,年収と手取り!X:Y,2,1) -> 351.21864 | F13: =入力!$E$28 -> 0 | G13: =IF(C13=入力!D$22,入力!E$31,0) -> 0 | H13: 0 | I13: =IF(H13>0,-年金の税金!$G$24/10000,0) -> 0 | J13: 351.21864 | M13: 39.6 | N13: 13.2 | O13: 6.6 | P13: 5.28 | Q13: 3.3 | R13: =IF(C13>65,0,IF(OR(AND(子1!C13>=0,子1!C13<=18),AND(子2!C13>=0,子2!C13<=18),AND(子3!C13>=0,子3!C13<=18),AND(子4!C13>=0,子4!C13<=18)),入力!$D$35,入力!$D$34)*12) -> 12 | T13: 79.98 | U13: 271.23864 | V13: 6 | W13: 2.4 | AC13: 8.4 | AD13: 262.83864 | AE13: 36 | AK13: 36 | AL13: 226.83864 | AM13: 1554.5046 | AS13: =(親2!E13<103)*1+AND(子1!C13>=0,子1!C13<15)*1+AND(子2!C13>=0,子2!C13<15)*1+AND(子3!C13>=0,子3!C13<15)*1+AND(子4!C13>=0,子4!C13<15)*1 -> 2 | AT13: =AND(子1!AC13>0)*1+AND(子2!AC13>0)*1+AND(子3!AC13>0)*1+AND(子4!AC13>0)*1 -> 2 | AU13: 子2人以上 | AV13: =IF(D13,VLOOKUP(D13,年収と手取り!C:I,7,1),0)/9.1% -> 458.5054945
B14: 27 | C14: 32 | D14: =IF(C14>入力!$D$22,0,VLOOKUP(C14,賃金カーブ!R:T,3,0)) -> 463.7574189 | E14: =VLOOKUP(D14,年収と手取り!X:Y,2,1) -> 359.61864 | F14: =入力!$E$28 -> 0 | G14: =IF(C14=入力!D$22,入力!E$31,0) -> 0 | H14: 0 | I14: =IF(H14>0,-年金の税金!$G$24/10000,0) -> 0 | J14: 359.61864 | M14: 39.6 | N14: 13.2 | O14: 6.6 | P14: 5.28 | Q14: 3.3 | R14: =IF(C14>65,0,IF(OR(AND(子1!C14>=0,子1!C14<=18),AND(子2!C14>=0,子2!C14<=18),AND(子3!C14>=0,子3!C14<=18),AND(子4!C14>=0,子4!C14<=18)),入力!$D$35,入力!$D$34)*12) -> 12 | T14: 79.98 | U14: 279.63864 | V14: 6 | W14: 2.4 | AC14: 8.4 | AD14: 271.23864 | AE14: 36 | AK14: 36 | AL14: 235.23864 | AM14: 1789.74324 | AS14: =(親2!E14<103)*1+AND(子1!C14>=0,子1!C14<15)*1+AND(子2!C14>=0,子2!C14<15)*1+AND(子3!C14>=0,子3!C14<15)*1+AND(子4!C14>=0,子4!C14<15)*1 -> 2 | AT14: =AND(子1!AC14>0)*1+AND(子2!AC14>0)*1+AND(子3!AC14>0)*1+AND(子4!AC14>0)*1 -> 2 | AU14: 子2人以上 | AV14: =IF(D14,VLOOKUP(D14,年収と手取り!C:I,7,1),0)/9.1% -> 458.5054945
B15: 28 | C15: 33 | D15: =IF(C15>入力!$D$22,0,VLOOKUP(C15,賃金カーブ!R:T,3,0)) -> 475.1595069 | E15: =VLOOKUP(D15,年収と手取り!X:Y,2,1) -> 368.01864 | F15: =入力!$E$28 -> 0 | G15: =IF(C15=入力!D$22,入力!E$31,0) -> 0 | H15: 0 | I15: =IF(H15>0,-年金の税金!$G$24/10000,0) -> 0 | J15: 368.01864 | M15: 39.6 | N15: 13.2 | O15: 6.6 | P15: 5.28 | Q15: 3.3 | R15: =IF(C15>65,0,IF(OR(AND(子1!C15>=0,子1!C15<=18),AND(子2!C15>=0,子2!C15<=18),AND(子3!C15>=0,子3!C15<=18),AND(子4!C15>=0,子4!C15<=18)),入力!$D$35,入力!$D$34)*12) -> 12 | T15: 79.98 | U15: 288.03864 | V15: 6 | W15: 2.4 | AC15: 8.4 | AD15: 279.63864 | AE15: 36 | AK15: 36 | AL15: 243.63864 | AM15: 2033.38188 | AS15: =(親2!E15<103)*1+AND(子1!C15>=0,子1!C15<15)*1+AND(子2!C15>=0,子2!C15<15)*1+AND(子3!C15>=0,子3!C15<15)*1+AND(子4!C15>=0,子4!C15<15)*1 -> 2 | AT15: =AND(子1!AC15>0)*1+AND(子2!AC15>0)*1+AND(子3!AC15>0)*1+AND(子4!AC15>0)*1 -> 2 | AU15: 子2人以上 | AV15: =IF(D15,VLOOKUP(D15,年収と手取り!C:I,7,1),0)/9.1% -> 458.5054945
B16: 29 | C16: 34 | D16: =IF(C16>入力!$D$22,0,VLOOKUP(C16,賃金カーブ!R:T,3,0)) -> 486.8419304 | E16: =VLOOKUP(D16,年収と手取り!X:Y,2,1) -> 372.04248 | F16: =入力!$E$28 -> 0 | G16: =IF(C16=入力!D$22,入力!E$31,0) -> 0 | H16: 0 | I16: =IF(H16>0,-年金の税金!$G$24/10000,0) -> 0 | J16: 372.04248 | M16: 39.6 | N16: 13.2 | O16: 6.6 | P16: 5.28 | Q16: 3.3 | R16: =IF(C16>65,0,IF(OR(AND(子1!C16>=0,子1!C16<=18),AND(子2!C16>=0,子2!C16<=18),AND(子3!C16>=0,子3!C16<=18),AND(子4!C16>=0,子4!C16<=18)),入力!$D$35,入力!$D$34)*12) -> 12 | T16: 79.98 | U16: 292.06248 | V16: 6 | W16: 2.4 | AC16: 8.4 | AD16: 283.66248 | AE16: 36 | AK16: 36 | AL16: 247.66248 | AM16: 2281.04436 | AS16: =(親2!E16<103)*1+AND(子1!C16>=0,子1!C16<15)*1+AND(子2!C16>=0,子2!C16<15)*1+AND(子3!C16>=0,子3!C16<15)*1+AND(子4!C16>=0,子4!C16<15)*1 -> 2 | AT16: =AND(子1!AC16>0)*1+AND(子2!AC16>0)*1+AND(子3!AC16>0)*1+AND(子4!AC16>0)*1 -> 2 | AU16: 子2人以上 | AV16: =IF(D16,VLOOKUP(D16,年収と手取り!C:I,7,1),0)/9.1% -> 494.7032967
B17: 30 | C17: 35 | D17: =IF(C17>入力!$D$22,0,VLOOKUP(C17,賃金カーブ!R:T,3,0)) -> 498.8115817 | E17: =VLOOKUP(D17,年収と手取り!X:Y,2,1) -> 380.44248 | F17: =入力!$E$28 -> 0 | G17: =IF(C17=入力!D$22,入力!E$31,0) -> 0 | H17: 0 | I17: =IF(H17>0,-年金の税金!$G$24/10000,0) -> 0 | J17: 380.44248 | M17: 39.6 | N17: 13.2 | O17: 6.6 | P17: 5.28 | Q17: 3.3 | R17: =IF(C17>65,0,IF(OR(AND(子1!C17>=0,子1!C17<=18),AND(子2!C17>=0,子2!C17<=18),AND(子3!C17>=0,子3!C17<=18),AND(子4!C17>=0,子4!C17<=18)),入力!$D$35,入力!$D$34)*12) -> 12 | T17: 79.98 | U17: 300.46248 | V17: 6 | W17: 2.4 | AC17: 8.4 | AD17: 292.06248 | AE17: 36 | AK17: 36 | AL17: 256.06248 | AM17: 2537.10684 | AS17: =(親2!E17<103)*1+AND(子1!C17>=0,子1!C17<15)*1+AND(子2!C17>=0,子2!C17<15)*1+AND(子3!C17>=0,子3!C17<15)*1+AND(子4!C17>=0,子4!C17<15)*1 -> 2 | AT17: =AND(子1!AC17>0)*1+AND(子2!AC17>0)*1+AND(子3!AC17>0)*1+AND(子4!AC17>0)*1 -> 2 | AU17: 子2人以上 | AV17: =IF(D17,VLOOKUP(D17,年収と手取り!C:I,7,1),0)/9.1% -> 494.7032967
B18: 31 | C18: 36 | D18: =IF(C18>入力!$D$22,0,VLOOKUP(C18,賃金カーブ!R:T,3,0)) -> 508.0562767 | E18: =VLOOKUP(D18,年収と手取り!X:Y,2,1) -> 388.84248 | F18: =入力!$E$28 -> 0 | G18: =IF(C18=入力!D$22,入力!E$31,0) -> 0 | H18: 0 | I18: =IF(H18>0,-年金の税金!$G$24/10000,0) -> 0 | J18: 388.84248 | M18: 39.6 | N18: 13.2 | O18: 6.6 | P18: 5.28 | Q18: 3.3 | R18: =IF(C18>65,0,IF(OR(AND(子1!C18>=0,子1!C18<=18),AND(子2!C18>=0,子2!C18<=18),AND(子3!C18>=0,子3!C18<=18),AND(子4!C18>=0,子4!C18<=18)),入力!$D$35,入力!$D$34)*12) -> 12 | T18: 79.98 | U18: 308.86248 | V18: 6 | W18: 2.4 | AC18: 8.4 | AD18: 300.46248 | AE18: 36 | AK18: 36 | AL18: 264.46248 | AM18: 2801.56932 | AS18: =(親2!E18<103)*1+AND(子1!C18>=0,子1!C18<15)*1+AND(子2!C18>=0,子2!C18<15)*1+AND(子3!C18>=0,子3!C18<15)*1+AND(子4!C18>=0,子4!C18<15)*1 -> 2 | AT18: =AND(子1!AC18>0)*1+AND(子2!AC18>0)*1+AND(子3!AC18>0)*1+AND(子4!AC18>0)*1 -> 2 | AU18: 子2人以上 | AV18: =IF(D18,VLOOKUP(D18,年収と手取り!C:I,7,1),0)/9.1% -> 494.7032967
B19: 32 | C19: 37 | D19: =IF(C19>入力!$D$22,0,VLOOKUP(C19,賃金カーブ!R:T,3,0)) -> 517.4723077 | E19: =VLOOKUP(D19,年収と手取り!X:Y,2,1) -> 392.86632 | F19: =入力!$E$28 -> 0 | G19: =IF(C19=入力!D$22,入力!E$31,0) -> 0 | H19: 0 | I19: =IF(H19>0,-年金の税金!$G$24/10000,0) -> 0 | J19: 392.86632 | M19: 39.6 | N19: 13.2 | O19: 6.6 | P19: 5.28 | Q19: 3.3 | R19: =IF(C19>65,0,IF(OR(AND(子1!C19>=0,子1!C19<=18),AND(子2!C19>=0,子2!C19<=18),AND(子3!C19>=0,子3!C19<=18),AND(子4!C19>=0,子4!C19<=18)),入力!$D$35,入力!$D$34)*12) -> 12 | T19: 79.98 | U19: 312.88632 | V19: 6 | W19: 2.4 | AC19: 8.4 | AD19: 304.48632 | AE19: 36 | AK19: 36 | AL19: 268.48632 | AM19: 3070.05564 | AS19: =(親2!E19<103)*1+AND(子1!C19>=0,子1!C19<15)*1+AND(子2!C19>=0,子2!C19<15)*1+AND(子3!C19>=0,子3!C19<15)*1+AND(子4!C19>=0,子4!C19<15)*1 -> 2 | AT19: =AND(子1!AC19>0)*1+AND(子2!AC19>0)*1+AND(子3!AC19>0)*1+AND(子4!AC19>0)*1 -> 2 | AU19: 子2人以上 | AV19: =IF(D19,VLOOKUP(D19,年収と手取り!C:I,7,1),0)/9.1% -> 530.9010989
B20: 33 | C20: 38 | D20: =IF(C20>入力!$D$22,0,VLOOKUP(C20,賃金カーブ!R:T,3,0)) -> 527.0628502 | E20: =VLOOKUP(D20,年収と手取り!X:Y,2,1) -> 401.26632 | F20: =入力!$E$28 -> 0 | G20: =IF(C20=入力!D$22,入力!E$31,0) -> 0 | H20: 0 | I20: =IF(H20>0,-年金の税金!$G$24/10000,0) -> 0 | J20: 401.26632 | M20: 39.6 | N20: 13.2 | O20: 6.6 | P20: 5.28 | Q20: 3.3 | R20: =IF(C20>65,0,IF(OR(AND(子1!C20>=0,子1!C20<=18),AND(子2!C20>=0,子2!C20<=18),AND(子3!C20>=0,子3!C20<=18),AND(子4!C20>=0,子4!C20<=18)),入力!$D$35,入力!$D$34)*12) -> 12 | T20: 79.98 | U20: 321.28632 | V20: 6 | W20: 2.4 | AC20: 8.4 | AD20: 312.88632 | AE20: 36 | AK20: 36 | AL20: 276.88632 | AM20: 3346.94196 | AS20: =(親2!E20<103)*1+AND(子1!C20>=0,子1!C20<15)*1+AND(子2!C20>=0,子2!C20<15)*1+AND(子3!C20>=0,子3!C20<15)*1+AND(子4!C20>=0,子4!C20<15)*1 -> 2 | AT20: =AND(子1!AC20>0)*1+AND(子2!AC20>0)*1+AND(子3!AC20>0)*1+AND(子4!AC20>0)*1 -> 2 | AU20: 子2人以上 | AV20: =IF(D20,VLOOKUP(D20,年収と手取り!C:I,7,1),0)/9.1% -> 530.9010989
B21: 34 | C21: 39 | D21: =IF(C21>入力!$D$22,0,VLOOKUP(C21,賃金カーブ!R:T,3,0)) -> 536.8311385 | E21: =VLOOKUP(D21,年収と手取り!X:Y,2,1) -> 409.66632 | F21: =入力!$E$28 -> 0 | G21: =IF(C21=入力!D$22,入力!E$31,0) -> 0 | H21: 0 | I21: =IF(H21>0,-年金の税金!$G$24/10000,0) -> 0 | J21: 409.66632 | M21: 39.6 | N21: 13.2 | O21: 6.6 | P21: 5.28 | Q21: 3.3 | R21: =IF(C21>65,0,IF(OR(AND(子1!C21>=0,子1!C21<=18),AND(子2!C21>=0,子2!C21<=18),AND(子3!C21>=0,子3!C21<=18),AND(子4!C21>=0,子4!C21<=18)),入力!$D$35,入力!$D$34)*12) -> 12 | T21: 79.98 | U21: 329.68632 | V21: 6 | W21: 2.4 | AC21: 8.4 | AD21: 321.28632 | AE21: 36 | AK21: 36 | AL21: 285.28632 | AM21: 3632.22828 | AS21: =(親2!E21<103)*1+AND(子1!C21>=0,子1!C21<15)*1+AND(子2!C21>=0,子2!C21<15)*1+AND(子3!C21>=0,子3!C21<15)*1+AND(子4!C21>=0,子4!C21<15)*1 -> 2 | AT21: =AND(子1!AC21>0)*1+AND(子2!AC21>0)*1+AND(子3!AC21>0)*1+AND(子4!AC21>0)*1 -> 2 | AU21: 子2人以上 | AV21: =IF(D21,VLOOKUP(D21,年収と手取り!C:I,7,1),0)/9.1% -> 530.9010989
B22: 35 | C22: 40 | D22: =IF(C22>入力!$D$22,0,VLOOKUP(C22,賃金カーブ!R:T,3,0)) -> 546.7804667 | E22: =VLOOKUP(D22,年収と手取り!X:Y,2,1) -> 418.06632 | F22: =入力!$E$28 -> 0 | G22: =IF(C22=入力!D$22,入力!E$31,0) -> 0 | H22: 0 | I22: =IF(H22>0,-年金の税金!$G$24/10000,0) -> 0 | J22: 418.06632 | M22: 39.6 | N22: 13.2 | O22: 6.6 | P22: 5.28 | Q22: 3.3 | R22: =IF(C22>65,0,IF(OR(AND(子1!C22>=0,子1!C22<=18),AND(子2!C22>=0,子2!C22<=18),AND(子3!C22>=0,子3!C22<=18),AND(子4!C22>=0,子4!C22<=18)),入力!$D$35,入力!$D$34)*12) -> 12 | T22: 79.98 | U22: 338.08632 | V22: 6 | W22: 2.4 | AC22: 8.4 | AD22: 329.68632 | AE22: 36 | AK22: 36 | AL22: 293.68632 | AM22: 3925.9146 | AS22: =(親2!E22<103)*1+AND(子1!C22>=0,子1!C22<15)*1+AND(子2!C22>=0,子2!C22<15)*1+AND(子3!C22>=0,子3!C22<15)*1+AND(子4!C22>=0,子4!C22<15)*1 -> 2 | AT22: =AND(子1!AC22>0)*1+AND(子2!AC22>0)*1+AND(子3!AC22>0)*1+AND(子4!AC22>0)*1 -> 2 | AU22: 子2人以上 | AV22: =IF(D22,VLOOKUP(D22,年収と手取り!C:I,7,1),0)/9.1% -> 530.9010989
B23: 36 | C23: 41 | D23: =IF(C23>入力!$D$22,0,VLOOKUP(C23,賃金カーブ!R:T,3,0)) -> 555.6901721 | E23: =VLOOKUP(D23,年収と手取り!X:Y,2,1) -> 422.09016 | F23: =入力!$E$28 -> 0 | G23: =IF(C23=入力!D$22,入力!E$31,0) -> 0 | H23: 0 | I23: =IF(H23>0,-年金の税金!$G$24/10000,0) -> 0 | J23: 422.09016 | M23: =M$1 -> 39.6 | N23: 13.2 | O23: 6.6 | P23: 5.28 | Q23: 3.3 | R23: =IF(C23>65,0,IF(OR(AND(子1!C23>=0,子1!C23<=18),AND(子2!C23>=0,子2!C23<=18),AND(子3!C23>=0,子3!C23<=18),AND(子4!C23>=0,子4!C23<=18)),入力!$D$35,入力!$D$34)*12) -> 12 | T23: 79.98 | U23: 342.11016 | V23: 6 | W23: 2.4 | AC23: 8.4 | AD23: 333.71016 | AE23: 36 | AK23: 36 | AL23: 297.71016 | AM23: 4223.62476 | AS23: =(親2!E23<103)*1+AND(子1!C23>=0,子1!C23<15)*1+AND(子2!C23>=0,子2!C23<15)*1+AND(子3!C23>=0,子3!C23<15)*1+AND(子4!C23>=0,子4!C23<15)*1 -> 2 | AT23: =AND(子1!AC23>0)*1+AND(子2!AC23>0)*1+AND(子3!AC23>0)*1+AND(子4!AC23>0)*1 -> 2 | AU23: 子2人以上 | AV23: =IF(D23,VLOOKUP(D23,年収と手取り!C:I,7,1),0)/9.1% -> 567.0989011
B24: 37 | C24: 42 | D24: =IF(C24>入力!$D$22,0,VLOOKUP(C24,賃金カーブ!R:T,3,0)) -> 564.7450598 | E24: =VLOOKUP(D24,年収と手取り!X:Y,2,1) -> 430.49016 | F24: =入力!$E$28 -> 0 | G24: =IF(C24=入力!D$22,入力!E$31,0) -> 0 | H24: 0 | I24: =IF(H24>0,-年金の税金!$G$24/10000,0) -> 0 | J24: 430.49016 | M24: 39.6 | N24: 13.2 | O24: 6.6 | P24: 5.28 | Q24: 3.3 | R24: =IF(C24>65,0,IF(OR(AND(子1!C24>=0,子1!C24<=18),AND(子2!C24>=0,子2!C24<=18),AND(子3!C24>=0,子3!C24<=18),AND(子4!C24>=0,子4!C24<=18)),入力!$D$35,入力!$D$34)*12) -> 12 | T24: 79.98 | U24: 350.51016 | V24: 6 | W24: 2.4 | AC24: 8.4 | AD24: 342.11016 | AE24: 36 | AK24: 36 | AL24: 306.11016 | AM24: 4529.73492 | AS24: =(親2!E24<103)*1+AND(子1!C24>=0,子1!C24<15)*1+AND(子2!C24>=0,子2!C24<15)*1+AND(子3!C24>=0,子3!C24<15)*1+AND(子4!C24>=0,子4!C24<15)*1 -> 2 | AT24: =AND(子1!AC24>0)*1+AND(子2!AC24>0)*1+AND(子3!AC24>0)*1+AND(子4!AC24>0)*1 -> 2 | AU24: 子2人以上 | AV24: =IF(D24,VLOOKUP(D24,年収と手取り!C:I,7,1),0)/9.1% -> 567.0989011
B25: 38 | C25: 43 | D25: =IF(C25>入力!$D$22,0,VLOOKUP(C25,賃金カーブ!R:T,3,0)) -> 573.9474955 | E25: =VLOOKUP(D25,年収と手取り!X:Y,2,1) -> 438.89016 | F25: =入力!$E$28 -> 0 | G25: =IF(C25=入力!D$22,入力!E$31,0) -> 0 | H25: 0 | I25: =IF(H25>0,-年金の税金!$G$24/10000,0) -> 0 | J25: 438.89016 | M25: 39.6 | N25: 13.2 | O25: 6.6 | P25: 5.28 | Q25: 3.3 | R25: =IF(C25>65,0,IF(OR(AND(子1!C25>=0,子1!C25<=18),AND(子2!C25>=0,子2!C25<=18),AND(子3!C25>=0,子3!C25<=18),AND(子4!C25>=0,子4!C25<=18)),入力!$D$35,入力!$D$34)*12) -> 12 | T25: 79.98 | U25: 358.91016 | V25: 6 | W25: 2.4 | AC25: 8.4 | AD25: 350.51016 | AE25: 36 | AK25: 36 | AL25: 314.51016 | AM25: 4844.24508 | AS25: =(親2!E25<103)*1+AND(子1!C25>=0,子1!C25<15)*1+AND(子2!C25>=0,子2!C25<15)*1+AND(子3!C25>=0,子3!C25<15)*1+AND(子4!C25>=0,子4!C25<15)*1 -> 1 | AT25: =AND(子1!AC25>0)*1+AND(子2!AC25>0)*1+AND(子3!AC25>0)*1+AND(子4!AC25>0)*1 -> 2 | AU25: 子2人以上 | AV25: =IF(D25,VLOOKUP(D25,年収と手取り!C:I,7,1),0)/9.1% -> 567.0989011
B26: 39 | C26: 44 | D26: =IF(C26>入力!$D$22,0,VLOOKUP(C26,賃金カーブ!R:T,3,0)) -> 583.2998835 | E26: =VLOOKUP(D26,年収と手取り!X:Y,2,1) -> 447.29016 | F26: =入力!$E$28 -> 0 | G26: =IF(C26=入力!D$22,入力!E$31,0) -> 0 | H26: 0 | I26: =IF(H26>0,-年金の税金!$G$24/10000,0) -> 0 | J26: 447.29016 | M26: 39.6 | N26: 13.2 | O26: 6.6 | P26: 5.28 | Q26: 3.3 | R26: =IF(C26>65,0,IF(OR(AND(子1!C26>=0,子1!C26<=18),AND(子2!C26>=0,子2!C26<=18),AND(子3!C26>=0,子3!C26<=18),AND(子4!C26>=0,子4!C26<=18)),入力!$D$35,入力!$D$34)*12) -> 12 | T26: 79.98 | U26: 367.31016 | V26: 6 | W26: 2.4 | AC26: 8.4 | AD26: 358.91016 | AE26: 36 | AK26: 36 | AL26: 322.91016 | AM26: 5167.15524 | AS26: =(親2!E26<103)*1+AND(子1!C26>=0,子1!C26<15)*1+AND(子2!C26>=0,子2!C26<15)*1+AND(子3!C26>=0,子3!C26<15)*1+AND(子4!C26>=0,子4!C26<15)*1 -> 1 | AT26: =AND(子1!AC26>0)*1+AND(子2!AC26>0)*1+AND(子3!AC26>0)*1+AND(子4!AC26>0)*1 -> 2 | AU26: 子2人以上 | AV26: =IF(D26,VLOOKUP(D26,年収と手取り!C:I,7,1),0)/9.1% -> 567.0989011
B27: 40 | C27: 45 | D27: =IF(C27>入力!$D$22,0,VLOOKUP(C27,賃金カーブ!R:T,3,0)) -> 592.8046672 | E27: =VLOOKUP(D27,年収と手取り!X:Y,2,1) -> 451.314 | F27: =入力!$E$28 -> 0 | G27: =IF(C27=入力!D$22,入力!E$31,0) -> 0 | H27: 0 | I27: =IF(H27>0,-年金の税金!$G$24/10000,0) -> 0 | J27: 451.314 | M27: 39.6 | N27: 13.2 | O27: 6.6 | P27: 5.28 | Q27: 3.3 | R27: =IF(C27>65,0,IF(OR(AND(子1!C27>=0,子1!C27<=18),AND(子2!C27>=0,子2!C27<=18),AND(子3!C27>=0,子3!C27<=18),AND(子4!C27>=0,子4!C27<=18)),入力!$D$35,入力!$D$34)*12) -> 12 | T27: 79.98 | U27: 371.334 | V27: 6 | W27: 2.4 | AC27: 8.4 | AD27: 362.934 | AE27: 36 | AK27: 36 | AL27: 326.934 | AM27: 5494.08924 | AS27: =(親2!E27<103)*1+AND(子1!C27>=0,子1!C27<15)*1+AND(子2!C27>=0,子2!C27<15)*1+AND(子3!C27>=0,子3!C27<15)*1+AND(子4!C27>=0,子4!C27<15)*1 -> 1 | AT27: =AND(子1!AC27>0)*1+AND(子2!AC27>0)*1+AND(子3!AC27>0)*1+AND(子4!AC27>0)*1 -> 2 | AU27: 子2人以上 | AV27: =IF(D27,VLOOKUP(D27,年収と手取り!C:I,7,1),0)/9.1% -> 603.2967033
B28: 41 | C28: 46 | D28: =IF(C28>入力!$D$22,0,VLOOKUP(C28,賃金カーブ!R:T,3,0)) -> 602.588689 | E28: =VLOOKUP(D28,年収と手取り!X:Y,2,1) -> 459.714 | F28: =入力!$E$28 -> 0 | G28: =IF(C28=入力!D$22,入力!E$31,0) -> 0 | H28: 0 | I28: =IF(H28>0,-年金の税金!$G$24/10000,0) -> 0 | J28: 459.714 | M28: 39.6 | N28: 13.2 | O28: 6.6 | P28: 5.28 | Q28: 3.3 | R28: =IF(C28>65,0,IF(OR(AND(子1!C28>=0,子1!C28<=18),AND(子2!C28>=0,子2!C28<=18),AND(子3!C28>=0,子3!C28<=18),AND(子4!C28>=0,子4!C28<=18)),入力!$D$35,入力!$D$34)*12) -> 12 | T28: 79.98 | U28: 379.734 | V28: 6 | W28: 2.4 | AC28: 8.4 | AD28: 371.334 | AE28: 36 | AK28: 36 | AL28: 335.334 | AM28: 5829.42324 | AS28: =(親2!E28<103)*1+AND(子1!C28>=0,子1!C28<15)*1+AND(子2!C28>=0,子2!C28<15)*1+AND(子3!C28>=0,子3!C28<15)*1+AND(子4!C28>=0,子4!C28<15)*1 -> 0 | AT28: =AND(子1!AC28>0)*1+AND(子2!AC28>0)*1+AND(子3!AC28>0)*1+AND(子4!AC28>0)*1 -> 2 | AU28: 子2人以上 | AV28: =IF(D28,VLOOKUP(D28,年収と手取り!C:I,7,1),0)/9.1% -> 603.2967033
B29: 42 | C29: 47 | D29: =IF(C29>入力!$D$22,0,VLOOKUP(C29,賃金カーブ!R:T,3,0)) -> 612.5341923 | E29: =VLOOKUP(D29,年収と手取り!X:Y,2,1) -> 468.114 | F29: =入力!$E$28 -> 0 | G29: =IF(C29=入力!D$22,入力!E$31,0) -> 0 | H29: 0 | I29: =IF(H29>0,-年金の税金!$G$24/10000,0) -> 0 | J29: 468.114 | M29: 39.6 | N29: 13.2 | O29: 6.6 | P29: 5.28 | Q29: 3.3 | R29: =IF(C29>65,0,IF(OR(AND(子1!C29>=0,子1!C29<=18),AND(子2!C29>=0,子2!C29<=18),AND(子3!C29>=0,子3!C29<=18),AND(子4!C29>=0,子4!C29<=18)),入力!$D$35,入力!$D$34)*12) -> 12 | T29: 79.98 | U29: 388.134 | V29: 6 | W29: 2.4 | AC29: 8.4 | AD29: 379.734 | AE29: 36 | AK29: 36 | AL29: 343.734 | AM29: 6173.15724 | AS29: =(親2!E29<103)*1+AND(子1!C29>=0,子1!C29<15)*1+AND(子2!C29>=0,子2!C29<15)*1+AND(子3!C29>=0,子3!C29<15)*1+AND(子4!C29>=0,子4!C29<15)*1 -> 0 | AT29: =AND(子1!AC29>0)*1+AND(子2!AC29>0)*1+AND(子3!AC29>0)*1+AND(子4!AC29>0)*1 -> 2 | AU29: 子2人以上 | AV29: =IF(D29,VLOOKUP(D29,年収と手取り!C:I,7,1),0)/9.1% -> 603.2967033
B30: 43 | C30: 48 | D30: =IF(C30>入力!$D$22,0,VLOOKUP(C30,賃金カーブ!R:T,3,0)) -> 622.6438425 | E30: =VLOOKUP(D30,年収と手取り!X:Y,2,1) -> 472.13784 | F30: =入力!$E$28 -> 0 | G30: =IF(C30=入力!D$22,入力!E$31,0) -> 0 | H30: 0 | I30: =IF(H30>0,-年金の税金!$G$24/10000,0) -> 0 | J30: 472.13784 | M30: 39.6 | N30: 13.2 | O30: 6.6 | P30: 5.28 | Q30: 3.3 | R30: =IF(C30>65,0,IF(OR(AND(子1!C30>=0,子1!C30<=18),AND(子2!C30>=0,子2!C30<=18),AND(子3!C30>=0,子3!C30<=18),AND(子4!C30>=0,子4!C30<=18)),入力!$D$35,入力!$D$34)*12) -> 12 | T30: 79.98 | U30: 392.15784 | V30: 6 | W30: 2.4 | AC30: 8.4 | AD30: 383.75784 | AE30: 36 | AK30: 36 | AL30: 347.75784 | AM30: 6520.91508 | AS30: =(親2!E30<103)*1+AND(子1!C30>=0,子1!C30<15)*1+AND(子2!C30>=0,子2!C30<15)*1+AND(子3!C30>=0,子3!C30<15)*1+AND(子4!C30>=0,子4!C30<15)*1 -> 0 | AT30: =AND(子1!AC30>0)*1+AND(子2!AC30>0)*1+AND(子3!AC30>0)*1+AND(子4!AC30>0)*1 -> 2 | AU30: 子2人以上 | AV30: =IF(D30,VLOOKUP(D30,年収と手取り!C:I,7,1),0)/9.1% -> 639.4945055
B31: 44 | C31: 49 | D31: =IF(C31>入力!$D$22,0,VLOOKUP(C31,賃金カーブ!R:T,3,0)) -> 632.9203488 | E31: =VLOOKUP(D31,年収と手取り!X:Y,2,1) -> 480.53784 | F31: =入力!$E$28 -> 0 | G31: =IF(C31=入力!D$22,入力!E$31,0) -> 0 | H31: 0 | I31: =IF(H31>0,-年金の税金!$G$24/10000,0) -> 0 | J31: 480.53784 | M31: 39.6 | N31: 13.2 | O31: 6.6 | P31: 5.28 | Q31: 3.3 | R31: =IF(C31>65,0,IF(OR(AND(子1!C31>=0,子1!C31<=18),AND(子2!C31>=0,子2!C31<=18),AND(子3!C31>=0,子3!C31<=18),AND(子4!C31>=0,子4!C31<=18)),入力!$D$35,入力!$D$34)*12) -> 12 | T31: 79.98 | U31: 400.55784 | V31: 6 | W31: 2.4 | AC31: 8.4 | AD31: 392.15784 | AE31: 36 | AK31: 36 | AL31: 356.15784 | AM31: 6877.07292 | AS31: =(親2!E31<103)*1+AND(子1!C31>=0,子1!C31<15)*1+AND(子2!C31>=0,子2!C31<15)*1+AND(子3!C31>=0,子3!C31<15)*1+AND(子4!C31>=0,子4!C31<15)*1 -> 0 | AT31: =AND(子1!AC31>0)*1+AND(子2!AC31>0)*1+AND(子3!AC31>0)*1+AND(子4!AC31>0)*1 -> 2 | AU31: 子2人以上 | AV31: =IF(D31,VLOOKUP(D31,年収と手取り!C:I,7,1),0)/9.1% -> 639.4945055
B32: 45 | C32: 50 | D32: =IF(C32>入力!$D$22,0,VLOOKUP(C32,賃金カーブ!R:T,3,0)) -> 643.366465 | E32: =VLOOKUP(D32,年収と手取り!X:Y,2,1) -> 488.93784 | F32: =入力!$E$28 -> 0 | G32: =IF(C32=入力!D$22,入力!E$31,0) -> 0 | H32: 0 | I32: =IF(H32>0,-年金の税金!$G$24/10000,0) -> 0 | J32: 488.93784 | M32: 39.6 | N32: 13.2 | O32: 6.6 | P32: 5.28 | Q32: 3.3 | R32: =IF(C32>65,0,IF(OR(AND(子1!C32>=0,子1!C32<=18),AND(子2!C32>=0,子2!C32<=18),AND(子3!C32>=0,子3!C32<=18),AND(子4!C32>=0,子4!C32<=18)),入力!$D$35,入力!$D$34)*12) -> 12 | T32: 79.98 | U32: 408.95784 | V32: 6 | W32: 2.4 | AC32: 8.4 | AD32: 400.55784 | AE32: 36 | AK32: 36 | AL32: 364.55784 | AM32: 7241.63076 | AS32: =(親2!E32<103)*1+AND(子1!C32>=0,子1!C32<15)*1+AND(子2!C32>=0,子2!C32<15)*1+AND(子3!C32>=0,子3!C32<15)*1+AND(子4!C32>=0,子4!C32<15)*1 -> 0 | AT32: =AND(子1!AC32>0)*1+AND(子2!AC32>0)*1+AND(子3!AC32>0)*1+AND(子4!AC32>0)*1 -> 2 | AU32: 子2人以上 | AV32: =IF(D32,VLOOKUP(D32,年収と手取り!C:I,7,1),0)/9.1% -> 639.4945055
B33: 46 | C33: 51 | D33: =IF(C33>入力!$D$22,0,VLOOKUP(C33,賃金カーブ!R:T,3,0)) -> 641.2129434 | E33: =VLOOKUP(D33,年収と手取り!X:Y,2,1) -> 488.93784 | F33: =入力!$E$28 -> 0 | G33: =IF(C33=入力!D$22,入力!E$31,0) -> 0 | H33: 0 | I33: =IF(H33>0,-年金の税金!$G$24/10000,0) -> 0 | J33: 488.93784 | M33: 39.6 | N33: 13.2 | O33: 6.6 | P33: 5.28 | Q33: 3.3 | R33: =IF(C33>65,0,IF(OR(AND(子1!C33>=0,子1!C33<=18),AND(子2!C33>=0,子2!C33<=18),AND(子3!C33>=0,子3!C33<=18),AND(子4!C33>=0,子4!C33<=18)),入力!$D$35,入力!$D$34)*12) -> 12 | T33: 79.98 | U33: 408.95784 | V33: 6 | W33: 2.4 | AC33: 8.4 | AD33: 400.55784 | AE33: 36 | AK33: 36 | AL33: 364.55784 | AM33: 7606.1886 | AS33: =(親2!E33<103)*1+AND(子1!C33>=0,子1!C33<15)*1+AND(子2!C33>=0,子2!C33<15)*1+AND(子3!C33>=0,子3!C33<15)*1+AND(子4!C33>=0,子4!C33<15)*1 -> 0 | AT33: =AND(子1!AC33>0)*1+AND(子2!AC33>0)*1+AND(子3!AC33>0)*1+AND(子4!AC33>0)*1 -> 1 | AU33: 子1人 | AV33: =IF(D33,VLOOKUP(D33,年収と手取り!C:I,7,1),0)/9.1% -> 639.4945055
B34: 47 | C34: 52 | D34: =IF(C34>入力!$D$22,0,VLOOKUP(C34,賃金カーブ!R:T,3,0)) -> 639.0666301 | E34: =VLOOKUP(D34,年収と手取り!X:Y,2,1) -> 480.53784 | F34: =入力!$E$28 -> 0 | G34: =IF(C34=入力!D$22,入力!E$31,0) -> 0 | H34: 0 | I34: =IF(H34>0,-年金の税金!$G$24/10000,0) -> 0 | J34: 480.53784 | M34: 39.6 | N34: 13.2 | O34: 6.6 | P34: 5.28 | Q34: 3.3 | R34: =IF(C34>65,0,IF(OR(AND(子1!C34>=0,子1!C34<=18),AND(子2!C34>=0,子2!C34<=18),AND(子3!C34>=0,子3!C34<=18),AND(子4!C34>=0,子4!C34<=18)),入力!$D$35,入力!$D$34)*12) -> 12 | T34: 79.98 | U34: 400.55784 | V34: 6 | W34: 2.4 | AC34: 8.4 | AD34: 392.15784 | AE34: 36 | AK34: 36 | AL34: 356.15784 | AM34: 7962.34644 | AS34: =(親2!E34<103)*1+AND(子1!C34>=0,子1!C34<15)*1+AND(子2!C34>=0,子2!C34<15)*1+AND(子3!C34>=0,子3!C34<15)*1+AND(子4!C34>=0,子4!C34<15)*1 -> 0 | AT34: =AND(子1!AC34>0)*1+AND(子2!AC34>0)*1+AND(子3!AC34>0)*1+AND(子4!AC34>0)*1 -> 1 | AU34: 子1人 | AV34: =IF(D34,VLOOKUP(D34,年収と手取り!C:I,7,1),0)/9.1% -> 639.4945055
B35: 48 | C35: 53 | D35: =IF(C35>入力!$D$22,0,VLOOKUP(C35,賃金カーブ!R:T,3,0)) -> 636.9275012 | E35: =VLOOKUP(D35,年収と手取り!X:Y,2,1) -> 480.53784 | F35: =入力!$E$28 -> 0 | G35: =IF(C35=入力!D$22,入力!E$31,0) -> 0 | H35: 0 | I35: =IF(H35>0,-年金の税金!$G$24/10000,0) -> 0 | J35: 480.53784 | M35: 39.6 | N35: 13.2 | O35: 6.6 | P35: 5.28 | Q35: 3.3 | R35: =IF(C35>65,0,IF(OR(AND(子1!C35>=0,子1!C35<=18),AND(子2!C35>=0,子2!C35<=18),AND(子3!C35>=0,子3!C35<=18),AND(子4!C35>=0,子4!C35<=18)),入力!$D$35,入力!$D$34)*12) -> 12 | T35: 79.98 | U35: 400.55784 | V35: 6 | W35: 2.4 | AC35: 8.4 | AD35: 392.15784 | AE35: 36 | AK35: 36 | AL35: 356.15784 | AM35: 8318.50428 | AS35: =(親2!E35<103)*1+AND(子1!C35>=0,子1!C35<15)*1+AND(子2!C35>=0,子2!C35<15)*1+AND(子3!C35>=0,子3!C35<15)*1+AND(子4!C35>=0,子4!C35<15)*1 -> 0 | AT35: =AND(子1!AC35>0)*1+AND(子2!AC35>0)*1+AND(子3!AC35>0)*1+AND(子4!AC35>0)*1 -> 1 | AU35: 子1人 | AV35: =IF(D35,VLOOKUP(D35,年収と手取り!C:I,7,1),0)/9.1% -> 639.4945055
B36: 49 | C36: 54 | D36: =IF(C36>入力!$D$22,0,VLOOKUP(C36,賃金カーブ!R:T,3,0)) -> 634.7955325 | E36: =VLOOKUP(D36,年収と手取り!X:Y,2,1) -> 480.53784 | F36: =入力!$E$28 -> 0 | G36: =IF(C36=入力!D$22,入力!E$31,0) -> 0 | H36: 0 | I36: =IF(H36>0,-年金の税金!$G$24/10000,0) -> 0 | J36: 480.53784 | M36: 39.6 | N36: 13.2 | O36: 6.6 | P36: 5.28 | Q36: 3.3 | R36: =IF(C36>65,0,IF(OR(AND(子1!C36>=0,子1!C36<=18),AND(子2!C36>=0,子2!C36<=18),AND(子3!C36>=0,子3!C36<=18),AND(子4!C36>=0,子4!C36<=18)),入力!$D$35,入力!$D$34)*12) -> 12 | T36: 79.98 | U36: 400.55784 | V36: 6 | W36: 2.4 | AC36: 8.4 | AD36: 392.15784 | AE36: 36 | AK36: 36 | AL36: 356.15784 | AM36: 8674.66212 | AS36: =(親2!E36<103)*1+AND(子1!C36>=0,子1!C36<15)*1+AND(子2!C36>=0,子2!C36<15)*1+AND(子3!C36>=0,子3!C36<15)*1+AND(子4!C36>=0,子4!C36<15)*1 -> 0 | AT36: =AND(子1!AC36>0)*1+AND(子2!AC36>0)*1+AND(子3!AC36>0)*1+AND(子4!AC36>0)*1 -> 1 | AU36: 子1人 | AV36: =IF(D36,VLOOKUP(D36,年収と手取り!C:I,7,1),0)/9.1% -> 639.4945055
B37: 50 | C37: 55 | D37: =IF(C37>入力!$D$22,0,VLOOKUP(C37,賃金カーブ!R:T,3,0)) -> 632.6707001 | E37: =VLOOKUP(D37,年収と手取り!X:Y,2,1) -> 480.53784 | F37: =入力!$E$28 -> 0 | G37: =IF(C37=入力!D$22,入力!E$31,0) -> 0 | H37: =IF(C37>65,6.5+$AX$74,0)*12 -> 0 | I37: =IF(H37>0,-年金の税金!$G$24/10000,0) -> 0 | J37: 480.53784 | M37: 39.6 | N37: 13.2 | O37: 6.6 | P37: 5.28 | Q37: 3.3 | R37: =IF(C37>65,0,IF(OR(AND(子1!C37>=0,子1!C37<=18),AND(子2!C37>=0,子2!C37<=18),AND(子3!C37>=0,子3!C37<=18),AND(子4!C37>=0,子4!C37<=18)),入力!$D$35,入力!$D$34)*12) -> 12 | T37: 79.98 | U37: 400.55784 | V37: 6 | W37: 2.4 | AC37: 8.4 | AD37: 392.15784 | AE37: 36 | AK37: 36 | AL37: 356.15784 | AM37: 9030.81996 | AS37: =(親2!E37<103)*1+AND(子1!C37>=0,子1!C37<15)*1+AND(子2!C37>=0,子2!C37<15)*1+AND(子3!C37>=0,子3!C37<15)*1+AND(子4!C37>=0,子4!C37<15)*1 -> 0 | AT37: =AND(子1!AC37>0)*1+AND(子2!AC37>0)*1+AND(子3!AC37>0)*1+AND(子4!AC37>0)*1 -> 0 | AU37: 子離れ | AV37: =IF(D37,VLOOKUP(D37,年収と手取り!C:I,7,1),0)/9.1% -> 639.4945055
B38: 51 | C38: 56 | D38: =IF(C38>入力!$D$22,0,VLOOKUP(C38,賃金カーブ!R:T,3,0)) -> 587.6902872 | E38: =VLOOKUP(D38,年収と手取り!X:Y,2,1) -> 447.29016 | F38: =入力!$E$28 -> 0 | G38: =IF(C38=入力!D$22,入力!E$31,0) -> 0 | H38: =IF(C38>65,6.5+$AX$74,0)*12 -> 0 | I38: =IF(H38>0,-年金の税金!$G$24/10000,0) -> 0 | J38: 447.29016 | M38: 39.6 | N38: 13.2 | O38: 6.6 | P38: 5.28 | Q38: 3.3 | R38: =IF(C38>65,0,IF(OR(AND(子1!C38>=0,子1!C38<=18),AND(子2!C38>=0,子2!C38<=18),AND(子3!C38>=0,子3!C38<=18),AND(子4!C38>=0,子4!C38<=18)),入力!$D$35,入力!$D$34)*12) -> 12 | T38: =SUM(K38:S38) -> 79.98 | U38: =J38-T38 -> 367.31016 | V38: 6 | W38: 2.4 | AC38: =SUM(V38:AB38) -> 8.4 | AD38: =U38-AC38 -> 358.91016 | AE38: 36 | AK38: 36 | AL38: =AD38-AK38 -> 322.91016 | AM38: =AL38+AM37 -> 9353.73012 | AS38: =(親2!E38<103)*1+AND(子1!C38>=0,子1!C38<15)*1+AND(子2!C38>=0,子2!C38<15)*1+AND(子3!C38>=0,子3!C38<15)*1+AND(子4!C38>=0,子4!C38<15)*1 -> 0 | AT38: =AND(子1!AC38>0)*1+AND(子2!AC38>0)*1+AND(子3!AC38>0)*1+AND(子4!AC38>0)*1 -> 0 | AU38: 夫婦 | AV38: =IF(D38,VLOOKUP(D38,年収と手取り!C:I,7,1),0)/9.1% -> 567.0989011
B39: 52 | C39: 57 | D39: =IF(C39>入力!$D$22,0,VLOOKUP(C39,賃金カーブ!R:T,3,0)) -> 545.9078057 | E39: =VLOOKUP(D39,年収と手取り!X:Y,2,1) -> 418.06632 | F39: =入力!$E$28 -> 0 | G39: =IF(C39=入力!D$22,入力!E$31,0) -> 0 | H39: 0 | I39: =IF(H39>0,-年金の税金!$G$24/10000,0) -> 0 | J39: 418.06632 | M39: =M$1 -> 39.6 | N39: 13.2 | O39: 6.6 | P39: 5.28 | Q39: 3.3 | R39: =IF(C39>65,0,IF(OR(AND(子1!C39>=0,子1!C39<=18),AND(子2!C39>=0,子2!C39<=18),AND(子3!C39>=0,子3!C39<=18),AND(子4!C39>=0,子4!C39<=18)),入力!$D$35,入力!$D$34)*12) -> 12 | T39: 79.98 | U39: 338.08632 | V39: 6 | W39: 2.4 | AC39: 8.4 | AD39: 329.68632 | AE39: 36 | AK39: 36 | AL39: 293.68632 | AM39: 9647.41644 | AS39: =(親2!E39<103)*1+AND(子1!C39>=0,子1!C39<15)*1+AND(子2!C39>=0,子2!C39<15)*1+AND(子3!C39>=0,子3!C39<15)*1+AND(子4!C39>=0,子4!C39<15)*1 -> 0 | AT39: =AND(子1!AC39>0)*1+AND(子2!AC39>0)*1+AND(子3!AC39>0)*1+AND(子4!AC39>0)*1 -> 0 | AU39: 夫婦 | AV39: =IF(D39,VLOOKUP(D39,年収と手取り!C:I,7,1),0)/9.1% -> 530.9010989
B40: =B39+1 -> 53 | C40: 58 | D40: =IF(C40>入力!$D$22,0,VLOOKUP(C40,賃金カーブ!R:T,3,0)) -> 507.0958954 | E40: =VLOOKUP(D40,年収と手取り!X:Y,2,1) -> 388.84248 | F40: =入力!$E$28 -> 0 | G40: =IF(C40=入力!D$22,入力!E$31,0) -> 0 | H40: 0 | I40: =IF(H40>0,-年金の税金!$G$24/10000,0) -> 0 | J40: =SUM(E40:I40) -> 388.84248 | M40: 39.6 | N40: 13.2 | O40: 6.6 | P40: 5.28 | Q40: 3.3 | R40: =IF(C40>65,0,IF(OR(AND(子1!C40>=0,子1!C40<=18),AND(子2!C40>=0,子2!C40<=18),AND(子3!C40>=0,子3!C40<=18),AND(子4!C40>=0,子4!C40<=18)),入力!$D$35,入力!$D$34)*12) -> 12 | T40: 79.98 | U40: 308.86248 | V40: 6 | W40: 2.4 | AC40: 8.4 | AD40: 300.46248 | AE40: 36 | AK40: 36 | AL40: 264.46248 | AM40: 9911.87892 | AS40: =(親2!E40<103)*1+AND(子1!C40>=0,子1!C40<15)*1+AND(子2!C40>=0,子2!C40<15)*1+AND(子3!C40>=0,子3!C40<15)*1+AND(子4!C40>=0,子4!C40<15)*1 -> 0 | AT40: =AND(子1!AC40>0)*1+AND(子2!AC40>0)*1+AND(子3!AC40>0)*1+AND(子4!AC40>0)*1 -> 0 | AU40: 夫婦 | AV40: =IF(D40,VLOOKUP(D40,年収と手取り!C:I,7,1),0)/9.1% -> 494.7032967
B41: 54 | C41: 59 | D41: =IF(C41>入力!$D$22,0,VLOOKUP(C41,賃金カーブ!R:T,3,0)) -> 471.04336 | E41: =VLOOKUP(D41,年収と手取り!X:Y,2,1) -> 368.01864 | F41: =入力!$E$28 -> 0 | G41: =IF(C41=入力!D$22,入力!E$31,0) -> 0 | H41: 0 | I41: =IF(H41>0,-年金の税金!$G$24/10000,0) -> 0 | J41: 368.01864 | M41: 39.6 | N41: 13.2 | O41: 6.6 | P41: 5.28 | Q41: 3.3 | R41: =IF(C41>65,0,IF(OR(AND(子1!C41>=0,子1!C41<=18),AND(子2!C41>=0,子2!C41<=18),AND(子3!C41>=0,子3!C41<=18),AND(子4!C41>=0,子4!C41<=18)),入力!$D$35,入力!$D$34)*12) -> 12 | T41: 79.98 | U41: 288.03864 | V41: 6 | W41: 2.4 | AC41: 8.4 | AD41: 279.63864 | AE41: 36 | AK41: 36 | AL41: 243.63864 | AM41: 10155.51756 | AS41: =(親2!E41<103)*1+AND(子1!C41>=0,子1!C41<15)*1+AND(子2!C41>=0,子2!C41<15)*1+AND(子3!C41>=0,子3!C41<15)*1+AND(子4!C41>=0,子4!C41<15)*1 -> 0 | AT41: =AND(子1!AC41>0)*1+AND(子2!AC41>0)*1+AND(子3!AC41>0)*1+AND(子4!AC41>0)*1 -> 0 | AU41: 夫婦 | AV41: =IF(D41,VLOOKUP(D41,年収と手取り!C:I,7,1),0)/9.1% -> 458.5054945
B42: 55 | C42: 60 | D42: =IF(C42>入力!$D$22,0,VLOOKUP(C42,賃金カーブ!R:T,3,0)) -> 437.554019 | E42: =VLOOKUP(D42,年収と手取り!X:Y,2,1) -> 336.90396 | F42: =入力!$E$28 -> 0 | G42: =IF(C42=入力!D$22,入力!E$31,0) -> 0 | H42: 0 | I42: =IF(H42>0,-年金の税金!$G$24/10000,0) -> 0 | J42: 336.90396 | M42: 39.6 | N42: 13.2 | O42: 6.6 | P42: 5.28 | Q42: 3.3 | R42: =IF(C42>65,0,IF(OR(AND(子1!C42>=0,子1!C42<=18),AND(子2!C42>=0,子2!C42<=18),AND(子3!C42>=0,子3!C42<=18),AND(子4!C42>=0,子4!C42<=18)),入力!$D$35,入力!$D$34)*12) -> 12 | T42: 79.98 | U42: 256.92396 | V42: 6 | W42: 2.4 | AC42: 8.4 | AD42: 248.52396 | AE42: 36 | AK42: 36 | AL42: 212.52396 | AM42: 10368.04152 | AS42: =(親2!E42<103)*1+AND(子1!C42>=0,子1!C42<15)*1+AND(子2!C42>=0,子2!C42<15)*1+AND(子3!C42>=0,子3!C42<15)*1+AND(子4!C42>=0,子4!C42<15)*1 -> 0 | AT42: =AND(子1!AC42>0)*1+AND(子2!AC42>0)*1+AND(子3!AC42>0)*1+AND(子4!AC42>0)*1 -> 0 | AU42: 夫婦 | AV42: =IF(D42,VLOOKUP(D42,年収と手取り!C:I,7,1),0)/9.1% -> 434.3736264
B43: 56 | C43: 61 | D43: =IF(C43>入力!$D$22,0,VLOOKUP(C43,賃金カーブ!R:T,3,0)) -> 437.554019 | E43: =VLOOKUP(D43,年収と手取り!X:Y,2,1) -> 336.90396 | F43: =入力!$E$28 -> 0 | G43: =IF(C43=入力!D$22,入力!E$31,0) -> 0 | H43: 0 | I43: =IF(H43>0,-年金の税金!$G$24/10000,0) -> 0 | J43: 336.90396 | M43: 39.6 | N43: 13.2 | O43: 6.6 | P43: 5.28 | Q43: 3.3 | R43: =IF(C43>65,0,IF(OR(AND(子1!C43>=0,子1!C43<=18),AND(子2!C43>=0,子2!C43<=18),AND(子3!C43>=0,子3!C43<=18),AND(子4!C43>=0,子4!C43<=18)),入力!$D$35,入力!$D$34)*12) -> 12 | T43: 79.98 | U43: 256.92396 | V43: 6 | W43: 2.4 | AC43: 8.4 | AD43: 248.52396 | AE43: 36 | AK43: 36 | AL43: 212.52396 | AM43: 10580.56548 | AS43: =(親2!E43<103)*1+AND(子1!C43>=0,子1!C43<15)*1+AND(子2!C43>=0,子2!C43<15)*1+AND(子3!C43>=0,子3!C43<15)*1+AND(子4!C43>=0,子4!C43<15)*1 -> 0 | AT43: =AND(子1!AC43>0)*1+AND(子2!AC43>0)*1+AND(子3!AC43>0)*1+AND(子4!AC43>0)*1 -> 0 | AU43: 夫婦 | AV43: =IF(D43,VLOOKUP(D43,年収と手取り!C:I,7,1),0)/9.1% -> 434.3736264
B44: 57 | C44: 62 | D44: =IF(C44>入力!$D$22,0,VLOOKUP(C44,賃金カーブ!R:T,3,0)) -> 437.554019 | E44: =VLOOKUP(D44,年収と手取り!X:Y,2,1) -> 336.90396 | F44: =入力!$E$28 -> 0 | G44: =IF(C44=入力!D$22,入力!E$31,0) -> 0 | H44: 0 | I44: =IF(H44>0,-年金の税金!$G$24/10000,0) -> 0 | J44: 336.90396 | M44: 39.6 | N44: 13.2 | O44: 6.6 | P44: 5.28 | Q44: 3.3 | R44: =IF(C44>65,0,IF(OR(AND(子1!C44>=0,子1!C44<=18),AND(子2!C44>=0,子2!C44<=18),AND(子3!C44>=0,子3!C44<=18),AND(子4!C44>=0,子4!C44<=18)),入力!$D$35,入力!$D$34)*12) -> 12 | T44: 79.98 | U44: 256.92396 | V44: 6 | W44: 2.4 | AC44: 8.4 | AD44: 248.52396 | AE44: 36 | AK44: 36 | AL44: 212.52396 | AM44: 10793.08944 | AS44: =(親2!E44<103)*1+AND(子1!C44>=0,子1!C44<15)*1+AND(子2!C44>=0,子2!C44<15)*1+AND(子3!C44>=0,子3!C44<15)*1+AND(子4!C44>=0,子4!C44<15)*1 -> 0 | AT44: =AND(子1!AC44>0)*1+AND(子2!AC44>0)*1+AND(子3!AC44>0)*1+AND(子4!AC44>0)*1 -> 0 | AU44: 夫婦 | AV44: =IF(D44,VLOOKUP(D44,年収と手取り!C:I,7,1),0)/9.1% -> 434.3736264
B45: 58 | C45: 63 | D45: =IF(C45>入力!$D$22,0,VLOOKUP(C45,賃金カーブ!R:T,3,0)) -> 437.554019 | E45: =VLOOKUP(D45,年収と手取り!X:Y,2,1) -> 336.90396 | F45: =入力!$E$28 -> 0 | G45: =IF(C45=入力!D$22,入力!E$31,0) -> 0 | H45: 0 | I45: =IF(H45>0,-年金の税金!$G$24/10000,0) -> 0 | J45: 336.90396 | M45: 39.6 | N45: 13.2 | O45: 6.6 | P45: 5.28 | Q45: 3.3 | R45: =IF(C45>65,0,IF(OR(AND(子1!C45>=0,子1!C45<=18),AND(子2!C45>=0,子2!C45<=18),AND(子3!C45>=0,子3!C45<=18),AND(子4!C45>=0,子4!C45<=18)),入力!$D$35,入力!$D$34)*12) -> 12 | T45: 79.98 | U45: 256.92396 | V45: 6 | W45: 2.4 | AC45: 8.4 | AD45: 248.52396 | AE45: 36 | AK45: 36 | AL45: 212.52396 | AM45: 11005.6134 | AS45: =(親2!E45<103)*1+AND(子1!C45>=0,子1!C45<15)*1+AND(子2!C45>=0,子2!C45<15)*1+AND(子3!C45>=0,子3!C45<15)*1+AND(子4!C45>=0,子4!C45<15)*1 -> 0 | AT45: =AND(子1!AC45>0)*1+AND(子2!AC45>0)*1+AND(子3!AC45>0)*1+AND(子4!AC45>0)*1 -> 0 | AU45: 夫婦 | AV45: =IF(D45,VLOOKUP(D45,年収と手取り!C:I,7,1),0)/9.1% -> 434.3736264
B46: 59 | C46: 64 | D46: =IF(C46>入力!$D$22,0,VLOOKUP(C46,賃金カーブ!R:T,3,0)) -> 437.554019 | E46: =VLOOKUP(D46,年収と手取り!X:Y,2,1) -> 336.90396 | F46: =入力!$E$28 -> 0 | G46: =IF(C46=入力!D$22,入力!E$31,0) -> 0 | H46: 0 | I46: =IF(H46>0,-年金の税金!$G$24/10000,0) -> 0 | J46: 336.90396 | M46: 39.6 | N46: 13.2 | O46: 6.6 | P46: 5.28 | Q46: 3.3 | R46: =IF(C46>65,0,IF(OR(AND(子1!C46>=0,子1!C46<=18),AND(子2!C46>=0,子2!C46<=18),AND(子3!C46>=0,子3!C46<=18),AND(子4!C46>=0,子4!C46<=18)),入力!$D$35,入力!$D$34)*12) -> 12 | T46: 79.98 | U46: 256.92396 | V46: 6 | W46: 2.4 | AC46: 8.4 | AD46: 248.52396 | AE46: 36 | AK46: 36 | AL46: 212.52396 | AM46: 11218.13736 | AS46: =(親2!E46<103)*1+AND(子1!C46>=0,子1!C46<15)*1+AND(子2!C46>=0,子2!C46<15)*1+AND(子3!C46>=0,子3!C46<15)*1+AND(子4!C46>=0,子4!C46<15)*1 -> 0 | AT46: =AND(子1!AC46>0)*1+AND(子2!AC46>0)*1+AND(子3!AC46>0)*1+AND(子4!AC46>0)*1 -> 0 | AU46: 夫婦 | AV46: =IF(D46,VLOOKUP(D46,年収と手取り!C:I,7,1),0)/9.1% -> 434.3736264
B47: 60 | C47: 65 | D47: =IF(C47>入力!$D$22,0,VLOOKUP(C47,賃金カーブ!R:T,3,0)) -> 437.554019 | E47: =VLOOKUP(D47,年収と手取り!X:Y,2,1) -> 336.90396 | F47: =入力!$E$28 -> 0 | G47: =IF(C47=入力!D$22,入力!E$31,0) -> 1000 | H47: 0 | I47: =IF(H47>0,-年金の税金!$G$24/10000,0) -> 0 | J47: 1336.90396 | M47: 39.6 | N47: 13.2 | O47: 6.6 | P47: 5.28 | Q47: 3.3 | R47: =IF(C47>65,0,IF(OR(AND(子1!C47>=0,子1!C47<=18),AND(子2!C47>=0,子2!C47<=18),AND(子3!C47>=0,子3!C47<=18),AND(子4!C47>=0,子4!C47<=18)),入力!$D$35,入力!$D$34)*12) -> 12 | T47: 79.98 | U47: 1256.92396 | V47: 6 | W47: 2.4 | AC47: 8.4 | AD47: 1248.52396 | AE47: 36 | AK47: 36 | AL47: 1212.52396 | AM47: 12430.66132 | AS47: =(親2!E47<103)*1+AND(子1!C47>=0,子1!C47<15)*1+AND(子2!C47>=0,子2!C47<15)*1+AND(子3!C47>=0,子3!C47<15)*1+AND(子4!C47>=0,子4!C47<15)*1 -> 0 | AT47: =AND(子1!AC47>0)*1+AND(子2!AC47>0)*1+AND(子3!AC47>0)*1+AND(子4!AC47>0)*1 -> 0 | AU47: 夫婦 | AV47: =IF(D47,VLOOKUP(D47,年収と手取り!C:I,7,1),0)/9.1% -> 434.3736264
B48: 61 | C48: 66 | D48: =IF(C48>入力!$D$22,0,VLOOKUP(C48,賃金カーブ!R:T,3,0)) -> 0 | E48: =VLOOKUP(D48,年収と手取り!X:Y,2,1) -> 0 | F48: =入力!$E$28 -> 0 | G48: =IF(C48=入力!D$22,入力!E$31,0) -> 0 | H48: 199.6633832 | I48: =IF(H48>0,-年金の税金!$G$24/10000,0) -> -12.2050336 | J48: 187.4583496 | M48: 39.6 | N48: 13.2 | O48: 6.6 | P48: 5.28 | Q48: 3.3 | R48: =IF(C48>65,0,IF(OR(AND(子1!C48>=0,子1!C48<=18),AND(子2!C48>=0,子2!C48<=18),AND(子3!C48>=0,子3!C48<=18),AND(子4!C48>=0,子4!C48<=18)),入力!$D$35,入力!$D$34)*12) -> 0 | T48: 67.98 | U48: 119.4783496 | V48: 6 | W48: 2.4 | AC48: 8.4 | AD48: 111.0783496 | AE48: 36 | AK48: 36 | AL48: 75.07834963 | AM48: 12505.73967 | AS48: =(親2!E48<103)*1+AND(子1!C48>=0,子1!C48<15)*1+AND(子2!C48>=0,子2!C48<15)*1+AND(子3!C48>=0,子3!C48<15)*1+AND(子4!C48>=0,子4!C48<15)*1 -> 0 | AT48: =AND(子1!AC48>0)*1+AND(子2!AC48>0)*1+AND(子3!AC48>0)*1+AND(子4!AC48>0)*1 -> 0 | AU48: 夫婦 | AV48: =IF(D48,VLOOKUP(D48,年収と手取り!C:I,7,1),0)/9.1% -> 0
B49: 62 | C49: 67 | D49: =IF(C49>入力!$D$22,0,VLOOKUP(C49,賃金カーブ!R:T,3,0)) -> 0 | E49: =VLOOKUP(D49,年収と手取り!X:Y,2,1) -> 0 | F49: =入力!$E$28 -> 0 | G49: =IF(C49=入力!D$22,入力!E$31,0) -> 0 | H49: 199.6633832 | I49: =IF(H49>0,-年金の税金!$G$24/10000,0) -> -12.2050336 | J49: 187.4583496 | M49: 39.6 | N49: 13.2 | O49: 6.6 | P49: 5.28 | Q49: 3.3 | R49: =IF(C49>65,0,IF(OR(AND(子1!C49>=0,子1!C49<=18),AND(子2!C49>=0,子2!C49<=18),AND(子3!C49>=0,子3!C49<=18),AND(子4!C49>=0,子4!C49<=18)),入力!$D$35,入力!$D$34)*12) -> 0 | T49: 67.98 | U49: 119.4783496 | V49: 6 | W49: 2.4 | AC49: 8.4 | AD49: 111.0783496 | AE49: 36 | AK49: 36 | AL49: 75.07834963 | AM49: 12580.81802 | AS49: =(親2!E49<103)*1+AND(子1!C49>=0,子1!C49<15)*1+AND(子2!C49>=0,子2!C49<15)*1+AND(子3!C49>=0,子3!C49<15)*1+AND(子4!C49>=0,子4!C49<15)*1 -> 0 | AT49: =AND(子1!AC49>0)*1+AND(子2!AC49>0)*1+AND(子3!AC49>0)*1+AND(子4!AC49>0)*1 -> 0 | AU49: 夫婦 | AV49: =IF(D49,VLOOKUP(D49,年収と手取り!C:I,7,1),0)/9.1% -> 0
B50: 63 | C50: 68 | D50: =IF(C50>入力!$D$22,0,VLOOKUP(C50,賃金カーブ!R:T,3,0)) -> 0 | E50: =VLOOKUP(D50,年収と手取り!X:Y,2,1) -> 0 | F50: =入力!$E$28 -> 0 | G50: =IF(C50=入力!D$22,入力!E$31,0) -> 0 | H50: 199.6633832 | I50: =IF(H50>0,-年金の税金!$G$24/10000,0) -> -12.2050336 | J50: 187.4583496 | M50: 39.6 | N50: 13.2 | O50: 6.6 | P50: 5.28 | Q50: 3.3 | R50: =IF(C50>65,0,IF(OR(AND(子1!C50>=0,子1!C50<=18),AND(子2!C50>=0,子2!C50<=18),AND(子3!C50>=0,子3!C50<=18),AND(子4!C50>=0,子4!C50<=18)),入力!$D$35,入力!$D$34)*12) -> 0 | T50: 67.98 | U50: 119.4783496 | V50: 6 | W50: 2.4 | AC50: 8.4 | AD50: 111.0783496 | AE50: 36 | AK50: 36 | AL50: 75.07834963 | AM50: 12655.89637 | AS50: =(親2!E50<103)*1+AND(子1!C50>=0,子1!C50<15)*1+AND(子2!C50>=0,子2!C50<15)*1+AND(子3!C50>=0,子3!C50<15)*1+AND(子4!C50>=0,子4!C50<15)*1 -> 1 | AT50: =AND(子1!AC50>0)*1+AND(子2!AC50>0)*1+AND(子3!AC50>0)*1+AND(子4!AC50>0)*1 -> 0 | AU50: 夫婦 | AV50: =IF(D50,VLOOKUP(D50,年収と手取り!C:I,7,1),0)/9.1% -> 0
B51: 64 | C51: 69 | D51: =IF(C51>入力!$D$22,0,VLOOKUP(C51,賃金カーブ!R:T,3,0)) -> 0 | E51: =VLOOKUP(D51,年収と手取り!X:Y,2,1) -> 0 | F51: =入力!$E$28 -> 0 | G51: =IF(C51=入力!D$22,入力!E$31,0) -> 0 | H51: 199.6633832 | I51: =IF(H51>0,-年金の税金!$G$24/10000,0) -> -12.2050336 | J51: 187.4583496 | M51: 39.6 | N51: 13.2 | O51: 6.6 | P51: 5.28 | Q51: 3.3 | R51: =IF(C51>65,0,IF(OR(AND(子1!C51>=0,子1!C51<=18),AND(子2!C51>=0,子2!C51<=18),AND(子3!C51>=0,子3!C51<=18),AND(子4!C51>=0,子4!C51<=18)),入力!$D$35,入力!$D$34)*12) -> 0 | T51: 67.98 | U51: 119.4783496 | V51: 6 | W51: 2.4 | AC51: 8.4 | AD51: 111.0783496 | AE51: 36 | AK51: 36 | AL51: 75.07834963 | AM51: 12730.97472 | AS51: =(親2!E51<103)*1+AND(子1!C51>=0,子1!C51<15)*1+AND(子2!C51>=0,子2!C51<15)*1+AND(子3!C51>=0,子3!C51<15)*1+AND(子4!C51>=0,子4!C51<15)*1 -> 1 | AT51: =AND(子1!AC51>0)*1+AND(子2!AC51>0)*1+AND(子3!AC51>0)*1+AND(子4!AC51>0)*1 -> 0 | AU51: 夫婦 | AV51: =IF(D51,VLOOKUP(D51,年収と手取り!C:I,7,1),0)/9.1% -> 0
B52: 65 | C52: 70 | D52: =IF(C52>入力!$D$22,0,VLOOKUP(C52,賃金カーブ!R:T,3,0)) -> 0 | E52: =VLOOKUP(D52,年収と手取り!X:Y,2,1) -> 0 | F52: =入力!$E$28 -> 0 | G52: =IF(C52=入力!D$22,入力!E$31,0) -> 0 | H52: 199.6633832 | I52: =IF(H52>0,-年金の税金!$G$24/10000,0) -> -12.2050336 | J52: 187.4583496 | M52: 39.6 | N52: 13.2 | O52: 6.6 | P52: 5.28 | Q52: 3.3 | R52: =IF(C52>65,0,IF(OR(AND(子1!C52>=0,子1!C52<=18),AND(子2!C52>=0,子2!C52<=18),AND(子3!C52>=0,子3!C52<=18),AND(子4!C52>=0,子4!C52<=18)),入力!$D$35,入力!$D$34)*12) -> 0 | T52: 67.98 | U52: 119.4783496 | V52: 6 | W52: 2.4 | AC52: 8.4 | AD52: 111.0783496 | AE52: 36 | AK52: 36 | AL52: 75.07834963 | AM52: 12806.05307 | AS52: =(親2!E52<103)*1+AND(子1!C52>=0,子1!C52<15)*1+AND(子2!C52>=0,子2!C52<15)*1+AND(子3!C52>=0,子3!C52<15)*1+AND(子4!C52>=0,子4!C52<15)*1 -> 1 | AT52: =AND(子1!AC52>0)*1+AND(子2!AC52>0)*1+AND(子3!AC52>0)*1+AND(子4!AC52>0)*1 -> 0 | AU52: 夫婦 | AV52: =IF(D52,VLOOKUP(D52,年収と手取り!C:I,7,1),0)/9.1% -> 0
B53: 66 | C53: 71 | D53: =IF(C53>入力!$D$22,0,VLOOKUP(C53,賃金カーブ!R:T,3,0)) -> 0 | E53: =VLOOKUP(D53,年収と手取り!X:Y,2,1) -> 0 | F53: =入力!$E$28 -> 0 | G53: =IF(C53=入力!D$22,入力!E$31,0) -> 0 | H53: 199.6633832 | I53: =IF(H53>0,-年金の税金!$G$24/10000,0) -> -12.2050336 | J53: 187.4583496 | M53: 39.6 | N53: 13.2 | O53: 6.6 | P53: 5.28 | Q53: 3.3 | R53: =IF(C53>65,0,IF(OR(AND(子1!C53>=0,子1!C53<=18),AND(子2!C53>=0,子2!C53<=18),AND(子3!C53>=0,子3!C53<=18),AND(子4!C53>=0,子4!C53<=18)),入力!$D$35,入力!$D$34)*12) -> 0 | T53: 67.98 | U53: 119.4783496 | V53: 6 | W53: 2.4 | AC53: 8.4 | AD53: 111.0783496 | AE53: 36 | AK53: 36 | AL53: 75.07834963 | AM53: 12881.13142 | AS53: =(親2!E53<103)*1+AND(子1!C53>=0,子1!C53<15)*1+AND(子2!C53>=0,子2!C53<15)*1+AND(子3!C53>=0,子3!C53<15)*1+AND(子4!C53>=0,子4!C53<15)*1 -> 1 | AT53: =AND(子1!AC53>0)*1+AND(子2!AC53>0)*1+AND(子3!AC53>0)*1+AND(子4!AC53>0)*1 -> 0 | AU53: 夫婦 | AV53: =IF(D53,VLOOKUP(D53,年収と手取り!C:I,7,1),0)/9.1% -> 0
B54: 67 | C54: 72 | D54: =IF(C54>入力!$D$22,0,VLOOKUP(C54,賃金カーブ!R:T,3,0)) -> 0 | E54: =VLOOKUP(D54,年収と手取り!X:Y,2,1) -> 0 | F54: =入力!$E$28 -> 0 | G54: =IF(C54=入力!D$22,入力!E$31,0) -> 0 | H54: 199.6633832 | I54: =IF(H54>0,-年金の税金!$G$24/10000,0) -> -12.2050336 | J54: 187.4583496 | M54: 39.6 | N54: 13.2 | O54: 6.6 | P54: 5.28 | Q54: 3.3 | R54: =IF(C54>65,0,IF(OR(AND(子1!C54>=0,子1!C54<=18),AND(子2!C54>=0,子2!C54<=18),AND(子3!C54>=0,子3!C54<=18),AND(子4!C54>=0,子4!C54<=18)),入力!$D$35,入力!$D$34)*12) -> 0 | T54: 67.98 | U54: 119.4783496 | V54: 6 | W54: 2.4 | AC54: 8.4 | AD54: 111.0783496 | AE54: 36 | AK54: 36 | AL54: 75.07834963 | AM54: 12956.20977 | AS54: =(親2!E54<103)*1+AND(子1!C54>=0,子1!C54<15)*1+AND(子2!C54>=0,子2!C54<15)*1+AND(子3!C54>=0,子3!C54<15)*1+AND(子4!C54>=0,子4!C54<15)*1 -> 1 | AT54: =AND(子1!AC54>0)*1+AND(子2!AC54>0)*1+AND(子3!AC54>0)*1+AND(子4!AC54>0)*1 -> 0 | AU54: 夫婦 | AV54: =IF(D54,VLOOKUP(D54,年収と手取り!C:I,7,1),0)/9.1% -> 0
B55: 68 | C55: 73 | D55: =IF(C55>入力!$D$22,0,VLOOKUP(C55,賃金カーブ!R:T,3,0)) -> 0 | E55: =VLOOKUP(D55,年収と手取り!X:Y,2,1) -> 0 | F55: =入力!$E$28 -> 0 | G55: =IF(C55=入力!D$22,入力!E$31,0) -> 0 | H55: 199.6633832 | I55: =IF(H55>0,-年金の税金!$G$24/10000,0) -> -12.2050336 | J55: 187.4583496 | M55: =M$1 -> 39.6 | N55: 13.2 | O55: 6.6 | P55: 5.28 | Q55: 3.3 | R55: =IF(C55>65,0,IF(OR(AND(子1!C55>=0,子1!C55<=18),AND(子2!C55>=0,子2!C55<=18),AND(子3!C55>=0,子3!C55<=18),AND(子4!C55>=0,子4!C55<=18)),入力!$D$35,入力!$D$34)*12) -> 0 | T55: 67.98 | U55: 119.4783496 | V55: 6 | W55: 2.4 | AC55: 8.4 | AD55: 111.0783496 | AE55: 36 | AK55: 36 | AL55: 75.07834963 | AM55: 13031.28812 | AS55: =(親2!E55<103)*1+AND(子1!C55>=0,子1!C55<15)*1+AND(子2!C55>=0,子2!C55<15)*1+AND(子3!C55>=0,子3!C55<15)*1+AND(子4!C55>=0,子4!C55<15)*1 -> 1 | AT55: =AND(子1!AC55>0)*1+AND(子2!AC55>0)*1+AND(子3!AC55>0)*1+AND(子4!AC55>0)*1 -> 0 | AU55: 夫婦 | AV55: =IF(D55,VLOOKUP(D55,年収と手取り!C:I,7,1),0)/9.1% -> 0
B56: 69 | C56: 74 | D56: =IF(C56>入力!$D$22,0,VLOOKUP(C56,賃金カーブ!R:T,3,0)) -> 0 | E56: =VLOOKUP(D56,年収と手取り!X:Y,2,1) -> 0 | F56: =入力!$E$28 -> 0 | G56: =IF(C56=入力!D$22,入力!E$31,0) -> 0 | H56: 199.6633832 | I56: =IF(H56>0,-年金の税金!$G$24/10000,0) -> -12.2050336 | J56: 187.4583496 | M56: 39.6 | N56: 13.2 | O56: 6.6 | P56: 5.28 | Q56: 3.3 | R56: =IF(C56>65,0,IF(OR(AND(子1!C56>=0,子1!C56<=18),AND(子2!C56>=0,子2!C56<=18),AND(子3!C56>=0,子3!C56<=18),AND(子4!C56>=0,子4!C56<=18)),入力!$D$35,入力!$D$34)*12) -> 0 | T56: 67.98 | U56: 119.4783496 | V56: 6 | W56: 2.4 | AC56: 8.4 | AD56: 111.0783496 | AE56: 36 | AK56: 36 | AL56: 75.07834963 | AM56: 13106.36647 | AS56: =(親2!E56<103)*1+AND(子1!C56>=0,子1!C56<15)*1+AND(子2!C56>=0,子2!C56<15)*1+AND(子3!C56>=0,子3!C56<15)*1+AND(子4!C56>=0,子4!C56<15)*1 -> 1 | AT56: =AND(子1!AC56>0)*1+AND(子2!AC56>0)*1+AND(子3!AC56>0)*1+AND(子4!AC56>0)*1 -> 0 | AU56: 夫婦 | AV56: =IF(D56,VLOOKUP(D56,年収と手取り!C:I,7,1),0)/9.1% -> 0
B57: 70 | C57: 75 | D57: =IF(C57>入力!$D$22,0,VLOOKUP(C57,賃金カーブ!R:T,3,0)) -> 0 | E57: =VLOOKUP(D57,年収と手取り!X:Y,2,1) -> 0 | F57: =入力!$E$28 -> 0 | G57: =IF(C57=入力!D$22,入力!E$31,0) -> 0 | H57: 199.6633832 | I57: =IF(H57>0,-年金の税金!$G$24/10000,0) -> -12.2050336 | J57: 187.4583496 | M57: 39.6 | N57: 13.2 | O57: 6.6 | P57: 5.28 | Q57: 3.3 | R57: =IF(C57>65,0,IF(OR(AND(子1!C57>=0,子1!C57<=18),AND(子2!C57>=0,子2!C57<=18),AND(子3!C57>=0,子3!C57<=18),AND(子4!C57>=0,子4!C57<=18)),入力!$D$35,入力!$D$34)*12) -> 0 | T57: 67.98 | U57: 119.4783496 | V57: 6 | W57: 2.4 | AC57: 8.4 | AD57: 111.0783496 | AE57: 36 | AK57: 36 | AL57: 75.07834963 | AM57: 13181.44482 | AS57: =(親2!E57<103)*1+AND(子1!C57>=0,子1!C57<15)*1+AND(子2!C57>=0,子2!C57<15)*1+AND(子3!C57>=0,子3!C57<15)*1+AND(子4!C57>=0,子4!C57<15)*1 -> 1 | AT57: =AND(子1!AC57>0)*1+AND(子2!AC57>0)*1+AND(子3!AC57>0)*1+AND(子4!AC57>0)*1 -> 0 | AU57: 夫婦 | AV57: =IF(D57,VLOOKUP(D57,年収と手取り!C:I,7,1),0)/9.1% -> 0
B58: 71 | C58: 76 | D58: =IF(C58>入力!$D$22,0,VLOOKUP(C58,賃金カーブ!R:T,3,0)) -> 0 | E58: =VLOOKUP(D58,年収と手取り!X:Y,2,1) -> 0 | F58: =入力!$E$28 -> 0 | G58: =IF(C58=入力!D$22,入力!E$31,0) -> 0 | H58: 199.6633832 | I58: =IF(H58>0,-年金の税金!$G$24/10000,0) -> -12.2050336 | J58: 187.4583496 | M58: 39.6 | N58: 13.2 | O58: 6.6 | P58: 5.28 | Q58: 3.3 | R58: =IF(C58>65,0,IF(OR(AND(子1!C58>=0,子1!C58<=18),AND(子2!C58>=0,子2!C58<=18),AND(子3!C58>=0,子3!C58<=18),AND(子4!C58>=0,子4!C58<=18)),入力!$D$35,入力!$D$34)*12) -> 0 | T58: 67.98 | U58: 119.4783496 | V58: 6 | W58: 2.4 | AC58: 8.4 | AD58: 111.0783496 | AE58: 36 | AK58: 36 | AL58: 75.07834963 | AM58: 13256.52317 | AS58: =(親2!E58<103)*1+AND(子1!C58>=0,子1!C58<15)*1+AND(子2!C58>=0,子2!C58<15)*1+AND(子3!C58>=0,子3!C58<15)*1+AND(子4!C58>=0,子4!C58<15)*1 -> 1 | AT58: =AND(子1!AC58>0)*1+AND(子2!AC58>0)*1+AND(子3!AC58>0)*1+AND(子4!AC58>0)*1 -> 0 | AU58: 夫婦 | AV58: =IF(D58,VLOOKUP(D58,年収と手取り!C:I,7,1),0)/9.1% -> 0
B59: 72 | C59: 77 | D59: =IF(C59>入力!$D$22,0,VLOOKUP(C59,賃金カーブ!R:T,3,0)) -> 0 | E59: =VLOOKUP(D59,年収と手取り!X:Y,2,1) -> 0 | F59: =入力!$E$28 -> 0 | G59: =IF(C59=入力!D$22,入力!E$31,0) -> 0 | H59: 199.6633832 | I59: =IF(H59>0,-年金の税金!$G$24/10000,0) -> -12.2050336 | J59: 187.4583496 | M59: 39.6 | N59: 13.2 | O59: 6.6 | P59: 5.28 | Q59: 3.3 | R59: =IF(C59>65,0,IF(OR(AND(子1!C59>=0,子1!C59<=18),AND(子2!C59>=0,子2!C59<=18),AND(子3!C59>=0,子3!C59<=18),AND(子4!C59>=0,子4!C59<=18)),入力!$D$35,入力!$D$34)*12) -> 0 | T59: 67.98 | U59: 119.4783496 | V59: 6 | W59: 2.4 | AC59: 8.4 | AD59: 111.0783496 | AE59: 36 | AK59: 36 | AL59: 75.07834963 | AM59: 13331.60152 | AS59: =(親2!E59<103)*1+AND(子1!C59>=0,子1!C59<15)*1+AND(子2!C59>=0,子2!C59<15)*1+AND(子3!C59>=0,子3!C59<15)*1+AND(子4!C59>=0,子4!C59<15)*1 -> 1 | AT59: =AND(子1!AC59>0)*1+AND(子2!AC59>0)*1+AND(子3!AC59>0)*1+AND(子4!AC59>0)*1 -> 0 | AU59: 夫婦 | AV59: =IF(D59,VLOOKUP(D59,年収と手取り!C:I,7,1),0)/9.1% -> 0
B60: 73 | C60: 78 | D60: =IF(C60>入力!$D$22,0,VLOOKUP(C60,賃金カーブ!R:T,3,0)) -> 0 | E60: =VLOOKUP(D60,年収と手取り!X:Y,2,1) -> 0 | F60: =入力!$E$28 -> 0 | G60: =IF(C60=入力!D$22,入力!E$31,0) -> 0 | H60: 199.6633832 | I60: =IF(H60>0,-年金の税金!$G$24/10000,0) -> -12.2050336 | J60: 187.4583496 | M60: 39.6 | N60: 13.2 | O60: 6.6 | P60: 5.28 | Q60: 3.3 | R60: =IF(C60>65,0,IF(OR(AND(子1!C60>=0,子1!C60<=18),AND(子2!C60>=0,子2!C60<=18),AND(子3!C60>=0,子3!C60<=18),AND(子4!C60>=0,子4!C60<=18)),入力!$D$35,入力!$D$34)*12) -> 0 | T60: 67.98 | U60: 119.4783496 | V60: 6 | W60: 2.4 | AC60: 8.4 | AD60: 111.0783496 | AE60: 36 | AK60: 36 | AL60: 75.07834963 | AM60: 13406.67987 | AS60: =(親2!E60<103)*1+AND(子1!C60>=0,子1!C60<15)*1+AND(子2!C60>=0,子2!C60<15)*1+AND(子3!C60>=0,子3!C60<15)*1+AND(子4!C60>=0,子4!C60<15)*1 -> 1 | AT60: =AND(子1!AC60>0)*1+AND(子2!AC60>0)*1+AND(子3!AC60>0)*1+AND(子4!AC60>0)*1 -> 0 | AU60: 夫婦 | AV60: =IF(D60,VLOOKUP(D60,年収と手取り!C:I,7,1),0)/9.1% -> 0
B61: 74 | C61: 79 | D61: =IF(C61>入力!$D$22,0,VLOOKUP(C61,賃金カーブ!R:T,3,0)) -> 0 | E61: =VLOOKUP(D61,年収と手取り!X:Y,2,1) -> 0 | F61: =入力!$E$28 -> 0 | G61: =IF(C61=入力!D$22,入力!E$31,0) -> 0 | H61: 199.6633832 | I61: =IF(H61>0,-年金の税金!$G$24/10000,0) -> -12.2050336 | J61: 187.4583496 | M61: 39.6 | N61: 13.2 | O61: 6.6 | P61: 5.28 | Q61: 3.3 | R61: =IF(C61>65,0,IF(OR(AND(子1!C61>=0,子1!C61<=18),AND(子2!C61>=0,子2!C61<=18),AND(子3!C61>=0,子3!C61<=18),AND(子4!C61>=0,子4!C61<=18)),入力!$D$35,入力!$D$34)*12) -> 0 | T61: 67.98 | U61: 119.4783496 | V61: 6 | W61: 2.4 | AC61: 8.4 | AD61: 111.0783496 | AE61: 36 | AK61: 36 | AL61: 75.07834963 | AM61: 13481.75821 | AS61: =(親2!E61<103)*1+AND(子1!C61>=0,子1!C61<15)*1+AND(子2!C61>=0,子2!C61<15)*1+AND(子3!C61>=0,子3!C61<15)*1+AND(子4!C61>=0,子4!C61<15)*1 -> 1 | AT61: =AND(子1!AC61>0)*1+AND(子2!AC61>0)*1+AND(子3!AC61>0)*1+AND(子4!AC61>0)*1 -> 0 | AU61: 夫婦 | AV61: =IF(D61,VLOOKUP(D61,年収と手取り!C:I,7,1),0)/9.1% -> 0
B62: 75 | C62: 80 | D62: =IF(C62>入力!$D$22,0,VLOOKUP(C62,賃金カーブ!R:T,3,0)) -> 0 | E62: =VLOOKUP(D62,年収と手取り!X:Y,2,1) -> 0 | F62: =入力!$E$28 -> 0 | G62: =IF(C62=入力!D$22,入力!E$31,0) -> 0 | H62: 199.6633832 | I62: =IF(H62>0,-年金の税金!$G$24/10000,0) -> -12.2050336 | J62: 187.4583496 | M62: 39.6 | N62: 13.2 | O62: 6.6 | P62: 5.28 | Q62: 3.3 | R62: =IF(C62>65,0,IF(OR(AND(子1!C62>=0,子1!C62<=18),AND(子2!C62>=0,子2!C62<=18),AND(子3!C62>=0,子3!C62<=18),AND(子4!C62>=0,子4!C62<=18)),入力!$D$35,入力!$D$34)*12) -> 0 | T62: 67.98 | U62: 119.4783496 | V62: 6 | W62: 2.4 | AC62: 8.4 | AD62: 111.0783496 | AE62: 36 | AK62: 36 | AL62: 75.07834963 | AM62: 13556.83656 | AS62: =(親2!E62<103)*1+AND(子1!C62>=0,子1!C62<15)*1+AND(子2!C62>=0,子2!C62<15)*1+AND(子3!C62>=0,子3!C62<15)*1+AND(子4!C62>=0,子4!C62<15)*1 -> 1 | AT62: =AND(子1!AC62>0)*1+AND(子2!AC62>0)*1+AND(子3!AC62>0)*1+AND(子4!AC62>0)*1 -> 0 | AU62: 夫婦 | AV62: =IF(D62,VLOOKUP(D62,年収と手取り!C:I,7,1),0)/9.1% -> 0
B63: 76 | C63: 81 | D63: =IF(C63>入力!$D$22,0,VLOOKUP(C63,賃金カーブ!R:T,3,0)) -> 0 | E63: =VLOOKUP(D63,年収と手取り!X:Y,2,1) -> 0 | F63: =入力!$E$28 -> 0 | G63: =IF(C63=入力!D$22,入力!E$31,0) -> 0 | H63: 199.6633832 | I63: =IF(H63>0,-年金の税金!$G$24/10000,0) -> -12.2050336 | J63: 187.4583496 | M63: 39.6 | N63: 13.2 | O63: 6.6 | P63: 5.28 | Q63: 3.3 | R63: =IF(C63>65,0,IF(OR(AND(子1!C63>=0,子1!C63<=18),AND(子2!C63>=0,子2!C63<=18),AND(子3!C63>=0,子3!C63<=18),AND(子4!C63>=0,子4!C63<=18)),入力!$D$35,入力!$D$34)*12) -> 0 | T63: 67.98 | U63: 119.4783496 | V63: 6 | W63: 2.4 | AC63: 8.4 | AD63: 111.0783496 | AE63: 36 | AK63: 36 | AL63: 75.07834963 | AM63: 13631.91491 | AS63: =(親2!E63<103)*1+AND(子1!C63>=0,子1!C63<15)*1+AND(子2!C63>=0,子2!C63<15)*1+AND(子3!C63>=0,子3!C63<15)*1+AND(子4!C63>=0,子4!C63<15)*1 -> 1 | AT63: =AND(子1!AC63>0)*1+AND(子2!AC63>0)*1+AND(子3!AC63>0)*1+AND(子4!AC63>0)*1 -> 0 | AU63: 夫婦 | AV63: =IF(D63,VLOOKUP(D63,年収と手取り!C:I,7,1),0)/9.1% -> 0
B64: 77 | C64: 82 | D64: =IF(C64>入力!$D$22,0,VLOOKUP(C64,賃金カーブ!R:T,3,0)) -> 0 | E64: =VLOOKUP(D64,年収と手取り!X:Y,2,1) -> 0 | F64: =入力!$E$28 -> 0 | G64: =IF(C64=入力!D$22,入力!E$31,0) -> 0 | H64: 199.6633832 | I64: =IF(H64>0,-年金の税金!$G$24/10000,0) -> -12.2050336 | J64: 187.4583496 | M64: 39.6 | N64: 13.2 | O64: 6.6 | P64: 5.28 | Q64: 3.3 | R64: =IF(C64>65,0,IF(OR(AND(子1!C64>=0,子1!C64<=18),AND(子2!C64>=0,子2!C64<=18),AND(子3!C64>=0,子3!C64<=18),AND(子4!C64>=0,子4!C64<=18)),入力!$D$35,入力!$D$34)*12) -> 0 | T64: 67.98 | U64: 119.4783496 | V64: 6 | W64: 2.4 | AC64: 8.4 | AD64: 111.0783496 | AE64: 36 | AK64: 36 | AL64: 75.07834963 | AM64: 13706.99326 | AS64: =(親2!E64<103)*1+AND(子1!C64>=0,子1!C64<15)*1+AND(子2!C64>=0,子2!C64<15)*1+AND(子3!C64>=0,子3!C64<15)*1+AND(子4!C64>=0,子4!C64<15)*1 -> 1 | AT64: =AND(子1!AC64>0)*1+AND(子2!AC64>0)*1+AND(子3!AC64>0)*1+AND(子4!AC64>0)*1 -> 0 | AU64: 夫婦 | AV64: =IF(D64,VLOOKUP(D64,年収と手取り!C:I,7,1),0)/9.1% -> 0
B65: 78 | C65: 83 | D65: =IF(C65>入力!$D$22,0,VLOOKUP(C65,賃金カーブ!R:T,3,0)) -> 0 | E65: =VLOOKUP(D65,年収と手取り!X:Y,2,1) -> 0 | F65: =入力!$E$28 -> 0 | G65: =IF(C65=入力!D$22,入力!E$31,0) -> 0 | H65: 199.6633832 | I65: =IF(H65>0,-年金の税金!$G$24/10000,0) -> -12.2050336 | J65: 187.4583496 | M65: 39.6 | N65: 13.2 | O65: 6.6 | P65: 5.28 | Q65: 3.3 | R65: =IF(C65>65,0,IF(OR(AND(子1!C65>=0,子1!C65<=18),AND(子2!C65>=0,子2!C65<=18),AND(子3!C65>=0,子3!C65<=18),AND(子4!C65>=0,子4!C65<=18)),入力!$D$35,入力!$D$34)*12) -> 0 | T65: 67.98 | U65: 119.4783496 | V65: 6 | W65: 2.4 | AC65: 8.4 | AD65: 111.0783496 | AE65: 36 | AK65: 36 | AL65: 75.07834963 | AM65: 13782.07161 | AS65: =(親2!E65<103)*1+AND(子1!C65>=0,子1!C65<15)*1+AND(子2!C65>=0,子2!C65<15)*1+AND(子3!C65>=0,子3!C65<15)*1+AND(子4!C65>=0,子4!C65<15)*1 -> 1 | AT65: =AND(子1!AC65>0)*1+AND(子2!AC65>0)*1+AND(子3!AC65>0)*1+AND(子4!AC65>0)*1 -> 0 | AU65: 夫婦 | AV65: =IF(D65,VLOOKUP(D65,年収と手取り!C:I,7,1),0)/9.1% -> 0
B66: 79 | C66: 84 | D66: =IF(C66>入力!$D$22,0,VLOOKUP(C66,賃金カーブ!R:T,3,0)) -> 0 | E66: =VLOOKUP(D66,年収と手取り!X:Y,2,1) -> 0 | F66: =入力!$E$28 -> 0 | G66: =IF(C66=入力!D$22,入力!E$31,0) -> 0 | H66: 199.6633832 | I66: =IF(H66>0,-年金の税金!$G$24/10000,0) -> -12.2050336 | J66: 187.4583496 | M66: 39.6 | N66: 13.2 | O66: 6.6 | P66: 5.28 | Q66: 3.3 | R66: =IF(C66>65,0,IF(OR(AND(子1!C66>=0,子1!C66<=18),AND(子2!C66>=0,子2!C66<=18),AND(子3!C66>=0,子3!C66<=18),AND(子4!C66>=0,子4!C66<=18)),入力!$D$35,入力!$D$34)*12) -> 0 | T66: 67.98 | U66: 119.4783496 | V66: 6 | W66: 2.4 | AC66: 8.4 | AD66: 111.0783496 | AE66: 36 | AK66: 36 | AL66: 75.07834963 | AM66: 13857.14996 | AS66: =(親2!E66<103)*1+AND(子1!C66>=0,子1!C66<15)*1+AND(子2!C66>=0,子2!C66<15)*1+AND(子3!C66>=0,子3!C66<15)*1+AND(子4!C66>=0,子4!C66<15)*1 -> 1 | AT66: =AND(子1!AC66>0)*1+AND(子2!AC66>0)*1+AND(子3!AC66>0)*1+AND(子4!AC66>0)*1 -> 0 | AU66: 夫婦 | AV66: =IF(D66,VLOOKUP(D66,年収と手取り!C:I,7,1),0)/9.1% -> 0
B67: 80 | C67: 85 | D67: =IF(C67>入力!$D$22,0,VLOOKUP(C67,賃金カーブ!R:T,3,0)) -> 0 | E67: =VLOOKUP(D67,年収と手取り!X:Y,2,1) -> 0 | F67: =入力!$E$28 -> 0 | G67: =IF(C67=入力!D$22,入力!E$31,0) -> 0 | H67: 199.6633832 | I67: =IF(H67>0,-年金の税金!$G$24/10000,0) -> -12.2050336 | J67: 187.4583496 | M67: 39.6 | N67: 13.2 | O67: 6.6 | P67: 5.28 | Q67: 3.3 | R67: =IF(C67>65,0,IF(OR(AND(子1!C67>=0,子1!C67<=18),AND(子2!C67>=0,子2!C67<=18),AND(子3!C67>=0,子3!C67<=18),AND(子4!C67>=0,子4!C67<=18)),入力!$D$35,入力!$D$34)*12) -> 0 | T67: 67.98 | U67: 119.4783496 | V67: 6 | W67: 2.4 | AC67: 8.4 | AD67: 111.0783496 | AE67: 36 | AK67: 36 | AL67: 75.07834963 | AM67: 13932.22831 | AS67: =(親2!E67<103)*1+AND(子1!C67>=0,子1!C67<15)*1+AND(子2!C67>=0,子2!C67<15)*1+AND(子3!C67>=0,子3!C67<15)*1+AND(子4!C67>=0,子4!C67<15)*1 -> 1 | AT67: =AND(子1!AC67>0)*1+AND(子2!AC67>0)*1+AND(子3!AC67>0)*1+AND(子4!AC67>0)*1 -> 0 | AU67: 夫婦 | AV67: =IF(D67,VLOOKUP(D67,年収と手取り!C:I,7,1),0)/9.1% -> 0
B68: 81 | C68: 86 | D68: =IF(C68>入力!$D$22,0,VLOOKUP(C68,賃金カーブ!R:T,3,0)) -> 0 | E68: =VLOOKUP(D68,年収と手取り!X:Y,2,1) -> 0 | F68: =入力!$E$28 -> 0 | G68: =IF(C68=入力!D$22,入力!E$31,0) -> 0 | H68: 199.6633832 | I68: =IF(H68>0,-年金の税金!$G$24/10000,0) -> -12.2050336 | J68: 187.4583496 | M68: 39.6 | N68: 13.2 | O68: 6.6 | P68: 5.28 | Q68: 3.3 | R68: =IF(C68>65,0,IF(OR(AND(子1!C68>=0,子1!C68<=18),AND(子2!C68>=0,子2!C68<=18),AND(子3!C68>=0,子3!C68<=18),AND(子4!C68>=0,子4!C68<=18)),入力!$D$35,入力!$D$34)*12) -> 0 | T68: 67.98 | U68: 119.4783496 | V68: 6 | W68: 2.4 | AC68: 8.4 | AD68: 111.0783496 | AE68: 36 | AK68: 36 | AL68: 75.07834963 | AM68: 14007.30666 | AS68: =(親2!E68<103)*1+AND(子1!C68>=0,子1!C68<15)*1+AND(子2!C68>=0,子2!C68<15)*1+AND(子3!C68>=0,子3!C68<15)*1+AND(子4!C68>=0,子4!C68<15)*1 -> 1 | AT68: =AND(子1!AC68>0)*1+AND(子2!AC68>0)*1+AND(子3!AC68>0)*1+AND(子4!AC68>0)*1 -> 0 | AU68: 夫婦 | AV68: =IF(D68,VLOOKUP(D68,年収と手取り!C:I,7,1),0)/9.1% -> 0
B69: 82 | C69: 87 | D69: =IF(C69>入力!$D$22,0,VLOOKUP(C69,賃金カーブ!R:T,3,0)) -> 0 | E69: =VLOOKUP(D69,年収と手取り!X:Y,2,1) -> 0 | F69: =入力!$E$28 -> 0 | G69: =IF(C69=入力!D$22,入力!E$31,0) -> 0 | H69: 199.6633832 | I69: =IF(H69>0,-年金の税金!$G$24/10000,0) -> -12.2050336 | J69: 187.4583496 | M69: 39.6 | N69: 13.2 | O69: 6.6 | P69: 5.28 | Q69: 3.3 | R69: =IF(C69>65,0,IF(OR(AND(子1!C69>=0,子1!C69<=18),AND(子2!C69>=0,子2!C69<=18),AND(子3!C69>=0,子3!C69<=18),AND(子4!C69>=0,子4!C69<=18)),入力!$D$35,入力!$D$34)*12) -> 0 | T69: 67.98 | U69: 119.4783496 | V69: 6 | W69: 2.4 | AC69: 8.4 | AD69: 111.0783496 | AE69: 36 | AK69: 36 | AL69: 75.07834963 | AM69: 14082.38501 | AS69: =(親2!E69<103)*1+AND(子1!C69>=0,子1!C69<15)*1+AND(子2!C69>=0,子2!C69<15)*1+AND(子3!C69>=0,子3!C69<15)*1+AND(子4!C69>=0,子4!C69<15)*1 -> 1 | AT69: =AND(子1!AC69>0)*1+AND(子2!AC69>0)*1+AND(子3!AC69>0)*1+AND(子4!AC69>0)*1 -> 0 | AU69: 夫婦 | AV69: =IF(D69,VLOOKUP(D69,年収と手取り!C:I,7,1),0)/9.1% -> 0
B70: 83 | C70: 88 | D70: =IF(C70>入力!$D$22,0,VLOOKUP(C70,賃金カーブ!R:T,3,0)) -> 0 | E70: =VLOOKUP(D70,年収と手取り!X:Y,2,1) -> 0 | F70: =入力!$E$28 -> 0 | G70: =IF(C70=入力!D$22,入力!E$31,0) -> 0 | H70: 199.6633832 | I70: =IF(H70>0,-年金の税金!$G$24/10000,0) -> -12.2050336 | J70: 187.4583496 | M70: 39.6 | N70: 13.2 | O70: 6.6 | P70: 5.28 | Q70: 3.3 | R70: =IF(C70>65,0,IF(OR(AND(子1!C70>=0,子1!C70<=18),AND(子2!C70>=0,子2!C70<=18),AND(子3!C70>=0,子3!C70<=18),AND(子4!C70>=0,子4!C70<=18)),入力!$D$35,入力!$D$34)*12) -> 0 | T70: =SUM(K70:S70) -> 67.98 | U70: =J70-T70 -> 119.4783496 | V70: =V$1 -> 6 | W70: 2.4 | AC70: =SUM(V70:AB70) -> 8.4 | AD70: =U70-AC70 -> 111.0783496 | AE70: 36 | AK70: 36 | AL70: =AD70-AK70 -> 75.07834963 | AM70: =AL70+AM69 -> 14157.46336 | AS70: =(親2!E70<103)*1+AND(子1!C70>=0,子1!C70<15)*1+AND(子2!C70>=0,子2!C70<15)*1+AND(子3!C70>=0,子3!C70<15)*1+AND(子4!C70>=0,子4!C70<15)*1 -> 1 | AT70: =AND(子1!AC70>0)*1+AND(子2!AC70>0)*1+AND(子3!AC70>0)*1+AND(子4!AC70>0)*1 -> 0 | AU70: 夫婦 | AV70: =IF(D70,VLOOKUP(D70,年収と手取り!C:I,7,1),0)/9.1% -> 0
D71: =SUM(D6:D70) -> 21757.6645 | E71: 16654.62132 | F71: 0 | G71: 1000 | H71: 4592.257814 | I71: -280.7157728 | J71: 21966.16336 | K71: 0 | L71: 0 | M71: 2574 | N71: 858 | O71: 429 | P71: 343.2 | Q71: 214.5 | R71: 504 | S71: =SUM(S6:S70) -> 0 | T71: 4922.7 | U71: 17043.46336 | V71: 390 | W71: 156 | X71: 0 | Y71: 0 | Z71: 0 | AA71: 0 | AB71: 0 | AC71: 546 | AD71: 16497.46336 | AE71: 2340 | AF71: 0 | AG71: 0 | AH71: 0 | AI71: 0 | AJ71: 0 | AK71: 2340 | AL71: =SUM(AL5:AL70) -> 14157.46336 | AV71: =AVERAGEIF(AV6:AV70,">0") -> 516.2496075 | AW71: =COUNTIF(AV6:AV70,">0") -> 42 | AX71: =AV71*AW71 -> 21682.48352
AV72: =AV6*2/3 -> 257.4065934 | AW72: =C6-22 -> 2 | AX72: =AV72*AW72 -> 514.8131868
AX73: =SUM(AX71:AX72)/SUM(AW71:AW72)/12 -> 42.04033467
AX74: =AX73*0.005481*SUM(AW71:AW72) -> 10.13861527
F76: 支給額 → 国民年金6.5万円×人数 ＋ (働いていた期間(年)×その期間の平均年収)/40×1.8％
V80: 交通・通信
M81: 食料 | N81: 住居 | O81: 光熱・水道 | P81: 家具・家事用品 | Q81: 被服及び履物 | R81: 保健医療 | S81: 教養娯楽 | AE81: その他の消費支出

Sheet 親2
M1: =入力!$AD$12*12*(1+入力!$AD$16) -> 39.6 | N1: =入力!$AE$12*12*(1+入力!$AD$16) -> 13.2 | O1: =入力!$AF$12*12*(1+入力!$AD$16) -> 3.3 | P1: =入力!$AG$12*12*(1+入力!$AD$16) -> 2.64 | Q1: =入力!$AH$12*12*(1+入力!$AD$16) -> 1.65 | V1: =入力!$AI$12*12 -> 0 | W1: =入力!$AJ$12*12 -> 2.4 | AE1: =入力!$I$38*12 -> 36
J2: 収入 | U2: 収支 小計 | AD2: 収支 小計 | AL2: 収支 | AM2: 収支累計
T3: 支出1 衣食住 | AC3: 支出2 固定費 | AK3: 支出3 衣食住勉
B4: 西暦 | C4: 年齢 | D4: 年収 | E4: 手取り | F4: 時短等 | G4: 退職金 | H4: 年金 | K4: 住居 | L4: 住居維持費 (含むローン控除) | M4: 食費 | N4: 服費 | O4: 電気 | P4: ガス | Q4: 水道 | R4: 保険 | V4: インターネット | W4: 携帯 | X4: 塾・仕送り | Y4: 習い事 | Z4: 学費 | AE4: お小遣い | AF4: 雑費 | AG4: 家具 | AH4: 車1 | AI4: 車2 | AJ4: 車維持費 | AK4: 合計 | AU4: 年金の計算
B5: 貯金 | AM5: =SUM(AN5:AO5) -> 0 | AN5: =入力!I11 -> 0 | AO5: =入力!J11 -> 0
B6: 19 | C6: =入力!$I$17 -> 22 | D6: =IF(C6>入力!$I$22,0,VLOOKUP(C6,賃金カーブ!R:Z,4,0)) -> 173.0905808 | E6: =VLOOKUP(D6,年収と手取り!X:Y,2,1) -> 138.891562 | F6: =-IF(OR(AND(子1!C6>=入力!$I$28,子1!C6<=入力!$J$28),AND(子2!C6>=入力!$I$28,子2!C6<=入力!$J$28),AND(子3!C6>=入力!$I$28,子3!C6<=入力!$J$28),AND(子4!C6>=入力!$I$28,子4!C6<=入力!$J$28)),親2!E6*(1-入力!$K$28), IF(OR(AND(子1!C6>=入力!$I$29,子1!C6<=入力!$J$29),AND(子2!C6>=入力!$I$29,子2!C6<=入力!$J$29),AND(子3!C6>=入力!$I$29,子3!C6<=入力!$J$29),AND(子4!C6>=入力!$I$29,子4!C6<=入力!$J$29)),親2!E6*(1-入力!$K$29),0)) -> 0 | G6: =IF(C6=入力!I$22,入力!J$31,0) -> 0 | H6: =IFERROR(IF(C6>65,6.5+$E$71/COUNTIF($E$6:$E$70,">0")*1.8%,0)*12,0) -> 0 | I6: =IF(H6>0,-年金の税金!$G$25/10000,0) -> 0 | J6: =SUM(E6:I6) -> 138.891562 | M6: =M$1 -> 39.6 | N6: =N$1 -> 13.2 | O6: 3.3 | P6: 2.64 | Q6: 1.65 | R6: =IF(OR(AND(子1!C6>=0,子1!C6<=18),AND(子2!C6>=0,子2!C6<=18),AND(子3!C6>=0,子3!C6<=18),AND(子4!C6>=0,子4!C6<=18)),入力!$I$35,入力!$I$34)*12 -> 0 | T6: =SUM(K6:S6) -> 60.39 | U6: =J6-T6 -> 78.501562 | W6: =W$1 -> 2.4 | AC6: =SUM(V6:AB6) -> 2.4 | AD6: =U6-AC6 -> 76.101562 | AE6: =AE$1 -> 36 | AK6: =SUM(AE6:AJ6) -> 36 | AL6: =AD6-AK6 -> 40.101562 | AM6: =AL6+AM5 -> 40.101562 | AU6: =IF(D6,VLOOKUP(D6,年収と手取り!C:I,7,1),0)/9.1% -> 171.3362637
B7: =B6+1 -> 20 | C7: =C6+1 -> 23 | D7: =IF(C7>入力!$I$22,0,VLOOKUP(C7,賃金カーブ!R:Z,4,0)) -> 178.8859354 | E7: =VLOOKUP(D7,年収と手取り!X:Y,2,1) -> 138.891562 | F7: =-IF(OR(AND(子1!C7>=入力!$I$28,子1!C7<=入力!$J$28),AND(子2!C7>=入力!$I$28,子2!C7<=入力!$J$28),AND(子3!C7>=入力!$I$28,子3!C7<=入力!$J$28),AND(子4!C7>=入力!$I$28,子4!C7<=入力!$J$28)),親2!E7*(1-入力!$K$28), IF(OR(AND(子1!C7>=入力!$I$29,子1!C7<=入力!$J$29),AND(子2!C7>=入力!$I$29,子2!C7<=入力!$J$29),AND(子3!C7>=入力!$I$29,子3!C7<=入力!$J$29),AND(子4!C7>=入力!$I$29,子4!C7<=入力!$J$29)),親2!E7*(1-入力!$K$29),0)) -> 0 | G7: =IF(C7=入力!I$22,入力!J$31,0) -> 0 | H7: 0 | I7: =IF(H7>0,-年金の税金!$G$25/10000,0) -> 0 | J7: 138.891562 | M7: =M$1 -> 39.6 | N7: 13.2 | O7: 3.3 | P7: 2.64 | Q7: 1.65 | R7: =IF(OR(AND(子1!C7>=0,子1!C7<=18),AND(子2!C7>=0,子2!C7<=18),AND(子3!C7>=0,子3!C7<=18),AND(子4!C7>=0,子4!C7<=18)),入力!$I$35,入力!$I$34)*12 -> 0 | T7: 60.39 | U7: 78.501562 | W7: 2.4 | AC7: 2.4 | AD7: 76.101562 | AE7: =AE$1 -> 36 | AK7: =SUM(AE7:AJ7) -> 36 | AL7: 40.101562 | AM7: =AL7+AM6 -> 80.203124 | AU7: =IF(D7,VLOOKUP(D7,年収と手取り!C:I,7,1),0)/9.1% -> 171.3362637
B8: =B7+1 -> 21 | C8: =C7+1 -> 24 | D8: =IF(C8>入力!$I$22,0,VLOOKUP(C8,賃金カーブ!R:Z,4,0)) -> 184.8753279 | E8: =VLOOKUP(D8,年収と手取り!X:Y,2,1) -> 146.75165 | F8: =-IF(OR(AND(子1!C8>=入力!$I$28,子1!C8<=入力!$J$28),AND(子2!C8>=入力!$I$28,子2!C8<=入力!$J$28),AND(子3!C8>=入力!$I$28,子3!C8<=入力!$J$28),AND(子4!C8>=入力!$I$28,子4!C8<=入力!$J$28)),親2!E8*(1-入力!$K$28), IF(OR(AND(子1!C8>=入力!$I$29,子1!C8<=入力!$J$29),AND(子2!C8>=入力!$I$29,子2!C8<=入力!$J$29),AND(子3!C8>=入力!$I$29,子3!C8<=入力!$J$29),AND(子4!C8>=入力!$I$29,子4!C8<=入力!$J$29)),親2!E8*(1-入力!$K$29),0)) -> 0 | G8: =IF(C8=入力!I$22,入力!J$31,0) -> 0 | H8: 0 | I8: =IF(H8>0,-年金の税金!$G$25/10000,0) -> 0 | J8: 146.75165 | M8: 39.6 | N8: 13.2 | O8: 3.3 | P8: 2.64 | Q8: 1.65 | R8: =IF(OR(AND(子1!C8>=0,子1!C8<=18),AND(子2!C8>=0,子2!C8<=18),AND(子3!C8>=0,子3!C8<=18),AND(子4!C8>=0,子4!C8<=18)),入力!$I$35,入力!$I$34)*12 -> 0 | T8: 60.39 | U8: 86.36165 | W8: 2.4 | AC8: 2.4 | AD8: 83.96165 | AE8: 36 | AK8: 36 | AL8: 47.96165 | AM8: 128.164774 | AU8: =IF(D8,VLOOKUP(D8,年収と手取り!C:I,7,1),0)/9.1% -> 180.989011
B9: 22 | C9: 25 | D9: =IF(C9>入力!$I$22,0,VLOOKUP(C9,賃金カーブ!R:Z,4,0)) -> 191.065255 | E9: =VLOOKUP(D9,年収と手取り!X:Y,2,1) -> 154.15176 | F9: =-IF(OR(AND(子1!C9>=入力!$I$28,子1!C9<=入力!$J$28),AND(子2!C9>=入力!$I$28,子2!C9<=入力!$J$28),AND(子3!C9>=入力!$I$28,子3!C9<=入力!$J$28),AND(子4!C9>=入力!$I$28,子4!C9<=入力!$J$28)),親2!E9*(1-入力!$K$28), IF(OR(AND(子1!C9>=入力!$I$29,子1!C9<=入力!$J$29),AND(子2!C9>=入力!$I$29,子2!C9<=入力!$J$29),AND(子3!C9>=入力!$I$29,子3!C9<=入力!$J$29),AND(子4!C9>=入力!$I$29,子4!C9<=入力!$J$29)),親2!E9*(1-入力!$K$29),0)) -> 0 | G9: =IF(C9=入力!I$22,入力!J$31,0) -> 0 | H9: 0 | I9: =IF(H9>0,-年金の税金!$G$25/10000,0) -> 0 | J9: 154.15176 | M9: 39.6 | N9: 13.2 | O9: 3.3 | P9: 2.64 | Q9: 1.65 | R9: =IF(OR(AND(子1!C9>=0,子1!C9<=18),AND(子2!C9>=0,子2!C9<=18),AND(子3!C9>=0,子3!C9<=18),AND(子4!C9>=0,子4!C9<=18)),入力!$I$35,入力!$I$34)*12 -> 0 | T9: 60.39 | U9: 93.76176 | W9: 2.4 | AC9: 2.4 | AD9: 91.36176 | AE9: 36 | AK9: 36 | AL9: 55.36176 | AM9: 183.526534 | AU9: =IF(D9,VLOOKUP(D9,年収と手取り!C:I,7,1),0)/9.1% -> 193.0549451
B10: 23 | C10: 26 | D10: =IF(C10>入力!$I$22,0,VLOOKUP(C10,賃金カーブ!R:Z,4,0)) -> 196.6881196 | E10: =VLOOKUP(D10,年収と手取り!X:Y,2,1) -> 154.15176 | F10: =-IF(OR(AND(子1!C10>=入力!$I$28,子1!C10<=入力!$J$28),AND(子2!C10>=入力!$I$28,子2!C10<=入力!$J$28),AND(子3!C10>=入力!$I$28,子3!C10<=入力!$J$28),AND(子4!C10>=入力!$I$28,子4!C10<=入力!$J$28)),親2!E10*(1-入力!$K$28), IF(OR(AND(子1!C10>=入力!$I$29,子1!C10<=入力!$J$29),AND(子2!C10>=入力!$I$29,子2!C10<=入力!$J$29),AND(子3!C10>=入力!$I$29,子3!C10<=入力!$J$29),AND(子4!C10>=入力!$I$29,子4!C10<=入力!$J$29)),親2!E10*(1-入力!$K$29),0)) -> -107.906232 | G10: =IF(C10=入力!I$22,入力!J$31,0) -> 0 | H10: 0 | I10: =IF(H10>0,-年金の税金!$G$25/10000,0) -> 0 | J10: 46.245528 | M10: 39.6 | N10: 13.2 | O10: 3.3 | P10: 2.64 | Q10: 1.65 | R10: =IF(OR(AND(子1!C10>=0,子1!C10<=18),AND(子2!C10>=0,子2!C10<=18),AND(子3!C10>=0,子3!C10<=18),AND(子4!C10>=0,子4!C10<=18)),入力!$I$35,入力!$I$34)*12 -> 0 | T10: 60.39 | U10: -14.144472 | W10: 2.4 | AC10: 2.4 | AD10: -16.544472 | AE10: 36 | AK10: 36 | AL10: -52.544472 | AM10: 130.982062 | AU10: =IF(D10,VLOOKUP(D10,年収と手取り!C:I,7,1),0)/9.1% -> 193.0549451
B11: 24 | C11: 27 | D11: =IF(C11>入力!$I$22,0,VLOOKUP(C11,賃金カーブ!R:Z,4,0)) -> 202.4764597 | E11: =VLOOKUP(D11,年収と手取り!X:Y,2,1) -> 161.55187 | F11: =-IF(OR(AND(子1!C11>=入力!$I$28,子1!C11<=入力!$J$28),AND(子2!C11>=入力!$I$28,子2!C11<=入力!$J$28),AND(子3!C11>=入力!$I$28,子3!C11<=入力!$J$28),AND(子4!C11>=入力!$I$28,子4!C11<=入力!$J$28)),親2!E11*(1-入力!$K$28), IF(OR(AND(子1!C11>=入力!$I$29,子1!C11<=入力!$J$29),AND(子2!C11>=入力!$I$29,子2!C11<=入力!$J$29),AND(子3!C11>=入力!$I$29,子3!C11<=入力!$J$29),AND(子4!C11>=入力!$I$29,子4!C11<=入力!$J$29)),親2!E11*(1-入力!$K$29),0)) -> -64.620748 | G11: =IF(C11=入力!I$22,入力!J$31,0) -> 0 | H11: 0 | I11: =IF(H11>0,-年金の税金!$G$25/10000,0) -> 0 | J11: 96.931122 | M11: 39.6 | N11: 13.2 | O11: 3.3 | P11: 2.64 | Q11: 1.65 | R11: =IF(OR(AND(子1!C11>=0,子1!C11<=18),AND(子2!C11>=0,子2!C11<=18),AND(子3!C11>=0,子3!C11<=18),AND(子4!C11>=0,子4!C11<=18)),入力!$I$35,入力!$I$34)*12 -> 0 | T11: 60.39 | U11: 36.541122 | W11: 2.4 | AC11: 2.4 | AD11: 34.141122 | AE11: 36 | AK11: 36 | AL11: -1.858878 | AM11: 129.123184 | AU11: =IF(D11,VLOOKUP(D11,年収と手取り!C:I,7,1),0)/9.1% -> 205.1208791
B12: 25 | C12: 28 | D12: =IF(C12>入力!$I$22,0,VLOOKUP(C12,賃金カーブ!R:Z,4,0)) -> 208.4351449 | E12: =VLOOKUP(D12,年収と手取り!X:Y,2,1) -> 161.55187 | F12: =-IF(OR(AND(子1!C12>=入力!$I$28,子1!C12<=入力!$J$28),AND(子2!C12>=入力!$I$28,子2!C12<=入力!$J$28),AND(子3!C12>=入力!$I$28,子3!C12<=入力!$J$28),AND(子4!C12>=入力!$I$28,子4!C12<=入力!$J$28)),親2!E12*(1-入力!$K$28), IF(OR(AND(子1!C12>=入力!$I$29,子1!C12<=入力!$J$29),AND(子2!C12>=入力!$I$29,子2!C12<=入力!$J$29),AND(子3!C12>=入力!$I$29,子3!C12<=入力!$J$29),AND(子4!C12>=入力!$I$29,子4!C12<=入力!$J$29)),親2!E12*(1-入力!$K$29),0)) -> -64.620748 | G12: =IF(C12=入力!I$22,入力!J$31,0) -> 0 | H12: 0 | I12: =IF(H12>0,-年金の税金!$G$25/10000,0) -> 0 | J12: 96.931122 | M12: 39.6 | N12: 13.2 | O12: 3.3 | P12: 2.64 | Q12: 1.65 | R12: =IF(OR(AND(子1!C12>=0,子1!C12<=18),AND(子2!C12>=0,子2!C12<=18),AND(子3!C12>=0,子3!C12<=18),AND(子4!C12>=0,子4!C12<=18)),入力!$I$35,入力!$I$34)*12 -> 0 | T12: 60.39 | U12: 36.541122 | W12: 2.4 | AC12: 2.4 | AD12: 34.141122 | AE12: 36 | AK12: 36 | AL12: -1.858878 | AM12: 127.264306 | AU12: =IF(D12,VLOOKUP(D12,年収と手取り!C:I,7,1),0)/9.1% -> 205.1208791
B13: 26 | C13: 29 | D13: =IF(C13>入力!$I$22,0,VLOOKUP(C13,賃金カーブ!R:Z,4,0)) -> 214.5691885 | E13: =VLOOKUP(D13,年収と手取り!X:Y,2,1) -> 168.95198 | F13: =-IF(OR(AND(子1!C13>=入力!$I$28,子1!C13<=入力!$J$28),AND(子2!C13>=入力!$I$28,子2!C13<=入力!$J$28),AND(子3!C13>=入力!$I$28,子3!C13<=入力!$J$28),AND(子4!C13>=入力!$I$28,子4!C13<=入力!$J$28)),親2!E13*(1-入力!$K$28), IF(OR(AND(子1!C13>=入力!$I$29,子1!C13<=入力!$J$29),AND(子2!C13>=入力!$I$29,子2!C13<=入力!$J$29),AND(子3!C13>=入力!$I$29,子3!C13<=入力!$J$29),AND(子4!C13>=入力!$I$29,子4!C13<=入力!$J$29)),親2!E13*(1-入力!$K$29),0)) -> -118.266386 | G13: =IF(C13=入力!I$22,入力!J$31,0) -> 0 | H13: 0 | I13: =IF(H13>0,-年金の税金!$G$25/10000,0) -> 0 | J13: 50.685594 | M13: 39.6 | N13: 13.2 | O13: 3.3 | P13: 2.64 | Q13: 1.65 | R13: =IF(OR(AND(子1!C13>=0,子1!C13<=18),AND(子2!C13>=0,子2!C13<=18),AND(子3!C13>=0,子3!C13<=18),AND(子4!C13>=0,子4!C13<=18)),入力!$I$35,入力!$I$34)*12 -> 0 | T13: 60.39 | U13: -9.704406 | W13: 2.4 | AC13: 2.4 | AD13: -12.104406 | AE13: 36 | AK13: 36 | AL13: -48.104406 | AM13: 79.1599 | AU13: =IF(D13,VLOOKUP(D13,年収と手取り!C:I,7,1),0)/9.1% -> 217.1868132
B14: 27 | C14: 30 | D14: =IF(C14>入力!$I$22,0,VLOOKUP(C14,賃金カーブ!R:Z,4,0)) -> 220.8837511 | E14: =VLOOKUP(D14,年収と手取り!X:Y,2,1) -> 177.90198 | F14: =-IF(OR(AND(子1!C14>=入力!$I$28,子1!C14<=入力!$J$28),AND(子2!C14>=入力!$I$28,子2!C14<=入力!$J$28),AND(子3!C14>=入力!$I$28,子3!C14<=入力!$J$28),AND(子4!C14>=入力!$I$28,子4!C14<=入力!$J$28)),親2!E14*(1-入力!$K$28), IF(OR(AND(子1!C14>=入力!$I$29,子1!C14<=入力!$J$29),AND(子2!C14>=入力!$I$29,子2!C14<=入力!$J$29),AND(子3!C14>=入力!$I$29,子3!C14<=入力!$J$29),AND(子4!C14>=入力!$I$29,子4!C14<=入力!$J$29)),親2!E14*(1-入力!$K$29),0)) -> -71.160792 | G14: =IF(C14=入力!I$22,入力!J$31,0) -> 0 | H14: 0 | I14: =IF(H14>0,-年金の税金!$G$25/10000,0) -> 0 | J14: 106.741188 | M14: 39.6 | N14: 13.2 | O14: 3.3 | P14: 2.64 | Q14: 1.65 | R14: =IF(OR(AND(子1!C14>=0,子1!C14<=18),AND(子2!C14>=0,子2!C14<=18),AND(子3!C14>=0,子3!C14<=18),AND(子4!C14>=0,子4!C14<=18)),入力!$I$35,入力!$I$34)*12 -> 0 | T14: 60.39 | U14: 46.351188 | W14: 2.4 | AC14: 2.4 | AD14: 43.951188 | AE14: 36 | AK14: 36 | AL14: 7.951188 | AM14: 87.111088 | AU14: =IF(D14,VLOOKUP(D14,年収と手取り!C:I,7,1),0)/9.1% -> 217.1868132
B15: 28 | C15: 31 | D15: =IF(C15>入力!$I$22,0,VLOOKUP(C15,賃金カーブ!R:Z,4,0)) -> 226.3144696 | E15: =VLOOKUP(D15,年収と手取り!X:Y,2,1) -> 177.90198 | F15: =-IF(OR(AND(子1!C15>=入力!$I$28,子1!C15<=入力!$J$28),AND(子2!C15>=入力!$I$28,子2!C15<=入力!$J$28),AND(子3!C15>=入力!$I$28,子3!C15<=入力!$J$28),AND(子4!C15>=入力!$I$28,子4!C15<=入力!$J$28)),親2!E15*(1-入力!$K$28), IF(OR(AND(子1!C15>=入力!$I$29,子1!C15<=入力!$J$29),AND(子2!C15>=入力!$I$29,子2!C15<=入力!$J$29),AND(子3!C15>=入力!$I$29,子3!C15<=入力!$J$29),AND(子4!C15>=入力!$I$29,子4!C15<=入力!$J$29)),親2!E15*(1-入力!$K$29),0)) -> -71.160792 | G15: =IF(C15=入力!I$22,入力!J$31,0) -> 0 | H15: 0 | I15: =IF(H15>0,-年金の税金!$G$25/10000,0) -> 0 | J15: 106.741188 | M15: 39.6 | N15: 13.2 | O15: 3.3 | P15: 2.64 | Q15: 1.65 | R15: =IF(OR(AND(子1!C15>=0,子1!C15<=18),AND(子2!C15>=0,子2!C15<=18),AND(子3!C15>=0,子3!C15<=18),AND(子4!C15>=0,子4!C15<=18)),入力!$I$35,入力!$I$34)*12 -> 0 | T15: 60.39 | U15: 46.351188 | W15: 2.4 | AC15: 2.4 | AD15: 43.951188 | AE15: 36 | AK15: 36 | AL15: 7.951188 | AM15: 95.062276 | AU15: =IF(D15,VLOOKUP(D15,年収と手取り!C:I,7,1),0)/9.1% -> 217.1868132
B16: 29 | C16: 32 | D16: =IF(C16>入力!$I$22,0,VLOOKUP(C16,賃金カーブ!R:Z,4,0)) -> 231.8787094 | E16: =VLOOKUP(D16,年収と手取り!X:Y,2,1) -> 185.30209 | F16: =-IF(OR(AND(子1!C16>=入力!$I$28,子1!C16<=入力!$J$28),AND(子2!C16>=入力!$I$28,子2!C16<=入力!$J$28),AND(子3!C16>=入力!$I$28,子3!C16<=入力!$J$28),AND(子4!C16>=入力!$I$28,子4!C16<=入力!$J$28)),親2!E16*(1-入力!$K$28), IF(OR(AND(子1!C16>=入力!$I$29,子1!C16<=入力!$J$29),AND(子2!C16>=入力!$I$29,子2!C16<=入力!$J$29),AND(子3!C16>=入力!$I$29,子3!C16<=入力!$J$29),AND(子4!C16>=入力!$I$29,子4!C16<=入力!$J$29)),親2!E16*(1-入力!$K$29),0)) -> -74.120836 | G16: =IF(C16=入力!I$22,入力!J$31,0) -> 0 | H16: 0 | I16: =IF(H16>0,-年金の税金!$G$25/10000,0) -> 0 | J16: 111.181254 | M16: 39.6 | N16: 13.2 | O16: 3.3 | P16: 2.64 | Q16: 1.65 | R16: =IF(OR(AND(子1!C16>=0,子1!C16<=18),AND(子2!C16>=0,子2!C16<=18),AND(子3!C16>=0,子3!C16<=18),AND(子4!C16>=0,子4!C16<=18)),入力!$I$35,入力!$I$34)*12 -> 0 | T16: 60.39 | U16: 50.791254 | W16: 2.4 | AC16: 2.4 | AD16: 48.391254 | AE16: 36 | AK16: 36 | AL16: 12.391254 | AM16: 107.45353 | AU16: =IF(D16,VLOOKUP(D16,年収と手取り!C:I,7,1),0)/9.1% -> 229.2527473
B17: 30 | C17: 33 | D17: =IF(C17>入力!$I$22,0,VLOOKUP(C17,賃金カーブ!R:Z,4,0)) -> 237.5797535 | E17: =VLOOKUP(D17,年収と手取り!X:Y,2,1) -> 185.30209 | F17: =-IF(OR(AND(子1!C17>=入力!$I$28,子1!C17<=入力!$J$28),AND(子2!C17>=入力!$I$28,子2!C17<=入力!$J$28),AND(子3!C17>=入力!$I$28,子3!C17<=入力!$J$28),AND(子4!C17>=入力!$I$28,子4!C17<=入力!$J$28)),親2!E17*(1-入力!$K$28), IF(OR(AND(子1!C17>=入力!$I$29,子1!C17<=入力!$J$29),AND(子2!C17>=入力!$I$29,子2!C17<=入力!$J$29),AND(子3!C17>=入力!$I$29,子3!C17<=入力!$J$29),AND(子4!C17>=入力!$I$29,子4!C17<=入力!$J$29)),親2!E17*(1-入力!$K$29),0)) -> -74.120836 | G17: =IF(C17=入力!I$22,入力!J$31,0) -> 0 | H17: 0 | I17: =IF(H17>0,-年金の税金!$G$25/10000,0) -> 0 | J17: 111.181254 | M17: 39.6 | N17: 13.2 | O17: 3.3 | P17: 2.64 | Q17: 1.65 | R17: =IF(OR(AND(子1!C17>=0,子1!C17<=18),AND(子2!C17>=0,子2!C17<=18),AND(子3!C17>=0,子3!C17<=18),AND(子4!C17>=0,子4!C17<=18)),入力!$I$35,入力!$I$34)*12 -> 0 | T17: 60.39 | U17: 50.791254 | W17: 2.4 | AC17: 2.4 | AD17: 48.391254 | AE17: 36 | AK17: 36 | AL17: 12.391254 | AM17: 119.844784 | AU17: =IF(D17,VLOOKUP(D17,年収と手取り!C:I,7,1),0)/9.1% -> 229.2527473
B18: 31 | C18: 34 | D18: =IF(C18>入力!$I$22,0,VLOOKUP(C18,賃金カーブ!R:Z,4,0)) -> 243.4209652 | E18: =VLOOKUP(D18,年収と手取り!X:Y,2,1) -> 192.7022 | F18: =-IF(OR(AND(子1!C18>=入力!$I$28,子1!C18<=入力!$J$28),AND(子2!C18>=入力!$I$28,子2!C18<=入力!$J$28),AND(子3!C18>=入力!$I$28,子3!C18<=入力!$J$28),AND(子4!C18>=入力!$I$28,子4!C18<=入力!$J$28)),親2!E18*(1-入力!$K$28), IF(OR(AND(子1!C18>=入力!$I$29,子1!C18<=入力!$J$29),AND(子2!C18>=入力!$I$29,子2!C18<=入力!$J$29),AND(子3!C18>=入力!$I$29,子3!C18<=入力!$J$29),AND(子4!C18>=入力!$I$29,子4!C18<=入力!$J$29)),親2!E18*(1-入力!$K$29),0)) -> -77.08088 | G18: =IF(C18=入力!I$22,入力!J$31,0) -> 0 | H18: 0 | I18: =IF(H18>0,-年金の税金!$G$25/10000,0) -> 0 | J18: 115.62132 | M18: 39.6 | N18: 13.2 | O18: 3.3 | P18: 2.64 | Q18: 1.65 | R18: =IF(OR(AND(子1!C18>=0,子1!C18<=18),AND(子2!C18>=0,子2!C18<=18),AND(子3!C18>=0,子3!C18<=18),AND(子4!C18>=0,子4!C18<=18)),入力!$I$35,入力!$I$34)*12 -> 0 | T18: 60.39 | U18: 55.23132 | W18: 2.4 | AC18: 2.4 | AD18: 52.83132 | AE18: 36 | AK18: 36 | AL18: 16.83132 | AM18: 136.676104 | AU18: =IF(D18,VLOOKUP(D18,年収と手取り!C:I,7,1),0)/9.1% -> 241.3186813
B19: 32 | C19: 35 | D19: =IF(C19>入力!$I$22,0,VLOOKUP(C19,賃金カーブ!R:Z,4,0)) -> 249.4057908 | E19: =VLOOKUP(D19,年収と手取り!X:Y,2,1) -> 192.7022 | F19: =-IF(OR(AND(子1!C19>=入力!$I$28,子1!C19<=入力!$J$28),AND(子2!C19>=入力!$I$28,子2!C19<=入力!$J$28),AND(子3!C19>=入力!$I$28,子3!C19<=入力!$J$28),AND(子4!C19>=入力!$I$28,子4!C19<=入力!$J$28)),親2!E19*(1-入力!$K$28), IF(OR(AND(子1!C19>=入力!$I$29,子1!C19<=入力!$J$29),AND(子2!C19>=入力!$I$29,子2!C19<=入力!$J$29),AND(子3!C19>=入力!$I$29,子3!C19<=入力!$J$29),AND(子4!C19>=入力!$I$29,子4!C19<=入力!$J$29)),親2!E19*(1-入力!$K$29),0)) -> 0 | G19: =IF(C19=入力!I$22,入力!J$31,0) -> 0 | H19: 0 | I19: =IF(H19>0,-年金の税金!$G$25/10000,0) -> 0 | J19: 192.7022 | M19: 39.6 | N19: 13.2 | O19: 3.3 | P19: 2.64 | Q19: 1.65 | R19: =IF(OR(AND(子1!C19>=0,子1!C19<=18),AND(子2!C19>=0,子2!C19<=18),AND(子3!C19>=0,子3!C19<=18),AND(子4!C19>=0,子4!C19<=18)),入力!$I$35,入力!$I$34)*12 -> 0 | T19: 60.39 | U19: 132.3122 | W19: 2.4 | AC19: 2.4 | AD19: 129.9122 | AE19: 36 | AK19: 36 | AL19: 93.9122 | AM19: 230.588304 | AU19: =IF(D19,VLOOKUP(D19,年収と手取り!C:I,7,1),0)/9.1% -> 241.3186813
B20: 33 | C20: 36 | D20: =IF(C20>入力!$I$22,0,VLOOKUP(C20,賃金カーブ!R:Z,4,0)) -> 254.0281384 | E20: =VLOOKUP(D20,年収と手取り!X:Y,2,1) -> 201.6522 | F20: =-IF(OR(AND(子1!C20>=入力!$I$28,子1!C20<=入力!$J$28),AND(子2!C20>=入力!$I$28,子2!C20<=入力!$J$28),AND(子3!C20>=入力!$I$28,子3!C20<=入力!$J$28),AND(子4!C20>=入力!$I$28,子4!C20<=入力!$J$28)),親2!E20*(1-入力!$K$28), IF(OR(AND(子1!C20>=入力!$I$29,子1!C20<=入力!$J$29),AND(子2!C20>=入力!$I$29,子2!C20<=入力!$J$29),AND(子3!C20>=入力!$I$29,子3!C20<=入力!$J$29),AND(子4!C20>=入力!$I$29,子4!C20<=入力!$J$29)),親2!E20*(1-入力!$K$29),0)) -> 0 | G20: =IF(C20=入力!I$22,入力!J$31,0) -> 0 | H20: 0 | I20: =IF(H20>0,-年金の税金!$G$25/10000,0) -> 0 | J20: 201.6522 | M20: 39.6 | N20: 13.2 | O20: 3.3 | P20: 2.64 | Q20: 1.65 | R20: =IF(OR(AND(子1!C20>=0,子1!C20<=18),AND(子2!C20>=0,子2!C20<=18),AND(子3!C20>=0,子3!C20<=18),AND(子4!C20>=0,子4!C20<=18)),入力!$I$35,入力!$I$34)*12 -> 0 | T20: 60.39 | U20: 141.2622 | W20: 2.4 | AC20: 2.4 | AD20: 138.8622 | AE20: 36 | AK20: 36 | AL20: 102.8622 | AM20: 333.450504 | AU20: =IF(D20,VLOOKUP(D20,年収と手取り!C:I,7,1),0)/9.1% -> 241.3186813
B21: 34 | C21: 37 | D21: =IF(C21>入力!$I$22,0,VLOOKUP(C21,賃金カーブ!R:Z,4,0)) -> 258.7361539 | E21: =VLOOKUP(D21,年収と手取り!X:Y,2,1) -> 201.6522 | F21: =-IF(OR(AND(子1!C21>=入力!$I$28,子1!C21<=入力!$J$28),AND(子2!C21>=入力!$I$28,子2!C21<=入力!$J$28),AND(子3!C21>=入力!$I$28,子3!C21<=入力!$J$28),AND(子4!C21>=入力!$I$28,子4!C21<=入力!$J$28)),親2!E21*(1-入力!$K$28), IF(OR(AND(子1!C21>=入力!$I$29,子1!C21<=入力!$J$29),AND(子2!C21>=入力!$I$29,子2!C21<=入力!$J$29),AND(子3!C21>=入力!$I$29,子3!C21<=入力!$J$29),AND(子4!C21>=入力!$I$29,子4!C21<=入力!$J$29)),親2!E21*(1-入力!$K$29),0)) -> 0 | G21: =IF(C21=入力!I$22,入力!J$31,0) -> 0 | H21: 0 | I21: =IF(H21>0,-年金の税金!$G$25/10000,0) -> 0 | J21: 201.6522 | M21: 39.6 | N21: 13.2 | O21: 3.3 | P21: 2.64 | Q21: 1.65 | R21: =IF(OR(AND(子1!C21>=0,子1!C21<=18),AND(子2!C21>=0,子2!C21<=18),AND(子3!C21>=0,子3!C21<=18),AND(子4!C21>=0,子4!C21<=18)),入力!$I$35,入力!$I$34)*12 -> 0 | T21: 60.39 | U21: 141.2622 | W21: 2.4 | AC21: 2.4 | AD21: 138.8622 | AE21: 36 | AK21: 36 | AL21: 102.8622 | AM21: 436.312704 | AU21: =IF(D21,VLOOKUP(D21,年収と手取り!C:I,7,1),0)/9.1% -> 241.3186813
B22: 35 | C22: 38 | D22: =IF(C22>入力!$I$22,0,VLOOKUP(C22,賃金カーブ!R:Z,4,0)) -> 263.5314251 | E22: =VLOOKUP(D22,年収と手取り!X:Y,2,1) -> 207.50242 | F22: =-IF(OR(AND(子1!C22>=入力!$I$28,子1!C22<=入力!$J$28),AND(子2!C22>=入力!$I$28,子2!C22<=入力!$J$28),AND(子3!C22>=入力!$I$28,子3!C22<=入力!$J$28),AND(子4!C22>=入力!$I$28,子4!C22<=入力!$J$28)),親2!E22*(1-入力!$K$28), IF(OR(AND(子1!C22>=入力!$I$29,子1!C22<=入力!$J$29),AND(子2!C22>=入力!$I$29,子2!C22<=入力!$J$29),AND(子3!C22>=入力!$I$29,子3!C22<=入力!$J$29),AND(子4!C22>=入力!$I$29,子4!C22<=入力!$J$29)),親2!E22*(1-入力!$K$29),0)) -> 0 | G22: =IF(C22=入力!I$22,入力!J$31,0) -> 0 | H22: 0 | I22: =IF(H22>0,-年金の税金!$G$25/10000,0) -> 0 | J22: 207.50242 | M22: 39.6 | N22: 13.2 | O22: 3.3 | P22: 2.64 | Q22: 1.65 | R22: =IF(OR(AND(子1!C22>=0,子1!C22<=18),AND(子2!C22>=0,子2!C22<=18),AND(子3!C22>=0,子3!C22<=18),AND(子4!C22>=0,子4!C22<=18)),入力!$I$35,入力!$I$34)*12 -> 0 | T22: 60.39 | U22: 147.11242 | W22: 2.4 | AC22: 2.4 | AD22: 144.71242 | AE22: 36 | AK22: 36 | AL22: 108.71242 | AM22: 545.025124 | AU22: =IF(D22,VLOOKUP(D22,年収と手取り!C:I,7,1),0)/9.1% -> 265.4505495
B23: 36 | C23: 39 | D23: =IF(C23>入力!$I$22,0,VLOOKUP(C23,賃金カーブ!R:Z,4,0)) -> 268.4155692 | E23: =VLOOKUP(D23,年収と手取り!X:Y,2,1) -> 207.50242 | F23: =-IF(OR(AND(子1!C23>=入力!$I$28,子1!C23<=入力!$J$28),AND(子2!C23>=入力!$I$28,子2!C23<=入力!$J$28),AND(子3!C23>=入力!$I$28,子3!C23<=入力!$J$28),AND(子4!C23>=入力!$I$28,子4!C23<=入力!$J$28)),親2!E23*(1-入力!$K$28), IF(OR(AND(子1!C23>=入力!$I$29,子1!C23<=入力!$J$29),AND(子2!C23>=入力!$I$29,子2!C23<=入力!$J$29),AND(子3!C23>=入力!$I$29,子3!C23<=入力!$J$29),AND(子4!C23>=入力!$I$29,子4!C23<=入力!$J$29)),親2!E23*(1-入力!$K$29),0)) -> 0 | G23: =IF(C23=入力!I$22,入力!J$31,0) -> 0 | H23: 0 | I23: =IF(H23>0,-年金の税金!$G$25/10000,0) -> 0 | J23: 207.50242 | M23: =M$1 -> 39.6 | N23: 13.2 | O23: 3.3 | P23: 2.64 | Q23: 1.65 | R23: =IF(OR(AND(子1!C23>=0,子1!C23<=18),AND(子2!C23>=0,子2!C23<=18),AND(子3!C23>=0,子3!C23<=18),AND(子4!C23>=0,子4!C23<=18)),入力!$I$35,入力!$I$34)*12 -> 0 | T23: 60.39 | U23: 147.11242 | W23: 2.4 | AC23: 2.4 | AD23: 144.71242 | AE23: 36 | AK23: 36 | AL23: 108.71242 | AM23: 653.737544 | AU23: =IF(D23,VLOOKUP(D23,年収と手取り!C:I,7,1),0)/9.1% -> 265.4505495
B24: 37 | C24: 40 | D24: =IF(C24>入力!$I$22,0,VLOOKUP(C24,賃金カーブ!R:Z,4,0)) -> 273.3902334 | E24: =VLOOKUP(D24,年収と手取り!X:Y,2,1) -> 216.45242 | F24: =-IF(OR(AND(子1!C24>=入力!$I$28,子1!C24<=入力!$J$28),AND(子2!C24>=入力!$I$28,子2!C24<=入力!$J$28),AND(子3!C24>=入力!$I$28,子3!C24<=入力!$J$28),AND(子4!C24>=入力!$I$28,子4!C24<=入力!$J$28)),親2!E24*(1-入力!$K$28), IF(OR(AND(子1!C24>=入力!$I$29,子1!C24<=入力!$J$29),AND(子2!C24>=入力!$I$29,子2!C24<=入力!$J$29),AND(子3!C24>=入力!$I$29,子3!C24<=入力!$J$29),AND(子4!C24>=入力!$I$29,子4!C24<=入力!$J$29)),親2!E24*(1-入力!$K$29),0)) -> 0 | G24: =IF(C24=入力!I$22,入力!J$31,0) -> 0 | H24: 0 | I24: =IF(H24>0,-年金の税金!$G$25/10000,0) -> 0 | J24: 216.45242 | M24: 39.6 | N24: 13.2 | O24: 3.3 | P24: 2.64 | Q24: 1.65 | R24: =IF(OR(AND(子1!C24>=0,子1!C24<=18),AND(子2!C24>=0,子2!C24<=18),AND(子3!C24>=0,子3!C24<=18),AND(子4!C24>=0,子4!C24<=18)),入力!$I$35,入力!$I$34)*12 -> 0 | T24: 60.39 | U24: 156.06242 | W24: 2.4 | AC24: 2.4 | AD24: 153.66242 | AE24: 36 | AK24: 36 | AL24: 117.66242 | AM24: 771.399964 | AU24: =IF(D24,VLOOKUP(D24,年収と手取り!C:I,7,1),0)/9.1% -> 265.4505495
B25: 38 | C25: 41 | D25: =IF(C25>入力!$I$22,0,VLOOKUP(C25,賃金カーブ!R:Z,4,0)) -> 277.845086 | E25: =VLOOKUP(D25,年収と手取り!X:Y,2,1) -> 216.45242 | F25: =-IF(OR(AND(子1!C25>=入力!$I$28,子1!C25<=入力!$J$28),AND(子2!C25>=入力!$I$28,子2!C25<=入力!$J$28),AND(子3!C25>=入力!$I$28,子3!C25<=入力!$J$28),AND(子4!C25>=入力!$I$28,子4!C25<=入力!$J$28)),親2!E25*(1-入力!$K$28), IF(OR(AND(子1!C25>=入力!$I$29,子1!C25<=入力!$J$29),AND(子2!C25>=入力!$I$29,子2!C25<=入力!$J$29),AND(子3!C25>=入力!$I$29,子3!C25<=入力!$J$29),AND(子4!C25>=入力!$I$29,子4!C25<=入力!$J$29)),親2!E25*(1-入力!$K$29),0)) -> 0 | G25: =IF(C25=入力!I$22,入力!J$31,0) -> 0 | H25: 0 | I25: =IF(H25>0,-年金の税金!$G$25/10000,0) -> 0 | J25: 216.45242 | M25: 39.6 | N25: 13.2 | O25: 3.3 | P25: 2.64 | Q25: 1.65 | R25: =IF(OR(AND(子1!C25>=0,子1!C25<=18),AND(子2!C25>=0,子2!C25<=18),AND(子3!C25>=0,子3!C25<=18),AND(子4!C25>=0,子4!C25<=18)),入力!$I$35,入力!$I$34)*12 -> 0 | T25: 60.39 | U25: 156.06242 | W25: 2.4 | AC25: 2.4 | AD25: 153.66242 | AE25: 36 | AK25: 36 | AL25: 117.66242 | AM25: 889.062384 | AU25: =IF(D25,VLOOKUP(D25,年収と手取り!C:I,7,1),0)/9.1% -> 265.4505495
B26: 39 | C26: 42 | D26: =IF(C26>入力!$I$22,0,VLOOKUP(C26,賃金カーブ!R:Z,4,0)) -> 282.3725299 | E26: =VLOOKUP(D26,年収と手取り!X:Y,2,1) -> 222.30264 | F26: =-IF(OR(AND(子1!C26>=入力!$I$28,子1!C26<=入力!$J$28),AND(子2!C26>=入力!$I$28,子2!C26<=入力!$J$28),AND(子3!C26>=入力!$I$28,子3!C26<=入力!$J$28),AND(子4!C26>=入力!$I$28,子4!C26<=入力!$J$28)),親2!E26*(1-入力!$K$28), IF(OR(AND(子1!C26>=入力!$I$29,子1!C26<=入力!$J$29),AND(子2!C26>=入力!$I$29,子2!C26<=入力!$J$29),AND(子3!C26>=入力!$I$29,子3!C26<=入力!$J$29),AND(子4!C26>=入力!$I$29,子4!C26<=入力!$J$29)),親2!E26*(1-入力!$K$29),0)) -> 0 | G26: =IF(C26=入力!I$22,入力!J$31,0) -> 0 | H26: 0 | I26: =IF(H26>0,-年金の税金!$G$25/10000,0) -> 0 | J26: 222.30264 | M26: 39.6 | N26: 13.2 | O26: 3.3 | P26: 2.64 | Q26: 1.65 | R26: =IF(OR(AND(子1!C26>=0,子1!C26<=18),AND(子2!C26>=0,子2!C26<=18),AND(子3!C26>=0,子3!C26<=18),AND(子4!C26>=0,子4!C26<=18)),入力!$I$35,入力!$I$34)*12 -> 0 | T26: 60.39 | U26: 161.91264 | W26: 2.4 | AC26: 2.4 | AD26: 159.51264 | AE26: 36 | AK26: 36 | AL26: 123.51264 | AM26: 1012.575024 | AU26: =IF(D26,VLOOKUP(D26,年収と手取り!C:I,7,1),0)/9.1% -> 289.5824176
B27: 40 | C27: 43 | D27: =IF(C27>入力!$I$22,0,VLOOKUP(C27,賃金カーブ!R:Z,4,0)) -> 286.9737477 | E27: =VLOOKUP(D27,年収と手取り!X:Y,2,1) -> 222.30264 | F27: =-IF(OR(AND(子1!C27>=入力!$I$28,子1!C27<=入力!$J$28),AND(子2!C27>=入力!$I$28,子2!C27<=入力!$J$28),AND(子3!C27>=入力!$I$28,子3!C27<=入力!$J$28),AND(子4!C27>=入力!$I$28,子4!C27<=入力!$J$28)),親2!E27*(1-入力!$K$28), IF(OR(AND(子1!C27>=入力!$I$29,子1!C27<=入力!$J$29),AND(子2!C27>=入力!$I$29,子2!C27<=入力!$J$29),AND(子3!C27>=入力!$I$29,子3!C27<=入力!$J$29),AND(子4!C27>=入力!$I$29,子4!C27<=入力!$J$29)),親2!E27*(1-入力!$K$29),0)) -> 0 | G27: =IF(C27=入力!I$22,入力!J$31,0) -> 0 | H27: 0 | I27: =IF(H27>0,-年金の税金!$G$25/10000,0) -> 0 | J27: 222.30264 | M27: 39.6 | N27: 13.2 | O27: 3.3 | P27: 2.64 | Q27: 1.65 | R27: =IF(OR(AND(子1!C27>=0,子1!C27<=18),AND(子2!C27>=0,子2!C27<=18),AND(子3!C27>=0,子3!C27<=18),AND(子4!C27>=0,子4!C27<=18)),入力!$I$35,入力!$I$34)*12 -> 0 | T27: 60.39 | U27: 161.91264 | W27: 2.4 | AC27: 2.4 | AD27: 159.51264 | AE27: 36 | AK27: 36 | AL27: 123.51264 | AM27: 1136.087664 | AU27: =IF(D27,VLOOKUP(D27,年収と手取り!C:I,7,1),0)/9.1% -> 289.5824176
B28: 41 | C28: 44 | D28: =IF(C28>入力!$I$22,0,VLOOKUP(C28,賃金カーブ!R:Z,4,0)) -> 291.6499417 | E28: =VLOOKUP(D28,年収と手取り!X:Y,2,1) -> 231.25264 | F28: =-IF(OR(AND(子1!C28>=入力!$I$28,子1!C28<=入力!$J$28),AND(子2!C28>=入力!$I$28,子2!C28<=入力!$J$28),AND(子3!C28>=入力!$I$28,子3!C28<=入力!$J$28),AND(子4!C28>=入力!$I$28,子4!C28<=入力!$J$28)),親2!E28*(1-入力!$K$28), IF(OR(AND(子1!C28>=入力!$I$29,子1!C28<=入力!$J$29),AND(子2!C28>=入力!$I$29,子2!C28<=入力!$J$29),AND(子3!C28>=入力!$I$29,子3!C28<=入力!$J$29),AND(子4!C28>=入力!$I$29,子4!C28<=入力!$J$29)),親2!E28*(1-入力!$K$29),0)) -> 0 | G28: =IF(C28=入力!I$22,入力!J$31,0) -> 0 | H28: 0 | I28: =IF(H28>0,-年金の税金!$G$25/10000,0) -> 0 | J28: 231.25264 | M28: 39.6 | N28: 13.2 | O28: 3.3 | P28: 2.64 | Q28: 1.65 | R28: =IF(OR(AND(子1!C28>=0,子1!C28<=18),AND(子2!C28>=0,子2!C28<=18),AND(子3!C28>=0,子3!C28<=18),AND(子4!C28>=0,子4!C28<=18)),入力!$I$35,入力!$I$34)*12 -> 0 | T28: 60.39 | U28: 170.86264 | W28: 2.4 | AC28: 2.4 | AD28: 168.46264 | AE28: 36 | AK28: 36 | AL28: 132.46264 | AM28: 1268.550304 | AU28: =IF(D28,VLOOKUP(D28,年収と手取り!C:I,7,1),0)/9.1% -> 289.5824176
B29: 42 | C29: 45 | D29: =IF(C29>入力!$I$22,0,VLOOKUP(C29,賃金カーブ!R:Z,4,0)) -> 296.4023336 | E29: =VLOOKUP(D29,年収と手取り!X:Y,2,1) -> 231.25264 | F29: =-IF(OR(AND(子1!C29>=入力!$I$28,子1!C29<=入力!$J$28),AND(子2!C29>=入力!$I$28,子2!C29<=入力!$J$28),AND(子3!C29>=入力!$I$28,子3!C29<=入力!$J$28),AND(子4!C29>=入力!$I$28,子4!C29<=入力!$J$28)),親2!E29*(1-入力!$K$28), IF(OR(AND(子1!C29>=入力!$I$29,子1!C29<=入力!$J$29),AND(子2!C29>=入力!$I$29,子2!C29<=入力!$J$29),AND(子3!C29>=入力!$I$29,子3!C29<=入力!$J$29),AND(子4!C29>=入力!$I$29,子4!C29<=入力!$J$29)),親2!E29*(1-入力!$K$29),0)) -> 0 | G29: =IF(C29=入力!I$22,入力!J$31,0) -> 0 | H29: 0 | I29: =IF(H29>0,-年金の税金!$G$25/10000,0) -> 0 | J29: 231.25264 | M29: 39.6 | N29: 13.2 | O29: 3.3 | P29: 2.64 | Q29: 1.65 | R29: =IF(OR(AND(子1!C29>=0,子1!C29<=18),AND(子2!C29>=0,子2!C29<=18),AND(子3!C29>=0,子3!C29<=18),AND(子4!C29>=0,子4!C29<=18)),入力!$I$35,入力!$I$34)*12 -> 0 | T29: 60.39 | U29: 170.86264 | W29: 2.4 | AC29: 2.4 | AD29: 168.46264 | AE29: 36 | AK29: 36 | AL29: 132.46264 | AM29: 1401.012944 | AU29: =IF(D29,VLOOKUP(D29,年収と手取り!C:I,7,1),0)/9.1% -> 289.5824176
B30: 43 | C30: 46 | D30: =IF(C30>入力!$I$22,0,VLOOKUP(C30,賃金カーブ!R:Z,4,0)) -> 301.2943445 | E30: =VLOOKUP(D30,年収と手取り!X:Y,2,1) -> 237.10286 | F30: =-IF(OR(AND(子1!C30>=入力!$I$28,子1!C30<=入力!$J$28),AND(子2!C30>=入力!$I$28,子2!C30<=入力!$J$28),AND(子3!C30>=入力!$I$28,子3!C30<=入力!$J$28),AND(子4!C30>=入力!$I$28,子4!C30<=入力!$J$28)),親2!E30*(1-入力!$K$28), IF(OR(AND(子1!C30>=入力!$I$29,子1!C30<=入力!$J$29),AND(子2!C30>=入力!$I$29,子2!C30<=入力!$J$29),AND(子3!C30>=入力!$I$29,子3!C30<=入力!$J$29),AND(子4!C30>=入力!$I$29,子4!C30<=入力!$J$29)),親2!E30*(1-入力!$K$29),0)) -> 0 | G30: =IF(C30=入力!I$22,入力!J$31,0) -> 0 | H30: 0 | I30: =IF(H30>0,-年金の税金!$G$25/10000,0) -> 0 | J30: 237.10286 | M30: 39.6 | N30: 13.2 | O30: 3.3 | P30: 2.64 | Q30: 1.65 | R30: =IF(OR(AND(子1!C30>=0,子1!C30<=18),AND(子2!C30>=0,子2!C30<=18),AND(子3!C30>=0,子3!C30<=18),AND(子4!C30>=0,子4!C30<=18)),入力!$I$35,入力!$I$34)*12 -> 0 | T30: 60.39 | U30: 176.71286 | W30: 2.4 | AC30: 2.4 | AD30: 174.31286 | AE30: 36 | AK30: 36 | AL30: 138.31286 | AM30: 1539.325804 | AU30: =IF(D30,VLOOKUP(D30,年収と手取り!C:I,7,1),0)/9.1% -> 313.7142857
B31: 44 | C31: 47 | D31: =IF(C31>入力!$I$22,0,VLOOKUP(C31,賃金カーブ!R:Z,4,0)) -> 306.2670962 | E31: =VLOOKUP(D31,年収と手取り!X:Y,2,1) -> 237.10286 | F31: =-IF(OR(AND(子1!C31>=入力!$I$28,子1!C31<=入力!$J$28),AND(子2!C31>=入力!$I$28,子2!C31<=入力!$J$28),AND(子3!C31>=入力!$I$28,子3!C31<=入力!$J$28),AND(子4!C31>=入力!$I$28,子4!C31<=入力!$J$28)),親2!E31*(1-入力!$K$28), IF(OR(AND(子1!C31>=入力!$I$29,子1!C31<=入力!$J$29),AND(子2!C31>=入力!$I$29,子2!C31<=入力!$J$29),AND(子3!C31>=入力!$I$29,子3!C31<=入力!$J$29),AND(子4!C31>=入力!$I$29,子4!C31<=入力!$J$29)),親2!E31*(1-入力!$K$29),0)) -> 0 | G31: =IF(C31=入力!I$22,入力!J$31,0) -> 0 | H31: 0 | I31: =IF(H31>0,-年金の税金!$G$25/10000,0) -> 0 | J31: 237.10286 | M31: 39.6 | N31: 13.2 | O31: 3.3 | P31: 2.64 | Q31: 1.65 | R31: =IF(OR(AND(子1!C31>=0,子1!C31<=18),AND(子2!C31>=0,子2!C31<=18),AND(子3!C31>=0,子3!C31<=18),AND(子4!C31>=0,子4!C31<=18)),入力!$I$35,入力!$I$34)*12 -> 0 | T31: 60.39 | U31: 176.71286 | W31: 2.4 | AC31: 2.4 | AD31: 174.31286 | AE31: 36 | AK31: 36 | AL31: 138.31286 | AM31: 1677.638664 | AU31: =IF(D31,VLOOKUP(D31,年収と手取り!C:I,7,1),0)/9.1% -> 313.7142857
B32: 45 | C32: 48 | D32: =IF(C32>入力!$I$22,0,VLOOKUP(C32,賃金カーブ!R:Z,4,0)) -> 311.3219213 | E32: =VLOOKUP(D32,年収と手取り!X:Y,2,1) -> 246.05286 | F32: =-IF(OR(AND(子1!C32>=入力!$I$28,子1!C32<=入力!$J$28),AND(子2!C32>=入力!$I$28,子2!C32<=入力!$J$28),AND(子3!C32>=入力!$I$28,子3!C32<=入力!$J$28),AND(子4!C32>=入力!$I$28,子4!C32<=入力!$J$28)),親2!E32*(1-入力!$K$28), IF(OR(AND(子1!C32>=入力!$I$29,子1!C32<=入力!$J$29),AND(子2!C32>=入力!$I$29,子2!C32<=入力!$J$29),AND(子3!C32>=入力!$I$29,子3!C32<=入力!$J$29),AND(子4!C32>=入力!$I$29,子4!C32<=入力!$J$29)),親2!E32*(1-入力!$K$29),0)) -> 0 | G32: =IF(C32=入力!I$22,入力!J$31,0) -> 0 | H32: 0 | I32: =IF(H32>0,-年金の税金!$G$25/10000,0) -> 0 | J32: 246.05286 | M32: 39.6 | N32: 13.2 | O32: 3.3 | P32: 2.64 | Q32: 1.65 | R32: =IF(OR(AND(子1!C32>=0,子1!C32<=18),AND(子2!C32>=0,子2!C32<=18),AND(子3!C32>=0,子3!C32<=18),AND(子4!C32>=0,子4!C32<=18)),入力!$I$35,入力!$I$34)*12 -> 0 | T32: 60.39 | U32: 185.66286 | W32: 2.4 | AC32: 2.4 | AD32: 183.26286 | AE32: 36 | AK32: 36 | AL32: 147.26286 | AM32: 1824.901524 | AU32: =IF(D32,VLOOKUP(D32,年収と手取り!C:I,7,1),0)/9.1% -> 313.7142857
B33: 46 | C33: 49 | D33: =IF(C33>入力!$I$22,0,VLOOKUP(C33,賃金カーブ!R:Z,4,0)) -> 316.4601744 | E33: =VLOOKUP(D33,年収と手取り!X:Y,2,1) -> 246.05286 | F33: =-IF(OR(AND(子1!C33>=入力!$I$28,子1!C33<=入力!$J$28),AND(子2!C33>=入力!$I$28,子2!C33<=入力!$J$28),AND(子3!C33>=入力!$I$28,子3!C33<=入力!$J$28),AND(子4!C33>=入力!$I$28,子4!C33<=入力!$J$28)),親2!E33*(1-入力!$K$28), IF(OR(AND(子1!C33>=入力!$I$29,子1!C33<=入力!$J$29),AND(子2!C33>=入力!$I$29,子2!C33<=入力!$J$29),AND(子3!C33>=入力!$I$29,子3!C33<=入力!$J$29),AND(子4!C33>=入力!$I$29,子4!C33<=入力!$J$29)),親2!E33*(1-入力!$K$29),0)) -> 0 | G33: =IF(C33=入力!I$22,入力!J$31,0) -> 0 | H33: 0 | I33: =IF(H33>0,-年金の税金!$G$25/10000,0) -> 0 | J33: 246.05286 | M33: 39.6 | N33: 13.2 | O33: 3.3 | P33: 2.64 | Q33: 1.65 | R33: =IF(OR(AND(子1!C33>=0,子1!C33<=18),AND(子2!C33>=0,子2!C33<=18),AND(子3!C33>=0,子3!C33<=18),AND(子4!C33>=0,子4!C33<=18)),入力!$I$35,入力!$I$34)*12 -> 0 | T33: 60.39 | U33: 185.66286 | W33: 2.4 | AC33: 2.4 | AD33: 183.26286 | AE33: 36 | AK33: 36 | AL33: 147.26286 | AM33: 1972.164384 | AU33: =IF(D33,VLOOKUP(D33,年収と手取り!C:I,7,1),0)/9.1% -> 313.7142857
B34: 47 | C34: 50 | D34: =IF(C34>入力!$I$22,0,VLOOKUP(C34,賃金カーブ!R:Z,4,0)) -> 321.6832325 | E34: =VLOOKUP(D34,年収と手取り!X:Y,2,1) -> 255.00286 | F34: =-IF(OR(AND(子1!C34>=入力!$I$28,子1!C34<=入力!$J$28),AND(子2!C34>=入力!$I$28,子2!C34<=入力!$J$28),AND(子3!C34>=入力!$I$28,子3!C34<=入力!$J$28),AND(子4!C34>=入力!$I$28,子4!C34<=入力!$J$28)),親2!E34*(1-入力!$K$28), IF(OR(AND(子1!C34>=入力!$I$29,子1!C34<=入力!$J$29),AND(子2!C34>=入力!$I$29,子2!C34<=入力!$J$29),AND(子3!C34>=入力!$I$29,子3!C34<=入力!$J$29),AND(子4!C34>=入力!$I$29,子4!C34<=入力!$J$29)),親2!E34*(1-入力!$K$29),0)) -> 0 | G34: =IF(C34=入力!I$22,入力!J$31,0) -> 0 | H34: 0 | I34: =IF(H34>0,-年金の税金!$G$25/10000,0) -> 0 | J34: 255.00286 | M34: 39.6 | N34: 13.2 | O34: 3.3 | P34: 2.64 | Q34: 1.65 | R34: =IF(OR(AND(子1!C34>=0,子1!C34<=18),AND(子2!C34>=0,子2!C34<=18),AND(子3!C34>=0,子3!C34<=18),AND(子4!C34>=0,子4!C34<=18)),入力!$I$35,入力!$I$34)*12 -> 0 | T34: 60.39 | U34: 194.61286 | W34: 2.4 | AC34: 2.4 | AD34: 192.21286 | AE34: 36 | AK34: 36 | AL34: 156.21286 | AM34: 2128.377244 | AU34: =IF(D34,VLOOKUP(D34,年収と手取り!C:I,7,1),0)/9.1% -> 313.7142857
B35: 48 | C35: 51 | D35: =IF(C35>入力!$I$22,0,VLOOKUP(C35,賃金カーブ!R:Z,4,0)) -> 320.6064717 | E35: =VLOOKUP(D35,年収と手取り!X:Y,2,1) -> 255.00286 | F35: =-IF(OR(AND(子1!C35>=入力!$I$28,子1!C35<=入力!$J$28),AND(子2!C35>=入力!$I$28,子2!C35<=入力!$J$28),AND(子3!C35>=入力!$I$28,子3!C35<=入力!$J$28),AND(子4!C35>=入力!$I$28,子4!C35<=入力!$J$28)),親2!E35*(1-入力!$K$28), IF(OR(AND(子1!C35>=入力!$I$29,子1!C35<=入力!$J$29),AND(子2!C35>=入力!$I$29,子2!C35<=入力!$J$29),AND(子3!C35>=入力!$I$29,子3!C35<=入力!$J$29),AND(子4!C35>=入力!$I$29,子4!C35<=入力!$J$29)),親2!E35*(1-入力!$K$29),0)) -> 0 | G35: =IF(C35=入力!I$22,入力!J$31,0) -> 0 | H35: 0 | I35: =IF(H35>0,-年金の税金!$G$25/10000,0) -> 0 | J35: 255.00286 | M35: 39.6 | N35: 13.2 | O35: 3.3 | P35: 2.64 | Q35: 1.65 | R35: =IF(OR(AND(子1!C35>=0,子1!C35<=18),AND(子2!C35>=0,子2!C35<=18),AND(子3!C35>=0,子3!C35<=18),AND(子4!C35>=0,子4!C35<=18)),入力!$I$35,入力!$I$34)*12 -> 0 | T35: 60.39 | U35: 194.61286 | W35: 2.4 | AC35: 2.4 | AD35: 192.21286 | AE35: 36 | AK35: 36 | AL35: 156.21286 | AM35: 2284.590104 | AU35: =IF(D35,VLOOKUP(D35,年収と手取り!C:I,7,1),0)/9.1% -> 313.7142857
B36: 49 | C36: 52 | D36: =IF(C36>入力!$I$22,0,VLOOKUP(C36,賃金カーブ!R:Z,4,0)) -> 319.5333151 | E36: =VLOOKUP(D36,年収と手取り!X:Y,2,1) -> 246.05286 | F36: =-IF(OR(AND(子1!C36>=入力!$I$28,子1!C36<=入力!$J$28),AND(子2!C36>=入力!$I$28,子2!C36<=入力!$J$28),AND(子3!C36>=入力!$I$28,子3!C36<=入力!$J$28),AND(子4!C36>=入力!$I$28,子4!C36<=入力!$J$28)),親2!E36*(1-入力!$K$28), IF(OR(AND(子1!C36>=入力!$I$29,子1!C36<=入力!$J$29),AND(子2!C36>=入力!$I$29,子2!C36<=入力!$J$29),AND(子3!C36>=入力!$I$29,子3!C36<=入力!$J$29),AND(子4!C36>=入力!$I$29,子4!C36<=入力!$J$29)),親2!E36*(1-入力!$K$29),0)) -> 0 | G36: =IF(C36=入力!I$22,入力!J$31,0) -> 0 | H36: 0 | I36: =IF(H36>0,-年金の税金!$G$25/10000,0) -> 0 | J36: 246.05286 | M36: 39.6 | N36: 13.2 | O36: 3.3 | P36: 2.64 | Q36: 1.65 | R36: =IF(OR(AND(子1!C36>=0,子1!C36<=18),AND(子2!C36>=0,子2!C36<=18),AND(子3!C36>=0,子3!C36<=18),AND(子4!C36>=0,子4!C36<=18)),入力!$I$35,入力!$I$34)*12 -> 0 | T36: 60.39 | U36: 185.66286 | W36: 2.4 | AC36: 2.4 | AD36: 183.26286 | AE36: 36 | AK36: 36 | AL36: 147.26286 | AM36: 2431.852964 | AU36: =IF(D36,VLOOKUP(D36,年収と手取り!C:I,7,1),0)/9.1% -> 313.7142857
B37: 50 | C37: 53 | D37: =IF(C37>入力!$I$22,0,VLOOKUP(C37,賃金カーブ!R:Z,4,0)) -> 318.4637506 | E37: =VLOOKUP(D37,年収と手取り!X:Y,2,1) -> 246.05286 | F37: =-IF(OR(AND(子1!C37>=入力!$I$28,子1!C37<=入力!$J$28),AND(子2!C37>=入力!$I$28,子2!C37<=入力!$J$28),AND(子3!C37>=入力!$I$28,子3!C37<=入力!$J$28),AND(子4!C37>=入力!$I$28,子4!C37<=入力!$J$28)),親2!E37*(1-入力!$K$28), IF(OR(AND(子1!C37>=入力!$I$29,子1!C37<=入力!$J$29),AND(子2!C37>=入力!$I$29,子2!C37<=入力!$J$29),AND(子3!C37>=入力!$I$29,子3!C37<=入力!$J$29),AND(子4!C37>=入力!$I$29,子4!C37<=入力!$J$29)),親2!E37*(1-入力!$K$29),0)) -> 0 | G37: =IF(C37=入力!I$22,入力!J$31,0) -> 0 | H37: 0 | I37: =IF(H37>0,-年金の税金!$G$25/10000,0) -> 0 | J37: 246.05286 | M37: 39.6 | N37: 13.2 | O37: 3.3 | P37: 2.64 | Q37: 1.65 | R37: =IF(OR(AND(子1!C37>=0,子1!C37<=18),AND(子2!C37>=0,子2!C37<=18),AND(子3!C37>=0,子3!C37<=18),AND(子4!C37>=0,子4!C37<=18)),入力!$I$35,入力!$I$34)*12 -> 0 | T37: 60.39 | U37: 185.66286 | W37: 2.4 | AC37: 2.4 | AD37: 183.26286 | AE37: 36 | AK37: 36 | AL37: 147.26286 | AM37: 2579.115824 | AU37: =IF(D37,VLOOKUP(D37,年収と手取り!C:I,7,1),0)/9.1% -> 313.7142857
B38: 51 | C38: 54 | D38: =IF(C38>入力!$I$22,0,VLOOKUP(C38,賃金カーブ!R:Z,4,0)) -> 317.3977663 | E38: =VLOOKUP(D38,年収と手取り!X:Y,2,1) -> 246.05286 | F38: =-IF(OR(AND(子1!C38>=入力!$I$28,子1!C38<=入力!$J$28),AND(子2!C38>=入力!$I$28,子2!C38<=入力!$J$28),AND(子3!C38>=入力!$I$28,子3!C38<=入力!$J$28),AND(子4!C38>=入力!$I$28,子4!C38<=入力!$J$28)),親2!E38*(1-入力!$K$28), IF(OR(AND(子1!C38>=入力!$I$29,子1!C38<=入力!$J$29),AND(子2!C38>=入力!$I$29,子2!C38<=入力!$J$29),AND(子3!C38>=入力!$I$29,子3!C38<=入力!$J$29),AND(子4!C38>=入力!$I$29,子4!C38<=入力!$J$29)),親2!E38*(1-入力!$K$29),0)) -> 0 | G38: =IF(C38=入力!I$22,入力!J$31,0) -> 0 | H38: 0 | I38: =IF(H38>0,-年金の税金!$G$25/10000,0) -> 0 | J38: 246.05286 | M38: 39.6 | N38: 13.2 | O38: 3.3 | P38: 2.64 | Q38: 1.65 | R38: =IF(OR(AND(子1!C38>=0,子1!C38<=18),AND(子2!C38>=0,子2!C38<=18),AND(子3!C38>=0,子3!C38<=18),AND(子4!C38>=0,子4!C38<=18)),入力!$I$35,入力!$I$34)*12 -> 0 | T38: =SUM(K38:S38) -> 60.39 | U38: =J38-T38 -> 185.66286 | W38: 2.4 | AC38: =SUM(V38:AB38) -> 2.4 | AD38: =U38-AC38 -> 183.26286 | AE38: 36 | AK38: 36 | AL38: 147.26286 | AM38: =AL38+AM37 -> 2726.378684 | AU38: =IF(D38,VLOOKUP(D38,年収と手取り!C:I,7,1),0)/9.1% -> 313.7142857
B39: 52 | C39: 55 | D39: =IF(C39>入力!$I$22,0,VLOOKUP(C39,賃金カーブ!R:Z,4,0)) -> 316.33535 | E39: =VLOOKUP(D39,年収と手取り!X:Y,2,1) -> 246.05286 | F39: =-IF(OR(AND(子1!C39>=入力!$I$28,子1!C39<=入力!$J$28),AND(子2!C39>=入力!$I$28,子2!C39<=入力!$J$28),AND(子3!C39>=入力!$I$28,子3!C39<=入力!$J$28),AND(子4!C39>=入力!$I$28,子4!C39<=入力!$J$28)),親2!E39*(1-入力!$K$28), IF(OR(AND(子1!C39>=入力!$I$29,子1!C39<=入力!$J$29),AND(子2!C39>=入力!$I$29,子2!C39<=入力!$J$29),AND(子3!C39>=入力!$I$29,子3!C39<=入力!$J$29),AND(子4!C39>=入力!$I$29,子4!C39<=入力!$J$29)),親2!E39*(1-入力!$K$29),0)) -> 0 | G39: =IF(C39=入力!I$22,入力!J$31,0) -> 0 | H39: 0 | I39: =IF(H39>0,-年金の税金!$G$25/10000,0) -> 0 | J39: 246.05286 | M39: =M$1 -> 39.6 | N39: 13.2 | O39: 3.3 | P39: 2.64 | Q39: 1.65 | R39: =IF(OR(AND(子1!C39>=0,子1!C39<=18),AND(子2!C39>=0,子2!C39<=18),AND(子3!C39>=0,子3!C39<=18),AND(子4!C39>=0,子4!C39<=18)),入力!$I$35,入力!$I$34)*12 -> 0 | T39: 60.39 | U39: 185.66286 | W39: 2.4 | AC39: 2.4 | AD39: 183.26286 | AE39: 36 | AK39: 36 | AL39: 147.26286 | AM39: 2873.641544 | AU39: =IF(D39,VLOOKUP(D39,年収と手取り!C:I,7,1),0)/9.1% -> 313.7142857
B40: =B39+1 -> 53 | C40: 56 | D40: =IF(C40>入力!$I$22,0,VLOOKUP(C40,賃金カーブ!R:Z,4,0)) -> 293.8451436 | E40: =VLOOKUP(D40,年収と手取り!X:Y,2,1) -> 231.25264 | F40: =-IF(OR(AND(子1!C40>=入力!$I$28,子1!C40<=入力!$J$28),AND(子2!C40>=入力!$I$28,子2!C40<=入力!$J$28),AND(子3!C40>=入力!$I$28,子3!C40<=入力!$J$28),AND(子4!C40>=入力!$I$28,子4!C40<=入力!$J$28)),親2!E40*(1-入力!$K$28), IF(OR(AND(子1!C40>=入力!$I$29,子1!C40<=入力!$J$29),AND(子2!C40>=入力!$I$29,子2!C40<=入力!$J$29),AND(子3!C40>=入力!$I$29,子3!C40<=入力!$J$29),AND(子4!C40>=入力!$I$29,子4!C40<=入力!$J$29)),親2!E40*(1-入力!$K$29),0)) -> 0 | G40: =IF(C40=入力!I$22,入力!J$31,0) -> 0 | H40: 0 | I40: =IF(H40>0,-年金の税金!$G$25/10000,0) -> 0 | J40: =SUM(E40:I40) -> 231.25264 | M40: 39.6 | N40: 13.2 | O40: 3.3 | P40: 2.64 | Q40: 1.65 | R40: =IF(OR(AND(子1!C40>=0,子1!C40<=18),AND(子2!C40>=0,子2!C40<=18),AND(子3!C40>=0,子3!C40<=18),AND(子4!C40>=0,子4!C40<=18)),入力!$I$35,入力!$I$34)*12 -> 0 | T40: 60.39 | U40: 170.86264 | W40: 2.4 | AC40: 2.4 | AD40: 168.46264 | AE40: 36 | AK40: 36 | AL40: 132.46264 | AM40: 3006.104184 | AU40: =IF(D40,VLOOKUP(D40,年収と手取り!C:I,7,1),0)/9.1% -> 289.5824176
B41: 54 | C41: 57 | D41: =IF(C41>入力!$I$22,0,VLOOKUP(C41,賃金カーブ!R:Z,4,0)) -> 272.9539029 | E41: =VLOOKUP(D41,年収と手取り!X:Y,2,1) -> 216.45242 | F41: =-IF(OR(AND(子1!C41>=入力!$I$28,子1!C41<=入力!$J$28),AND(子2!C41>=入力!$I$28,子2!C41<=入力!$J$28),AND(子3!C41>=入力!$I$28,子3!C41<=入力!$J$28),AND(子4!C41>=入力!$I$28,子4!C41<=入力!$J$28)),親2!E41*(1-入力!$K$28), IF(OR(AND(子1!C41>=入力!$I$29,子1!C41<=入力!$J$29),AND(子2!C41>=入力!$I$29,子2!C41<=入力!$J$29),AND(子3!C41>=入力!$I$29,子3!C41<=入力!$J$29),AND(子4!C41>=入力!$I$29,子4!C41<=入力!$J$29)),親2!E41*(1-入力!$K$29),0)) -> 0 | G41: =IF(C41=入力!I$22,入力!J$31,0) -> 0 | H41: 0 | I41: =IF(H41>0,-年金の税金!$G$25/10000,0) -> 0 | J41: 216.45242 | M41: 39.6 | N41: 13.2 | O41: 3.3 | P41: 2.64 | Q41: 1.65 | R41: =IF(OR(AND(子1!C41>=0,子1!C41<=18),AND(子2!C41>=0,子2!C41<=18),AND(子3!C41>=0,子3!C41<=18),AND(子4!C41>=0,子4!C41<=18)),入力!$I$35,入力!$I$34)*12 -> 0 | T41: 60.39 | U41: 156.06242 | W41: 2.4 | AC41: 2.4 | AD41: 153.66242 | AE41: 36 | AK41: 36 | AL41: 117.66242 | AM41: 3123.766604 | AU41: =IF(D41,VLOOKUP(D41,年収と手取り!C:I,7,1),0)/9.1% -> 265.4505495
B42: 55 | C42: 58 | D42: =IF(C42>入力!$I$22,0,VLOOKUP(C42,賃金カーブ!R:Z,4,0)) -> 253.5479477 | E42: =VLOOKUP(D42,年収と手取り!X:Y,2,1) -> 201.6522 | F42: =-IF(OR(AND(子1!C42>=入力!$I$28,子1!C42<=入力!$J$28),AND(子2!C42>=入力!$I$28,子2!C42<=入力!$J$28),AND(子3!C42>=入力!$I$28,子3!C42<=入力!$J$28),AND(子4!C42>=入力!$I$28,子4!C42<=入力!$J$28)),親2!E42*(1-入力!$K$28), IF(OR(AND(子1!C42>=入力!$I$29,子1!C42<=入力!$J$29),AND(子2!C42>=入力!$I$29,子2!C42<=入力!$J$29),AND(子3!C42>=入力!$I$29,子3!C42<=入力!$J$29),AND(子4!C42>=入力!$I$29,子4!C42<=入力!$J$29)),親2!E42*(1-入力!$K$29),0)) -> 0 | G42: =IF(C42=入力!I$22,入力!J$31,0) -> 0 | H42: 0 | I42: =IF(H42>0,-年金の税金!$G$25/10000,0) -> 0 | J42: 201.6522 | M42: 39.6 | N42: 13.2 | O42: 3.3 | P42: 2.64 | Q42: 1.65 | R42: =IF(OR(AND(子1!C42>=0,子1!C42<=18),AND(子2!C42>=0,子2!C42<=18),AND(子3!C42>=0,子3!C42<=18),AND(子4!C42>=0,子4!C42<=18)),入力!$I$35,入力!$I$34)*12 -> 0 | T42: 60.39 | U42: 141.2622 | W42: 2.4 | AC42: 2.4 | AD42: 138.8622 | AE42: 36 | AK42: 36 | AL42: 102.8622 | AM42: 3226.628804 | AU42: =IF(D42,VLOOKUP(D42,年収と手取り!C:I,7,1),0)/9.1% -> 241.3186813
B43: 56 | C43: 59 | D43: =IF(C43>入力!$I$22,0,VLOOKUP(C43,賃金カーブ!R:Z,4,0)) -> 235.52168 | E43: =VLOOKUP(D43,年収と手取り!X:Y,2,1) -> 185.30209 | F43: =-IF(OR(AND(子1!C43>=入力!$I$28,子1!C43<=入力!$J$28),AND(子2!C43>=入力!$I$28,子2!C43<=入力!$J$28),AND(子3!C43>=入力!$I$28,子3!C43<=入力!$J$28),AND(子4!C43>=入力!$I$28,子4!C43<=入力!$J$28)),親2!E43*(1-入力!$K$28), IF(OR(AND(子1!C43>=入力!$I$29,子1!C43<=入力!$J$29),AND(子2!C43>=入力!$I$29,子2!C43<=入力!$J$29),AND(子3!C43>=入力!$I$29,子3!C43<=入力!$J$29),AND(子4!C43>=入力!$I$29,子4!C43<=入力!$J$29)),親2!E43*(1-入力!$K$29),0)) -> 0 | G43: =IF(C43=入力!I$22,入力!J$31,0) -> 0 | H43: 0 | I43: =IF(H43>0,-年金の税金!$G$25/10000,0) -> 0 | J43: 185.30209 | M43: 39.6 | N43: 13.2 | O43: 3.3 | P43: 2.64 | Q43: 1.65 | R43: =IF(OR(AND(子1!C43>=0,子1!C43<=18),AND(子2!C43>=0,子2!C43<=18),AND(子3!C43>=0,子3!C43<=18),AND(子4!C43>=0,子4!C43<=18)),入力!$I$35,入力!$I$34)*12 -> 0 | T43: 60.39 | U43: 124.91209 | W43: 2.4 | AC43: 2.4 | AD43: 122.51209 | AE43: 36 | AK43: 36 | AL43: 86.51209 | AM43: 3313.140894 | AU43: =IF(D43,VLOOKUP(D43,年収と手取り!C:I,7,1),0)/9.1% -> 229.2527473
B44: 57 | C44: 60 | D44: =IF(C44>入力!$I$22,0,VLOOKUP(C44,賃金カーブ!R:Z,4,0)) -> 218.7770095 | E44: =VLOOKUP(D44,年収と手取り!X:Y,2,1) -> 168.95198 | F44: =-IF(OR(AND(子1!C44>=入力!$I$28,子1!C44<=入力!$J$28),AND(子2!C44>=入力!$I$28,子2!C44<=入力!$J$28),AND(子3!C44>=入力!$I$28,子3!C44<=入力!$J$28),AND(子4!C44>=入力!$I$28,子4!C44<=入力!$J$28)),親2!E44*(1-入力!$K$28), IF(OR(AND(子1!C44>=入力!$I$29,子1!C44<=入力!$J$29),AND(子2!C44>=入力!$I$29,子2!C44<=入力!$J$29),AND(子3!C44>=入力!$I$29,子3!C44<=入力!$J$29),AND(子4!C44>=入力!$I$29,子4!C44<=入力!$J$29)),親2!E44*(1-入力!$K$29),0)) -> 0 | G44: =IF(C44=入力!I$22,入力!J$31,0) -> 0 | H44: 0 | I44: =IF(H44>0,-年金の税金!$G$25/10000,0) -> 0 | J44: 168.95198 | M44: 39.6 | N44: 13.2 | O44: 3.3 | P44: 2.64 | Q44: 1.65 | R44: =IF(OR(AND(子1!C44>=0,子1!C44<=18),AND(子2!C44>=0,子2!C44<=18),AND(子3!C44>=0,子3!C44<=18),AND(子4!C44>=0,子4!C44<=18)),入力!$I$35,入力!$I$34)*12 -> 0 | T44: 60.39 | U44: 108.56198 | W44: 2.4 | AC44: 2.4 | AD44: 106.16198 | AE44: 36 | AK44: 36 | AL44: 70.16198 | AM44: 3383.302874 | AU44: =IF(D44,VLOOKUP(D44,年収と手取り!C:I,7,1),0)/9.1% -> 217.1868132
B45: 58 | C45: 61 | D45: =IF(C45>入力!$I$22,0,VLOOKUP(C45,賃金カーブ!R:Z,4,0)) -> 218.7770095 | E45: =VLOOKUP(D45,年収と手取り!X:Y,2,1) -> 168.95198 | F45: =-IF(OR(AND(子1!C45>=入力!$I$28,子1!C45<=入力!$J$28),AND(子2!C45>=入力!$I$28,子2!C45<=入力!$J$28),AND(子3!C45>=入力!$I$28,子3!C45<=入力!$J$28),AND(子4!C45>=入力!$I$28,子4!C45<=入力!$J$28)),親2!E45*(1-入力!$K$28), IF(OR(AND(子1!C45>=入力!$I$29,子1!C45<=入力!$J$29),AND(子2!C45>=入力!$I$29,子2!C45<=入力!$J$29),AND(子3!C45>=入力!$I$29,子3!C45<=入力!$J$29),AND(子4!C45>=入力!$I$29,子4!C45<=入力!$J$29)),親2!E45*(1-入力!$K$29),0)) -> 0 | G45: =IF(C45=入力!I$22,入力!J$31,0) -> 0 | H45: =IF(C45>65,6.5+$AW$74,0)*12 -> 0 | I45: =IF(H45>0,-年金の税金!$G$25/10000,0) -> 0 | J45: 168.95198 | M45: 39.6 | N45: 13.2 | O45: 3.3 | P45: 2.64 | Q45: 1.65 | R45: =IF(OR(AND(子1!C45>=0,子1!C45<=18),AND(子2!C45>=0,子2!C45<=18),AND(子3!C45>=0,子3!C45<=18),AND(子4!C45>=0,子4!C45<=18)),入力!$I$35,入力!$I$34)*12 -> 0 | T45: 60.39 | U45: 108.56198 | W45: 2.4 | AC45: 2.4 | AD45: 106.16198 | AE45: 36 | AK45: 36 | AL45: 70.16198 | AM45: 3453.464854 | AU45: =IF(D45,VLOOKUP(D45,年収と手取り!C:I,7,1),0)/9.1% -> 217.1868132
B46: 59 | C46: 62 | D46: =IF(C46>入力!$I$22,0,VLOOKUP(C46,賃金カーブ!R:Z,4,0)) -> 218.7770095 | E46: =VLOOKUP(D46,年収と手取り!X:Y,2,1) -> 168.95198 | F46: =-IF(OR(AND(子1!C46>=入力!$I$28,子1!C46<=入力!$J$28),AND(子2!C46>=入力!$I$28,子2!C46<=入力!$J$28),AND(子3!C46>=入力!$I$28,子3!C46<=入力!$J$28),AND(子4!C46>=入力!$I$28,子4!C46<=入力!$J$28)),親2!E46*(1-入力!$K$28), IF(OR(AND(子1!C46>=入力!$I$29,子1!C46<=入力!$J$29),AND(子2!C46>=入力!$I$29,子2!C46<=入力!$J$29),AND(子3!C46>=入力!$I$29,子3!C46<=入力!$J$29),AND(子4!C46>=入力!$I$29,子4!C46<=入力!$J$29)),親2!E46*(1-入力!$K$29),0)) -> 0 | G46: =IF(C46=入力!I$22,入力!J$31,0) -> 0 | H46: =IF(C46>65,6.5+$AW$74,0)*12 -> 0 | I46: =IF(H46>0,-年金の税金!$G$25/10000,0) -> 0 | J46: 168.95198 | M46: 39.6 | N46: 13.2 | O46: 3.3 | P46: 2.64 | Q46: 1.65 | R46: =IF(OR(AND(子1!C46>=0,子1!C46<=18),AND(子2!C46>=0,子2!C46<=18),AND(子3!C46>=0,子3!C46<=18),AND(子4!C46>=0,子4!C46<=18)),入力!$I$35,入力!$I$34)*12 -> 0 | T46: 60.39 | U46: 108.56198 | W46: 2.4 | AC46: 2.4 | AD46: 106.16198 | AE46: 36 | AK46: 36 | AL46: 70.16198 | AM46: 3523.626834 | AU46: =IF(D46,VLOOKUP(D46,年収と手取り!C:I,7,1),0)/9.1% -> 217.1868132
B47: 60 | C47: 63 | D47: =IF(C47>入力!$I$22,0,VLOOKUP(C47,賃金カーブ!R:Z,4,0)) -> 218.7770095 | E47: =VLOOKUP(D47,年収と手取り!X:Y,2,1) -> 168.95198 | F47: =-IF(OR(AND(子1!C47>=入力!$I$28,子1!C47<=入力!$J$28),AND(子2!C47>=入力!$I$28,子2!C47<=入力!$J$28),AND(子3!C47>=入力!$I$28,子3!C47<=入力!$J$28),AND(子4!C47>=入力!$I$28,子4!C47<=入力!$J$28)),親2!E47*(1-入力!$K$28), IF(OR(AND(子1!C47>=入力!$I$29,子1!C47<=入力!$J$29),AND(子2!C47>=入力!$I$29,子2!C47<=入力!$J$29),AND(子3!C47>=入力!$I$29,子3!C47<=入力!$J$29),AND(子4!C47>=入力!$I$29,子4!C47<=入力!$J$29)),親2!E47*(1-入力!$K$29),0)) -> 0 | G47: =IF(C47=入力!I$22,入力!J$31,0) -> 0 | H47: 0 | I47: =IF(H47>0,-年金の税金!$G$25/10000,0) -> 0 | J47: 168.95198 | M47: 39.6 | N47: 13.2 | O47: 3.3 | P47: 2.64 | Q47: 1.65 | R47: =IF(OR(AND(子1!C47>=0,子1!C47<=18),AND(子2!C47>=0,子2!C47<=18),AND(子3!C47>=0,子3!C47<=18),AND(子4!C47>=0,子4!C47<=18)),入力!$I$35,入力!$I$34)*12 -> 0 | T47: 60.39 | U47: 108.56198 | W47: 2.4 | AC47: 2.4 | AD47: 106.16198 | AE47: 36 | AK47: 36 | AL47: 70.16198 | AM47: 3593.788814 | AU47: =IF(D47,VLOOKUP(D47,年収と手取り!C:I,7,1),0)/9.1% -> 217.1868132
B48: 61 | C48: 64 | D48: =IF(C48>入力!$I$22,0,VLOOKUP(C48,賃金カーブ!R:Z,4,0)) -> 218.7770095 | E48: =VLOOKUP(D48,年収と手取り!X:Y,2,1) -> 168.95198 | F48: =-IF(OR(AND(子1!C48>=入力!$I$28,子1!C48<=入力!$J$28),AND(子2!C48>=入力!$I$28,子2!C48<=入力!$J$28),AND(子3!C48>=入力!$I$28,子3!C48<=入力!$J$28),AND(子4!C48>=入力!$I$28,子4!C48<=入力!$J$28)),親2!E48*(1-入力!$K$28), IF(OR(AND(子1!C48>=入力!$I$29,子1!C48<=入力!$J$29),AND(子2!C48>=入力!$I$29,子2!C48<=入力!$J$29),AND(子3!C48>=入力!$I$29,子3!C48<=入力!$J$29),AND(子4!C48>=入力!$I$29,子4!C48<=入力!$J$29)),親2!E48*(1-入力!$K$29),0)) -> 0 | G48: =IF(C48=入力!I$22,入力!J$31,0) -> 0 | H48: 0 | I48: =IF(H48>0,-年金の税金!$G$25/10000,0) -> 0 | J48: 168.95198 | M48: 39.6 | N48: 13.2 | O48: 3.3 | P48: 2.64 | Q48: 1.65 | R48: =IF(OR(AND(子1!C48>=0,子1!C48<=18),AND(子2!C48>=0,子2!C48<=18),AND(子3!C48>=0,子3!C48<=18),AND(子4!C48>=0,子4!C48<=18)),入力!$I$35,入力!$I$34)*12 -> 0 | T48: 60.39 | U48: 108.56198 | W48: 2.4 | AC48: 2.4 | AD48: 106.16198 | AE48: 36 | AK48: 36 | AL48: 70.16198 | AM48: 3663.950794 | AU48: =IF(D48,VLOOKUP(D48,年収と手取り!C:I,7,1),0)/9.1% -> 217.1868132
B49: 62 | C49: 65 | D49: =IF(C49>入力!$I$22,0,VLOOKUP(C49,賃金カーブ!R:Z,4,0)) -> 218.7770095 | E49: =VLOOKUP(D49,年収と手取り!X:Y,2,1) -> 168.95198 | F49: =-IF(OR(AND(子1!C49>=入力!$I$28,子1!C49<=入力!$J$28),AND(子2!C49>=入力!$I$28,子2!C49<=入力!$J$28),AND(子3!C49>=入力!$I$28,子3!C49<=入力!$J$28),AND(子4!C49>=入力!$I$28,子4!C49<=入力!$J$28)),親2!E49*(1-入力!$K$28), IF(OR(AND(子1!C49>=入力!$I$29,子1!C49<=入力!$J$29),AND(子2!C49>=入力!$I$29,子2!C49<=入力!$J$29),AND(子3!C49>=入力!$I$29,子3!C49<=入力!$J$29),AND(子4!C49>=入力!$I$29,子4!C49<=入力!$J$29)),親2!E49*(1-入力!$K$29),0)) -> 0 | G49: =IF(C49=入力!I$22,入力!J$31,0) -> 0 | H49: 0 | I49: =IF(H49>0,-年金の税金!$G$25/10000,0) -> 0 | J49: 168.95198 | M49: 39.6 | N49: 13.2 | O49: 3.3 | P49: 2.64 | Q49: 1.65 | R49: =IF(OR(AND(子1!C49>=0,子1!C49<=18),AND(子2!C49>=0,子2!C49<=18),AND(子3!C49>=0,子3!C49<=18),AND(子4!C49>=0,子4!C49<=18)),入力!$I$35,入力!$I$34)*12 -> 0 | T49: 60.39 | U49: 108.56198 | W49: 2.4 | AC49: 2.4 | AD49: 106.16198 | AE49: 36 | AK49: 36 | AL49: 70.16198 | AM49: 3734.112774 | AU49: =IF(D49,VLOOKUP(D49,年収と手取り!C:I,7,1),0)/9.1% -> 217.1868132
B50: 63 | C50: 66 | D50: =IF(C50>入力!$I$22,0,VLOOKUP(C50,賃金カーブ!R:Z,4,0)) -> 0 | E50: =VLOOKUP(D50,年収と手取り!X:Y,2,1) -> 0 | F50: =-IF(OR(AND(子1!C50>=入力!$I$28,子1!C50<=入力!$J$28),AND(子2!C50>=入力!$I$28,子2!C50<=入力!$J$28),AND(子3!C50>=入力!$I$28,子3!C50<=入力!$J$28),AND(子4!C50>=入力!$I$28,子4!C50<=入力!$J$28)),親2!E50*(1-入力!$K$28), IF(OR(AND(子1!C50>=入力!$I$29,子1!C50<=入力!$J$29),AND(子2!C50>=入力!$I$29,子2!C50<=入力!$J$29),AND(子3!C50>=入力!$I$29,子3!C50<=入力!$J$29),AND(子4!C50>=入力!$I$29,子4!C50<=入力!$J$29)),親2!E50*(1-入力!$K$29),0)) -> 0 | G50: =IF(C50=入力!I$22,入力!J$31,0) -> 0 | H50: 138.7369004 | I50: =IF(H50>0,-年金の税金!$G$25/10000,0) -> -3.148205725 | J50: 135.5886947 | M50: 39.6 | N50: 13.2 | O50: 3.3 | P50: 2.64 | Q50: 1.65 | R50: =IF(OR(AND(子1!C50>=0,子1!C50<=18),AND(子2!C50>=0,子2!C50<=18),AND(子3!C50>=0,子3!C50<=18),AND(子4!C50>=0,子4!C50<=18)),入力!$I$35,入力!$I$34)*12 -> 0 | T50: 60.39 | U50: 75.19869471 | W50: 2.4 | AC50: 2.4 | AD50: 72.79869471 | AE50: 36 | AK50: 36 | AL50: 36.79869471 | AM50: 3770.911469 | AU50: =IF(D50,VLOOKUP(D50,年収と手取り!C:I,7,1),0)/9.1% -> 0
B51: 64 | C51: 67 | D51: =IF(C51>入力!$I$22,0,VLOOKUP(C51,賃金カーブ!R:Z,4,0)) -> 0 | E51: =VLOOKUP(D51,年収と手取り!X:Y,2,1) -> 0 | F51: =-IF(OR(AND(子1!C51>=入力!$I$28,子1!C51<=入力!$J$28),AND(子2!C51>=入力!$I$28,子2!C51<=入力!$J$28),AND(子3!C51>=入力!$I$28,子3!C51<=入力!$J$28),AND(子4!C51>=入力!$I$28,子4!C51<=入力!$J$28)),親2!E51*(1-入力!$K$28), IF(OR(AND(子1!C51>=入力!$I$29,子1!C51<=入力!$J$29),AND(子2!C51>=入力!$I$29,子2!C51<=入力!$J$29),AND(子3!C51>=入力!$I$29,子3!C51<=入力!$J$29),AND(子4!C51>=入力!$I$29,子4!C51<=入力!$J$29)),親2!E51*(1-入力!$K$29),0)) -> 0 | G51: =IF(C51=入力!I$22,入力!J$31,0) -> 0 | H51: 138.7369004 | I51: =IF(H51>0,-年金の税金!$G$25/10000,0) -> -3.148205725 | J51: 135.5886947 | M51: 39.6 | N51: 13.2 | O51: 3.3 | P51: 2.64 | Q51: 1.65 | R51: =IF(OR(AND(子1!C51>=0,子1!C51<=18),AND(子2!C51>=0,子2!C51<=18),AND(子3!C51>=0,子3!C51<=18),AND(子4!C51>=0,子4!C51<=18)),入力!$I$35,入力!$I$34)*12 -> 0 | T51: 60.39 | U51: 75.19869471 | W51: 2.4 | AC51: 2.4 | AD51: 72.79869471 | AE51: 36 | AK51: 36 | AL51: 36.79869471 | AM51: 3807.710163 | AU51: =IF(D51,VLOOKUP(D51,年収と手取り!C:I,7,1),0)/9.1% -> 0
B52: 65 | C52: 68 | D52: =IF(C52>入力!$I$22,0,VLOOKUP(C52,賃金カーブ!R:Z,4,0)) -> 0 | E52: =VLOOKUP(D52,年収と手取り!X:Y,2,1) -> 0 | F52: =-IF(OR(AND(子1!C52>=入力!$I$28,子1!C52<=入力!$J$28),AND(子2!C52>=入力!$I$28,子2!C52<=入力!$J$28),AND(子3!C52>=入力!$I$28,子3!C52<=入力!$J$28),AND(子4!C52>=入力!$I$28,子4!C52<=入力!$J$28)),親2!E52*(1-入力!$K$28), IF(OR(AND(子1!C52>=入力!$I$29,子1!C52<=入力!$J$29),AND(子2!C52>=入力!$I$29,子2!C52<=入力!$J$29),AND(子3!C52>=入力!$I$29,子3!C52<=入力!$J$29),AND(子4!C52>=入力!$I$29,子4!C52<=入力!$J$29)),親2!E52*(1-入力!$K$29),0)) -> 0 | G52: =IF(C52=入力!I$22,入力!J$31,0) -> 0 | H52: 138.7369004 | I52: =IF(H52>0,-年金の税金!$G$25/10000,0) -> -3.148205725 | J52: 135.5886947 | M52: 39.6 | N52: 13.2 | O52: 3.3 | P52: 2.64 | Q52: 1.65 | R52: =IF(OR(AND(子1!C52>=0,子1!C52<=18),AND(子2!C52>=0,子2!C52<=18),AND(子3!C52>=0,子3!C52<=18),AND(子4!C52>=0,子4!C52<=18)),入力!$I$35,入力!$I$34)*12 -> 0 | T52: 60.39 | U52: 75.19869471 | W52: 2.4 | AC52: 2.4 | AD52: 72.79869471 | AE52: 36 | AK52: 36 | AL52: 36.79869471 | AM52: 3844.508858 | AU52: =IF(D52,VLOOKUP(D52,年収と手取り!C:I,7,1),0)/9.1% -> 0
B53: 66 | C53: 69 | D53: =IF(C53>入力!$I$22,0,VLOOKUP(C53,賃金カーブ!R:Z,4,0)) -> 0 | E53: =VLOOKUP(D53,年収と手取り!X:Y,2,1) -> 0 | F53: =-IF(OR(AND(子1!C53>=入力!$I$28,子1!C53<=入力!$J$28),AND(子2!C53>=入力!$I$28,子2!C53<=入力!$J$28),AND(子3!C53>=入力!$I$28,子3!C53<=入力!$J$28),AND(子4!C53>=入力!$I$28,子4!C53<=入力!$J$28)),親2!E53*(1-入力!$K$28), IF(OR(AND(子1!C53>=入力!$I$29,子1!C53<=入力!$J$29),AND(子2!C53>=入力!$I$29,子2!C53<=入力!$J$29),AND(子3!C53>=入力!$I$29,子3!C53<=入力!$J$29),AND(子4!C53>=入力!$I$29,子4!C53<=入力!$J$29)),親2!E53*(1-入力!$K$29),0)) -> 0 | G53: =IF(C53=入力!I$22,入力!J$31,0) -> 0 | H53: 138.7369004 | I53: =IF(H53>0,-年金の税金!$G$25/10000,0) -> -3.148205725 | J53: 135.5886947 | M53: 39.6 | N53: 13.2 | O53: 3.3 | P53: 2.64 | Q53: 1.65 | R53: =IF(OR(AND(子1!C53>=0,子1!C53<=18),AND(子2!C53>=0,子2!C53<=18),AND(子3!C53>=0,子3!C53<=18),AND(子4!C53>=0,子4!C53<=18)),入力!$I$35,入力!$I$34)*12 -> 0 | T53: 60.39 | U53: 75.19869471 | W53: 2.4 | AC53: 2.4 | AD53: 72.79869471 | AE53: 36 | AK53: 36 | AL53: 36.79869471 | AM53: 3881.307553 | AU53: =IF(D53,VLOOKUP(D53,年収と手取り!C:I,7,1),0)/9.1% -> 0
B54: 67 | C54: 70 | D54: =IF(C54>入力!$I$22,0,VLOOKUP(C54,賃金カーブ!R:Z,4,0)) -> 0 | E54: =VLOOKUP(D54,年収と手取り!X:Y,2,1) -> 0 | F54: =-IF(OR(AND(子1!C54>=入力!$I$28,子1!C54<=入力!$J$28),AND(子2!C54>=入力!$I$28,子2!C54<=入力!$J$28),AND(子3!C54>=入力!$I$28,子3!C54<=入力!$J$28),AND(子4!C54>=入力!$I$28,子4!C54<=入力!$J$28)),親2!E54*(1-入力!$K$28), IF(OR(AND(子1!C54>=入力!$I$29,子1!C54<=入力!$J$29),AND(子2!C54>=入力!$I$29,子2!C54<=入力!$J$29),AND(子3!C54>=入力!$I$29,子3!C54<=入力!$J$29),AND(子4!C54>=入力!$I$29,子4!C54<=入力!$J$29)),親2!E54*(1-入力!$K$29),0)) -> 0 | G54: =IF(C54=入力!I$22,入力!J$31,0) -> 0 | H54: 138.7369004 | I54: =IF(H54>0,-年金の税金!$G$25/10000,0) -> -3.148205725 | J54: 135.5886947 | M54: 39.6 | N54: 13.2 | O54: 3.3 | P54: 2.64 | Q54: 1.65 | R54: =IF(OR(AND(子1!C54>=0,子1!C54<=18),AND(子2!C54>=0,子2!C54<=18),AND(子3!C54>=0,子3!C54<=18),AND(子4!C54>=0,子4!C54<=18)),入力!$I$35,入力!$I$34)*12 -> 0 | T54: 60.39 | U54: 75.19869471 | W54: 2.4 | AC54: 2.4 | AD54: 72.79869471 | AE54: 36 | AK54: 36 | AL54: 36.79869471 | AM54: 3918.106248 | AU54: =IF(D54,VLOOKUP(D54,年収と手取り!C:I,7,1),0)/9.1% -> 0
B55: 68 | C55: 71 | D55: =IF(C55>入力!$I$22,0,VLOOKUP(C55,賃金カーブ!R:Z,4,0)) -> 0 | E55: =VLOOKUP(D55,年収と手取り!X:Y,2,1) -> 0 | F55: =-IF(OR(AND(子1!C55>=入力!$I$28,子1!C55<=入力!$J$28),AND(子2!C55>=入力!$I$28,子2!C55<=入力!$J$28),AND(子3!C55>=入力!$I$28,子3!C55<=入力!$J$28),AND(子4!C55>=入力!$I$28,子4!C55<=入力!$J$28)),親2!E55*(1-入力!$K$28), IF(OR(AND(子1!C55>=入力!$I$29,子1!C55<=入力!$J$29),AND(子2!C55>=入力!$I$29,子2!C55<=入力!$J$29),AND(子3!C55>=入力!$I$29,子3!C55<=入力!$J$29),AND(子4!C55>=入力!$I$29,子4!C55<=入力!$J$29)),親2!E55*(1-入力!$K$29),0)) -> 0 | G55: =IF(C55=入力!I$22,入力!J$31,0) -> 0 | H55: 138.7369004 | I55: =IF(H55>0,-年金の税金!$G$25/10000,0) -> -3.148205725 | J55: 135.5886947 | M55: =M$1 -> 39.6 | N55: 13.2 | O55: 3.3 | P55: 2.64 | Q55: 1.65 | R55: =IF(OR(AND(子1!C55>=0,子1!C55<=18),AND(子2!C55>=0,子2!C55<=18),AND(子3!C55>=0,子3!C55<=18),AND(子4!C55>=0,子4!C55<=18)),入力!$I$35,入力!$I$34)*12 -> 0 | T55: 60.39 | U55: 75.19869471 | W55: 2.4 | AC55: 2.4 | AD55: 72.79869471 | AE55: 36 | AK55: 36 | AL55: 36.79869471 | AM55: 3954.904942 | AU55: =IF(D55,VLOOKUP(D55,年収と手取り!C:I,7,1),0)/9.1% -> 0
B56: 69 | C56: 72 | D56: =IF(C56>入力!$I$22,0,VLOOKUP(C56,賃金カーブ!R:Z,4,0)) -> 0 | E56: =VLOOKUP(D56,年収と手取り!X:Y,2,1) -> 0 | F56: =-IF(OR(AND(子1!C56>=入力!$I$28,子1!C56<=入力!$J$28),AND(子2!C56>=入力!$I$28,子2!C56<=入力!$J$28),AND(子3!C56>=入力!$I$28,子3!C56<=入力!$J$28),AND(子4!C56>=入力!$I$28,子4!C56<=入力!$J$28)),親2!E56*(1-入力!$K$28), IF(OR(AND(子1!C56>=入力!$I$29,子1!C56<=入力!$J$29),AND(子2!C56>=入力!$I$29,子2!C56<=入力!$J$29),AND(子3!C56>=入力!$I$29,子3!C56<=入力!$J$29),AND(子4!C56>=入力!$I$29,子4!C56<=入力!$J$29)),親2!E56*(1-入力!$K$29),0)) -> 0 | G56: =IF(C56=入力!I$22,入力!J$31,0) -> 0 | H56: 138.7369004 | I56: =IF(H56>0,-年金の税金!$G$25/10000,0) -> -3.148205725 | J56: 135.5886947 | M56: 39.6 | N56: 13.2 | O56: 3.3 | P56: 2.64 | Q56: 1.65 | R56: =IF(OR(AND(子1!C56>=0,子1!C56<=18),AND(子2!C56>=0,子2!C56<=18),AND(子3!C56>=0,子3!C56<=18),AND(子4!C56>=0,子4!C56<=18)),入力!$I$35,入力!$I$34)*12 -> 0 | T56: 60.39 | U56: 75.19869471 | W56: 2.4 | AC56: 2.4 | AD56: 72.79869471 | AE56: 36 | AK56: 36 | AL56: 36.79869471 | AM56: 3991.703637 | AU56: =IF(D56,VLOOKUP(D56,年収と手取り!C:I,7,1),0)/9.1% -> 0
B57: 70 | C57: 73 | D57: =IF(C57>入力!$I$22,0,VLOOKUP(C57,賃金カーブ!R:Z,4,0)) -> 0 | E57: =VLOOKUP(D57,年収と手取り!X:Y,2,1) -> 0 | F57: =-IF(OR(AND(子1!C57>=入力!$I$28,子1!C57<=入力!$J$28),AND(子2!C57>=入力!$I$28,子2!C57<=入力!$J$28),AND(子3!C57>=入力!$I$28,子3!C57<=入力!$J$28),AND(子4!C57>=入力!$I$28,子4!C57<=入力!$J$28)),親2!E57*(1-入力!$K$28), IF(OR(AND(子1!C57>=入力!$I$29,子1!C57<=入力!$J$29),AND(子2!C57>=入力!$I$29,子2!C57<=入力!$J$29),AND(子3!C57>=入力!$I$29,子3!C57<=入力!$J$29),AND(子4!C57>=入力!$I$29,子4!C57<=入力!$J$29)),親2!E57*(1-入力!$K$29),0)) -> 0 | G57: =IF(C57=入力!I$22,入力!J$31,0) -> 0 | H57: 138.7369004 | I57: =IF(H57>0,-年金の税金!$G$25/10000,0) -> -3.148205725 | J57: 135.5886947 | M57: 39.6 | N57: 13.2 | O57: 3.3 | P57: 2.64 | Q57: 1.65 | R57: =IF(OR(AND(子1!C57>=0,子1!C57<=18),AND(子2!C57>=0,子2!C57<=18),AND(子3!C57>=0,子3!C57<=18),AND(子4!C57>=0,子4!C57<=18)),入力!$I$35,入力!$I$34)*12 -> 0 | T57: 60.39 | U57: 75.19869471 | W57: 2.4 | AC57: 2.4 | AD57: 72.79869471 | AE57: 36 | AK57: 36 | AL57: 36.79869471 | AM57: 4028.502332 | AU57: =IF(D57,VLOOKUP(D57,年収と手取り!C:I,7,1),0)/9.1% -> 0
B58: 71 | C58: 74 | D58: =IF(C58>入力!$I$22,0,VLOOKUP(C58,賃金カーブ!R:Z,4,0)) -> 0 | E58: =VLOOKUP(D58,年収と手取り!X:Y,2,1) -> 0 | F58: =-IF(OR(AND(子1!C58>=入力!$I$28,子1!C58<=入力!$J$28),AND(子2!C58>=入力!$I$28,子2!C58<=入力!$J$28),AND(子3!C58>=入力!$I$28,子3!C58<=入力!$J$28),AND(子4!C58>=入力!$I$28,子4!C58<=入力!$J$28)),親2!E58*(1-入力!$K$28), IF(OR(AND(子1!C58>=入力!$I$29,子1!C58<=入力!$J$29),AND(子2!C58>=入力!$I$29,子2!C58<=入力!$J$29),AND(子3!C58>=入力!$I$29,子3!C58<=入力!$J$29),AND(子4!C58>=入力!$I$29,子4!C58<=入力!$J$29)),親2!E58*(1-入力!$K$29),0)) -> 0 | G58: =IF(C58=入力!I$22,入力!J$31,0) -> 0 | H58: 138.7369004 | I58: =IF(H58>0,-年金の税金!$G$25/10000,0) -> -3.148205725 | J58: 135.5886947 | M58: 39.6 | N58: 13.2 | O58: 3.3 | P58: 2.64 | Q58: 1.65 | R58: =IF(OR(AND(子1!C58>=0,子1!C58<=18),AND(子2!C58>=0,子2!C58<=18),AND(子3!C58>=0,子3!C58<=18),AND(子4!C58>=0,子4!C58<=18)),入力!$I$35,入力!$I$34)*12 -> 0 | T58: 60.39 | U58: 75.19869471 | W58: 2.4 | AC58: 2.4 | AD58: 72.79869471 | AE58: 36 | AK58: 36 | AL58: 36.79869471 | AM58: 4065.301026 | AU58: =IF(D58,VLOOKUP(D58,年収と手取り!C:I,7,1),0)/9.1% -> 0
B59: 72 | C59: 75 | D59: =IF(C59>入力!$I$22,0,VLOOKUP(C59,賃金カーブ!R:Z,4,0)) -> 0 | E59: =VLOOKUP(D59,年収と手取り!X:Y,2,1) -> 0 | F59: =-IF(OR(AND(子1!C59>=入力!$I$28,子1!C59<=入力!$J$28),AND(子2!C59>=入力!$I$28,子2!C59<=入力!$J$28),AND(子3!C59>=入力!$I$28,子3!C59<=入力!$J$28),AND(子4!C59>=入力!$I$28,子4!C59<=入力!$J$28)),親2!E59*(1-入力!$K$28), IF(OR(AND(子1!C59>=入力!$I$29,子1!C59<=入力!$J$29),AND(子2!C59>=入力!$I$29,子2!C59<=入力!$J$29),AND(子3!C59>=入力!$I$29,子3!C59<=入力!$J$29),AND(子4!C59>=入力!$I$29,子4!C59<=入力!$J$29)),親2!E59*(1-入力!$K$29),0)) -> 0 | G59: =IF(C59=入力!I$22,入力!J$31,0) -> 0 | H59: 138.7369004 | I59: =IF(H59>0,-年金の税金!$G$25/10000,0) -> -3.148205725 | J59: 135.5886947 | M59: 39.6 | N59: 13.2 | O59: 3.3 | P59: 2.64 | Q59: 1.65 | R59: =IF(OR(AND(子1!C59>=0,子1!C59<=18),AND(子2!C59>=0,子2!C59<=18),AND(子3!C59>=0,子3!C59<=18),AND(子4!C59>=0,子4!C59<=18)),入力!$I$35,入力!$I$34)*12 -> 0 | T59: 60.39 | U59: 75.19869471 | W59: 2.4 | AC59: 2.4 | AD59: 72.79869471 | AE59: 36 | AK59: 36 | AL59: 36.79869471 | AM59: 4102.099721 | AU59: =IF(D59,VLOOKUP(D59,年収と手取り!C:I,7,1),0)/9.1% -> 0
B60: 73 | C60: 76 | D60: =IF(C60>入力!$I$22,0,VLOOKUP(C60,賃金カーブ!R:Z,4,0)) -> 0 | E60: =VLOOKUP(D60,年収と手取り!X:Y,2,1) -> 0 | F60: =-IF(OR(AND(子1!C60>=入力!$I$28,子1!C60<=入力!$J$28),AND(子2!C60>=入力!$I$28,子2!C60<=入力!$J$28),AND(子3!C60>=入力!$I$28,子3!C60<=入力!$J$28),AND(子4!C60>=入力!$I$28,子4!C60<=入力!$J$28)),親2!E60*(1-入力!$K$28), IF(OR(AND(子1!C60>=入力!$I$29,子1!C60<=入力!$J$29),AND(子2!C60>=入力!$I$29,子2!C60<=入力!$J$29),AND(子3!C60>=入力!$I$29,子3!C60<=入力!$J$29),AND(子4!C60>=入力!$I$29,子4!C60<=入力!$J$29)),親2!E60*(1-入力!$K$29),0)) -> 0 | G60: =IF(C60=入力!I$22,入力!J$31,0) -> 0 | H60: 138.7369004 | I60: =IF(H60>0,-年金の税金!$G$25/10000,0) -> -3.148205725 | J60: 135.5886947 | M60: 39.6 | N60: 13.2 | O60: 3.3 | P60: 2.64 | Q60: 1.65 | R60: =IF(OR(AND(子1!C60>=0,子1!C60<=18),AND(子2!C60>=0,子2!C60<=18),AND(子3!C60>=0,子3!C60<=18),AND(子4!C60>=0,子4!C60<=18)),入力!$I$35,入力!$I$34)*12 -> 0 | T60: 60.39 | U60: 75.19869471 | W60: 2.4 | AC60: 2.4 | AD60: 72.79869471 | AE60: 36 | AK60: 36 | AL60: 36.79869471 | AM60: 4138.898416 | AU60: =IF(D60,VLOOKUP(D60,年収と手取り!C:I,7,1),0)/9.1% -> 0
B61: 74 | C61: 77 | D61: =IF(C61>入力!$I$22,0,VLOOKUP(C61,賃金カーブ!R:Z,4,0)) -> 0 | E61: =VLOOKUP(D61,年収と手取り!X:Y,2,1) -> 0 | F61: =-IF(OR(AND(子1!C61>=入力!$I$28,子1!C61<=入力!$J$28),AND(子2!C61>=入力!$I$28,子2!C61<=入力!$J$28),AND(子3!C61>=入力!$I$28,子3!C61<=入力!$J$28),AND(子4!C61>=入力!$I$28,子4!C61<=入力!$J$28)),親2!E61*(1-入力!$K$28), IF(OR(AND(子1!C61>=入力!$I$29,子1!C61<=入力!$J$29),AND(子2!C61>=入力!$I$29,子2!C61<=入力!$J$29),AND(子3!C61>=入力!$I$29,子3!C61<=入力!$J$29),AND(子4!C61>=入力!$I$29,子4!C61<=入力!$J$29)),親2!E61*(1-入力!$K$29),0)) -> 0 | G61: =IF(C61=入力!I$22,入力!J$31,0) -> 0 | H61: 138.7369004 | I61: =IF(H61>0,-年金の税金!$G$25/10000,0) -> -3.148205725 | J61: 135.5886947 | M61: 39.6 | N61: 13.2 | O61: 3.3 | P61: 2.64 | Q61: 1.65 | R61: =IF(OR(AND(子1!C61>=0,子1!C61<=18),AND(子2!C61>=0,子2!C61<=18),AND(子3!C61>=0,子3!C61<=18),AND(子4!C61>=0,子4!C61<=18)),入力!$I$35,入力!$I$34)*12 -> 0 | T61: 60.39 | U61: 75.19869471 | W61: 2.4 | AC61: 2.4 | AD61: 72.79869471 | AE61: 36 | AK61: 36 | AL61: 36.79869471 | AM61: 4175.69711 | AU61: =IF(D61,VLOOKUP(D61,年収と手取り!C:I,7,1),0)/9.1% -> 0
B62: 75 | C62: 78 | D62: =IF(C62>入力!$I$22,0,VLOOKUP(C62,賃金カーブ!R:Z,4,0)) -> 0 | E62: =VLOOKUP(D62,年収と手取り!X:Y,2,1) -> 0 | F62: =-IF(OR(AND(子1!C62>=入力!$I$28,子1!C62<=入力!$J$28),AND(子2!C62>=入力!$I$28,子2!C62<=入力!$J$28),AND(子3!C62>=入力!$I$28,子3!C62<=入力!$J$28),AND(子4!C62>=入力!$I$28,子4!C62<=入力!$J$28)),親2!E62*(1-入力!$K$28), IF(OR(AND(子1!C62>=入力!$I$29,子1!C62<=入力!$J$29),AND(子2!C62>=入力!$I$29,子2!C62<=入力!$J$29),AND(子3!C62>=入力!$I$29,子3!C62<=入力!$J$29),AND(子4!C62>=入力!$I$29,子4!C62<=入力!$J$29)),親2!E62*(1-入力!$K$29),0)) -> 0 | G62: =IF(C62=入力!I$22,入力!J$31,0) -> 0 | H62: 138.7369004 | I62: =IF(H62>0,-年金の税金!$G$25/10000,0) -> -3.148205725 | J62: 135.5886947 | M62: 39.6 | N62: 13.2 | O62: 3.3 | P62: 2.64 | Q62: 1.65 | R62: =IF(OR(AND(子1!C62>=0,子1!C62<=18),AND(子2!C62>=0,子2!C62<=18),AND(子3!C62>=0,子3!C62<=18),AND(子4!C62>=0,子4!C62<=18)),入力!$I$35,入力!$I$34)*12 -> 0 | T62: 60.39 | U62: 75.19869471 | W62: 2.4 | AC62: 2.4 | AD62: 72.79869471 | AE62: 36 | AK62: 36 | AL62: 36.79869471 | AM62: 4212.495805 | AU62: =IF(D62,VLOOKUP(D62,年収と手取り!C:I,7,1),0)/9.1% -> 0
B63: 76 | C63: 79 | D63: =IF(C63>入力!$I$22,0,VLOOKUP(C63,賃金カーブ!R:Z,4,0)) -> 0 | E63: =VLOOKUP(D63,年収と手取り!X:Y,2,1) -> 0 | F63: =-IF(OR(AND(子1!C63>=入力!$I$28,子1!C63<=入力!$J$28),AND(子2!C63>=入力!$I$28,子2!C63<=入力!$J$28),AND(子3!C63>=入力!$I$28,子3!C63<=入力!$J$28),AND(子4!C63>=入力!$I$28,子4!C63<=入力!$J$28)),親2!E63*(1-入力!$K$28), IF(OR(AND(子1!C63>=入力!$I$29,子1!C63<=入力!$J$29),AND(子2!C63>=入力!$I$29,子2!C63<=入力!$J$29),AND(子3!C63>=入力!$I$29,子3!C63<=入力!$J$29),AND(子4!C63>=入力!$I$29,子4!C63<=入力!$J$29)),親2!E63*(1-入力!$K$29),0)) -> 0 | G63: =IF(C63=入力!I$22,入力!J$31,0) -> 0 | H63: 138.7369004 | I63: =IF(H63>0,-年金の税金!$G$25/10000,0) -> -3.148205725 | J63: 135.5886947 | M63: 39.6 | N63: 13.2 | O63: 3.3 | P63: 2.64 | Q63: 1.65 | R63: =IF(OR(AND(子1!C63>=0,子1!C63<=18),AND(子2!C63>=0,子2!C63<=18),AND(子3!C63>=0,子3!C63<=18),AND(子4!C63>=0,子4!C63<=18)),入力!$I$35,入力!$I$34)*12 -> 0 | T63: 60.39 | U63: 75.19869471 | W63: 2.4 | AC63: 2.4 | AD63: 72.79869471 | AE63: 36 | AK63: 36 | AL63: 36.79869471 | AM63: 4249.2945 | AU63: =IF(D63,VLOOKUP(D63,年収と手取り!C:I,7,1),0)/9.1% -> 0
B64: 77 | C64: 80 | D64: =IF(C64>入力!$I$22,0,VLOOKUP(C64,賃金カーブ!R:Z,4,0)) -> 0 | E64: =VLOOKUP(D64,年収と手取り!X:Y,2,1) -> 0 | F64: =-IF(OR(AND(子1!C64>=入力!$I$28,子1!C64<=入力!$J$28),AND(子2!C64>=入力!$I$28,子2!C64<=入力!$J$28),AND(子3!C64>=入力!$I$28,子3!C64<=入力!$J$28),AND(子4!C64>=入力!$I$28,子4!C64<=入力!$J$28)),親2!E64*(1-入力!$K$28), IF(OR(AND(子1!C64>=入力!$I$29,子1!C64<=入力!$J$29),AND(子2!C64>=入力!$I$29,子2!C64<=入力!$J$29),AND(子3!C64>=入力!$I$29,子3!C64<=入力!$J$29),AND(子4!C64>=入力!$I$29,子4!C64<=入力!$J$29)),親2!E64*(1-入力!$K$29),0)) -> 0 | G64: =IF(C64=入力!I$22,入力!J$31,0) -> 0 | H64: 138.7369004 | I64: =IF(H64>0,-年金の税金!$G$25/10000,0) -> -3.148205725 | J64: 135.5886947 | M64: 39.6 | N64: 13.2 | O64: 3.3 | P64: 2.64 | Q64: 1.65 | R64: =IF(OR(AND(子1!C64>=0,子1!C64<=18),AND(子2!C64>=0,子2!C64<=18),AND(子3!C64>=0,子3!C64<=18),AND(子4!C64>=0,子4!C64<=18)),入力!$I$35,入力!$I$34)*12 -> 0 | T64: 60.39 | U64: 75.19869471 | W64: 2.4 | AC64: 2.4 | AD64: 72.79869471 | AE64: 36 | AK64: 36 | AL64: 36.79869471 | AM64: 4286.093195 | AU64: =IF(D64,VLOOKUP(D64,年収と手取り!C:I,7,1),0)/9.1% -> 0
B65: 78 | C65: 81 | D65: =IF(C65>入力!$I$22,0,VLOOKUP(C65,賃金カーブ!R:Z,4,0)) -> 0 | E65: =VLOOKUP(D65,年収と手取り!X:Y,2,1) -> 0 | F65: =-IF(OR(AND(子1!C65>=入力!$I$28,子1!C65<=入力!$J$28),AND(子2!C65>=入力!$I$28,子2!C65<=入力!$J$28),AND(子3!C65>=入力!$I$28,子3!C65<=入力!$J$28),AND(子4!C65>=入力!$I$28,子4!C65<=入力!$J$28)),親2!E65*(1-入力!$K$28), IF(OR(AND(子1!C65>=入力!$I$29,子1!C65<=入力!$J$29),AND(子2!C65>=入力!$I$29,子2!C65<=入力!$J$29),AND(子3!C65>=入力!$I$29,子3!C65<=入力!$J$29),AND(子4!C65>=入力!$I$29,子4!C65<=入力!$J$29)),親2!E65*(1-入力!$K$29),0)) -> 0 | G65: =IF(C65=入力!I$22,入力!J$31,0) -> 0 | H65: 138.7369004 | I65: =IF(H65>0,-年金の税金!$G$25/10000,0) -> -3.148205725 | J65: 135.5886947 | M65: 39.6 | N65: 13.2 | O65: 3.3 | P65: 2.64 | Q65: 1.65 | R65: =IF(OR(AND(子1!C65>=0,子1!C65<=18),AND(子2!C65>=0,子2!C65<=18),AND(子3!C65>=0,子3!C65<=18),AND(子4!C65>=0,子4!C65<=18)),入力!$I$35,入力!$I$34)*12 -> 0 | T65: 60.39 | U65: 75.19869471 | W65: 2.4 | AC65: 2.4 | AD65: 72.79869471 | AE65: 36 | AK65: 36 | AL65: 36.79869471 | AM65: 4322.891889 | AU65: =IF(D65,VLOOKUP(D65,年収と手取り!C:I,7,1),0)/9.1% -> 0
B66: 79 | C66: 82 | D66: =IF(C66>入力!$I$22,0,VLOOKUP(C66,賃金カーブ!R:Z,4,0)) -> 0 | E66: =VLOOKUP(D66,年収と手取り!X:Y,2,1) -> 0 | F66: =-IF(OR(AND(子1!C66>=入力!$I$28,子1!C66<=入力!$J$28),AND(子2!C66>=入力!$I$28,子2!C66<=入力!$J$28),AND(子3!C66>=入力!$I$28,子3!C66<=入力!$J$28),AND(子4!C66>=入力!$I$28,子4!C66<=入力!$J$28)),親2!E66*(1-入力!$K$28), IF(OR(AND(子1!C66>=入力!$I$29,子1!C66<=入力!$J$29),AND(子2!C66>=入力!$I$29,子2!C66<=入力!$J$29),AND(子3!C66>=入力!$I$29,子3!C66<=入力!$J$29),AND(子4!C66>=入力!$I$29,子4!C66<=入力!$J$29)),親2!E66*(1-入力!$K$29),0)) -> 0 | G66: =IF(C66=入力!I$22,入力!J$31,0) -> 0 | H66: 138.7369004 | I66: =IF(H66>0,-年金の税金!$G$25/10000,0) -> -3.148205725 | J66: 135.5886947 | M66: 39.6 | N66: 13.2 | O66: 3.3 | P66: 2.64 | Q66: 1.65 | R66: =IF(OR(AND(子1!C66>=0,子1!C66<=18),AND(子2!C66>=0,子2!C66<=18),AND(子3!C66>=0,子3!C66<=18),AND(子4!C66>=0,子4!C66<=18)),入力!$I$35,入力!$I$34)*12 -> 0 | T66: 60.39 | U66: 75.19869471 | W66: 2.4 | AC66: 2.4 | AD66: 72.79869471 | AE66: 36 | AK66: 36 | AL66: 36.79869471 | AM66: 4359.690584 | AU66: =IF(D66,VLOOKUP(D66,年収と手取り!C:I,7,1),0)/9.1% -> 0
B67: 80 | C67: 83 | D67: =IF(C67>入力!$I$22,0,VLOOKUP(C67,賃金カーブ!R:Z,4,0)) -> 0 | E67: =VLOOKUP(D67,年収と手取り!X:Y,2,1) -> 0 | F67: =-IF(OR(AND(子1!C67>=入力!$I$28,子1!C67<=入力!$J$28),AND(子2!C67>=入力!$I$28,子2!C67<=入力!$J$28),AND(子3!C67>=入力!$I$28,子3!C67<=入力!$J$28),AND(子4!C67>=入力!$I$28,子4!C67<=入力!$J$28)),親2!E67*(1-入力!$K$28), IF(OR(AND(子1!C67>=入力!$I$29,子1!C67<=入力!$J$29),AND(子2!C67>=入力!$I$29,子2!C67<=入力!$J$29),AND(子3!C67>=入力!$I$29,子3!C67<=入力!$J$29),AND(子4!C67>=入力!$I$29,子4!C67<=入力!$J$29)),親2!E67*(1-入力!$K$29),0)) -> 0 | G67: =IF(C67=入力!I$22,入力!J$31,0) -> 0 | H67: 138.7369004 | I67: =IF(H67>0,-年金の税金!$G$25/10000,0) -> -3.148205725 | J67: 135.5886947 | M67: 39.6 | N67: 13.2 | O67: 3.3 | P67: 2.64 | Q67: 1.65 | R67: =IF(OR(AND(子1!C67>=0,子1!C67<=18),AND(子2!C67>=0,子2!C67<=18),AND(子3!C67>=0,子3!C67<=18),AND(子4!C67>=0,子4!C67<=18)),入力!$I$35,入力!$I$34)*12 -> 0 | T67: 60.39 | U67: 75.19869471 | W67: 2.4 | AC67: 2.4 | AD67: 72.79869471 | AE67: 36 | AK67: 36 | AL67: 36.79869471 | AM67: 4396.489279 | AU67: =IF(D67,VLOOKUP(D67,年収と手取り!C:I,7,1),0)/9.1% -> 0
B68: 81 | C68: 84 | D68: =IF(C68>入力!$I$22,0,VLOOKUP(C68,賃金カーブ!R:Z,4,0)) -> 0 | E68: =VLOOKUP(D68,年収と手取り!X:Y,2,1) -> 0 | F68: =-IF(OR(AND(子1!C68>=入力!$I$28,子1!C68<=入力!$J$28),AND(子2!C68>=入力!$I$28,子2!C68<=入力!$J$28),AND(子3!C68>=入力!$I$28,子3!C68<=入力!$J$28),AND(子4!C68>=入力!$I$28,子4!C68<=入力!$J$28)),親2!E68*(1-入力!$K$28), IF(OR(AND(子1!C68>=入力!$I$29,子1!C68<=入力!$J$29),AND(子2!C68>=入力!$I$29,子2!C68<=入力!$J$29),AND(子3!C68>=入力!$I$29,子3!C68<=入力!$J$29),AND(子4!C68>=入力!$I$29,子4!C68<=入力!$J$29)),親2!E68*(1-入力!$K$29),0)) -> 0 | G68: =IF(C68=入力!I$22,入力!J$31,0) -> 0 | H68: 138.7369004 | I68: =IF(H68>0,-年金の税金!$G$25/10000,0) -> -3.148205725 | J68: 135.5886947 | M68: 39.6 | N68: 13.2 | O68: 3.3 | P68: 2.64 | Q68: 1.65 | R68: =IF(OR(AND(子1!C68>=0,子1!C68<=18),AND(子2!C68>=0,子2!C68<=18),AND(子3!C68>=0,子3!C68<=18),AND(子4!C68>=0,子4!C68<=18)),入力!$I$35,入力!$I$34)*12 -> 0 | T68: 60.39 | U68: 75.19869471 | W68: 2.4 | AC68: 2.4 | AD68: 72.79869471 | AE68: 36 | AK68: 36 | AL68: 36.79869471 | AM68: 4433.287973 | AU68: =IF(D68,VLOOKUP(D68,年収と手取り!C:I,7,1),0)/9.1% -> 0
B69: 82 | C69: 85 | D69: =IF(C69>入力!$I$22,0,VLOOKUP(C69,賃金カーブ!R:Z,4,0)) -> 0 | E69: =VLOOKUP(D69,年収と手取り!X:Y,2,1) -> 0 | F69: =-IF(OR(AND(子1!C69>=入力!$I$28,子1!C69<=入力!$J$28),AND(子2!C69>=入力!$I$28,子2!C69<=入力!$J$28),AND(子3!C69>=入力!$I$28,子3!C69<=入力!$J$28),AND(子4!C69>=入力!$I$28,子4!C69<=入力!$J$28)),親2!E69*(1-入力!$K$28), IF(OR(AND(子1!C69>=入力!$I$29,子1!C69<=入力!$J$29),AND(子2!C69>=入力!$I$29,子2!C69<=入力!$J$29),AND(子3!C69>=入力!$I$29,子3!C69<=入力!$J$29),AND(子4!C69>=入力!$I$29,子4!C69<=入力!$J$29)),親2!E69*(1-入力!$K$29),0)) -> 0 | G69: =IF(C69=入力!I$22,入力!J$31,0) -> 0 | H69: 138.7369004 | I69: =IF(H69>0,-年金の税金!$G$25/10000,0) -> -3.148205725 | J69: 135.5886947 | M69: 39.6 | N69: 13.2 | O69: 3.3 | P69: 2.64 | Q69: 1.65 | R69: =IF(OR(AND(子1!C69>=0,子1!C69<=18),AND(子2!C69>=0,子2!C69<=18),AND(子3!C69>=0,子3!C69<=18),AND(子4!C69>=0,子4!C69<=18)),入力!$I$35,入力!$I$34)*12 -> 0 | T69: 60.39 | U69: 75.19869471 | W69: 2.4 | AC69: 2.4 | AD69: 72.79869471 | AE69: 36 | AK69: 36 | AL69: 36.79869471 | AM69: 4470.086668 | AU69: =IF(D69,VLOOKUP(D69,年収と手取り!C:I,7,1),0)/9.1% -> 0
B70: 83 | C70: 86 | D70: =IF(C70>入力!$I$22,0,VLOOKUP(C70,賃金カーブ!R:Z,4,0)) -> 0 | E70: =VLOOKUP(D70,年収と手取り!X:Y,2,1) -> 0 | F70: =-IF(OR(AND(子1!C70>=入力!$I$28,子1!C70<=入力!$J$28),AND(子2!C70>=入力!$I$28,子2!C70<=入力!$J$28),AND(子3!C70>=入力!$I$28,子3!C70<=入力!$J$28),AND(子4!C70>=入力!$I$28,子4!C70<=入力!$J$28)),親2!E70*(1-入力!$K$28), IF(OR(AND(子1!C70>=入力!$I$29,子1!C70<=入力!$J$29),AND(子2!C70>=入力!$I$29,子2!C70<=入力!$J$29),AND(子3!C70>=入力!$I$29,子3!C70<=入力!$J$29),AND(子4!C70>=入力!$I$29,子4!C70<=入力!$J$29)),親2!E70*(1-入力!$K$29),0)) -> 0 | G70: =IF(C70=入力!I$22,入力!J$31,0) -> 0 | H70: 138.7369004 | I70: =IF(H70>0,-年金の税金!$G$25/10000,0) -> -3.148205725 | J70: 135.5886947 | M70: 39.6 | N70: 13.2 | O70: 3.3 | P70: 2.64 | Q70: 1.65 | R70: =IF(OR(AND(子1!C70>=0,子1!C70<=18),AND(子2!C70>=0,子2!C70<=18),AND(子3!C70>=0,子3!C70<=18),AND(子4!C70>=0,子4!C70<=18)),入力!$I$35,入力!$I$34)*12 -> 0 | T70: =SUM(K70:S70) -> 60.39 | U70: =J70-T70 -> 75.19869471 | W70: =W$1 -> 2.4 | AC70: =SUM(V70:AB70) -> 2.4 | AD70: =U70-AC70 -> 72.79869471 | AE70: 36 | AK70: 36 | AL70: =AD70-AK70 -> 36.79869471 | AM70: =AL70+AM69 -> 4506.885363 | AU70: =IF(D70,VLOOKUP(D70,年収と手取り!C:I,7,1),0)/9.1% -> 0
D71: =SUM(D6:D70) -> 11230.80876 | E71: 8803.931024 | F71: -723.05825 | H71: 2913.474909 | I71: -66.11232023 | J71: 10928.23536 | K71: 0 | L71: 0 | M71: 2574 | N71: 858 | O71: 214.5 | P71: 171.6 | Q71: 107.25 | R71: 0 | S71: =SUM(S6:S70) -> 0 | T71: 3925.35 | U71: 7002.885363 | V71: 0 | W71: 156 | X71: 0 | Y71: 0 | Z71: 0 | AA71: 0 | AB71: 0 | AC71: 156 | AD71: 6846.885363 | AE71: 2340 | AF71: 0 | AG71: 0 | AH71: 0 | AI71: 0 | AJ71: 0 | AK71: 2340 | AL71: =SUM(AL5:AL70) -> 4506.885363 | AU71: =AVERAGEIF(AU6:AU70,">0") -> 251.848951 | AV71: =COUNTIF(AU6:AU70,">0") -> 44 | AW71: =AU71*AV71 -> 11081.35385
AU72: =AU6*2/3 -> 114.2241758 | AV72: =C6-22 -> 0 | AW72: =AU72*AV72 -> 0
AW73: =SUM(AW71:AW72)/SUM(AV71:AV72)/12 -> 20.98741259
AW74: =AW73*0.005481*SUM(AV71:AV72) -> 5.061408369

Sheet 子1
M1: =IF($C$30>0,入力!AD13*12*(1+入力!$AD$16),0) -> 19.8 | N1: =IF($C$30>0,入力!AE13*12*(1+入力!$AD$16),0) -> 6.6 | O1: =IF($C$30>0,入力!AF13*12*(1+入力!$AD$16),0) -> 1.65 | P1: =IF($C$30>0,入力!AG13*12*(1+入力!$AD$16),0) -> 1.32 | Q1: =IF($C$30>0,入力!AH13*12*(1+入力!$AD$16),0) -> 0.825 | W1: =IF($C$30>0,入力!AJ13*12,0) -> 2.4 | AE1: =入力!P35*12 -> 12
J2: 収入 | U2: 収支 小計 | AD2: 収支 小計 | AL2: 収支 | AM2: 収支累計
T3: 支出1 衣食住 | AC3: 支出2 固定費 | AK3: 支出3 衣食住勉
B4: 西暦 | C4: 年齢 | D4: 年収 | E4: 手取り | F4: 時短等 | G4: 退職金 | H4: 年金 | K4: 住居 | L4: 住居維持費 (含むローン控除) | M4: 食費 | N4: 服費 | O4: 電気 | P4: ガス | Q4: 水道 | R4: 保険 | V4: インターネット | W4: 携帯 | X4: 塾・仕送り | Y4: 習い事 | Z4: 学費 | AA4: 仕送り | AE4: お小遣い | AF4: 雑費 | AG4: 家具 | AH4: 車1 | AI4: 車2 | AJ4: 車維持費 | AK4: 合計
B5: 貯金
B6: 19 | C6: =IF(入力!$P$11="",-100,入力!$P$11) -> -4 | E6: =IF(親1!D6<=833.3+42*親1!AS6,IF(AND(C6>=0,C6<=3),1.5*12,IF(AND(C6>3,C6<=15),1*12,0)),IF(AND(C6>=0,C6<=15),0.5*12,0)) -> 0 | J6: =SUM(E6:I6) -> 0 | M6: =IF(AND($C6>=0,$C6<=入力!$P$38),M$1,0) -> 0 | N6: =IF(AND($C6>=0,$C6<=入力!$P$38),N$1,0) -> 0 | O6: =IF(AND($C6>=0,$C6<=入力!$P$38),O$1,0) -> 0 | P6: =IF(AND($C6>=0,$C6<=入力!$P$38),P$1,0) -> 0 | Q6: =IF(AND($C6>=0,$C6<=入力!$P$38),Q$1,0) -> 0 | T6: =SUM(K6:S6) -> 0 | U6: =J6-T6 -> 0 | W6: =IF(AND($C6>=10,$C6<=入力!$P$38),W$1,0) -> 0 | X6: =IFERROR(VLOOKUP($C6,学費計算!$C:$R,学費計算!D$1,0),0) -> 0 | Y6: =IFERROR(VLOOKUP($C6,学費計算!$C:$R,学費計算!E$1,0),0) -> 0 | Z6: =IFERROR(VLOOKUP($C6,学費計算!$C:$R,学費計算!F$1,0),0) -> 0 | AA6: =IFERROR(VLOOKUP($C6,学費計算!$C:$R,学費計算!G$1,0),0) -> 0 | AC6: =SUM(V6:AB6) -> 0 | AD6: =U6-AC6 -> 0 | AE6: =IF(AND($C6>=0,$C6<=入力!$P$36),AE$1,0) -> 0 | AK6: =SUM(AE6:AJ6) -> 0 | AL6: =AD6-AK6 -> 0 | AM6: =AL6+AM5 -> 0
B7: =B6+1 -> 20 | C7: =C6+1 -> -3 | E7: =IF(親1!D7<=833.3+42*親1!AS7,IF(AND(C7>=0,C7<=3),1.5*12,IF(AND(C7>3,C7<=15),1*12,0)),IF(AND(C7>=0,C7<=15),0.5*12,0)) -> 0 | J7: 0 | M7: =IF(AND($C7>=0,$C7<=入力!$P$38),M$1,0) -> 0 | N7: =IF(AND($C7>=0,$C7<=入力!$P$38),N$1,0) -> 0 | O7: =IF(AND($C7>=0,$C7<=入力!$P$38),O$1,0) -> 0 | P7: =IF(AND($C7>=0,$C7<=入力!$P$38),P$1,0) -> 0 | Q7: =IF(AND($C7>=0,$C7<=入力!$P$38),Q$1,0) -> 0 | T7: 0 | U7: 0 | W7: =IF(AND($C7>=10,$C7<=入力!$P$38),W$1,0) -> 0 | X7: =IFERROR(VLOOKUP($C7,学費計算!$C:$R,学費計算!D$1,0),0) -> 0 | Y7: =IFERROR(VLOOKUP($C7,学費計算!$C:$R,学費計算!E$1,0),0) -> 0 | Z7: =IFERROR(VLOOKUP($C7,学費計算!$C:$R,学費計算!F$1,0),0) -> 0 | AA7: =IFERROR(VLOOKUP($C7,学費計算!$C:$R,学費計算!G$1,0),0) -> 0 | AC7: 0 | AD7: 0 | AE7: =IF(AND($C7>=0,$C7<=入力!$P$36),AE$1,0) -> 0 | AK7: =SUM(AE7:AJ7) -> 0 | AL7: 0 | AM7: 0 | AP7: 扶養親族等の数 | AQ7: 所得制限限度額（万円） | AR7: 収入額の目安（万円） | AY7: =IF($AH7>0,"車","")&IF($AF7>0,"リフォーム","")&IF(子1!C6=18,"大学入学","")&IF(子2!C6=18,"大学入学","")&IF(子3!C6=18,"大学入学","")&IF(子4!C6=18,"大学入学","") -> 
B8: =B7+1 -> 21 | C8: =C7+1 -> -2 | E8: =IF(親1!D8<=833.3+42*親1!AS8,IF(AND(C8>=0,C8<=3),1.5*12,IF(AND(C8>3,C8<=15),1*12,0)),IF(AND(C8>=0,C8<=15),0.5*12,0)) -> 0 | J8: 0 | M8: =IF(AND($C8>=0,$C8<=入力!$P$38),M$1,0) -> 0 | N8: =IF(AND($C8>=0,$C8<=入力!$P$38),N$1,0) -> 0 | O8: =IF(AND($C8>=0,$C8<=入力!$P$38),O$1,0) -> 0 | P8: =IF(AND($C8>=0,$C8<=入力!$P$38),P$1,0) -> 0 | Q8: =IF(AND($C8>=0,$C8<=入力!$P$38),Q$1,0) -> 0 | T8: 0 | U8: 0 | W8: =IF(AND($C8>=10,$C8<=入力!$P$38),W$1,0) -> 0 | X8: =IFERROR(VLOOKUP($C8,学費計算!$C:$R,学費計算!D$1,0),0) -> 0 | Y8: =IFERROR(VLOOKUP($C8,学費計算!$C:$R,学費計算!E$1,0),0) -> 0 | Z8: =IFERROR(VLOOKUP($C8,学費計算!$C:$R,学費計算!F$1,0),0) -> 0 | AA8: =IFERROR(VLOOKUP($C8,学費計算!$C:$R,学費計算!G$1,0),0) -> 0 | AC8: 0 | AD8: 0 | AE8: =IF(AND($C8>=0,$C8<=入力!$P$36),AE$1,0) -> 0 | AK8: 0 | AL8: 0 | AM8: 0 | AP8: 0人 | AQ8: 622 | AR8: 833.3
B9: 22 | C9: -1 | E9: =IF(親1!D9<=833.3+42*親1!AS9,IF(AND(C9>=0,C9<=3),1.5*12,IF(AND(C9>3,C9<=15),1*12,0)),IF(AND(C9>=0,C9<=15),0.5*12,0)) -> 0 | J9: 0 | M9: =IF(AND($C9>=0,$C9<=入力!$P$38),M$1,0) -> 0 | N9: =IF(AND($C9>=0,$C9<=入力!$P$38),N$1,0) -> 0 | O9: =IF(AND($C9>=0,$C9<=入力!$P$38),O$1,0) -> 0 | P9: =IF(AND($C9>=0,$C9<=入力!$P$38),P$1,0) -> 0 | Q9: =IF(AND($C9>=0,$C9<=入力!$P$38),Q$1,0) -> 0 | T9: 0 | U9: 0 | W9: =IF(AND($C9>=10,$C9<=入力!$P$38),W$1,0) -> 0 | X9: =IFERROR(VLOOKUP($C9,学費計算!$C:$R,学費計算!D$1,0),0) -> 0 | Y9: =IFERROR(VLOOKUP($C9,学費計算!$C:$R,学費計算!E$1,0),0) -> 0 | Z9: =IFERROR(VLOOKUP($C9,学費計算!$C:$R,学費計算!F$1,0),0) -> 0 | AA9: =IFERROR(VLOOKUP($C9,学費計算!$C:$R,学費計算!G$1,0),0) -> 0 | AC9: 0 | AD9: 0 | AE9: =IF(AND($C9>=0,$C9<=入力!$P$36),AE$1,0) -> 0 | AK9: 0 | AL9: 0 | AM9: 0 | AP9: （前年末に児童が生まれていない場合 等）
B10: 23 | C10: 0 | E10: =IF(親1!D10<=833.3+42*親1!AS10,IF(AND(C10>=0,C10<=3),1.5*12,IF(AND(C10>3,C10<=15),1*12,0)),IF(AND(C10>=0,C10<=15),0.5*12,0)) -> 18 | J10: 18 | M10: =IF(AND($C10>=0,$C10<=入力!$P$38),M$1,0) -> 19.8 | N10: =IF(AND($C10>=0,$C10<=入力!$P$38),N$1,0) -> 6.6 | O10: =IF(AND($C10>=0,$C10<=入力!$P$38),O$1,0) -> 1.65 | P10: =IF(AND($C10>=0,$C10<=入力!$P$38),P$1,0) -> 1.32 | Q10: =IF(AND($C10>=0,$C10<=入力!$P$38),Q$1,0) -> 0.825 | T10: 30.195 | U10: -12.195 | W10: =IF(AND($C10>=10,$C10<=入力!$P$38),W$1,0) -> 0 | X10: =IFERROR(VLOOKUP($C10,学費計算!$C:$R,学費計算!D$1,0),0) -> 0 | Y10: =IFERROR(VLOOKUP($C10,学費計算!$C:$R,学費計算!E$1,0),0) -> 0 | Z10: =IFERROR(VLOOKUP($C10,学費計算!$C:$R,学費計算!F$1,0),0) -> 36 | AA10: =IFERROR(VLOOKUP($C10,学費計算!$C:$R,学費計算!G$1,0),0) -> 0 | AC10: 36 | AD10: -48.195 | AE10: =IF(AND($C10>=0,$C10<=入力!$P$36),AE$1,0) -> 12 | AK10: 12 | AL10: -60.195 | AM10: -60.195 | AP10: 1人 | AQ10: 660 | AR10: 875.6
B11: 24 | C11: 1 | E11: =IF(親1!D11<=833.3+42*親1!AS11,IF(AND(C11>=0,C11<=3),1.5*12,IF(AND(C11>3,C11<=15),1*12,0)),IF(AND(C11>=0,C11<=15),0.5*12,0)) -> 18 | J11: 18 | M11: =IF(AND($C11>=0,$C11<=入力!$P$38),M$1,0) -> 19.8 | N11: =IF(AND($C11>=0,$C11<=入力!$P$38),N$1,0) -> 6.6 | O11: =IF(AND($C11>=0,$C11<=入力!$P$38),O$1,0) -> 1.65 | P11: =IF(AND($C11>=0,$C11<=入力!$P$38),P$1,0) -> 1.32 | Q11: =IF(AND($C11>=0,$C11<=入力!$P$38),Q$1,0) -> 0.825 | T11: 30.195 | U11: -12.195 | W11: =IF(AND($C11>=10,$C11<=入力!$P$38),W$1,0) -> 0 | X11: =IFERROR(VLOOKUP($C11,学費計算!$C:$R,学費計算!D$1,0),0) -> 0 | Y11: =IFERROR(VLOOKUP($C11,学費計算!$C:$R,学費計算!E$1,0),0) -> 0 | Z11: =IFERROR(VLOOKUP($C11,学費計算!$C:$R,学費計算!F$1,0),0) -> 36 | AA11: =IFERROR(VLOOKUP($C11,学費計算!$C:$R,学費計算!G$1,0),0) -> 0 | AC11: 36 | AD11: -48.195 | AE11: =IF(AND($C11>=0,$C11<=入力!$P$36),AE$1,0) -> 12 | AK11: 12 | AL11: -60.195 | AM11: -120.39 | AP11: （児童１人の場合 等）
B12: 25 | C12: 2 | E12: =IF(親1!D12<=833.3+42*親1!AS12,IF(AND(C12>=0,C12<=3),1.5*12,IF(AND(C12>3,C12<=15),1*12,0)),IF(AND(C12>=0,C12<=15),0.5*12,0)) -> 18 | J12: 18 | M12: =IF(AND($C12>=0,$C12<=入力!$P$38),M$1,0) -> 19.8 | N12: =IF(AND($C12>=0,$C12<=入力!$P$38),N$1,0) -> 6.6 | O12: =IF(AND($C12>=0,$C12<=入力!$P$38),O$1,0) -> 1.65 | P12: =IF(AND($C12>=0,$C12<=入力!$P$38),P$1,0) -> 1.32 | Q12: =IF(AND($C12>=0,$C12<=入力!$P$38),Q$1,0) -> 0.825 | T12: 30.195 | U12: -12.195 | W12: =IF(AND($C12>=10,$C12<=入力!$P$38),W$1,0) -> 0 | X12: =IFERROR(VLOOKUP($C12,学費計算!$C:$R,学費計算!D$1,0),0) -> 0 | Y12: =IFERROR(VLOOKUP($C12,学費計算!$C:$R,学費計算!E$1,0),0) -> 0 | Z12: =IFERROR(VLOOKUP($C12,学費計算!$C:$R,学費計算!F$1,0),0) -> 36 | AA12: =IFERROR(VLOOKUP($C12,学費計算!$C:$R,学費計算!G$1,0),0) -> 0 | AC12: 36 | AD12: -48.195 | AE12: =IF(AND($C12>=0,$C12<=入力!$P$36),AE$1,0) -> 12 | AK12: 12 | AL12: -60.195 | AM12: -180.585 | AP12: 2人 | AQ12: 698 | AR12: 917.8
B13: 26 | C13: 3 | E13: =IF(親1!D13<=833.3+42*親1!AS13,IF(AND(C13>=0,C13<=3),1.5*12,IF(AND(C13>3,C13<=15),1*12,0)),IF(AND(C13>=0,C13<=15),0.5*12,0)) -> 18 | J13: 18 | M13: =IF(AND($C13>=0,$C13<=入力!$P$38),M$1,0) -> 19.8 | N13: =IF(AND($C13>=0,$C13<=入力!$P$38),N$1,0) -> 6.6 | O13: =IF(AND($C13>=0,$C13<=入力!$P$38),O$1,0) -> 1.65 | P13: =IF(AND($C13>=0,$C13<=入力!$P$38),P$1,0) -> 1.32 | Q13: =IF(AND($C13>=0,$C13<=入力!$P$38),Q$1,0) -> 0.825 | T13: 30.195 | U13: -12.195 | W13: =IF(AND($C13>=10,$C13<=入力!$P$38),W$1,0) -> 0 | X13: =IFERROR(VLOOKUP($C13,学費計算!$C:$R,学費計算!D$1,0),0) -> 0 | Y13: =IFERROR(VLOOKUP($C13,学費計算!$C:$R,学費計算!E$1,0),0) -> 12 | Z13: =IFERROR(VLOOKUP($C13,学費計算!$C:$R,学費計算!F$1,0),0) -> 4.4733 | AA13: =IFERROR(VLOOKUP($C13,学費計算!$C:$R,学費計算!G$1,0),0) -> 0 | AC13: 16.4733 | AD13: -28.6683 | AE13: =IF(AND($C13>=0,$C13<=入力!$P$36),AE$1,0) -> 12 | AK13: 12 | AL13: -40.6683 | AM13: -221.2533 | AP13: （児童１人 ＋ 年収103万円以下の配偶者の場合 等）
B14: 27 | C14: 4 | E14: =IF(親1!D14<=833.3+42*親1!AS14,IF(AND(C14>=0,C14<=3),1.5*12,IF(AND(C14>3,C14<=15),1*12,0)),IF(AND(C14>=0,C14<=15),0.5*12,0)) -> 12 | J14: 12 | M14: =IF(AND($C14>=0,$C14<=入力!$P$38),M$1,0) -> 19.8 | N14: =IF(AND($C14>=0,$C14<=入力!$P$38),N$1,0) -> 6.6 | O14: =IF(AND($C14>=0,$C14<=入力!$P$38),O$1,0) -> 1.65 | P14: =IF(AND($C14>=0,$C14<=入力!$P$38),P$1,0) -> 1.32 | Q14: =IF(AND($C14>=0,$C14<=入力!$P$38),Q$1,0) -> 0.825 | T14: 30.195 | U14: -18.195 | W14: =IF(AND($C14>=10,$C14<=入力!$P$38),W$1,0) -> 0 | X14: =IFERROR(VLOOKUP($C14,学費計算!$C:$R,学費計算!D$1,0),0) -> 0 | Y14: =IFERROR(VLOOKUP($C14,学費計算!$C:$R,学費計算!E$1,0),0) -> 12 | Z14: =IFERROR(VLOOKUP($C14,学費計算!$C:$R,学費計算!F$1,0),0) -> 4.2769 | AA14: =IFERROR(VLOOKUP($C14,学費計算!$C:$R,学費計算!G$1,0),0) -> 0 | AC14: 16.2769 | AD14: -34.4719 | AE14: =IF(AND($C14>=0,$C14<=入力!$P$36),AE$1,0) -> 12 | AK14: 12 | AL14: -46.4719 | AM14: -267.7252 | AP14: 3人 | AQ14: 736 | AR14: 960
B15: 28 | C15: 5 | E15: =IF(親1!D15<=833.3+42*親1!AS15,IF(AND(C15>=0,C15<=3),1.5*12,IF(AND(C15>3,C15<=15),1*12,0)),IF(AND(C15>=0,C15<=15),0.5*12,0)) -> 12 | J15: 12 | M15: =IF(AND($C15>=0,$C15<=入力!$P$38),M$1,0) -> 19.8 | N15: =IF(AND($C15>=0,$C15<=入力!$P$38),N$1,0) -> 6.6 | O15: =IF(AND($C15>=0,$C15<=入力!$P$38),O$1,0) -> 1.65 | P15: =IF(AND($C15>=0,$C15<=入力!$P$38),P$1,0) -> 1.32 | Q15: =IF(AND($C15>=0,$C15<=入力!$P$38),Q$1,0) -> 0.825 | T15: 30.195 | U15: -18.195 | W15: =IF(AND($C15>=10,$C15<=入力!$P$38),W$1,0) -> 0 | X15: =IFERROR(VLOOKUP($C15,学費計算!$C:$R,学費計算!D$1,0),0) -> 0 | Y15: =IFERROR(VLOOKUP($C15,学費計算!$C:$R,学費計算!E$1,0),0) -> 12 | Z15: =IFERROR(VLOOKUP($C15,学費計算!$C:$R,学費計算!F$1,0),0) -> 4.2496 | AA15: =IFERROR(VLOOKUP($C15,学費計算!$C:$R,学費計算!G$1,0),0) -> 0 | AC15: 16.2496 | AD15: -34.4446 | AE15: =IF(AND($C15>=0,$C15<=入力!$P$36),AE$1,0) -> 12 | AK15: 12 | AL15: -46.4446 | AM15: -314.1698 | AP15: （児童２人 ＋ 年収103万円以下の配偶者の場合 等）
B16: 29 | C16: 6 | E16: =IF(親1!D16<=833.3+42*親1!AS16,IF(AND(C16>=0,C16<=3),1.5*12,IF(AND(C16>3,C16<=15),1*12,0)),IF(AND(C16>=0,C16<=15),0.5*12,0)) -> 12 | J16: 12 | M16: =IF(AND($C16>=0,$C16<=入力!$P$38),M$1,0) -> 19.8 | N16: =IF(AND($C16>=0,$C16<=入力!$P$38),N$1,0) -> 6.6 | O16: =IF(AND($C16>=0,$C16<=入力!$P$38),O$1,0) -> 1.65 | P16: =IF(AND($C16>=0,$C16<=入力!$P$38),P$1,0) -> 1.32 | Q16: =IF(AND($C16>=0,$C16<=入力!$P$38),Q$1,0) -> 0.825 | T16: 30.195 | U16: -18.195 | W16: =IF(AND($C16>=10,$C16<=入力!$P$38),W$1,0) -> 0 | X16: =IFERROR(VLOOKUP($C16,学費計算!$C:$R,学費計算!D$1,0),0) -> 12 | Y16: =IFERROR(VLOOKUP($C16,学費計算!$C:$R,学費計算!E$1,0),0) -> 0 | Z16: =IFERROR(VLOOKUP($C16,学費計算!$C:$R,学費計算!F$1,0),0) -> 10.9753 | AA16: =IFERROR(VLOOKUP($C16,学費計算!$C:$R,学費計算!G$1,0),0) -> 0 | AC16: 22.9753 | AD16: -41.1703 | AE16: =IF(AND($C16>=0,$C16<=入力!$P$36),AE$1,0) -> 12 | AK16: 12 | AL16: -53.1703 | AM16: -367.3401 | AP16: 4人 | AQ16: 774 | AR16: 1002
B17: 30 | C17: 7 | E17: =IF(親1!D17<=833.3+42*親1!AS17,IF(AND(C17>=0,C17<=3),1.5*12,IF(AND(C17>3,C17<=15),1*12,0)),IF(AND(C17>=0,C17<=15),0.5*12,0)) -> 12 | J17: 12 | M17: =IF(AND($C17>=0,$C17<=入力!$P$38),M$1,0) -> 19.8 | N17: =IF(AND($C17>=0,$C17<=入力!$P$38),N$1,0) -> 6.6 | O17: =IF(AND($C17>=0,$C17<=入力!$P$38),O$1,0) -> 1.65 | P17: =IF(AND($C17>=0,$C17<=入力!$P$38),P$1,0) -> 1.32 | Q17: =IF(AND($C17>=0,$C17<=入力!$P$38),Q$1,0) -> 0.825 | T17: 30.195 | U17: -18.195 | W17: =IF(AND($C17>=10,$C17<=入力!$P$38),W$1,0) -> 0 | X17: =IFERROR(VLOOKUP($C17,学費計算!$C:$R,学費計算!D$1,0),0) -> 12 | Y17: =IFERROR(VLOOKUP($C17,学費計算!$C:$R,学費計算!E$1,0),0) -> 0 | Z17: =IFERROR(VLOOKUP($C17,学費計算!$C:$R,学費計算!F$1,0),0) -> 3.6477 | AA17: =IFERROR(VLOOKUP($C17,学費計算!$C:$R,学費計算!G$1,0),0) -> 0 | AC17: 15.6477 | AD17: -33.8427 | AE17: =IF(AND($C17>=0,$C17<=入力!$P$36),AE$1,0) -> 12 | AK17: 12 | AL17: -45.8427 | AM17: -413.1828 | AP17: （児童３人 ＋ 年収103万円以下の配偶者の場合 等）
B18: 31 | C18: 8 | E18: =IF(親1!D18<=833.3+42*親1!AS18,IF(AND(C18>=0,C18<=3),1.5*12,IF(AND(C18>3,C18<=15),1*12,0)),IF(AND(C18>=0,C18<=15),0.5*12,0)) -> 12 | J18: 12 | M18: =IF(AND($C18>=0,$C18<=入力!$P$38),M$1,0) -> 19.8 | N18: =IF(AND($C18>=0,$C18<=入力!$P$38),N$1,0) -> 6.6 | O18: =IF(AND($C18>=0,$C18<=入力!$P$38),O$1,0) -> 1.65 | P18: =IF(AND($C18>=0,$C18<=入力!$P$38),P$1,0) -> 1.32 | Q18: =IF(AND($C18>=0,$C18<=入力!$P$38),Q$1,0) -> 0.825 | T18: 30.195 | U18: -18.195 | W18: =IF(AND($C18>=10,$C18<=入力!$P$38),W$1,0) -> 0 | X18: =IFERROR(VLOOKUP($C18,学費計算!$C:$R,学費計算!D$1,0),0) -> 12 | Y18: =IFERROR(VLOOKUP($C18,学費計算!$C:$R,学費計算!E$1,0),0) -> 0 | Z18: =IFERROR(VLOOKUP($C18,学費計算!$C:$R,学費計算!F$1,0),0) -> 4.6674 | AA18: =IFERROR(VLOOKUP($C18,学費計算!$C:$R,学費計算!G$1,0),0) -> 0 | AC18: 16.6674 | AD18: -34.8624 | AE18: =IF(AND($C18>=0,$C18<=入力!$P$36),AE$1,0) -> 12 | AK18: 12 | AL18: -46.8624 | AM18: -460.0452 | AP18: 5人 | AQ18: 812 | AR18: 1040
B19: 32 | C19: 9 | E19: =IF(親1!D19<=833.3+42*親1!AS19,IF(AND(C19>=0,C19<=3),1.5*12,IF(AND(C19>3,C19<=15),1*12,0)),IF(AND(C19>=0,C19<=15),0.5*12,0)) -> 12 | J19: 12 | M19: =IF(AND($C19>=0,$C19<=入力!$P$38),M$1,0) -> 19.8 | N19: =IF(AND($C19>=0,$C19<=入力!$P$38),N$1,0) -> 6.6 | O19: =IF(AND($C19>=0,$C19<=入力!$P$38),O$1,0) -> 1.65 | P19: =IF(AND($C19>=0,$C19<=入力!$P$38),P$1,0) -> 1.32 | Q19: =IF(AND($C19>=0,$C19<=入力!$P$38),Q$1,0) -> 0.825 | T19: 30.195 | U19: -18.195 | W19: =IF(AND($C19>=10,$C19<=入力!$P$38),W$1,0) -> 0 | X19: =IFERROR(VLOOKUP($C19,学費計算!$C:$R,学費計算!D$1,0),0) -> 12 | Y19: =IFERROR(VLOOKUP($C19,学費計算!$C:$R,学費計算!E$1,0),0) -> 0 | Z19: =IFERROR(VLOOKUP($C19,学費計算!$C:$R,学費計算!F$1,0),0) -> 4.5661 | AA19: =IFERROR(VLOOKUP($C19,学費計算!$C:$R,学費計算!G$1,0),0) -> 0 | AC19: 16.5661 | AD19: -34.7611 | AE19: =IF(AND($C19>=0,$C19<=入力!$P$36),AE$1,0) -> 12 | AK19: 12 | AL19: -46.7611 | AM19: -506.8063 | AP19: （児童４人 ＋ 年収103万円以下の配偶者の場合 等）
B20: 33 | C20: 10 | E20: =IF(親1!D20<=833.3+42*親1!AS20,IF(AND(C20>=0,C20<=3),1.5*12,IF(AND(C20>3,C20<=15),1*12,0)),IF(AND(C20>=0,C20<=15),0.5*12,0)) -> 12 | J20: 12 | M20: =IF(AND($C20>=0,$C20<=入力!$P$38),M$1,0) -> 19.8 | N20: =IF(AND($C20>=0,$C20<=入力!$P$38),N$1,0) -> 6.6 | O20: =IF(AND($C20>=0,$C20<=入力!$P$38),O$1,0) -> 1.65 | P20: =IF(AND($C20>=0,$C20<=入力!$P$38),P$1,0) -> 1.32 | Q20: =IF(AND($C20>=0,$C20<=入力!$P$38),Q$1,0) -> 0.825 | T20: 30.195 | U20: -18.195 | W20: =IF(AND($C20>=10,$C20<=入力!$P$38),W$1,0) -> 2.4 | X20: =IFERROR(VLOOKUP($C20,学費計算!$C:$R,学費計算!D$1,0),0) -> 12 | Y20: =IFERROR(VLOOKUP($C20,学費計算!$C:$R,学費計算!E$1,0),0) -> 0 | Z20: =IFERROR(VLOOKUP($C20,学費計算!$C:$R,学費計算!F$1,0),0) -> 5.6358 | AA20: =IFERROR(VLOOKUP($C20,学費計算!$C:$R,学費計算!G$1,0),0) -> 0 | AC20: 20.0358 | AD20: -38.2308 | AE20: =IF(AND($C20>=0,$C20<=入力!$P$36),AE$1,0) -> 12 | AK20: 12 | AL20: -50.2308 | AM20: -557.0371
B21: 34 | C21: 11 | E21: =IF(親1!D21<=833.3+42*親1!AS21,IF(AND(C21>=0,C21<=3),1.5*12,IF(AND(C21>3,C21<=15),1*12,0)),IF(AND(C21>=0,C21<=15),0.5*12,0)) -> 12 | J21: 12 | M21: =IF(AND($C21>=0,$C21<=入力!$P$38),M$1,0) -> 19.8 | N21: =IF(AND($C21>=0,$C21<=入力!$P$38),N$1,0) -> 6.6 | O21: =IF(AND($C21>=0,$C21<=入力!$P$38),O$1,0) -> 1.65 | P21: =IF(AND($C21>=0,$C21<=入力!$P$38),P$1,0) -> 1.32 | Q21: =IF(AND($C21>=0,$C21<=入力!$P$38),Q$1,0) -> 0.825 | T21: 30.195 | U21: -18.195 | W21: =IF(AND($C21>=10,$C21<=入力!$P$38),W$1,0) -> 2.4 | X21: =IFERROR(VLOOKUP($C21,学費計算!$C:$R,学費計算!D$1,0),0) -> 12 | Y21: =IFERROR(VLOOKUP($C21,学費計算!$C:$R,学費計算!E$1,0),0) -> 0 | Z21: =IFERROR(VLOOKUP($C21,学費計算!$C:$R,学費計算!F$1,0),0) -> 8.4511 | AA21: =IFERROR(VLOOKUP($C21,学費計算!$C:$R,学費計算!G$1,0),0) -> 0 | AC21: 22.8511 | AD21: -41.0461 | AE21: =IF(AND($C21>=0,$C21<=入力!$P$36),AE$1,0) -> 12 | AK21: 12 | AL21: -53.0461 | AM21: -610.0832
B22: 35 | C22: 12 | E22: =IF(親1!D22<=833.3+42*親1!AS22,IF(AND(C22>=0,C22<=3),1.5*12,IF(AND(C22>3,C22<=15),1*12,0)),IF(AND(C22>=0,C22<=15),0.5*12,0)) -> 12 | J22: 12 | M22: =IF(AND($C22>=0,$C22<=入力!$P$38),M$1,0) -> 19.8 | N22: =IF(AND($C22>=0,$C22<=入力!$P$38),N$1,0) -> 6.6 | O22: =IF(AND($C22>=0,$C22<=入力!$P$38),O$1,0) -> 1.65 | P22: =IF(AND($C22>=0,$C22<=入力!$P$38),P$1,0) -> 1.32 | Q22: =IF(AND($C22>=0,$C22<=入力!$P$38),Q$1,0) -> 0.825 | T22: 30.195 | U22: -18.195 | W22: =IF(AND($C22>=10,$C22<=入力!$P$38),W$1,0) -> 2.4 | X22: =IFERROR(VLOOKUP($C22,学費計算!$C:$R,学費計算!D$1,0),0) -> 0 | Y22: =IFERROR(VLOOKUP($C22,学費計算!$C:$R,学費計算!E$1,0),0) -> 12 | Z22: =IFERROR(VLOOKUP($C22,学費計算!$C:$R,学費計算!F$1,0),0) -> 19.4599 | AA22: =IFERROR(VLOOKUP($C22,学費計算!$C:$R,学費計算!G$1,0),0) -> 0 | AC22: 33.8599 | AD22: -52.0549 | AE22: =IF(AND($C22>=0,$C22<=入力!$P$36),AE$1,0) -> 12 | AK22: 12 | AL22: -64.0549 | AM22: -674.1381
B23: 36 | C23: 13 | E23: =IF(親1!D23<=833.3+42*親1!AS23,IF(AND(C23>=0,C23<=3),1.5*12,IF(AND(C23>3,C23<=15),1*12,0)),IF(AND(C23>=0,C23<=15),0.5*12,0)) -> 12 | J23: 12 | M23: =IF(AND($C23>=0,$C23<=入力!$P$38),M$1,0) -> 19.8 | N23: =IF(AND($C23>=0,$C23<=入力!$P$38),N$1,0) -> 6.6 | O23: =IF(AND($C23>=0,$C23<=入力!$P$38),O$1,0) -> 1.65 | P23: =IF(AND($C23>=0,$C23<=入力!$P$38),P$1,0) -> 1.32 | Q23: =IF(AND($C23>=0,$C23<=入力!$P$38),Q$1,0) -> 0.825 | T23: 30.195 | U23: -18.195 | W23: =IF(AND($C23>=10,$C23<=入力!$P$38),W$1,0) -> 2.4 | X23: =IFERROR(VLOOKUP($C23,学費計算!$C:$R,学費計算!D$1,0),0) -> 0 | Y23: =IFERROR(VLOOKUP($C23,学費計算!$C:$R,学費計算!E$1,0),0) -> 12 | Z23: =IFERROR(VLOOKUP($C23,学費計算!$C:$R,学費計算!F$1,0),0) -> 10.5365 | AA23: =IFERROR(VLOOKUP($C23,学費計算!$C:$R,学費計算!G$1,0),0) -> 0 | AC23: 24.9365 | AD23: -43.1315 | AE23: =IF(AND($C23>=0,$C23<=入力!$P$36),AE$1,0) -> 12 | AK23: 12 | AL23: -55.1315 | AM23: -729.2696
B24: 37 | C24: 14 | E24: =IF(親1!D24<=833.3+42*親1!AS24,IF(AND(C24>=0,C24<=3),1.5*12,IF(AND(C24>3,C24<=15),1*12,0)),IF(AND(C24>=0,C24<=15),0.5*12,0)) -> 12 | J24: 12 | M24: =IF(AND($C24>=0,$C24<=入力!$P$38),M$1,0) -> 19.8 | N24: =IF(AND($C24>=0,$C24<=入力!$P$38),N$1,0) -> 6.6 | O24: =IF(AND($C24>=0,$C24<=入力!$P$38),O$1,0) -> 1.65 | P24: =IF(AND($C24>=0,$C24<=入力!$P$38),P$1,0) -> 1.32 | Q24: =IF(AND($C24>=0,$C24<=入力!$P$38),Q$1,0) -> 0.825 | T24: 30.195 | U24: -18.195 | W24: =IF(AND($C24>=10,$C24<=入力!$P$38),W$1,0) -> 2.4 | X24: =IFERROR(VLOOKUP($C24,学費計算!$C:$R,学費計算!D$1,0),0) -> 0 | Y24: =IFERROR(VLOOKUP($C24,学費計算!$C:$R,学費計算!E$1,0),0) -> 12 | Z24: =IFERROR(VLOOKUP($C24,学費計算!$C:$R,学費計算!F$1,0),0) -> 11.936 | AA24: =IFERROR(VLOOKUP($C24,学費計算!$C:$R,学費計算!G$1,0),0) -> 0 | AC24: 26.336 | AD24: -44.531 | AE24: =IF(AND($C24>=0,$C24<=入力!$P$36),AE$1,0) -> 12 | AK24: 12 | AL24: -56.531 | AM24: -785.8006
B25: 38 | C25: 15 | E25: =IF(親1!D25<=833.3+42*親1!AS25,IF(AND(C25>=0,C25<=3),1.5*12,IF(AND(C25>3,C25<=15),1*12,0)),IF(AND(C25>=0,C25<=15),0.5*12,0)) -> 12 | J25: 12 | M25: =IF(AND($C25>=0,$C25<=入力!$P$38),M$1,0) -> 19.8 | N25: =IF(AND($C25>=0,$C25<=入力!$P$38),N$1,0) -> 6.6 | O25: =IF(AND($C25>=0,$C25<=入力!$P$38),O$1,0) -> 1.65 | P25: =IF(AND($C25>=0,$C25<=入力!$P$38),P$1,0) -> 1.32 | Q25: =IF(AND($C25>=0,$C25<=入力!$P$38),Q$1,0) -> 0.825 | T25: 30.195 | U25: -18.195 | W25: =IF(AND($C25>=10,$C25<=入力!$P$38),W$1,0) -> 2.4 | X25: =IFERROR(VLOOKUP($C25,学費計算!$C:$R,学費計算!D$1,0),0) -> 0 | Y25: =IFERROR(VLOOKUP($C25,学費計算!$C:$R,学費計算!E$1,0),0) -> 24 | Z25: =IFERROR(VLOOKUP($C25,学費計算!$C:$R,学費計算!F$1,0),0) -> 37.0374 | AA25: =IFERROR(VLOOKUP($C25,学費計算!$C:$R,学費計算!G$1,0),0) -> 0 | AC25: 63.4374 | AD25: -81.6324 | AE25: =IF(AND($C25>=0,$C25<=入力!$P$36),AE$1,0) -> 12 | AK25: 12 | AL25: -93.6324 | AM25: -879.433
B26: 39 | C26: 16 | E26: =IF(親1!D26<=833.3+42*親1!AS26,IF(AND(C26>=0,C26<=3),1.5*12,IF(AND(C26>3,C26<=15),1*12,0)),IF(AND(C26>=0,C26<=15),0.5*12,0)) -> 0 | J26: 0 | M26: =IF(AND($C26>=0,$C26<=入力!$P$38),M$1,0) -> 19.8 | N26: =IF(AND($C26>=0,$C26<=入力!$P$38),N$1,0) -> 6.6 | O26: =IF(AND($C26>=0,$C26<=入力!$P$38),O$1,0) -> 1.65 | P26: =IF(AND($C26>=0,$C26<=入力!$P$38),P$1,0) -> 1.32 | Q26: =IF(AND($C26>=0,$C26<=入力!$P$38),Q$1,0) -> 0.825 | T26: 30.195 | U26: -30.195 | W26: =IF(AND($C26>=10,$C26<=入力!$P$38),W$1,0) -> 2.4 | X26: =IFERROR(VLOOKUP($C26,学費計算!$C:$R,学費計算!D$1,0),0) -> 0 | Y26: =IFERROR(VLOOKUP($C26,学費計算!$C:$R,学費計算!E$1,0),0) -> 24 | Z26: =IFERROR(VLOOKUP($C26,学費計算!$C:$R,学費計算!F$1,0),0) -> 29.9848 | AA26: =IFERROR(VLOOKUP($C26,学費計算!$C:$R,学費計算!G$1,0),0) -> 0 | AC26: 56.3848 | AD26: -86.5798 | AE26: =IF(AND($C26>=0,$C26<=入力!$P$36),AE$1,0) -> 12 | AK26: 12 | AL26: -98.5798 | AM26: -978.0128
B27: 40 | C27: 17 | E27: =IF(親1!D27<=833.3+42*親1!AS27,IF(AND(C27>=0,C27<=3),1.5*12,IF(AND(C27>3,C27<=15),1*12,0)),IF(AND(C27>=0,C27<=15),0.5*12,0)) -> 0 | J27: 0 | M27: =IF(AND($C27>=0,$C27<=入力!$P$38),M$1,0) -> 19.8 | N27: =IF(AND($C27>=0,$C27<=入力!$P$38),N$1,0) -> 6.6 | O27: =IF(AND($C27>=0,$C27<=入力!$P$38),O$1,0) -> 1.65 | P27: =IF(AND($C27>=0,$C27<=入力!$P$38),P$1,0) -> 1.32 | Q27: =IF(AND($C27>=0,$C27<=入力!$P$38),Q$1,0) -> 0.825 | T27: 30.195 | U27: -30.195 | W27: =IF(AND($C27>=10,$C27<=入力!$P$38),W$1,0) -> 2.4 | X27: =IFERROR(VLOOKUP($C27,学費計算!$C:$R,学費計算!D$1,0),0) -> 0 | Y27: =IFERROR(VLOOKUP($C27,学費計算!$C:$R,学費計算!E$1,0),0) -> 24 | Z27: =IFERROR(VLOOKUP($C27,学費計算!$C:$R,学費計算!F$1,0),0) -> 17.1 | AA27: =IFERROR(VLOOKUP($C27,学費計算!$C:$R,学費計算!G$1,0),0) -> 0 | AC27: 43.5 | AD27: -73.695 | AE27: =IF(AND($C27>=0,$C27<=入力!$P$36),AE$1,0) -> 12 | AK27: 12 | AL27: -85.695 | AM27: -1063.7078
B28: 41 | C28: 18 | E28: =IF(親1!D28<=833.3+42*親1!AS28,IF(AND(C28>=0,C28<=3),1.5*12,IF(AND(C28>3,C28<=15),1*12,0)),IF(AND(C28>=0,C28<=15),0.5*12,0)) -> 0 | J28: 0 | M28: =IF(AND($C28>=0,$C28<=入力!$P$38),M$1,0) -> 19.8 | N28: =IF(AND($C28>=0,$C28<=入力!$P$38),N$1,0) -> 6.6 | O28: =IF(AND($C28>=0,$C28<=入力!$P$38),O$1,0) -> 1.65 | P28: =IF(AND($C28>=0,$C28<=入力!$P$38),P$1,0) -> 1.32 | Q28: =IF(AND($C28>=0,$C28<=入力!$P$38),Q$1,0) -> 0.825 | T28: 30.195 | U28: -30.195 | W28: =IF(AND($C28>=10,$C28<=入力!$P$38),W$1,0) -> 2.4 | X28: =IFERROR(VLOOKUP($C28,学費計算!$C:$R,学費計算!D$1,0),0) -> 0 | Y28: =IFERROR(VLOOKUP($C28,学費計算!$C:$R,学費計算!E$1,0),0) -> 0 | Z28: =IFERROR(VLOOKUP($C28,学費計算!$C:$R,学費計算!F$1,0),0) -> 93.2251 | AA28: =IFERROR(VLOOKUP($C28,学費計算!$C:$R,学費計算!G$1,0),0) -> 0 | AC28: 95.6251 | AD28: -125.8201 | AE28: =IF(AND($C28>=0,$C28<=入力!$P$36),AE$1,0) -> 12 | AK28: 12 | AL28: -137.8201 | AM28: -1201.5279
B29: 42 | C29: 19 | E29: =IF(親1!D29<=833.3+42*親1!AS29,IF(AND(C29>=0,C29<=3),1.5*12,IF(AND(C29>3,C29<=15),1*12,0)),IF(AND(C29>=0,C29<=15),0.5*12,0)) -> 0 | J29: 0 | M29: =IF(AND($C29>=0,$C29<=入力!$P$38),M$1,0) -> 19.8 | N29: =IF(AND($C29>=0,$C29<=入力!$P$38),N$1,0) -> 6.6 | O29: =IF(AND($C29>=0,$C29<=入力!$P$38),O$1,0) -> 1.65 | P29: =IF(AND($C29>=0,$C29<=入力!$P$38),P$1,0) -> 1.32 | Q29: =IF(AND($C29>=0,$C29<=入力!$P$38),Q$1,0) -> 0.825 | T29: 30.195 | U29: -30.195 | W29: =IF(AND($C29>=10,$C29<=入力!$P$38),W$1,0) -> 2.4 | X29: =IFERROR(VLOOKUP($C29,学費計算!$C:$R,学費計算!D$1,0),0) -> 0 | Y29: =IFERROR(VLOOKUP($C29,学費計算!$C:$R,学費計算!E$1,0),0) -> 0 | Z29: =IFERROR(VLOOKUP($C29,学費計算!$C:$R,学費計算!F$1,0),0) -> 53.58 | AA29: =IFERROR(VLOOKUP($C29,学費計算!$C:$R,学費計算!G$1,0),0) -> 0 | AC29: 55.98 | AD29: -86.175 | AE29: =IF(AND($C29>=0,$C29<=入力!$P$36),AE$1,0) -> 0 | AK29: 0 | AL29: -86.175 | AM29: -1287.7029
B30: 43 | C30: 20 | E30: =IF(親1!D30<=833.3+42*親1!AS30,IF(AND(C30>=0,C30<=3),1.5*12,IF(AND(C30>3,C30<=15),1*12,0)),IF(AND(C30>=0,C30<=15),0.5*12,0)) -> 0 | J30: 0 | M30: =IF(AND($C30>=0,$C30<=入力!$P$38),M$1,0) -> 19.8 | N30: =IF(AND($C30>=0,$C30<=入力!$P$38),N$1,0) -> 6.6 | O30: =IF(AND($C30>=0,$C30<=入力!$P$38),O$1,0) -> 1.65 | P30: =IF(AND($C30>=0,$C30<=入力!$P$38),P$1,0) -> 1.32 | Q30: =IF(AND($C30>=0,$C30<=入力!$P$38),Q$1,0) -> 0.825 | T30: 30.195 | U30: -30.195 | W30: =IF(AND($C30>=10,$C30<=入力!$P$38),W$1,0) -> 2.4 | X30: =IFERROR(VLOOKUP($C30,学費計算!$C:$R,学費計算!D$1,0),0) -> 0 | Y30: =IFERROR(VLOOKUP($C30,学費計算!$C:$R,学費計算!E$1,0),0) -> 0 | Z30: =IFERROR(VLOOKUP($C30,学費計算!$C:$R,学費計算!F$1,0),0) -> 53.58 | AA30: =IFERROR(VLOOKUP($C30,学費計算!$C:$R,学費計算!G$1,0),0) -> 0 | AC30: 55.98 | AD30: -86.175 | AE30: =IF(AND($C30>=0,$C30<=入力!$P$36),AE$1,0) -> 0 | AK30: 0 | AL30: -86.175 | AM30: -1373.8779
B31: 44 | C31: 21 | E31: =IF(親1!D31<=833.3+42*親1!AS31,IF(AND(C31>=0,C31<=3),1.5*12,IF(AND(C31>3,C31<=15),1*12,0)),IF(AND(C31>=0,C31<=15),0.5*12,0)) -> 0 | J31: 0 | M31: =IF(AND($C31>=0,$C31<=入力!$P$38),M$1,0) -> 19.8 | N31: =IF(AND($C31>=0,$C31<=入力!$P$38),N$1,0) -> 6.6 | O31: =IF(AND($C31>=0,$C31<=入力!$P$38),O$1,0) -> 1.65 | P31: =IF(AND($C31>=0,$C31<=入力!$P$38),P$1,0) -> 1.32 | Q31: =IF(AND($C31>=0,$C31<=入力!$P$38),Q$1,0) -> 0.825 | T31: 30.195 | U31: -30.195 | W31: =IF(AND($C31>=10,$C31<=入力!$P$38),W$1,0) -> 2.4 | X31: =IFERROR(VLOOKUP($C31,学費計算!$C:$R,学費計算!D$1,0),0) -> 0 | Y31: =IFERROR(VLOOKUP($C31,学費計算!$C:$R,学費計算!E$1,0),0) -> 0 | Z31: =IFERROR(VLOOKUP($C31,学費計算!$C:$R,学費計算!F$1,0),0) -> 53.58 | AA31: =IFERROR(VLOOKUP($C31,学費計算!$C:$R,学費計算!G$1,0),0) -> 0 | AC31: 55.98 | AD31: -86.175 | AE31: =IF(AND($C31>=0,$C31<=入力!$P$36),AE$1,0) -> 0 | AK31: 0 | AL31: -86.175 | AM31: -1460.0529
B32: 45 | C32: 22 | E32: =IF(親1!D32<=833.3+42*親1!AS32,IF(AND(C32>=0,C32<=3),1.5*12,IF(AND(C32>3,C32<=15),1*12,0)),IF(AND(C32>=0,C32<=15),0.5*12,0)) -> 0 | J32: 0 | M32: =IF(AND($C32>=0,$C32<=入力!$P$38),M$1,0) -> 19.8 | N32: =IF(AND($C32>=0,$C32<=入力!$P$38),N$1,0) -> 6.6 | O32: =IF(AND($C32>=0,$C32<=入力!$P$38),O$1,0) -> 1.65 | P32: =IF(AND($C32>=0,$C32<=入力!$P$38),P$1,0) -> 1.32 | Q32: =IF(AND($C32>=0,$C32<=入力!$P$38),Q$1,0) -> 0.825 | T32: 30.195 | U32: -30.195 | W32: =IF(AND($C32>=10,$C32<=入力!$P$38),W$1,0) -> 2.4 | X32: =IFERROR(VLOOKUP($C32,学費計算!$C:$R,学費計算!D$1,0),0) -> 0 | Y32: =IFERROR(VLOOKUP($C32,学費計算!$C:$R,学費計算!E$1,0),0) -> 0 | Z32: =IFERROR(VLOOKUP($C32,学費計算!$C:$R,学費計算!F$1,0),0) -> 0 | AA32: =IFERROR(VLOOKUP($C32,学費計算!$C:$R,学費計算!G$1,0),0) -> 0 | AC32: 2.4 | AD32: -32.595 | AE32: =IF(AND($C32>=0,$C32<=入力!$P$36),AE$1,0) -> 0 | AK32: 0 | AL32: -32.595 | AM32: -1492.6479
B33: 46 | C33: 23 | E33: =IF(親1!D33<=833.3+42*親1!AS33,IF(AND(C33>=0,C33<=3),1.5*12,IF(AND(C33>3,C33<=15),1*12,0)),IF(AND(C33>=0,C33<=15),0.5*12,0)) -> 0 | J33: 0 | M33: =IF(AND($C33>=0,$C33<=入力!$P$38),M$1,0) -> 0 | N33: =IF(AND($C33>=0,$C33<=入力!$P$38),N$1,0) -> 0 | O33: =IF(AND($C33>=0,$C33<=入力!$P$38),O$1,0) -> 0 | P33: =IF(AND($C33>=0,$C33<=入力!$P$38),P$1,0) -> 0 | Q33: =IF(AND($C33>=0,$C33<=入力!$P$38),Q$1,0) -> 0 | T33: 0 | U33: 0 | W33: =IF(AND($C33>=10,$C33<=入力!$P$38),W$1,0) -> 0 | X33: =IFERROR(VLOOKUP($C33,学費計算!$C:$R,学費計算!D$1,0),0) -> 0 | Y33: =IFERROR(VLOOKUP($C33,学費計算!$C:$R,学費計算!E$1,0),0) -> 0 | Z33: =IFERROR(VLOOKUP($C33,学費計算!$C:$R,学費計算!F$1,0),0) -> 0 | AA33: =IFERROR(VLOOKUP($C33,学費計算!$C:$R,学費計算!G$1,0),0) -> 0 | AC33: 0 | AD33: 0 | AE33: =IF(AND($C33>=0,$C33<=入力!$P$36),AE$1,0) -> 0 | AK33: 0 | AL33: 0 | AM33: -1492.6479
B34: 47 | C34: 24 | E34: =IF(親1!D34<=833.3+42*親1!AS34,IF(AND(C34>=0,C34<=3),1.5*12,IF(AND(C34>3,C34<=15),1*12,0)),IF(AND(C34>=0,C34<=15),0.5*12,0)) -> 0 | J34: 0 | M34: =IF(AND($C34>=0,$C34<=入力!$P$38),M$1,0) -> 0 | N34: =IF(AND($C34>=0,$C34<=入力!$P$38),N$1,0) -> 0 | O34: =IF(AND($C34>=0,$C34<=入力!$P$38),O$1,0) -> 0 | P34: =IF(AND($C34>=0,$C34<=入力!$P$38),P$1,0) -> 0 | Q34: =IF(AND($C34>=0,$C34<=入力!$P$38),Q$1,0) -> 0 | T34: 0 | U34: 0 | W34: =IF(AND($C34>=10,$C34<=入力!$P$38),W$1,0) -> 0 | X34: =IFERROR(VLOOKUP($C34,学費計算!$C:$R,学費計算!D$1,0),0) -> 0 | Y34: =IFERROR(VLOOKUP($C34,学費計算!$C:$R,学費計算!E$1,0),0) -> 0 | Z34: =IFERROR(VLOOKUP($C34,学費計算!$C:$R,学費計算!F$1,0),0) -> 0 | AA34: =IFERROR(VLOOKUP($C34,学費計算!$C:$R,学費計算!G$1,0),0) -> 0 | AC34: 0 | AD34: 0 | AE34: =IF(AND($C34>=0,$C34<=入力!$P$36),AE$1,0) -> 0 | AK34: 0 | AL34: 0 | AM34: -1492.6479
B35: 48 | C35: 25 | E35: =IF(親1!D35<=833.3+42*親1!AS35,IF(AND(C35>=0,C35<=3),1.5*12,IF(AND(C35>3,C35<=15),1*12,0)),IF(AND(C35>=0,C35<=15),0.5*12,0)) -> 0 | J35: 0 | M35: =IF(AND($C35>=0,$C35<=入力!$P$38),M$1,0) -> 0 | N35: =IF(AND($C35>=0,$C35<=入力!$P$38),N$1,0) -> 0 | O35: =IF(AND($C35>=0,$C35<=入力!$P$38),O$1,0) -> 0 | P35: =IF(AND($C35>=0,$C35<=入力!$P$38),P$1,0) -> 0 | Q35: =IF(AND($C35>=0,$C35<=入力!$P$38),Q$1,0) -> 0 | T35: 0 | U35: 0 | W35: =IF(AND($C35>=10,$C35<=入力!$P$38),W$1,0) -> 0 | X35: =IFERROR(VLOOKUP($C35,学費計算!$C:$R,学費計算!D$1,0),0) -> 0 | Y35: =IFERROR(VLOOKUP($C35,学費計算!$C:$R,学費計算!E$1,0),0) -> 0 | Z35: =IFERROR(VLOOKUP($C35,学費計算!$C:$R,学費計算!F$1,0),0) -> 0 | AA35: =IFERROR(VLOOKUP($C35,学費計算!$C:$R,学費計算!G$1,0),0) -> 0 | AC35: 0 | AD35: 0 | AE35: =IF(AND($C35>=0,$C35<=入力!$P$36),AE$1,0) -> 0 | AK35: 0 | AL35: 0 | AM35: -1492.6479
